Workbook

Sheet ISBCOLS (hidden)
C2: =Choose!I13 -> Barnet School and Academy Funding 2019/20
C3: =Choose!J14 -> April Adjusted Funding - Version 2.0 -
E4: =Dated -> 2019-04-26
C5: =CELL("filename",A1) -> P:\Accountancy\School Funding\Cycle 11 - 2019-20\April adjustments\Gold\[April Adjusted Funding 2019-20 v2 26.4.19.xlsm]ISBCOLS
C6: =RIGHT(C5,LEN(C5)-FIND("]",C5)) -> ISBCOLS | K6: ADJUSTED FACTORS SHEET BELOW
A9: ColNo | B9: Column | C9: Heading | E9: ColNo | F9: Column | G9: Heading | I9: ColNo | J9: Column | K9: Heading | M9: ColNo | N9: Column | O9: Heading
A10: 1 | B10: A | C10: Adjusted factors match | E10: 27 | F10: AA | G10: =VLOOKUP($C$10,NEWISB!$A$10:$DY$10,E10,0) -> EAL (P) | I10: 53 | J10: BA | K10: =VLOOKUP($C$10,NEWISB!$A$10:$DY$10,I10,0) -> Minimum per pupil funding: minimum per pupil rate | M10: 79 | N10: CA | O10: =VLOOKUP($C$10,NEWISB!$A$10:$DY$10,M10,0) -> Year on year % Change
A11: 2 | B11: B | C11: =VLOOKUP($C$10,NEWISB!$A$10:$DY$10,A11,0) -> URN | E11: 28 | F11: AB | G11: =VLOOKUP($C$10,NEWISB!$A$10:$DY$10,E11,0) -> EAL (S) | I11: 54 | J11: BB | K11: =VLOOKUP($C$10,NEWISB!$A$10:$DY$10,I11,0) -> Minimum per pupil funding: minimum funding level | M11: 80 | N11: CB | O11: =VLOOKUP($C$10,NEWISB!$A$10:$DY$10,M11,0) -> De-delegation
A12: 3 | B12: C | C12: =VLOOKUP($C$10,NEWISB!$A$10:$DY$10,A12,0) -> LAESTAB | E12: 29 | F12: AC | G12: =VLOOKUP($C$10,NEWISB!$A$10:$DY$10,E12,0) -> LAC | I12: 55 | J12: BC | K12: =VLOOKUP($C$10,NEWISB!$A$10:$DY$10,I12,0) -> Minimum per pupil funding: additional funding to meet the primary minimum funding level | M12: 81 | N12: CC | O12: =VLOOKUP($C$10,NEWISB!$A$10:$DY$10,M12,0) -> Post De-delegation budget
A13: 4 | B13: D | C13: =VLOOKUP($C$10,NEWISB!$A$10:$DY$10,A13,0) -> School Name | E13: 30 | F13: AD | G13: =VLOOKUP($C$10,NEWISB!$A$10:$DY$10,E13,0) -> Low Attainment (P) | I13: 56 | J13: BD | K13: =VLOOKUP($C$10,NEWISB!$A$10:$DY$10,I13,0) -> Minimum per pupil funding: additional funding to meet the secondary minimum funding level | M13: 82 | N13: CD | O13: =VLOOKUP($C$10,NEWISB!$A$10:$DY$10,M13,0) -> Education functions for maintained schools
A14: 5 | B14: E | C14: =VLOOKUP($C$10,NEWISB!$A$10:$DY$10,A14,0) -> NOR (from Adjusted Factors column O) | E14: 31 | F14: AE | G14: =VLOOKUP($C$10,NEWISB!$A$10:$DY$10,E14,0) -> Low Attainment (S) | I14: 57 | J14: BE | K14: =VLOOKUP($C$10,NEWISB!$A$10:$DY$10,I14,0) -> Total allocation including minimum funding level adjustment | M14: 83 | N14: CE | O14: =VLOOKUP($C$10,NEWISB!$A$10:$DY$10,M14,0) -> Post De-delegation and Education functions budget
A15: 6 | B15: F | C15: =VLOOKUP($C$10,NEWISB!$A$10:$DY$10,A15,0) -> NOR Primary (from Adjusted Factors column P) | E15: 32 | F15: AF | G15: =VLOOKUP($C$10,NEWISB!$A$10:$DY$10,E15,0) -> Mobility (P) | I15: 58 | J15: BF | K15: =VLOOKUP($C$10,NEWISB!$A$10:$DY$10,I15,0) -> Total Allocation for funding floor comparison | M15: 84 | N15: CF | O15: =VLOOKUP($C$10,NEWISB!$A$10:$DY$10,M15,0) -> URN
A16: 7 | B16: G | C16: =VLOOKUP($C$10,NEWISB!$A$10:$DY$10,A16,0) -> NOR Secondary (from Adjusted Factors column S) | E16: 33 | F16: AG | G16: =VLOOKUP($C$10,NEWISB!$A$10:$DY$10,E16,0) -> Mobility (S) | I16: 59 | J16: BG | K16: =VLOOKUP($C$10,NEWISB!$A$10:$DY$10,I16,0) -> 19-20 funding floor per pupil rate | M16: 85 | N16: CG
A17: 8 | B17: H | C17: =VLOOKUP($C$10,NEWISB!$A$10:$DY$10,A17,0) -> Basic Entitlement (Primary) | E17: 34 | F17: AH | G17: =VLOOKUP($C$10,NEWISB!$A$10:$DY$10,E17,0) -> Lump Sum | I17: 60 | J17: BH | K17: =VLOOKUP($C$10,NEWISB!$A$10:$DY$10,I17,0) -> 17-18 funding floor per pupil rate | M17: 86 | N17: CH
A18: 9 | B18: I | C18: =VLOOKUP($C$10,NEWISB!$A$10:$DY$10,A18,0) -> Basic Entitlement (KS3) | E18: 35 | F18: AI | G18: =VLOOKUP($C$10,NEWISB!$A$10:$DY$10,E18,0) -> Sparsity Funding | I18: 61 | J18: BI | K18: =VLOOKUP($C$10,NEWISB!$A$10:$DY$10,I18,0) -> Funding floor % change | M18: 87 | N18: CI
A19: 10 | B19: J | C19: =VLOOKUP($C$10,NEWISB!$A$10:$DY$10,A19,0) -> Basic Entitlement (KS4) | E19: 36 | F19: AJ | G19: =VLOOKUP($C$10,NEWISB!$A$10:$DY$10,E19,0) -> London Fringe | I19: 62 | J19: BJ | K19: =VLOOKUP($C$10,NEWISB!$A$10:$DY$10,I19,0) -> Funding floor adjustment | M19: 88 | N19: CJ
A20: 11 | B20: K | C20: =VLOOKUP($C$10,NEWISB!$A$10:$DY$10,A20,0) -> Free School Meals (Primary) | E20: 37 | F20: AK | G20: =VLOOKUP($C$10,NEWISB!$A$10:$DY$10,E20,0) -> Split Sites | I20: 63 | J20: BK | K20: =VLOOKUP($C$10,NEWISB!$A$10:$DY$10,I20,0) -> Total allocation including funding floor protection | M20: 89 | N20: CK
A21: 12 | B21: L | C21: =VLOOKUP($C$10,NEWISB!$A$10:$DY$10,A21,0) -> Free School Meals (Secondary) | E21: 38 | F21: AL | G21: =VLOOKUP($C$10,NEWISB!$A$10:$DY$10,E21,0) -> Rates | I21: 64 | J21: BL | K21: =VLOOKUP($C$10,NEWISB!$A$10:$DY$10,I21,0) -> Primary Funding | M21: 90 | N21: CL
A22: 13 | B22: M | C22: =VLOOKUP($C$10,NEWISB!$A$10:$DY$10,A22,0) -> Free School Meals Ever 6 (Primary) | E22: 39 | F22: AM | G22: =VLOOKUP($C$10,NEWISB!$A$10:$DY$10,E22,0) -> PFI | I22: 65 | J22: BM | K22: =VLOOKUP($C$10,NEWISB!$A$10:$DY$10,I22,0) -> Secondary Funding | M22: 91 | N22: CM
A23: 14 | B23: N | C23: =VLOOKUP($C$10,NEWISB!$A$10:$DY$10,A23,0) -> Free School Meals Ever 6 (Secondary) | E23: 40 | F23: AN | G23: =VLOOKUP($C$10,NEWISB!$A$10:$DY$10,E23,0) -> 19-20 Approved Exceptional Circumstance 1: Reserved for Additional lump sum for schools amalgamated during FY18-19 | I23: 66 | J23: BN | K23: =VLOOKUP($C$10,NEWISB!$A$10:$DY$10,I23,0) -> 19-20 MFG budget using minimum funding level and funding floor protection | M23: 92 | N23: CN
A24: 15 | B24: O | C24: =VLOOKUP($C$10,NEWISB!$A$10:$DY$10,A24,0) -> IDACI (P F) | E24: 41 | F24: AO | G24: =VLOOKUP($C$10,NEWISB!$A$10:$DY$10,E24,0) -> 19-20 Approved Exceptional Circumstance 2: Reserved for additional sparsity lump sum | I24: 67 | J24: BO | K24: =VLOOKUP($C$10,NEWISB!$A$10:$DY$10,I24,0) -> Minimum allocation after capping/scaling | M24: 93 | N24: CO
A25: 16 | B25: P | C25: =VLOOKUP($C$10,NEWISB!$A$10:$DY$10,A25,0) -> IDACI (P E) | E25: 42 | F25: AP | G25: =VLOOKUP($C$10,NEWISB!$A$10:$DY$10,E25,0) -> 19-20 Approved Exceptional Circumstance 3 | I25: 68 | J25: BP | K25: =VLOOKUP($C$10,NEWISB!$A$10:$DY$10,I25,0) -> 19-20 MFG Budget | M25: 94 | N25: CP
A26: 17 | B26: Q | C26: =VLOOKUP($C$10,NEWISB!$A$10:$DY$10,A26,0) -> IDACI (P D) | E26: 43 | F26: AQ | G26: =VLOOKUP($C$10,NEWISB!$A$10:$DY$10,E26,0) -> 19-20 Approved Exceptional Circumstance 4 | I26: 69 | J26: BQ | K26: =VLOOKUP($C$10,NEWISB!$A$10:$DY$10,I26,0) -> 19-20 MFG Unit Value | M26: 95 | N26: CQ
A27: 18 | B27: R | C27: =VLOOKUP($C$10,NEWISB!$A$10:$DY$10,A27,0) -> IDACI (P C) | E27: 44 | F27: AR | G27: =VLOOKUP($C$10,NEWISB!$A$10:$DY$10,E27,0) -> 19-20 Approved Exceptional Circumstance 5 | I27: 70 | J27: BR | K27: =VLOOKUP($C$10,NEWISB!$A$10:$DY$10,I27,0) -> 18-19 MFG Unit Value | M27: 96 | N27: CR
A28: 19 | B28: S | C28: =VLOOKUP($C$10,NEWISB!$A$10:$DY$10,A28,0) -> IDACI (P B) | E28: 45 | F28: AS | G28: =VLOOKUP($C$10,NEWISB!$A$10:$DY$10,E28,0) -> 19-20 Approved Exceptional Circumstance 6 | I28: 71 | J28: BS | K28: =VLOOKUP($C$10,NEWISB!$A$10:$DY$10,I28,0) -> MFG % change | M28: 97 | N28: CS
A29: 20 | B29: T | C29: =VLOOKUP($C$10,NEWISB!$A$10:$DY$10,A29,0) -> IDACI (P A) | E29: 46 | F29: AT | G29: =VLOOKUP($C$10,NEWISB!$A$10:$DY$10,E29,0) -> 19-20 Approved Exceptional Circumstance 7 | I29: 72 | J29: BT | K29: =VLOOKUP($C$10,NEWISB!$A$10:$DY$10,I29,0) -> MFG Value adjustment | M29: 98 | N29: CT
A30: 21 | B30: U | C30: =VLOOKUP($C$10,NEWISB!$A$10:$DY$10,A30,0) -> IDACI (S F) | E30: 47 | F30: AU | G30: =VLOOKUP($C$10,NEWISB!$A$10:$DY$10,E30,0) -> Basic Entitlement Total | I30: 73 | J30: BU | K30: =VLOOKUP($C$10,NEWISB!$A$10:$DY$10,I30,0) -> Alternative gains cap adjustment | M30: 99 | N30: CU
A31: 22 | B31: V | C31: =VLOOKUP($C$10,NEWISB!$A$10:$DY$10,A31,0) -> IDACI (S E) | E31: 48 | F31: AV | G31: =VLOOKUP($C$10,NEWISB!$A$10:$DY$10,E31,0) -> AEN Total | I31: 74 | J31: BV | K31: =VLOOKUP($C$10,NEWISB!$A$10:$DY$10,I31,0) -> 19-20 MFG Adjustment | M31: 100 | N31: CV
A32: 23 | B32: W | C32: =VLOOKUP($C$10,NEWISB!$A$10:$DY$10,A32,0) -> IDACI (S D) | E32: 49 | F32: AW | G32: =VLOOKUP($C$10,NEWISB!$A$10:$DY$10,E32,0) -> School Factors total | I32: 75 | J32: BW | K32: =VLOOKUP($C$10,NEWISB!$A$10:$DY$10,I32,0) -> 19-20 Post MFG Budget | M32: 101 | N32: CW
A33: 24 | B33: X | C33: =VLOOKUP($C$10,NEWISB!$A$10:$DY$10,A33,0) -> IDACI (S C) | E33: 50 | F33: AX | G33: =VLOOKUP($C$10,NEWISB!$A$10:$DY$10,E33,0) -> Notional SEN Budget | I33: 76 | J33: BX | K33: =VLOOKUP($C$10,NEWISB!$A$10:$DY$10,I33,0) -> Minimum per pupil funding: post MFG minimum funding per pupil rate | M33: 102 | N33: CX
A34: 25 | B34: Y | C34: =VLOOKUP($C$10,NEWISB!$A$10:$DY$10,A34,0) -> IDACI (S B) | E34: 51 | F34: AY | G34: =VLOOKUP($C$10,NEWISB!$A$10:$DY$10,E34,0) -> Total Allocation | I34: 77 | J34: BY | K34: =VLOOKUP($C$10,NEWISB!$A$10:$DY$10,I34,0) -> Minimum per pupil funding: per pupil rate is greater than or equal to the minimum entered on the Proforma sheet? | M34: 103 | N34: CY
A35: 26 | B35: Z | C35: =VLOOKUP($C$10,NEWISB!$A$10:$DY$10,A35,0) -> IDACI (S A) | E35: 52 | F35: AZ | G35: =VLOOKUP($C$10,NEWISB!$A$10:$DY$10,E35,0) -> Minimum per pupil funding: adjusted total allocation (excluding selected premises costs) | I35: 78 | J35: BZ | K35: =VLOOKUP($C$10,NEWISB!$A$10:$DY$10,I35,0) -> 19-20 Post MFG per pupil Budget | M35: 104 | N35: CZ
A37: ADJUSTED FACTORS SHEET
A38: ColNo | B38: Column | C38: Heading | E38: ColNo | F38: Column | G38: Heading | I38: ColNo | J38: Column | K38: Heading | M38: ColNo | N38: Column | O38: Heading
A39: 1 | B39: A | C39: Schools Block Data match # | E39: 27 | F39: AA | G39: =VLOOKUP($C$39,'Adjusted Factors'!$A$13:$DZ$13,E39,0) -> 19-20 Base NOR | H39: =E39-3 -> 24 | I39: 53 | J39: BA | K39: =VLOOKUP($C$39,'Adjusted Factors'!$A$13:$DZ$13,I39,0) -> LAC X Units | L39: =I39-3 -> 50 | M39: 79 | N39: CA | O39: =VLOOKUP($C$39,'Adjusted Factors'!$A$13:$DZ$13,M39,0) -> 0
A40: 2 | B40: B | C40: =VLOOKUP($C$39,'Adjusted Factors'!$A$13:$DZ$13,A40,0) -> I & A match # | E40: 28 | F40: AB | G40: =VLOOKUP($C$39,'Adjusted Factors'!$A$13:$DZ$13,E40,0) -> Average Year Group Size | H40: 25 | I40: 54 | J40: BB | K40: =VLOOKUP($C$39,'Adjusted Factors'!$A$13:$DZ$13,I40,0) -> Low Attainment under new EYFSP Proportion | L40: =I40-3 -> 51 | M40: 80 | N40: CB | O40: =VLOOKUP($C$39,'Adjusted Factors'!$A$13:$DZ$13,M40,0) -> 0
A41: 3 | B41: C | C41: =VLOOKUP($C$39,'Adjusted Factors'!$A$13:$DZ$13,A41,0) -> URN | E41: 29 | F41: AC | G41: =VLOOKUP($C$39,'Adjusted Factors'!$A$13:$DZ$13,E41,0) -> Primary FSM Units | H41: 26 | I41: 55 | J41: BC | K41: =VLOOKUP($C$39,'Adjusted Factors'!$A$13:$DZ$13,I41,0) -> Low attainment total Primary Units | L41: 52 | M41: 81 | N41: CC | O41: =VLOOKUP($C$39,'Adjusted Factors'!$A$13:$DZ$13,M41,0) -> 0
A42: 4 | B42: D | C42: =VLOOKUP($C$39,'Adjusted Factors'!$A$13:$DZ$13,A42,0) -> LAESTAB | D42: =A42-3 -> 1 | E42: 30 | F42: AD | G42: =VLOOKUP($C$39,'Adjusted Factors'!$A$13:$DZ$13,E42,0) -> Primary Ever 6 Units | H42: 27 | I42: 56 | J42: BD | K42: =VLOOKUP($C$39,'Adjusted Factors'!$A$13:$DZ$13,I42,0) -> Low Attainment Secondary Units - Y7 | L42: 53 | M42: 82 | N42: CD | O42: =VLOOKUP($C$39,'Adjusted Factors'!$A$13:$DZ$13,M42,0) -> 0
A43: 5 | B43: E | C43: =VLOOKUP($C$39,'Adjusted Factors'!$A$13:$DZ$13,A43,0) -> School Name | D43: =A43-3 -> 2 | E43: 31 | F43: AE | G43: =VLOOKUP($C$39,'Adjusted Factors'!$A$13:$DZ$13,E43,0) -> Secondary FSM Units | H43: 28 | I43: 57 | J43: BE | K43: =VLOOKUP($C$39,'Adjusted Factors'!$A$13:$DZ$13,I43,0) -> Low Attainment Secondary Units - Y8 | L43: 54 | M43: 83 | N43: CE | O43: =VLOOKUP($C$39,'Adjusted Factors'!$A$13:$DZ$13,M43,0) -> 0
A44: 6 | B44: F | C44: =VLOOKUP($C$39,'Adjusted Factors'!$A$13:$DZ$13,A44,0) -> Phase | D44: 3 | E44: 32 | F44: AF | G44: =VLOOKUP($C$39,'Adjusted Factors'!$A$13:$DZ$13,E44,0) -> Secondary Ever 6 Units | H44: 29 | I44: 58 | J44: BF | K44: =VLOOKUP($C$39,'Adjusted Factors'!$A$13:$DZ$13,I44,0) -> Low Attainment Secondary Units - Y9 | L44: 55 | M44: 84 | N44: CF | O44: =VLOOKUP($C$39,'Adjusted Factors'!$A$13:$DZ$13,M44,0) -> 0
A45: 7 | B45: G | C45: =VLOOKUP($C$39,'Adjusted Factors'!$A$13:$DZ$13,A45,0) -> Academy Type | D45: 4 | E45: 33 | F45: AG | G45: =VLOOKUP($C$39,'Adjusted Factors'!$A$13:$DZ$13,E45,0) -> IDACI Primary Units Band G | H45: 30 | I45: 59 | J45: BG | K45: =VLOOKUP($C$39,'Adjusted Factors'!$A$13:$DZ$13,I45,0) -> Low Attainment Secondary Units - Y10-11 | L45: 56 | M45: 85 | N45: CG | O45: =VLOOKUP($C$39,'Adjusted Factors'!$A$13:$DZ$13,M45,0) -> 0
A46: 8 | B46: H | C46: =VLOOKUP($C$39,'Adjusted Factors'!$A$13:$DZ$13,A46,0) -> London Fringe | D46: 5 | E46: 34 | F46: AH | G46: =VLOOKUP($C$39,'Adjusted Factors'!$A$13:$DZ$13,E46,0) -> IDACI Primary Units Band F | H46: 31 | I46: 60 | J46: BH | K46: =VLOOKUP($C$39,'Adjusted Factors'!$A$13:$DZ$13,I46,0) -> Low attainment total Secondary Units | L46: 57 | M46: 86 | N46: CH | O46: =VLOOKUP($C$39,'Adjusted Factors'!$A$13:$DZ$13,M46,0) -> 0
A47: 9 | B47: I | C47: =VLOOKUP($C$39,'Adjusted Factors'!$A$13:$DZ$13,A47,0) -> Number of Primary year groups for middle schools | D47: 6 | E47: 35 | F47: AI | G47: =VLOOKUP($C$39,'Adjusted Factors'!$A$13:$DZ$13,E47,0) -> IDACI Primary Units Band E | H47: 32 | I47: 61 | J47: BI | K47: =VLOOKUP($C$39,'Adjusted Factors'!$A$13:$DZ$13,I47,0) -> Mobility Primary Units | L47: 58 | M47: 87 | N47: CI | O47: =VLOOKUP($C$39,'Adjusted Factors'!$A$13:$DZ$13,M47,0) -> 0
A48: 10 | B48: J | C48: =VLOOKUP($C$39,'Adjusted Factors'!$A$13:$DZ$13,A48,0) -> Number of Secondary year groups for middle schools | D48: 7 | E48: 36 | F48: AJ | G48: =VLOOKUP($C$39,'Adjusted Factors'!$A$13:$DZ$13,E48,0) -> IDACI Primary Units Band D | H48: 33 | I48: 62 | J48: BJ | K48: =VLOOKUP($C$39,'Adjusted Factors'!$A$13:$DZ$13,I48,0) -> Mobility Secondary Units | L48: 59 | M48: 88 | N48: CJ | O48: =VLOOKUP($C$39,'Adjusted Factors'!$A$13:$DZ$13,M48,0) -> 0
A49: 11 | B49: K | C49: =VLOOKUP($C$39,'Adjusted Factors'!$A$13:$DZ$13,A49,0) -> Number of Primary year groups for all schools | D49: 8 | E49: 37 | F49: AK | G49: =VLOOKUP($C$39,'Adjusted Factors'!$A$13:$DZ$13,E49,0) -> IDACI Primary Units Band C | H49: 34 | I49: 63 | J49: BK | K49: =VLOOKUP($C$39,'Adjusted Factors'!$A$13:$DZ$13,I49,0) -> Primary sparsity av. Distance to 2nd school (miles) | L49: 60 | M49: 89 | N49: CK | O49: =VLOOKUP($C$39,'Adjusted Factors'!$A$13:$DZ$13,M49,0) -> 0
A50: 12 | B50: L | C50: =VLOOKUP($C$39,'Adjusted Factors'!$A$13:$DZ$13,A50,0) -> Number of Secondary year groups for all schools | D50: 9 | E50: 38 | F50: AL | G50: =VLOOKUP($C$39,'Adjusted Factors'!$A$13:$DZ$13,E50,0) -> IDACI Primary Units Band B | H50: 35 | I50: 64 | J50: BL | K50: =VLOOKUP($C$39,'Adjusted Factors'!$A$13:$DZ$13,I50,0) -> Secondary sparsity av. Distance to 2nd school (miles) | L50: 61 | M50: 90 | N50: CL | O50: =VLOOKUP($C$39,'Adjusted Factors'!$A$13:$DZ$13,M50,0) -> 0
A51: 13 | B51: M | C51: =VLOOKUP($C$39,'Adjusted Factors'!$A$13:$DZ$13,A51,0) -> Number of KS3 year groups for all schools | D51: 10 | E51: 39 | F51: AM | G51: =VLOOKUP($C$39,'Adjusted Factors'!$A$13:$DZ$13,E51,0) -> IDACI Primary Units Band A | H51: 36 | I51: 65 | J51: BM | K51: =VLOOKUP($C$39,'Adjusted Factors'!$A$13:$DZ$13,I51,0) -> Sparsity flag | L51: 62 | M51: 91 | N51: CM | O51: =VLOOKUP($C$39,'Adjusted Factors'!$A$13:$DZ$13,M51,0) -> 0
A52: 14 | B52: N | C52: =VLOOKUP($C$39,'Adjusted Factors'!$A$13:$DZ$13,A52,0) -> Number of KS4 year groups for all schools | D52: 11 | E52: 40 | F52: AN | G52: =VLOOKUP($C$39,'Adjusted Factors'!$A$13:$DZ$13,E52,0) -> IDACI Secondary Units Band G | H52: 37 | I52: 66 | J52: BN | K52: =VLOOKUP($C$39,'Adjusted Factors'!$A$13:$DZ$13,I52,0) -> Proportion of total NOR in Primary phase | L52: 63 | M52: 92 | N52: CN | O52: =VLOOKUP($C$39,'Adjusted Factors'!$A$13:$DZ$13,M52,0) -> 0
A53: 15 | B53: O | C53: =VLOOKUP($C$39,'Adjusted Factors'!$A$13:$DZ$13,A53,0) -> NOR | D53: 12 | E53: 41 | F53: AO | G53: =VLOOKUP($C$39,'Adjusted Factors'!$A$13:$DZ$13,E53,0) -> IDACI Secondary Units Band F | H53: 38 | I53: 67 | J53: BO | K53: =VLOOKUP($C$39,'Adjusted Factors'!$A$13:$DZ$13,I53,0) -> Proportion of total NOR in Secondary phase | L53: 64 | M53: 93 | N53: CO | O53: =VLOOKUP($C$39,'Adjusted Factors'!$A$13:$DZ$13,M53,0) -> 0
A54: 16 | B54: P | C54: =VLOOKUP($C$39,'Adjusted Factors'!$A$13:$DZ$13,A54,0) -> NOR Primary | D54: 13 | E54: 42 | F54: AP | G54: =VLOOKUP($C$39,'Adjusted Factors'!$A$13:$DZ$13,E54,0) -> IDACI Secondary Units Band E | H54: 39 | I54: 68 | J54: BP | K54: =VLOOKUP($C$39,'Adjusted Factors'!$A$13:$DZ$13,I54,0) -> 0 | L54: 65 | M54: 94 | N54: CP | O54: =VLOOKUP($C$39,'Adjusted Factors'!$A$13:$DZ$13,M54,0) -> 0
A55: 17 | B55: Q | C55: =VLOOKUP($C$39,'Adjusted Factors'!$A$13:$DZ$13,A55,0) -> NOR Reception | D55: 14 | E55: 43 | F55: AQ | G55: =VLOOKUP($C$39,'Adjusted Factors'!$A$13:$DZ$13,E55,0) -> IDACI Secondary Units Band D | H55: 40 | I55: 69 | J55: BQ | K55: =VLOOKUP($C$39,'Adjusted Factors'!$A$13:$DZ$13,I55,0) -> 0 | L55: 66 | M55: 95 | N55: CQ | O55: =VLOOKUP($C$39,'Adjusted Factors'!$A$13:$DZ$13,M55,0) -> 0
A56: 18 | B56: R | C56: =VLOOKUP($C$39,'Adjusted Factors'!$A$13:$DZ$13,A56,0) -> NOR Y1-6 for calculation of the eligible pupils for the primary prior attainment factor ONLY | D56: 15 | E56: 44 | F56: AR | G56: =VLOOKUP($C$39,'Adjusted Factors'!$A$13:$DZ$13,E56,0) -> IDACI Secondary Units Band C | H56: 41 | I56: 70 | J56: BR | K56: =VLOOKUP($C$39,'Adjusted Factors'!$A$13:$DZ$13,I56,0) -> 0 | L56: 67 | M56: 96 | N56: CR | O56: =VLOOKUP($C$39,'Adjusted Factors'!$A$13:$DZ$13,M56,0) -> 0
A57: 19 | B57: S | C57: =VLOOKUP($C$39,'Adjusted Factors'!$A$13:$DZ$13,A57,0) -> NOR Secondary | D57: 16 | E57: 45 | F57: AS | G57: =VLOOKUP($C$39,'Adjusted Factors'!$A$13:$DZ$13,E57,0) -> IDACI Secondary Units Band B | H57: 42 | I57: 71 | J57: BS | K57: =VLOOKUP($C$39,'Adjusted Factors'!$A$13:$DZ$13,I57,0) -> 0 | L57: 68 | M57: 97 | N57: CS | O57: =VLOOKUP($C$39,'Adjusted Factors'!$A$13:$DZ$13,M57,0) -> 0
A58: 20 | B58: T | C58: =VLOOKUP($C$39,'Adjusted Factors'!$A$13:$DZ$13,A58,0) -> NOR KS3 | D58: 17 | E58: 46 | F58: AT | G58: =VLOOKUP($C$39,'Adjusted Factors'!$A$13:$DZ$13,E58,0) -> IDACI Secondary Units Band A | H58: 43 | I58: 72 | J58: BT | K58: =VLOOKUP($C$39,'Adjusted Factors'!$A$13:$DZ$13,I58,0) -> 0 | L58: 69 | M58: 98 | N58: CT | O58: =VLOOKUP($C$39,'Adjusted Factors'!$A$13:$DZ$13,M58,0) -> 0
A59: 21 | B59: U | C59: =VLOOKUP($C$39,'Adjusted Factors'!$A$13:$DZ$13,A59,0) -> NOR KS4 | D59: 18 | E59: 47 | F59: AU | G59: =VLOOKUP($C$39,'Adjusted Factors'!$A$13:$DZ$13,E59,0) -> EAL 1 Primary Units | H59: 44 | I59: 73 | J59: BU | K59: =VLOOKUP($C$39,'Adjusted Factors'!$A$13:$DZ$13,I59,0) -> 0 | L59: 70 | M59: 99 | N59: CU | O59: =VLOOKUP($C$39,'Adjusted Factors'!$A$13:$DZ$13,M59,0) -> 0
A60: 22 | B60: V | C60: =VLOOKUP($C$39,'Adjusted Factors'!$A$13:$DZ$13,A60,0) -> NOR Y7 for calculation of the eligible pupils for the secondary prior attainment factor ONLY | D60: 19 | E60: 48 | F60: AV | G60: =VLOOKUP($C$39,'Adjusted Factors'!$A$13:$DZ$13,E60,0) -> EAL 2 Primary Units | H60: 45 | I60: 74 | J60: BV | K60: =VLOOKUP($C$39,'Adjusted Factors'!$A$13:$DZ$13,I60,0) -> 0 | L60: 71 | M60: 100 | N60: CV | O60: =VLOOKUP($C$39,'Adjusted Factors'!$A$13:$DZ$13,M60,0) -> 0
A61: 23 | B61: W | C61: =VLOOKUP($C$39,'Adjusted Factors'!$A$13:$DZ$13,A61,0) -> NOR Y8 for calculation of the eligible pupils for the secondary prior attainment factor ONLY | D61: 20 | E61: 49 | F61: AW | G61: =VLOOKUP($C$39,'Adjusted Factors'!$A$13:$DZ$13,E61,0) -> EAL 3 Primary Units | H61: 46 | I61: 75 | J61: BW | K61: =VLOOKUP($C$39,'Adjusted Factors'!$A$13:$DZ$13,I61,0) -> 0 | L61: 72 | M61: 101 | N61: CW | O61: =VLOOKUP($C$39,'Adjusted Factors'!$A$13:$DZ$13,M61,0) -> 0
A62: 24 | B62: X | C62: =VLOOKUP($C$39,'Adjusted Factors'!$A$13:$DZ$13,A62,0) -> NOR Y9 for calculation of the eligible pupils for the secondary prior attainment factor ONLY | D62: 21 | E62: 50 | F62: AX | G62: =VLOOKUP($C$39,'Adjusted Factors'!$A$13:$DZ$13,E62,0) -> EAL 1 Secondary Units | H62: 47 | I62: 76 | J62: BX | K62: =VLOOKUP($C$39,'Adjusted Factors'!$A$13:$DZ$13,I62,0) -> 0 | L62: 73 | M62: 102 | N62: CX | O62: =VLOOKUP($C$39,'Adjusted Factors'!$A$13:$DZ$13,M62,0) -> 0
A63: 25 | B63: Y | C63: =VLOOKUP($C$39,'Adjusted Factors'!$A$13:$DZ$13,A63,0) -> NOR Y10-11 for calculation of the eligible pupils for the secondary prior attainment factor ONLY | D63: 22 | E63: 51 | F63: AY | G63: =VLOOKUP($C$39,'Adjusted Factors'!$A$13:$DZ$13,E63,0) -> EAL 2 Secondary Units | H63: 48 | I63: 77 | J63: BY | K63: =VLOOKUP($C$39,'Adjusted Factors'!$A$13:$DZ$13,I63,0) -> 0 | L63: 74 | M63: 103 | N63: CY | O63: =VLOOKUP($C$39,'Adjusted Factors'!$A$13:$DZ$13,M63,0) -> 0
A64: 26 | B64: Z | C64: =VLOOKUP($C$39,'Adjusted Factors'!$A$13:$DZ$13,A64,0) -> Reception Difference | D64: 23 | E64: 52 | F64: AZ | G64: =VLOOKUP($C$39,'Adjusted Factors'!$A$13:$DZ$13,E64,0) -> EAL 3 Secondary Units | H64: 49 | I64: 78 | J64: BZ | K64: =VLOOKUP($C$39,'Adjusted Factors'!$A$13:$DZ$13,I64,0) -> 0 | L64: 75 | M64: 104 | N64: CZ | O64: =VLOOKUP($C$39,'Adjusted Factors'!$A$13:$DZ$13,M64,0) -> 0

Sheet TRANSCOLS (hidden)
C2: =Choose!I13 -> Barnet School and Academy Funding 2019/20 | M2: Calculated
C3: =Choose!J14 -> April Adjusted Funding - Version 2.0 - | M3: Enter
F4: =Dated -> 2019-04-26 | M4: Lookup
C5: =CELL("filename",A1) -> P:\Accountancy\School Funding\Cycle 11 - 2019-20\April adjustments\Gold\[April Adjusted Funding 2019-20 v2 26.4.19.xlsm]TRANSCOLS | M5: Concatenations
C6: =RIGHT(C5,LEN(C5)-FIND("]",C5)) -> TRANSCOLS | M6: spare
A9: ColNo | B9: Column | C9: Heading | D9: Details | E9: Lookup sheet | F9: ColNo | G9: Column | H9: Heading | I9: =D9 -> Details | J9: =E9 -> Lookup sheet | K9: ColNo | L9: Column | M9: Heading | N9: =I9 -> Details | O9: =J9 -> Lookup sheet | P9: ColNo | Q9: Column | R9: Heading | V9: ColNo | W9: Column | X9: Heading | Y9: =N9 -> Details | Z9: =O9 -> Lookup sheet | AA9: ColNo | AB9: Column | AC9: Heading | AD9: =Y9 -> Details | AE9: =Z9 -> Lookup sheet | AG9: Dfe matching column | AH9: Col | AI9: Col | AJ9: Federation matching column
A10: 1 | B10: A | C10: Record# | D10: ="Drag down. Numbers each record from "& TRANS!A2 &"Deleting a record will turn subsequent numbers to #REF." -> Drag down. Numbers each record from 20190001Deleting a record will turn subsequent numbers to #REF. | E10: - | F10: 27 | G10: AA | H10: =VLOOKUP($C$10,TRANS!$A$1:$EE$1,F10,0) -> Total instalments | I10: Total instalments Apr-Mar | J10: - | K10: 53 | L10: BA | M10: =VLOOKUP($C$10,TRANS!$A$1:$EE$1,K10,0) -> Spare11 | N10: Blank - do not delete but can be reused | P10: 79 | Q10: CA | R10: =VLOOKUP($C$10,TRANS!$A$1:$EE$1,P10,0) -> Spare21 | S10: Blank - do not delete but can be reused | V10: 105 | W10: DA | X10: =VLOOKUP($C$10,TRANS!$A$1:$EE$1,V10,0) -> EFA pays | Y10: Y/N Repeat of Column K (1 or 0) | AA10: 131 | AB10: EA | AC10: =VLOOKUP($C$10,TRANS!$A$1:$EZ$1,AA10,0) -> May£ | AD10: May monthly payment : DF x DL | AG10: DFENO | AH10: E | AI10: CO | AJ10: FedID
A11: 2 | B11: B | C11: =VLOOKUP($C$10,TRANS!$A$1:$EE$1,A11,0) -> Recorddate | D11: Enter the date the record was added | E11: - | F11: 28 | G11: AB | H11: =VLOOKUP($C$10,TRANS!$A$1:$EE$1,F11,0) -> EFA pays | I11: Calculates K x S - the amount Barnet is recouped | J11: - | K11: 54 | L11: BB | M11: =VLOOKUP($C$10,TRANS!$A$1:$EE$1,K11,0) -> Spare12 | N11: Blank - do not delete but can be reused | P11: 80 | Q11: CB | R11: =VLOOKUP($C$10,TRANS!$A$1:$EE$1,P11,0) -> Spare22 | S11: Blank - do not delete but can be reused | V11: 106 | W11: DB | X11: =VLOOKUP($C$10,TRANS!$A$1:$EE$1,V11,0) -> Barnet Pays | Y11: 1 minus DA | AA11: 132 | AB11: EB | AC11: =VLOOKUP($C$10,TRANS!$A$1:$EZ$1,AA11,0) -> Jun£ | AD11: June monthly payment : DF x DM | AG11: CFR+DFE | AH11: AJ | AI11: CY | AJ11: CFR&FEDNO
A12: 3 | B12: C | C12: =VLOOKUP($C$10,TRANS!$A$1:$EE$1,A12,0) -> Entered by | D12: Enter initials of user (CG,CB) | E12: - | F12: 29 | G12: AC | H12: =VLOOKUP($C$10,TRANS!$A$1:$EE$1,F12,0) -> Terms | I12: For early years, calculates the first term from the first 3 characters of the funding type. | J12: - | K12: 55 | L12: BC | M12: =VLOOKUP($C$10,TRANS!$A$1:$EE$1,K12,0) -> Spare13 | N12: Blank - do not delete but can be reused | P12: 81 | Q12: CC | R12: =VLOOKUP($C$10,TRANS!$A$1:$EE$1,P12,0) -> Spare23 | S12: Blank - do not delete but can be reused | V12: 107 | W12: DC | X12: =VLOOKUP($C$10,TRANS!$A$1:$EE$1,V12,0) -> Option | Y12: Repeat of Column AU | AA12: 133 | AB12: EC | AC12: =VLOOKUP($C$10,TRANS!$A$1:$EZ$1,AA12,0) -> Jul£ | AD12: July monthly payment : DF x DN | AG12: DFE+AREA | AH12: AK | AI12: CX | AJ12: FEDNO+AREA
A13: 4 | B13: D | C13: =VLOOKUP($C$10,TRANS!$A$1:$EE$1,A13,0) -> RUN | D13: Enter period of update (ORIGINAL, APR, SUM, AUT, SPR, EOY) | E13: - | F13: 30 | G13: AD | H13: =VLOOKUP($C$10,TRANS!$A$1:$EE$1,F13,0) -> DFE+TYPE2+OPTION | I13: Concatenation of Cols E+W+AU | J13: - | K13: 56 | L13: BD | M13: =VLOOKUP($C$10,TRANS!$A$1:$EE$1,K13,0) -> Spare14 | N13: Blank - do not delete but can be reused | P13: 82 | Q13: CD | R13: =VLOOKUP($C$10,TRANS!$A$1:$EE$1,P13,0) -> Spare24 | S13: Blank - do not delete but can be reused | V13: 108 | W13: DD | X13: =VLOOKUP($C$10,TRANS!$A$1:$EE$1,V13,0) -> Dedelegation | Y13: Looks up if this is a Dedelegation funding type - 1 or 0 | Z13: RATES | AA13: 134 | AB13: ED | AC13: =VLOOKUP($C$10,TRANS!$A$1:$EZ$1,AA13,0) -> Aug£ | AD13: August monthly payment : DF x DO | AG13: DFE+TYPE | AH13: AF | AI13: CS | AJ13: FEDNO+TYPE
A14: 5 | B14: E | C14: =VLOOKUP($C$10,TRANS!$A$1:$EE$1,A14,0) -> DfE Number | D14: Enter 7 digit number starting 302 | E14: - | F14: 31 | G14: AE | H14: =VLOOKUP($C$10,TRANS!$A$1:$EE$1,F14,0) -> RUN+DFE+TYPE | I14: Concatenation of Cols D+E+N | J14: - | K14: 57 | L14: BE | M14: =VLOOKUP($C$10,TRANS!$A$1:$EE$1,K14,0) -> Spare15 | N14: Blank - do not delete but can be reused | P14: 83 | Q14: CE | R14: =VLOOKUP($C$10,TRANS!$A$1:$EE$1,P14,0) -> Spare25 | S14: Blank - do not delete but can be reused | V14: 109 | W14: DE | X14: =VLOOKUP($C$10,TRANS!$A$1:$EE$1,V14,0) -> Payroll | Y14: Calculates DB x DH x S | AA14: 135 | AB14: EE | AC14: =VLOOKUP($C$10,TRANS!$A$1:$EZ$1,AA14,0) -> Sep£ | AD14: Sept monthly payment : DF x DP | AG14: dfe+type2 | AH14: BK | AI14: CU | AJ14: FEDNO+type2
A15: 6 | B15: F | C15: =VLOOKUP($C$10,TRANS!$A$1:$EE$1,A15,0) -> School | D15: Looks up full school name from SCHOOLS sheet | E15: SCHOOLS | F15: 32 | G15: AF | H15: =VLOOKUP($C$10,TRANS!$A$1:$EE$1,F15,0) -> DFE+TYPE | I15: Concatenation of cols E+N | J15: - | K15: 58 | L15: BF | M15: =VLOOKUP($C$10,TRANS!$A$1:$EE$1,K15,0) -> Spare16 | N15: Blank - do not delete but can be reused | P15: 84 | Q15: CF | R15: =VLOOKUP($C$10,TRANS!$A$1:$EE$1,P15,0) -> Spare26 | S15: Blank - do not delete but can be reused | V15: 110 | W15: DF | X15: =VLOOKUP($C$10,TRANS!$A$1:$EE$1,V15,0) -> Remainder | Y15: Calculates funding not kept for Payroll, April Advance or EFA = S minus DE minus DJ minus DW | AA15: 136 | AB15: EF | AC15: =VLOOKUP($C$10,TRANS!$A$1:$EZ$1,AA15,0) -> Oct£ | AD15: Oct monthly payment : DF x DQ | AG15: DFE+TYPE2+OPTION | AH15: AD
A16: 7 | B16: G | C16: =VLOOKUP($C$10,TRANS!$A$1:$EE$1,A16,0) -> Phase | D16: Looks up the phase from the SCHOOLS sheet | E16: SCHOOLS | F16: 33 | G16: AG | H16: =VLOOKUP($C$10,TRANS!$A$1:$EE$1,F16,0) -> RUN+TYPE | I16: Concatenation of Cols D+N | J16: - | K16: 59 | L16: BG | M16: =VLOOKUP($C$10,TRANS!$A$1:$EE$1,K16,0) -> Spare17 | N16: Blank - do not delete but can be reused | P16: 85 | Q16: CG | R16: =VLOOKUP($C$10,TRANS!$A$1:$EE$1,P16,0) -> Spare27 | S16: Blank - do not delete but can be reused | V16: 111 | W16: DG | X16: =VLOOKUP($C$10,TRANS!$A$1:$EE$1,V16,0) -> I01-I03 | Y16: Calculates if this funding I01 to I03 or not (1 or 0) | AA16: 137 | AB16: EG | AC16: =VLOOKUP($C$10,TRANS!$A$1:$EZ$1,AA16,0) -> Nov£ | AD16: Nov monthly payment : DF x DR | AG16: RUN+DFE | AH16: AH | AI16: CR | AJ16: RUN+FEDNO
A17: 8 | B17: H | C17: =VLOOKUP($C$10,TRANS!$A$1:$EE$1,A17,0) -> Academy | D17: Looks up the academy status from the SCHOOLS sheet | E17: SCHOOLS | F17: 34 | G17: AH | H17: =VLOOKUP($C$10,TRANS!$A$1:$EE$1,F17,0) -> RUN+DFE | I17: Concatenation of Cols D+E | J17: - | K17: 60 | L17: BH | M17: =VLOOKUP($C$10,TRANS!$A$1:$EE$1,K17,0) -> Spare18 | N17: Blank - do not delete but can be reused | P17: 86 | Q17: CH | R17: =VLOOKUP($C$10,TRANS!$A$1:$EE$1,P17,0) -> Spare28 | S17: Blank - do not delete but can be reused | V17: 112 | W17: DH | X17: =VLOOKUP($C$10,TRANS!$A$1:$EE$1,V17,0) -> % held for payroll | Y17: Lookup % of original funding % kept for payroll. | Z17: SCHOOLS | AA17: 138 | AB17: EH | AC17: =VLOOKUP($C$10,TRANS!$A$1:$EZ$1,AA17,0) -> Dec£ | AD17: Dec monthly payment : DF x DS | AG17: run+dfe+area | AH17: AM | AI17: CW | AJ17: RUN+FEDNO+AREA
A18: 9 | B18: I | C18: =VLOOKUP($C$10,TRANS!$A$1:$EE$1,A18,0) -> Vendor | D18: Looks up the Integra vendor number from the SCHOOLS sheet | E18: SCHOOLS | F18: 35 | G18: AI | H18: =VLOOKUP($C$10,TRANS!$A$1:$EE$1,F18,0) -> ACADEMY+SECTOR+TYPE | I18: Concatenation of Cols H+G (first 3 characters)+N | J18: - | K18: 61 | L18: BI | M18: =VLOOKUP($C$10,TRANS!$A$1:$EE$1,K18,0) -> Type of funding | N18: Looks up full description of funding type from RATES | O18: RATES | P18: 87 | Q18: CI | R18: =VLOOKUP($C$10,TRANS!$A$1:$EE$1,P18,0) -> Spare29 | S18: Blank - do not delete but can be reused | V18: 113 | W18: DI | X18: =VLOOKUP($C$10,TRANS!$A$1:$EE$1,V18,0) -> Payment date | Y18: Looks up date B and D schools should be paid each month (default 28th) | Z18: SCHOOLS | AA18: 139 | AB18: EI | AC18: =VLOOKUP($C$10,TRANS!$A$1:$EZ$1,AA18,0) -> Jan£ | AD18: January monthly payment : DF x DT | AG18: RUN+DFE+CFR | AH18: CT | AI18: CM | AJ18: RUN+FEDNO+CFR
A19: 10 | B19: J | C19: =VLOOKUP($C$10,TRANS!$A$1:$EE$1,A19,0) -> SchoolCC | D19: Looks up the school's Integra cost centre from the SCHOOLS sheet (maintained schools only) | E19: SCHOOLS | F19: 36 | G19: AJ | H19: =VLOOKUP($C$10,TRANS!$A$1:$EE$1,F19,0) -> CFR+DFE | I19: Concatenation of cols V+E | J19: - | K19: 62 | L19: BJ | M19: =VLOOKUP($C$10,TRANS!$A$1:$EE$1,K19,0) -> Spare19 | N19: Blank - do not delete but can be reused | P19: 88 | Q19: CJ | R19: =VLOOKUP($C$10,TRANS!$A$1:$EE$1,P19,0) -> Spare30 | S19: Blank - do not delete but can be reused | V19: 114 | W19: DJ | X19: =VLOOKUP($C$10,TRANS!$A$1:$EE$1,V19,0) -> Apr Advance - Option A | Y19: Calculates Option A April Advance: S minus DE | AA19: 140 | AB19: EJ | AC19: =VLOOKUP($C$10,TRANS!$A$1:$EZ$1,AA19,0) -> Feb£ | AD19: February monthly payment : DF x DU | AG19: RUN+DFE+TYPE | AH19: AE | AI19: CV | AJ19: RUN+FEDNO+type
A20: 11 | B20: K | C20: =VLOOKUP($C$10,TRANS!$A$1:$EE$1,A20,0) -> EFA Pay Code | D20: Looks up 0 (LBB pays),-1 (PY Growth) or 1 (Academy) from the Rates sheet. | E20: RATES | F20: 37 | G20: AK | H20: =VLOOKUP($C$10,TRANS!$A$1:$EE$1,F20,0) -> DFE+AREA | I20: Concatenation of cols E+O | J20: - | K20: 63 | L20: BK | M20: =VLOOKUP($C$10,TRANS!$A$1:$EE$1,K20,0) -> dfe+type2 | N20: Concatenates columns E+W | P20: 89 | Q20: CK | R20: =VLOOKUP($C$10,TRANS!$A$1:$EE$1,P20,0) -> Spare31 | S20: Blank - do not delete but can be reused | V20: 115 | W20: DK | X20: =VLOOKUP($C$10,TRANS!$A$1:$EE$1,V20,0) -> Apr % | Y20: Looks up % to pay April Monthly payment | Z20: PAYDATA | AA20: 141 | AB20: EK | AC20: =VLOOKUP($C$10,TRANS!$A$1:$EZ$1,AA20,0) -> Mar£ | AD20: March monthly payment : DF x DV | AG20: Run+Dfe+Type2 | AH20: BQ | AI20: CQ | AJ20: RUN+FEDNO+TYPE2
A21: 12 | B21: L | C21: =VLOOKUP($C$10,TRANS!$A$1:$EE$1,A21,0) -> Subtype | D21: Enter free text about an item of funding if necessary. | E21: - | F21: 38 | G21: AL | H21: =VLOOKUP($C$10,TRANS!$A$1:$EE$1,F21,0) -> INTCC+PHASE | I21: Concatenation of cols T+G | J21: - | K21: 64 | L21: BL | M21: =VLOOKUP($C$10,TRANS!$A$1:$EE$1,K21,0) -> Amount EFA pays | N21: Looks up if EFA pays and calculatates amount | O21: PAYLOOKUP | P21: 90 | Q21: CL | R21: =VLOOKUP($C$10,TRANS!$A$1:$EE$1,P21,0) -> Spare32 | S21: Blank - do not delete but can be reused | V21: 116 | W21: DL | X21: =VLOOKUP($C$10,TRANS!$A$1:$EE$1,V21,0) -> May % | Y21: Looks up % to pay May Monthly payment | Z21: PAYDATA | AA21: 142 | AB21: EL | AC21: =VLOOKUP($C$10,TRANS!$A$1:$EZ$1,AA21,0) -> Check 0 | AD21: Calculate absolute value of total funding less total paid: S - sum of DW to EK | AE21: NB Heading should be 'Check 0'
A22: 13 | B22: M | C22: =VLOOKUP($C$10,TRANS!$A$1:$EE$1,A22,0) -> VA | D22: Looks up school type from SCHOOLS : COM, ACAD, VA, FREE | E22: SCHOOLS | F22: 39 | G22: AM | H22: =VLOOKUP($C$10,TRANS!$A$1:$EE$1,F22,0) -> run+dfe+area | I22: Concatenation of cols D+E+O | J22: - | K22: 65 | L22: BM | M22: =VLOOKUP($C$10,TRANS!$A$1:$EE$1,K22,0) -> Payroll £ | N22: Calculates LBB option A payroll retention | P22: 91 | Q22: CM | R22: =VLOOKUP($C$10,TRANS!$A$1:$EE$1,P22,0) -> RUN+FEDNO+cfr | S22: Concatenates D+CO+V | V22: 117 | W22: DM | X22: =VLOOKUP($C$10,TRANS!$A$1:$EE$1,V22,0) -> Jun% | Y22: Looks up % to pay June Monthly payment | Z22: PAYDATA | AA22: 143 | AB22: EM | AC22: =VLOOKUP($C$10,TRANS!$A$1:$EZ$1,AA22,0) -> Amount paid by Barnet | AD22: Total amount paid by Barnet
A23: 14 | B23: N | C23: =VLOOKUP($C$10,TRANS!$A$1:$EE$1,A23,0) -> Fundingtype | D23: Enter the type of funding | E23: - | F23: 40 | G23: AN | H23: =VLOOKUP($C$10,TRANS!$A$1:$EE$1,F23,0) -> Total Instalments May-Mar | I23: Total of 11 Instalments - May-mar | K23: 66 | L23: BN | M23: =VLOOKUP($C$10,TRANS!$A$1:$EE$1,K23,0) -> Spare19C | N23: Blank - do not delete but can be reused | P23: 92 | Q23: CN | R23: =VLOOKUP($C$10,TRANS!$A$1:$EE$1,P23,0) -> Federation | S23: Looks up if school is in a Federation | T23: SCHOOLS | V23: 118 | W23: DN | X23: =VLOOKUP($C$10,TRANS!$A$1:$EE$1,V23,0) -> Jul % | Y23: Looks up % to pay July Monthly payment | Z23: PAYDATA | AA23: 144 | AB23: EN | AC23: =VLOOKUP($C$10,TRANS!$A$1:$EZ$1,AA23,0) -> Check Barnet Total check 0 | AD23: Check the total Barnet pays equals the monthly amounts
A24: 15 | B24: O | C24: =VLOOKUP($C$10,TRANS!$A$1:$EE$1,A24,0) -> FundingArea | D24: Looks up the group the funding type belongs to from the RATES sheet. | E24: RATES | F24: 41 | G24: AO | H24: =VLOOKUP($C$10,TRANS!$A$1:$EE$1,F24,0) -> Pay or Claim | I24: Work out PAY, CLAIM or ZERO | K24: 67 | L24: BO | M24: =VLOOKUP($C$10,TRANS!$A$1:$EE$1,K24,0) -> INTCC+TYPE+Academy+Phase | N24: Concatenates columnsT+N+H+G | P24: 93 | Q24: CO | R24: =VLOOKUP($C$10,TRANS!$A$1:$EE$1,P24,0) -> FedID | S24: Looks up FEDNUM of school if any | T24: FEDERATIONS | V24: 119 | W24: DO | X24: =VLOOKUP($C$10,TRANS!$A$1:$EE$1,V24,0) -> Aug % | Y24: Looks up % to pay August Monthly payment | Z24: PAYDATA | AA24: 145 | AB24: EO | AC24: =VLOOKUP($C$10,TRANS!$A$1:$EZ$1,AA24,0) -> Spare35 | AD24: Blank column, heading only, not currently used
A25: 16 | B25: P | C25: =VLOOKUP($C$10,TRANS!$A$1:$EE$1,A25,0) -> Percent | D25: Enter percentage for the funding calculation. Default 100% | E25: - | F25: 42 | G25: AP | H25: =VLOOKUP($C$10,TRANS!$A$1:$EE$1,F25,0) -> Costcentre/GLCode | I25: Blank - do not delete but can be reused | K25: 68 | L25: BP | M25: =VLOOKUP($C$10,TRANS!$A$1:$EE$1,K25,0) -> ColS - Col BL | N25: Calculates S-BL | P25: 94 | Q25: CP | R25: =VLOOKUP($C$10,TRANS!$A$1:$EE$1,P25,0) -> FedName | S25: Looks up the Federation name in SCHOOLS | T25: SCHOOLS | V25: 120 | W25: DP | X25: =VLOOKUP($C$10,TRANS!$A$1:$EE$1,V25,0) -> Sep % | Y25: Looks up % to pay September Monthly payment | Z25: PAYDATA | AA25: 146 | AB25: EP | AC25: =VLOOKUP($C$10,TRANS!$A$1:$EZ$1,AA25,0) -> Spare36 | AD25: Blank column, heading only, not currently used
A26: 17 | B26: Q | C26: =VLOOKUP($C$10,TRANS!$A$1:$EE$1,A26,0) -> Rate | D26: Looks up the funding rate from RATES - a number or 'Various' | E26: RATES | F26: 43 | G26: AQ | H26: =VLOOKUP($C$10,TRANS!$A$1:$EE$1,F26,0) -> Spare7 | I26: Blank - do not delete but can be reused | K26: 69 | L26: BQ | M26: =VLOOKUP($C$10,TRANS!$A$1:$EE$1,K26,0) -> Run+Dfe+Type2 | N26: Concatenates D+BK | P26: 95 | Q26: CQ | R26: =VLOOKUP($C$10,TRANS!$A$1:$EE$1,P26,0) -> RUN+FEDNO+TYPE2 | S26: Concatenates D+CO+N (or other name for Early Years) | V26: 121 | W26: DQ | X26: =VLOOKUP($C$10,TRANS!$A$1:$EE$1,V26,0) -> Oct % | Y26: Looks up % to pay October Monthly payment | Z26: PAYDATA | AA26: 147 | AB26: EQ | AC26: =VLOOKUP($C$10,TRANS!$A$1:$EZ$1,AA26,0) -> Spare37 | AD26: Blank column, heading only, not currently used
A27: 18 | B27: R | C27: =VLOOKUP($C$10,TRANS!$A$1:$EE$1,A27,0) -> Data | D27: Enter data (eg pupil numbers) for funding calculation | E27: - | F27: 44 | G27: AR | H27: =VLOOKUP($C$10,TRANS!$A$1:$EE$1,F27,0) -> INTCCName | I27: Looks up full description of cost centre from COSTCENTRES | J27: COST CENTRES | K27: 70 | L27: BR | M27: =VLOOKUP($C$10,TRANS!$A$1:$EE$1,K27,0) -> Status | N27: Looks up if this funding is Actual or Estimated | O27: RATES | P27: 96 | Q27: CR | R27: =VLOOKUP($C$10,TRANS!$A$1:$EE$1,P27,0) -> RUN+FEDNO | S27: Concatenates D+CO | V27: 122 | W27: DR | X27: =VLOOKUP($C$10,TRANS!$A$1:$EE$1,V27,0) -> Nov % | Y27: Looks up % to pay November Monthly payment | Z27: PAYDATA | AA27: 148 | AB27: ER | AC27: =VLOOKUP($C$10,TRANS!$A$1:$EZ$1,AA27,0) -> Spare38 | AD27: Blank column, heading only, not currently used
A28: 19 | B28: S | C28: =VLOOKUP($C$10,TRANS!$A$1:$EE$1,A28,0) -> Funding | D28: Calculates the funding PxQxR or if rate is 'Various' then R. | E28: - | F28: 45 | G28: AS | H28: =VLOOKUP($C$10,TRANS!$A$1:$EE$1,F28,0) -> S251 | I28: Looks up S251 code for the cost centre from COSTCENTRES | J28: COST CENTRES | K28: 71 | L28: BS | M28: =VLOOKUP($C$10,TRANS!$A$1:$EE$1,K28,0) -> Spare19E | N28: Blank - do not delete but can be reused | P28: 97 | Q28: CS | R28: =VLOOKUP($C$10,TRANS!$A$1:$EE$1,P28,0) -> FEDNO+TYPE | S28: Concatenates CO+N | V28: 123 | W28: DS | X28: =VLOOKUP($C$10,TRANS!$A$1:$EE$1,V28,0) -> Dec % | Y28: Looks up % to pay December Monthly payment | Z28: PAYDATA | AA28: 149 | AB28: ES | AC28: =VLOOKUP($C$10,TRANS!$A$1:$EZ$1,AA28,0) -> Spare39 | AD28: Blank column, heading only, not currently used
A29: 20 | B29: T | C29: =VLOOKUP($C$10,TRANS!$A$1:$EE$1,A29,0) -> INTCC | D29: Looks up the Integra costcentre to charge this type of funding | E29: RATES | F29: 46 | G29: AT | H29: =VLOOKUP($C$10,TRANS!$A$1:$EE$1,F29,0) -> Not Dedelegation | I29: Calculates 0 if funding type starts with ND otherwise 1 | K29: 72 | L29: BT | M29: =VLOOKUP($C$10,TRANS!$A$1:$EE$1,K29,0) -> Spare 19F | N29: Blank - do not delete but can be reused | P29: 98 | Q29: CT | R29: =VLOOKUP($C$10,TRANS!$A$1:$EE$1,P29,0) -> RUN+DFE+CFR | S29: Concatenates columns D+E+V | V29: 124 | W29: DT | X29: =VLOOKUP($C$10,TRANS!$A$1:$EE$1,V29,0) -> Jan % | Y29: Looks up % to pay January Monthly payment | Z29: PAYDATA | AA29: 150 | AB29: ET | AC29: =VLOOKUP($C$10,TRANS!$A$1:$EZ$1,AA29,0) -> Spare40 | AD29: Blank column, heading only, not currently used
A30: 21 | B30: U | C30: =VLOOKUP($C$10,TRANS!$A$1:$EE$1,A30,0) -> GLCode | D30: Lookup the GL code for this school in SCHOOLS | E30: SCHOOLS | F30: 47 | G30: AU | H30: =VLOOKUP($C$10,TRANS!$A$1:$EE$1,F30,0) -> Option | I30: Looks up Payment Option for the school from SCHOOLS (A,B,C,D or Academy) | J30: SCHOOLS | K30: 73 | L30: BU | M30: =VLOOKUP($C$10,TRANS!$A$1:$EE$1,K30,0) -> Academy&Term | N30: Concatenates Cols H + AC | P30: 99 | Q30: CU | R30: =VLOOKUP($C$10,TRANS!$A$1:$EE$1,P30,0) -> FEDNO+type2 | S30: Concatenates columns CO+W | V30: 125 | W30: DU | X30: =VLOOKUP($C$10,TRANS!$A$1:$EE$1,V30,0) -> Feb % | Y30: Looks up % to pay in February Monthly payment | Z30: PAYDATA | AA30: 151 | AB30: EU | AC30: =VLOOKUP($C$10,TRANS!$A$1:$EZ$1,AA30,0) -> Spare41 | AD30: Blank column, heading only, not currently used
A31: 22 | B31: V | C31: =VLOOKUP($C$10,TRANS!$A$1:$EE$1,A31,0) -> CFR | D31: Lookup the CFR code for this type of funding in RATES | E31: RATES | F31: 48 | G31: AV | H31: =VLOOKUP($C$10,TRANS!$A$1:$EE$1,F31,0) -> MonthlyPaid Academies (Y/N) | I31: Looks up whether LBB pays academy for this type of funding (Y/N) from RATES. For maintained school 0. | J31: RATES | K31: 74 | L31: BV | M31: =VLOOKUP($C$10,TRANS!$A$1:$EE$1,K31,0) -> Spare 19G | N31: Blank - do not delete but can be reused | P31: 100 | Q31: CV | R31: =VLOOKUP($C$10,TRANS!$A$1:$EE$1,P31,0) -> RUN+FEDNO+type | S31: Concatenates columns D+CS | V31: 126 | W31: DV | X31: =VLOOKUP($C$10,TRANS!$A$1:$EE$1,V31,0) -> Mar % | Y31: Calculates remaining % to pay in March | AA31: 152 | AB31: EV | AC31: =VLOOKUP($C$10,TRANS!$A$1:$EZ$1,AA31,0) -> Spare42 | AD31: Blank column, heading only, not currently used
A32: 23 | B32: W | C32: =VLOOKUP($C$10,TRANS!$A$1:$EE$1,A32,0) -> TYPE2 | D32: For early years funding types simplify to HOURS or IDACI, otherwise use the FundingType | E32: - | F32: 49 | G32: AW | H32: =VLOOKUP($C$10,TRANS!$A$1:$EE$1,F32,0) -> % Kept for Payroll (MAINT) | I32: Looks up % kept for Payroll for this school in SCHOOLS | J32: SCHOOLS | K32: 75 | L32: BW | M32: =VLOOKUP($C$10,TRANS!$A$1:$EE$1,K32,0) -> Spare19H | N32: Blank - do not delete but can be reused | P32: 101 | Q32: CW | R32: =VLOOKUP($C$10,TRANS!$A$1:$EE$1,P32,0) -> RUN+FEDNO+AREA | S32: Concatenates cols CR+O | V32: 127 | W32: DW | X32: =VLOOKUP($C$10,TRANS!$A$1:$EE$1,V32,0) -> EFA £ | Y32: Amount EFA will pay =S x DA | AA32: 153 | AB32: EW | AC32: =VLOOKUP($C$10,TRANS!$A$1:$EZ$1,AA32,0) -> Spare43 | AD32: Blank column, heading only, not currently used
A33: 24 | B33: X | C33: =VLOOKUP($C$10,TRANS!$A$1:$EE$1,A33,0) -> CCAbbrev | D33: Abbreviated code for the Integra cost centre looked up from COSTCENTRES | E33: COST CENTRES | F33: 50 | G33: AX | H33: =VLOOKUP($C$10,TRANS!$A$1:$EE$1,F33,0) -> Spare8 | I33: Blank - do not delete but can be reused | K33: 76 | L33: BX | M33: =VLOOKUP($C$10,TRANS!$A$1:$EE$1,K33,0) -> Spare19I | N33: Blank - do not delete but can be reused | P33: 102 | Q33: CX | R33: =VLOOKUP($C$10,TRANS!$A$1:$EE$1,P33,0) -> FEDNO+AREA | S33: Concatenates cols CO+O | V33: 128 | W33: DX | X33: =VLOOKUP($C$10,TRANS!$A$1:$EE$1,V33,0) -> Held for Payroll £ | Y33: Repeat of column DE | AA33: 154 | AB33: EX | AC33: =VLOOKUP($C$10,TRANS!$A$1:$EZ$1,AA33,0) -> Spare44 | AD33: Blank column, heading only, not currently used
A34: 25 | B34: Y | C34: =VLOOKUP($C$10,TRANS!$A$1:$EE$1,A34,0) -> JournalGL | D34: Looks up the Glcode for the journal to central account. | E34: RATES | F34: 51 | G34: AY | H34: =VLOOKUP($C$10,TRANS!$A$1:$EE$1,F34,0) -> Spare9 | I34: Blank - do not delete but can be reused | K34: 77 | L34: BY | M34: =VLOOKUP($C$10,TRANS!$A$1:$EE$1,K34,0) -> Marker | N34: Looks up Marker from RATES | O34: RATES | P34: 103 | Q34: CY | R34: =VLOOKUP($C$10,TRANS!$A$1:$EE$1,P34,0) -> CFR&FEDNO | S34: Concatenates V+CO | V34: 129 | W34: DY | X34: =VLOOKUP($C$10,TRANS!$A$1:$EE$1,V34,0) -> Apr Adv | Y34: Column DJ rounded to 2 decimal places | AA34: 155 | AB34: EY | AC34: =VLOOKUP($C$10,TRANS!$A$1:$EZ$1,AA34,0) -> Spare45 | AD34: Blank column, heading only, not currently used
A35: 26 | B35: Z | C35: =VLOOKUP($C$10,TRANS!$A$1:$EE$1,A35,0) -> CR/DR | D35: PAY or CLAIM depending on whether total instalments is =ve or -ve | E35: - | F35: 52 | G35: AZ | H35: =VLOOKUP($C$10,TRANS!$A$1:$EE$1,F35,0) -> Spare10 | I35: Blank - do not delete but can be reused | K35: 78 | L35: BZ | M35: =VLOOKUP($C$10,TRANS!$A$1:$EE$1,K35,0) -> Spare20 | N35: Blank - do not delete but can be reused | P35: 104 | Q35: CZ | R35: =VLOOKUP($C$10,TRANS!$A$1:$EE$1,P35,0) -> RUN+CFR+FEDNO | S35: Concatenates columns D+V+CO | V35: 130 | W35: DZ | X35: =VLOOKUP($C$10,TRANS!$A$1:$EE$1,V35,0) -> Apr £ | Y35: April monthly payment : DF x DK | AA35: 156 | AB35: EZ | AC35: =VLOOKUP($C$10,TRANS!$A$1:$EZ$1,AA35,0) -> Spare46 | AD35: Blank column, heading only, not currently used

Sheet Structure (hidden)
K1: =L1 -> Reports | L1: Reports
C2: =Choose!I13 -> Barnet School and Academy Funding 2019/20 | K2: Admin | L2: Admin
C3: =Choose!J14 -> April Adjusted Funding - Version 2.0 - | K3: Reference | L3: Reference
E4: =Dated -> 2019-04-26 | K4: Lookups | L4: Lookups
C5: =CELL("filename",A1) -> P:\Accountancy\School Funding\Cycle 11 - 2019-20\April adjustments\Gold\[April Adjusted Funding 2019-20 v2 26.4.19.xlsm]Structure | K5: Data | L5: Data
C6: =RIGHT(C5,LEN(C5)-FIND("]",C5)) -> Structure | K6: TRANS | L6: TRANS
K7: Pivots | L7: Pivots
K8: Preparation | L8: Preparation
A12: Sheets of this workbook
A13: Updated | B13: 2019-01-23 | E13: =NOW() -> 2019-04-28T19:02:00.940
A14: Name | B14: Type | C14: Link | D14: Description | E14: Progress | F14: Instructions | G14: On Sheetlist | H14: Mentioned in Notes sheet
A15: Structure | B15: Admin | C15: This Sheet! | D15: This sheet. How this system works and can use to navigate | E15: Done | F15: Keep up to date as things change | G15: =VLOOKUP(A15,SheetList!A:I,1,0) -> Structure | H15: Yes | I15: =B15 -> Admin
A16: Notes | B16: Admin | C16: =HYPERLINK("#"&A16&"!a1",A16) -> Notes | D16: Advice to users | E16: wip | F16: Keep up to date as things change | G16: =VLOOKUP(A16,SheetList!A:I,1,0) -> Notes | H16: Itself | I16: =B16 -> Admin
A17: SheetList | B17: Admin | C17: =HYPERLINK("#"&A17&"!a1",A17) -> SheetList | D17: Dynamic list of worksheets in this system | E17: Done | F17: Refresh regularly | G17: =VLOOKUP(A17,SheetList!A:I,1,0) -> SheetList | H17: Yes | I17: Admin
A18: ISBCOLS | B18: Admin | C18: ISBCOLS | D18: Lists all the columns of the ISB and Adjusted Factors sheets | E18: Done | F18: Should not need updating | G18: =VLOOKUP(A18,SheetList!A:I,1,0) -> ISBCOLS | H18: Yes | I18: Admin
A19: Transcols | B19: Admin | C19: =HYPERLINK("#"&A19&"!a1",A19) -> Transcols | D19: Columns of the TRANS sheet | E19: Done | F19: Will update if column heading changes, but don't change A1! | G19: =VLOOKUP(A19,SheetList!A:I,1,0) -> TRANSCOLS | H19: Yes | I19: Admin
A20: CFRComp | B20: Admin | C20: =HYPERLINK("#"&A20&"!a1",A20) -> CFRComp | D20: Compares CFR funding between V1.0 and V1.1 for the current school | E20: Done | F20: Could be adapted to compare any two versions | G20: =VLOOKUP(A20,SheetList!A:I,1,0) -> CFRcomp | H20: Yes | I20: =B20 -> Admin
A21: Comp | B21: Admin | C21: =HYPERLINK("#"&A21&"!a1",A21) -> Comp | D21: Compares CFR funding between V1.0 and V1.1 for all schools | E21: Done | F21: Could be adapted to compare any two versions | G21: =VLOOKUP(A21,SheetList!A:I,1,0) -> Comp | H21: Yes | I21: =B21 -> Admin
A22: Oct17Census | B22: Data | C22: Oct17Census | D22: Pupil data for 2018/19 formula | E22: Done | F22: Only update if new school opens | G22: =VLOOKUP(A22,SheetList!A:I,1,0) -> Oct17Census | H22: Yes | I22: Data
A23: NEWISB | B23: Data | C23: NEWISB | D23: Funding from the APT | E23: Done | F23: APT as submitted. Only update if new school opens | G23: =VLOOKUP(A23,SheetList!A:I,1,0) -> NEWISB | H23: Yes | I23: Data
A24: HNplaces1920 | B24: Data | C24: HNplaces1920 | D24: Agreed high needs place numbers | E24: Done | G24: =VLOOKUP(A24,SheetList!A:I,1,0) -> HNplaces1920 | H24: Yes | I24: Data
A25: Pupillist | B25: Data | C25: Pupillist | D25: High needs pupil list | E25: Done | G25: =VLOOKUP(A25,SheetList!A:I,1,0) -> Pupillist | H25: Yes | I25: Data
A26: APTProForma | B26: Data | C26: APTProForma | D26: APT Pro forma which has the rates onit | E26: Done | F26: Should not need updating | G26: =VLOOKUP(A26,SheetList!A:I,1,0) -> APTProForma | H26: Yes | I26: Data
A27: Dedelegation | B27: Data | C27: Dedelegation | D27: Dedelegation rates from APT | E27: Done | F27: Should not need updating | G27: =VLOOKUP(A27,SheetList!A:I,1,0) -> Dedelegation | H27: Yes | I27: Data
A28: Efunctions | B28: Data | C28: Efunctions | D28: Education Function rates from APT | E28: Done | F28: Should not need updating | G28: =VLOOKUP(A28,SheetList!A:I,1,0) -> EFunctions | H28: Yes | I28: Data
A29: Adjusted Factors | B29: Data | C29: Adjusted Factors | D29: Data from the APT | E29: Done | F29: Should not need updating | G29: =VLOOKUP(A29,SheetList!A:I,1,0) -> Adjusted Factors | H29: Yes | I29: Data
A30: Post16Adj | B30: Data | C30: Post16Adj | D30: Post 16 funding adjustments set up April 2019 | E30: Done | F30: Update if necessary
A31: NNDRAdj | B31: Data | C31: NNDRAdj | D31: NNDR adjustments for 18/19 and 19/20 set up April 2019 | E31: wip | F31: Update if necessary
A32: Oct18Census | B32: Data | C32: Oct18Census | D32: Pupil data for 2019/20 formula | E32: Done | F32: Only update if new school opens | G32: =VLOOKUP(A32,SheetList!A:I,1,0) -> Oct18Census | H32: Yes | I32: Data
A33: EYData | B33: Data | C33: EYData | D33: Data for initial funding estimates | E33: Done | G33: =VLOOKUP(A33,SheetList!A:I,1,0) -> EYData | H33: Yes | I33: Data
A34: S251Budget | B34: Data | C34: =HYPERLINK("#"&A34&"!a1",A34) -> S251Budget | D34: Current S251 budget by CC and GL | E34: Done | F34: Used monthly | G34: =VLOOKUP(A34,SheetList!A:I,1,0) -> S251Budget | H34: Not done yet | I34: =B34 -> Data
A35: GrowthData | B35: Data | C35: GrowthData | D35: Growth funding not on the APT | E35: Done | G35: =VLOOKUP(A35,SheetList!A:I,1,0) -> GROWTHDATA | H35: Yes | I35: Data
A36: Paymethods | B36: Data | C36: Paymethods | D36: Information on how schools on different pay options receive their funding | E36: Done | G36: =VLOOKUP(A36,SheetList!A:I,1,0) -> PayMethods | I36: Data
A37: TopUpData | B37: Data | C37: TopUpData | D37: Initial estimates for Top Up Data | E37: Done | G37: =VLOOKUP(A37,SheetList!A:I,1,0) -> TopUpData | H37: yes | I37: Data
A38: FinalDFC | B38: Data | C38: FinalDFC | D38: DFC funding for 2019/20 from DFE | E38: Done
A39: TPG Est | B39: Data | C39: TPG Est | D39: TPG estimates (pupil numbers will change) | E39: Done | F39: Keep up to date as things change | G39: =VLOOKUP(A39,SheetList!A:I,1,0) -> TPG Est | H39: yes | I39: Data
A40: Schools | B40: Lookups | C40: Schools | D40: List of schools and attributes | E40: Done | F40: Keep up to date as things change | G40: =VLOOKUP(A40,SheetList!A:I,1,0) -> Schools | H40: Yes | I40: Lookups
A41: Costcentres | B41: Lookups | C41: Costcentres | D41: Integra cost centre for charging | E41: Done | F41: Keep up to date as things change | G41: =VLOOKUP(A41,SheetList!A:I,1,0) -> Costcentres | H41: Yes | I41: Lookups
A42: Rates | B42: Lookups | C42: Rates | D42: Funding rates | E42: Done | F42: Keep up to date as things change | G42: =VLOOKUP(A42,SheetList!A:I,1,0) -> Rates | H42: Yes | I42: Lookups
A43: Federations | B43: Lookups | C43: Federations | D43: List of federations and members | E43: Done | F43: Keep up to date as things change | G43: =VLOOKUP(A43,SheetList!A:I,1,0) -> Federations | H43: Yes | I43: Lookups
A44: PayData | B44: Lookups | C44: PayData | D44: Lookup for payment calculations | E44: Done | G44: =VLOOKUP(A44,SheetList!A:I,1,0) -> PAYDATA | H44: Yes | I44: Lookups
A45: Paydates | B45: Lookups | C45: Paydates | D45: Dates each school to be paid each month in a version of the Schools sheet | E45: Done | F45: Used monthly | G45: =VLOOKUP(A45,SheetList!A:I,1,0) -> Paydates | H45: Yes | I45: Lookups
A46: PayLookup | B46: Lookups | C46: PayLookup | D46: Lookup for payments | E46: Done | F46: Keep up to date as things change | G46: =VLOOKUP(A46,SheetList!A:I,1,0) -> PayLookup | H46: Yes | I46: Lookups
A47: HeadRep | B47: Reference | C47: HeadRep | D47: Header for non report sheets | E47: Done | F47: Use as header for each report for individual schools | G47: =VLOOKUP(A47,SheetList!A:I,1,0) -> HeadRep | H47: Yes | I47: Reference
A48: HeadData | B48: Reference | C48: HeadData | D48: Header for reports | E48: Done | F48: Use as header for non report sheets | G48: =VLOOKUP(A48,SheetList!A:I,1,0) -> HeadData | H48: Yes | I48: Reference
A49: News | B49: Reports | C49: News | D49: List of news throughout year | E49: Done | F49: Update throughout the year | G49: =VLOOKUP(A49,SheetList!A:I,1,0) -> News | H49: Yes | I49: Reports
A50: Choose | B50: Reports | C50: Choose | D50: Top level report | E50: Done | F50: Update the run/version/date on this sheet | G50: =VLOOKUP(A50,SheetList!A:I,1,0) -> Choose | H50: Yes | I50: Reports
A51: BudgetShare | B51: Reports | C51: BudgetShare | D51: Budget share calculation | E51: Done | F51: Formula funding report | G51: =VLOOKUP(A51,SheetList!A:I,1,0) -> BudgetShare | H51: Yes | I51: Reports
A52: MFG | B52: Reports | C52: MFG | D52: MFG calculation | E52: Done | F52: How the MFG is calculated | G52: =VLOOKUP(A52,SheetList!A:I,1,0) -> MFG | H52: Yes | I52: Reports
A53: Home | B53: Reports | C53: Home | D53: All funding for chosen school | E53: Done | F53: Detailed breakdown of all funding on Choose sheet | G53: =VLOOKUP(A53,SheetList!A:I,1,0) -> Home | H53: Yes | I53: Reports
A54: CFR | B54: Reports | C54: CFR | D54: CFR coding for chosen school | E54: Done | F54: How to code the funding | G54: =VLOOKUP(A54,SheetList!A:I,1,0) -> CFR | H54: Yes | I54: Reports
A55: Payments | B55: Reports | C55: Payments | D55: Payments schedules for all schools | E55: done | F55: Planned payments to schools | G55: =VLOOKUP(A55,SheetList!A:I,1,0) -> Payments | H55: Yes | I55: Reports
A56: Bank Funding | B56: Reports | C56: Bank Funding | D56: Monthly payment schedule | E56: Done | F56: Planned payments to schools | G56: =VLOOKUP(A56,SheetList!A:I,1,0) -> Bank Funding | H56: Yes | I56: Reports
A57: HighNeeds | B57: Reports | C57: HighNeeds | D57: High Needs funding - places | E57: Done | F57: How high needs funding is calculated | G57: =VLOOKUP(A57,SheetList!A:I,1,0) -> HighNeeds | H57: Yes | I57: Reports
A58: TopUps | B58: Reports | C58: TopUps | D58: Top up list all pupils with statements | E58: Done | F58: Pupil level report | G58: =VLOOKUP(A58,SheetList!A:I,1,0) -> TopUps | H58: Yes | I58: Reports
A59: PupilPremium | B59: Reports | C59: PupilPremium | D59: Pupil premium calculation | E59: Done | F59: How pupil premium is calculated | G59: =VLOOKUP(A59,SheetList!A:I,1,0) -> PupilPremium | H59: Yes | I59: Reports
A60: Pupils | B60: Reports | C60: =HYPERLINK("#"&A60&"!a1",A60) -> Pupils | D60: Report showing pupil numbers this year and last year | E60: Done | F60: Shows how pupil numbers in formula are arrived at | G60: =VLOOKUP(A60,SheetList!A:I,1,0) -> Pupils | H60: Yes | I60: Reports
A61: Grants | B61: Reports | C61: Grants | D61: Other grants calculation | E61: Done | F61: Grant calculations as they are received | G61: =VLOOKUP(A61,SheetList!A:I,1,0) -> Grants | H61: Yes | I61: Reports
A62: SixthForm | B62: Reports | C62: SixthForm | D62: Sixth form calculation | E62: Done | F62: Breakdown of post 16 allocations | G62: =VLOOKUP(A62,SheetList!A:I,1,0) -> SixthForm | H62: Yes | I62: Reports
A63: Growth | B63: Reports | C63: Growth | D63: Growth funding calculation | E63: Not started | F63: Details of growth funding | G63: =VLOOKUP(A63,SheetList!A:I,1,0) -> Growth | H63: Not done yet | I63: Reports
A64: HNRates | B64: Reports | C64: HNRates | D64: High Needs rates used for topups and base funding | E64: Done | F64: Base and topup funding rates - information only | G64: =VLOOKUP(A64,SheetList!A:I,1,0) -> HNRates | H64: Yes | I64: Reports
A65: Compare | B65: Reports | C65: Compare | D65: Pivot of all schools funding | E65: Not started | F65: Do not protect this sheet! | G65: =VLOOKUP(A65,SheetList!A:I,1,0) -> Compare | H65: Not done yet | I65: Reports
A66: EarlyYears | B66: Reports | C66: EarlyYears | D66: Early years funding | E66: Done | F66: Estimates and actuals updated through the year | G66: =VLOOKUP(A66,SheetList!A:I,1,0) -> EarlyYears | H66: Yes | I66: Reports
A67: TRANS | B67: TRANS | C67: TRANS | D67: Main TRANS sheet for 2019/20 | E67: Done | F67: Before starting a new run, insert green row and check formulae. Set previous rows to values | G67: =VLOOKUP(A67,SheetList!A:I,1,0) -> TRANS | H67: Yes | I67: TRANS
A68: TRANSPY | B68: TRANS | C68: TRANSPY | D68: Last year's TRANS sheet (latest available) | E68: Done
A69: TRANS1.0 | B69: TRANS | C69: =HYPERLINK("#"&A69&"!a1",A69) -> TRANS1.0 | D69: First release of TRANS sheet for 2019/20 | E69: Done | F69: Before starting a new run, insert green row and check formulae. Set previous rows to values | G69: =VLOOKUP(A69,SheetList!A:I,1,0) -> TRANS1.0 | H69: Yes | I69: =B69 -> TRANS
A70: TRANS1.1 | B70: TRANS | C70: =HYPERLINK("#"&A70&"!a1",A70) -> TRANS1.1 | D70: Version 1.1 of TRANS sheet for 2019/20 | E70: Done
A71: AdvPivot | B71: PayScheds | C71: AdvPivot | D71: Summary data for Apr Advance. | E71: Done | F71: Used at the beginning of year only | G71: =VLOOKUP(A71,SheetList!A:I,1,0) -> ADVPivot | H71: Yes | I71: PayScheds
A72: AdvSchedule | B72: PayScheds | C72: AdvSchedule | D72: Sheet for payments to pay April Advances (Option A) | E72: Done | F72: Used at the beginning of year only | G72: =VLOOKUP(A72,SheetList!A:I,1,0) -> ADVSchedule | H72: Yes | I72: PayScheds
A73: MonPivotClaim | B73: PayScheds | C73: MonPivotClaim | D73: Summary data for Monthly reclaim of funding - all schools and academies | E73: Done | F73: Used monthly | G73: =VLOOKUP(A73,SheetList!A:I,1,0) -> MONPivotClaim | H73: Not done yet | I73: PayScheds
A74: MonSchedPay | B74: PayScheds | C74: MonSchedPay | D74: Sheet for payments to pay Monthly payments - all schools and academies | E74: Done | F74: Used monthly | G74: =VLOOKUP(A74,SheetList!A:I,1,0) -> MONSchedPay | H74: Not done yet | I74: PayScheds
A75: JOUPivot | B75: PayScheds | C75: JOUPivot | D75: Summary data for April transfer to central accounts (Option A & C) | E75: Done | F75: Used at the beginning of year only | G75: =VLOOKUP(A75,SheetList!A:I,1,0) -> JOUPivot | H75: Yes | I75: PayScheds
A76: JouSchedule | B76: PayScheds | C76: JouSchedule | D76: List of journals to April transfer to central accounts (Option A & C) | E76: Done | F76: Used at the beginning of year only | G76: =VLOOKUP(A76,SheetList!A:I,1,0) -> JouSchedule | H76: Yes | I76: PayScheds
A77: MonPivotPay | B77: PayScheds | C77: MonPivotPay | D77: Summary data for Monthly funding payments - all schools and academies | E77: Done | F77: Used monthly | G77: =VLOOKUP(A77,SheetList!A:I,1,0) -> MONPivotPAY | H77: Not done yet | I77: PayScheds
A78: MonSchedClaim | B78: PayScheds | C78: MonSchedClaim | D78: Sheet for reclaimed funding - all schools and academies | E78: Done | F78: Used monthly | G78: =VLOOKUP(A78,SheetList!A:I,1,0) -> MONSchedClaim | H78: Not done yet | I78: PayScheds
A79: CCAnalysis | B79: PayScheds | C79: CCAnalysis | D79: Analysis of school funding by cost centre | E79: Done | F79: Used monthly | G79: =VLOOKUP(A79,SheetList!A:I,1,0) -> CCAnalysis | H79: Not done yet | I79: PayScheds
A80: S251Analysis | B80: PayScheds | C80: S251Analysis | D80: Analysis of funding to be paid by Barnet to schools in S251 format | E80: Done | F80: Used monthly | G80: =VLOOKUP(A80,SheetList!A:I,1,0) -> S251Analysis | H80: Not done yet | I80: PayScheds
A81: MonPayRec | B81: PayScheds | C81: MonPayRec | D81: Control sheet for monthly payments | E81: Done | F81: Used monthly | G81: =VLOOKUP(A81,SheetList!A:I,1,0) -> MonPayRec | H81: Not done yet | I81: =B81 -> PayScheds

Sheet JOUPivot (hidden)
C2: =Choose!I13 -> Barnet School and Academy Funding 2019/20
C3: =Choose!J14 -> April Adjusted Funding - Version 2.0 -
E4: =Dated -> 2019-04-26
C5: =CELL("filename",A1) -> P:\Accountancy\School Funding\Cycle 11 - 2019-20\April adjustments\Gold\[April Adjusted Funding 2019-20 v2 26.4.19.xlsm]JOUPivot
C6: =RIGHT(C5,LEN(C5)-FIND("]",C5)) -> JOUPivot
E9: Option A & C - April Journal to Central Account
E10: Exclude zero amounts
A11: Pivot for crediting schools' central accounts | D11: Remember to refresh both these pivots! | H11: Debits | I11: Credits
A12: Option | B12: (Multiple Items) | H12: =SUM(H17:H200) -> -964696.51 | I12: =SUM(I17:I200) -> 84041323.7 | J12: To schools
A13: Payroll | B13: (Multiple Items) | H13: =SUM(I219:I526) -> 84885893.83 | I13: =SUM(J219:J526) -> -964696.51 | J13: From DSG
H14: =H13-H12 -> 85850590.34 | I14: =-I13+I12 -> 85006020.21 | J14: Net
A15: Sum of Payroll
A16: SchoolCC | B16: JournalGL | C16: DfE Number | D16: School | E16: Not Dedelegation | F16: Option2 | G16: Total | H16: Debits | I16: Credits
A17: 10040 | B17: 543970 | C17: 3023300 | D17: All Saints' CE Primary School NW2 | E17: 0 | F17: A | G17: -10281.28 | H17: =IF(G17<0,G17,0) -> -10281.28 | I17: =IF(G17>0,G17,0) -> 0
A18: 10040 | B18: 543970 | C18: 3023300 | D18: All Saints' CE Primary School NW2 | E18: 1 | F18: A | G18: 780253.37 | H18: =IF(G18<0,G18,0) -> 0 | I18: =IF(G18>0,G18,0) -> 780253.37
A19: 10040 | B19: 543972 | C19: 3023300 | D19: All Saints' CE Primary School NW2 | E19: 1 | F19: A | G19: 18326 | H19: 0 | I19: 18326
A20: 10042 | B20: 543970 | C20: 3023317 | D20: All Saints' CE Primary School, N20 | E20: 0 | F20: A | G20: -12626.26 | H20: -12626.26 | I20: 0
A21: 10042 | B21: 543970 | C21: 3023317 | D21: All Saints' CE Primary School, N20 | E21: 1 | F21: A | G21: 998885.88 | H21: 0 | I21: 998885.88
A22: 10042 | B22: 543972 | C22: 3023317 | D22: All Saints' CE Primary School, N20 | E22: 1 | F22: A | G22: 30092.55 | H22: 0 | I22: 30092.55
A23: 10043 | B23: 543970 | C23: 3023500 | D23: Annunciation Catholic Infant School | E23: 0 | F23: A | G23: -8005.1 | H23: -8005.1 | I23: 0
A24: 10043 | B24: 543970 | C24: 3023500 | D24: Annunciation Catholic Infant School | E24: 1 | F24: A | G24: 741266.24 | H24: 0 | I24: 741266.24
A25: 10043 | B25: 543972 | C25: 3023500 | D25: Annunciation Catholic Infant School | E25: 1 | F25: A | G25: 9341.5 | H25: 0 | I25: 9341.5
A26: 10045 | B26: 543970 | C26: 3022003 | D26: Bell Lane Primary School | E26: 0 | F26: A | G26: -20312.56 | H26: -20312.56 | I26: 0
A27: 10045 | B27: 543970 | C27: 3022003 | D27: Bell Lane Primary School | E27: 1 | F27: A | G27: 1621525.33 | H27: 0 | I27: 1621525.33
A28: 10045 | B28: 543972 | C28: 3022003 | D28: Bell Lane Primary School | E28: 1 | F28: A | G28: 69524.05 | H28: 0 | I28: 69524.05
A29: 10046 | B29: 543970 | C29: 3022007 | D29: Brookland Junior School | E29: 0 | F29: A | G29: -18700.53 | H29: -18700.53 | I29: 0
A30: 10046 | B30: 543970 | C30: 3022007 | D30: Brookland Junior School | E30: 1 | F30: A | G30: 1228520.11 | H30: 0 | I30: 1228520.11
A31: 10046 | B31: 543972 | C31: 3022007 | D31: Brookland Junior School | E31: 1 | F31: A | G31: 72306.95 | H31: 0 | I31: 72306.95
A32: 10047 | B32: 543970 | C32: 3022008 | D32: Brookland Infant & Nursery School | E32: 0 | F32: A | G32: -14158.43 | H32: -14158.43 | I32: 0
A33: 10047 | B33: 543970 | C33: 3022008 | D33: Brookland Infant & Nursery School | E33: 1 | F33: A | G33: 1153816.84 | H33: 0 | I33: 1153816.84
A34: 10047 | B34: 543972 | C34: 3022008 | D34: Brookland Infant & Nursery School | E34: 1 | F34: A | G34: 67719.08 | H34: 0 | I34: 67719.08
A35: 10048 | B35: 543970 | C35: 3022009 | D35: Brunswick Park Primary & Nursery School | E35: 0 | F35: A | G35: -21984.71 | H35: -21984.71 | I35: 0
A36: 10048 | B36: 543970 | C36: 3022009 | D36: Brunswick Park Primary & Nursery School | E36: 1 | F36: A | G36: 1748540.95 | H36: 0 | I36: 1748540.95
A37: 10048 | B37: 543972 | C37: 3022009 | D37: Brunswick Park Primary & Nursery School | E37: 1 | F37: A | G37: 58924.43 | H37: 0 | I37: 58924.43
A38: 10049 | B38: 543970 | C38: 3022010 | D38: Child's Hill School | E38: 0 | F38: A | G38: -19052 | H38: -19052 | I38: 0
A39: 10049 | B39: 543970 | C39: 3022010 | D39: Child's Hill School | E39: 1 | F39: A | G39: 1721414.38 | H39: 0 | I39: 1721414.38
A40: 10049 | B40: 543972 | C40: 3022010 | D40: Child's Hill School | E40: 1 | F40: A | G40: 291207.45 | H40: 0 | I40: 291207.45
A41: 10051 | B41: 543970 | C41: 3022011 | D41: Church Hill Primary School | E41: 0 | F41: A | G41: -10788.3 | H41: -10788.3 | I41: 0
A42: 10051 | B42: 543970 | C42: 3022011 | D42: Church Hill Primary School | E42: 1 | F42: A | G42: 777511.03 | H42: 0 | I42: 777511.03
A43: 10051 | B43: 543972 | C43: 3022011 | D43: Church Hill Primary School | E43: 1 | F43: A | G43: 37366.85 | H43: 0 | I43: 37366.85
A44: 10054 | B44: 543970 | C44: 3022014 | D44: Colindale School | E44: 0 | F44: A | G44: -35474.89 | H44: -35474.89 | I44: 0
A45: 10054 | B45: 543970 | C45: 3022014 | D45: Colindale School | E45: 1 | F45: A | G45: 2746634.33 | H45: 0 | I45: 2746634.33
A46: 10054 | B46: 543972 | C46: 3022014 | D46: Colindale School | E46: 1 | F46: A | G46: 307343.85 | H46: 0 | I46: 307343.85
A47: 10055 | B47: 543970 | C47: 3022015 | D47: Coppetts Wood | E47: 0 | F47: A | G47: -12031.03 | H47: -12031.03 | I47: 0
A48: 10055 | B48: 543970 | C48: 3022015 | D48: Coppetts Wood | E48: 1 | F48: A | G48: 1184033.9 | H48: 0 | I48: 1184033.9
A49: 10055 | B49: 543972 | C49: 3022015 | D49: Coppetts Wood | E49: 1 | F49: A | G49: 80822.25 | H49: 0 | I49: 80822.25
A50: 10056 | B50: 543970 | C50: 3022016 | D50: Courtland School | E50: 0 | F50: A | G50: -10821.87 | H50: -10821.87 | I50: 0
A51: 10056 | B51: 543970 | C51: 3022016 | D51: Courtland School | E51: 1 | F51: A | G51: 792326.6 | H51: 0 | I51: 792326.6
A52: 10056 | B52: 543972 | C52: 3022016 | D52: Courtland School | E52: 1 | F52: A | G52: 29296.24 | H52: 0 | I52: 29296.24
A53: 10057 | B53: 543970 | C53: 3022017 | D53: Cromer Road Primary School | E53: 0 | F53: A | G53: -21987.6 | H53: -21987.6 | I53: 0
A54: 10057 | B54: 543970 | C54: 3022017 | D54: Cromer Road Primary School | E54: 1 | F54: A | G54: 1506120.92 | H54: 0 | I54: 1506120.92
A55: 10057 | B55: 543972 | C55: 3022017 | D55: Cromer Road Primary School | E55: 1 | F55: A | G55: 15900.95 | H55: 0 | I55: 15900.95
A56: 10059 | B56: 543970 | C56: 3022019 | D56: Deansbrook Infant School | E56: 0 | F56: A | G56: -13311.44 | H56: -13311.44 | I56: 0
A57: 10059 | B57: 543970 | C57: 3022019 | D57: Deansbrook Infant School | E57: 1 | F57: A | G57: 1205892.05 | H57: 0 | I57: 1205892.05
A58: 10059 | B58: 543972 | C58: 3022019 | D58: Deansbrook Infant School | E58: 1 | F58: A | G58: 30090.85 | H58: 0 | I58: 30090.85
A59: 10064 | B59: 543970 | C59: 3022024 | D59: Fairway Primary School | E59: 0 | F59: A | G59: -11825.84 | H59: -11825.84 | I59: 0
A60: 10064 | B60: 543970 | C60: 3022024 | D60: Fairway Primary School | E60: 1 | F60: A | G60: 1151565.51 | H60: 0 | I60: 1151565.51
A61: 10064 | B61: 543972 | C61: 3022024 | D61: Fairway Primary School | E61: 1 | F61: A | G61: 51198.9 | H61: 0 | I61: 51198.9
A62: 10065 | B62: 543970 | C62: 3022025 | D62: Foulds | E62: 0 | F62: C | G62: -16095.48 | H62: -16095.48 | I62: 0
A63: 10065 | B63: 543970 | C63: 3022025 | D63: Foulds | E63: 1 | F63: C | G63: 1064336.3 | H63: 0 | I63: 1064336.3
A64: 10065 | B64: 543972 | C64: 3022025 | D64: Foulds | E64: 1 | F64: C | G64: 48416.85 | H64: 0 | I64: 48416.85
A65: 10066 | B65: 543970 | C65: 3022026 | D65: Frith Manor School | E65: 0 | F65: A | G65: -29231.34 | H65: -29231.34 | I65: 0
A66: 10066 | B66: 543970 | C66: 3022026 | D66: Frith Manor School | E66: 1 | F66: A | G66: 2088478.79 | H66: 0 | I66: 2088478.79
A67: 10066 | B67: 543972 | C67: 3022026 | D67: Frith Manor School | E67: 1 | F67: A | G67: 42216.1 | H67: 0 | I67: 42216.1
A68: 10067 | B68: 543970 | C68: 3022027 | D68: Garden Suburb Junior | E68: 0 | F68: A | G68: -18696.98 | H68: -18696.98 | I68: 0
A69: 10067 | B69: 543970 | C69: 3022027 | D69: Garden Suburb Junior | E69: 1 | F69: A | G69: 1269532.92 | H69: 0 | I69: 1269532.92
A70: 10067 | B70: 543972 | C70: 3022027 | D70: Garden Suburb Junior | E70: 1 | F70: A | G70: 32516.75 | H70: 0 | I70: 32516.75
A71: 10068 | B71: 543970 | C71: 3022028 | D71: Garden Suburb Infant School | E71: 0 | F71: A | G71: -13157.5 | H71: -13157.5 | I71: 0
A72: 10068 | B72: 543970 | C72: 3022028 | D72: Garden Suburb Infant School | E72: 1 | F72: A | G72: 948416.11 | H72: 0 | I72: 948416.11
A73: 10068 | B73: 543972 | C73: 3022028 | D73: Garden Suburb Infant School | E73: 1 | F73: A | G73: 32515.9 | H73: 0 | I73: 32515.9
A74: 10069 | B74: 543970 | C74: 3022029 | D74: Goldbeaters Primary School | E74: 0 | F74: A | G74: -23298.43 | H74: -23298.43 | I74: 0
A75: 10069 | B75: 543970 | C75: 3022029 | D75: Goldbeaters Primary School | E75: 1 | F75: A | G75: 1975009.02 | H75: 0 | I75: 1975009.02
A76: 10069 | B76: 543972 | C76: 3022029 | D76: Goldbeaters Primary School | E76: 1 | F76: A | G76: 74373.3 | H76: 0 | I76: 74373.3
A77: 10071 | B77: 543970 | C77: 3022031 | D77: Hollickwood JMI School | E77: 0 | F77: A | G77: -9902.16 | H77: -9902.16 | I77: 0
A78: 10071 | B78: 543970 | C78: 3022031 | D78: Hollickwood JMI School | E78: 1 | F78: A | G78: 904404.44 | H78: 0 | I78: 904404.44
A79: 10071 | B79: 543972 | C79: 3022031 | D79: Hollickwood JMI School | E79: 1 | F79: A | G79: 41857.4 | H79: 0 | I79: 41857.4
A80: 10072 | B80: 543970 | C80: 3022032 | D80: Holly Park School | E80: 0 | F80: A | G80: -24225.68 | H80: -24225.68 | I80: 0
A81: 10072 | B81: 543970 | C81: 3022032 | D81: Holly Park School | E81: 1 | F81: A | G81: 1874124.68 | H81: 0 | I81: 1874124.68
A82: 10072 | B82: 543972 | C82: 3022032 | D82: Holly Park School | E82: 1 | F82: A | G82: 76440.5 | H82: =IF(G82<0,G82,0) -> 0 | I82: =IF(G82>0,G82,0) -> 76440.5
A83: 10073 | B83: 543970 | C83: 3023304 | D83: Holy Trinity School | E83: 0 | F83: A | G83: -12597.37 | H83: -12597.37 | I83: 0
A84: 10073 | B84: 543970 | C84: 3023304 | D84: Holy Trinity School | E84: 1 | F84: A | G84: 983145.28 | H84: 0 | I84: 983145.28
A85: 10073 | B85: 543972 | C85: 3023304 | D85: Holy Trinity School | E85: 1 | F85: A | G85: 30091.7 | H85: 0 | I85: 30091.7
A86: 10074 | B86: 543970 | C86: 3022036 | D86: Livingstone School | E86: 0 | F86: A | G86: -14461.7 | H86: -14461.7 | I86: 0
A87: 10074 | B87: 543970 | C87: 3022036 | D87: Livingstone School | E87: 1 | F87: A | G87: 1483233.4 | H87: 0 | I87: 1483233.4
A88: 10074 | B88: 543972 | C88: 3022036 | D88: Livingstone School | E88: 1 | F88: A | G88: 223256.75 | H88: 0 | I88: 223256.75
A89: 10075 | B89: 543970 | C89: 3022037 | D89: Manorside Primary School | E89: 0 | F89: A | G89: -13861.25 | H89: -13861.25 | I89: 0
A90: 10075 | B90: 543970 | C90: 3022037 | D90: Manorside Primary School | E90: 1 | F90: A | G90: 1134099.27 | H90: 0 | I90: 1134099.27
A91: 10075 | B91: 543972 | C91: 3022037 | D91: Manorside Primary School | E91: 1 | F91: A | G91: 76798.35 | H91: 0 | I91: 76798.35
A92: 10078 | B92: 543970 | C92: 3023305 | D92: Monken Hadley C E Primary School | E92: 0 | F92: A | G92: -7217.02 | H92: -7217.02 | I92: 0
A93: 10078 | B93: 543970 | C93: 3023305 | D93: Monken Hadley C E Primary School | E93: 1 | F93: A | G93: 519427.55 | H93: 0 | I93: 519427.55
A94: 10078 | B94: 543972 | C94: 3023305 | D94: Monken Hadley C E Primary School | E94: 1 | F94: A | G94: 9341.5 | H94: 0 | I94: 9341.5
A95: 10080 | B95: 543970 | C95: 3022043 | D95: Moss Hall Junior School | E95: 0 | F95: A | G95: -24741.61 | H95: -24741.61 | I95: 0
A96: 10080 | B96: 543970 | C96: 3022043 | D96: Moss Hall Junior School | E96: 1 | F96: A | G96: 1594469.42 | H96: 0 | I96: 1594469.42
A97: 10080 | B97: 543972 | C97: 3022043 | D97: Moss Hall Junior School | E97: 1 | F97: A | G97: 172640.95 | H97: 0 | I97: 172640.95
A98: 10081 | B98: 543970 | C98: 3022044 | D98: Moss Hall Infant School | E98: 0 | F98: A | G98: -18523.96 | H98: -18523.96 | I98: 0
A99: 10081 | B99: 543970 | C99: 3022044 | D99: Moss Hall Infant School | E99: 1 | F99: A | G99: 1322463.21 | H99: 0 | I99: 1322463.21
A100: 10081 | B100: 543972 | C100: 3022044 | D100: Moss Hall Infant School | E100: 1 | F100: A | G100: 44282.45 | H100: 0 | I100: 44282.45
A101: 10082 | B101: 543970 | C101: 3022045 | D101: Northside School | E101: 0 | F101: A | G101: -12640 | H101: -12640 | I101: 0
A102: 10082 | B102: 543970 | C102: 3022045 | D102: Northside School | E102: 1 | F102: A | G102: 1124604.14 | H102: 0 | I102: 1124604.14
A103: 10082 | B103: 543972 | C103: 3022045 | D103: Northside School | E103: 1 | F103: A | G103: 44282.45 | H103: 0 | I103: 44282.45
A104: 10085 | B104: 543970 | C104: 3023501 | D104: Our Lady of Lourdes School | E104: 0 | F104: A | G104: -10953.19 | H104: -10953.19 | I104: 0
A105: 10085 | B105: 543970 | C105: 3023501 | D105: Our Lady of Lourdes School | E105: 1 | F105: A | G105: 906118 | H105: 0 | I105: 906118
A106: 10085 | B106: 543972 | C106: 3023501 | D106: Our Lady of Lourdes School | E106: 1 | F106: A | G106: 44284.15 | H106: 0 | I106: 44284.15
A107: 10087 | B107: 543970 | C107: 3023502 | D107: St Agnes RC Primary School | E107: 0 | F107: A | G107: -17222.3 | H107: -17222.3 | I107: 0
A108: 10087 | B108: 543970 | C108: 3023502 | D108: St Agnes RC Primary School | E108: 1 | F108: A | G108: 1384015.43 | H108: 0 | I108: 1384015.43
A109: 10087 | B109: 543972 | C109: 3023502 | D109: St Agnes RC Primary School | E109: 1 | F109: A | G109: 30449.55 | H109: 0 | I109: 30449.55
A110: 10088 | B110: 543970 | C110: 3023504 | D110: St Catherines R C Primary | E110: 0 | F110: A | G110: -22459.39 | H110: -22459.39 | I110: 0
A111: 10088 | B111: 543970 | C111: 3023504 | D111: St Catherines R C Primary | E111: 1 | F111: A | G111: 1631758.26 | H111: 0 | I111: 1631758.26
A112: 10088 | B112: 543972 | C112: 3023504 | D112: St Catherines R C Primary | E112: 1 | F112: A | G112: 74374.15 | H112: 0 | I112: 74374.15
A113: 10089 | B113: 543970 | C113: 3023307 | D113: St John's CE School N11 | E113: 0 | F113: A | G113: -10826.13 | H113: -10826.13 | I113: 0
A114: 10089 | B114: 543970 | C114: 3023307 | D114: St John's CE School N11 | E114: 1 | F114: A | G114: 867523.24 | H114: 0 | I114: 867523.24
A115: 10092 | B115: 543970 | C115: 3023311 | D115: St Mary's C E Primary School N3 | E115: 0 | F115: A | G115: -21337.6 | H115: -21337.6 | I115: 0
A116: 10092 | B116: 543970 | C116: 3023311 | D116: St Mary's C E Primary School N3 | E116: 1 | F116: A | G116: 1597515.87 | H116: 0 | I116: 1597515.87
A117: 10092 | B117: 543972 | C117: 3023311 | D117: St Mary's C E Primary School N3 | E117: 1 | F117: A | G117: 51199.75 | H117: 0 | I117: 51199.75
A118: 10093 | B118: 543970 | C118: 3023312 | D118: St Mary's School EN4 | E118: 0 | F118: A | G118: -11080.76 | H118: -11080.76 | I118: 0
A119: 10093 | B119: 543970 | C119: 3023312 | D119: St Mary's School EN4 | E119: 1 | F119: A | G119: 762413.12 | H119: 0 | I119: 762413.12
A120: 10093 | B120: 543972 | C120: 3023312 | D120: St Mary's School EN4 | E120: 1 | F120: A | G120: 23175.25 | H120: 0 | I120: 23175.25
A121: 10094 | B121: 543970 | C121: 3023313 | D121: St Paul's School, N11 | E121: 0 | F121: A | G121: -10531.79 | H121: -10531.79 | I121: 0
A122: 10094 | B122: 543970 | C122: 3023313 | D122: St Paul's School, N11 | E122: 1 | F122: A | G122: 849545.63 | H122: 0 | I122: 849545.63
A123: 10094 | B123: 543972 | C123: 3023313 | D123: St Paul's School, N11 | E123: 1 | F123: A | G123: 23533.1 | H123: 0 | I123: 23533.1
A124: 10095 | B124: 543970 | C124: 3023314 | D124: St Pauls CE Primary, NW7 | E124: 0 | F124: C | G124: -10713.6 | H124: -10713.6 | I124: 0
A125: 10095 | B125: 543970 | C125: 3023314 | D125: St Pauls CE Primary, NW7 | E125: 1 | F125: C | G125: 742509.04 | H125: 0 | I125: 742509.04
A126: 10095 | B126: 543972 | C126: 3023314 | D126: St Pauls CE Primary, NW7 | E126: 1 | F126: C | G126: 28025.35 | H126: 0 | I126: 28025.35
A127: 10096 | B127: 543970 | C127: 3023506 | D127: St Vincent's Catholic Primary School | E127: 0 | F127: A | G127: -16272.99 | H127: -16272.99 | I127: 0
A128: 10096 | B128: 543970 | C128: 3023506 | D128: St Vincent's Catholic Primary School | E128: 1 | F128: A | G128: 1118174.65 | H128: 0 | I128: 1118174.65
A129: 10096 | B129: 543972 | C129: 3023506 | D129: St Vincent's Catholic Primary School | E129: 1 | F129: A | G129: 23175.25 | H129: 0 | I129: 23175.25
A130: 10100 | B130: 543970 | C130: 3023316 | D130: Trent C of E Primary School | E130: 0 | F130: A | G130: -10800.36 | H130: -10800.36 | I130: 0
A131: 10100 | B131: 543970 | C131: 3023316 | D131: Trent C of E Primary School | E131: 1 | F131: A | G131: 738432.45 | H131: 0 | I131: 738432.45
A132: 10100 | B132: 543972 | C132: 3023316 | D132: Trent C of E Primary School | E132: 1 | F132: A | G132: 4492.25 | H132: 0 | I132: 4492.25
A133: 10101 | B133: 543970 | C133: 3022055 | D133: Tudor School | E133: 0 | F133: A | G133: -11825.3 | H133: -11825.3 | I133: 0
A134: 10101 | B134: 543970 | C134: 3022055 | D134: Tudor School | E134: 1 | F134: A | G134: 1048717.49 | H134: 0 | I134: 1048717.49
A135: 10101 | B135: 543972 | C135: 3022055 | D135: Tudor School | E135: 1 | F135: A | G135: 30449.55 | H135: 0 | I135: 30449.55
A136: 10105 | B136: 543970 | C136: 3022060 | D136: Whitings Hill Primary School | E136: 0 | F136: A | G136: -22648.31 | H136: -22648.31 | I136: 0
A137: 10105 | B137: 543970 | C137: 3022060 | D137: Whitings Hill Primary School | E137: 1 | F137: A | G137: 2034834.04 | H137: 0 | I137: 2034834.04
A138: 10105 | B138: 543972 | C138: 3022060 | D138: Whitings Hill Primary School | E138: 1 | F138: A | G138: 55334.15 | H138: 0 | I138: 55334.15
A139: 10107 | B139: 543970 | C139: 3023509 | D139: St Joseph's Primary School | E139: 0 | F139: A | G139: -26948.58 | H139: -26948.58 | I139: 0
A140: 10107 | B140: 543970 | C140: 3023509 | D140: St Joseph's Primary School | E140: 1 | F140: A | G140: 1946637 | H140: 0 | I140: 1946637
A141: 10107 | B141: 543972 | C141: 3023509 | D141: St Joseph's Primary School | E141: 1 | F141: A | G141: 23174.4 | H141: 0 | I141: 23174.4
A142: 10108 | B142: 543970 | C142: 3023507 | D142: St Theresa's R.C. Primary School | E142: 0 | F142: A | G142: -11037.32 | H142: -11037.32 | I142: 0
A143: 10108 | B143: 543970 | C143: 3023507 | D143: St Theresa's R.C. Primary School | E143: 1 | F143: A | G143: 773005.21 | H143: 0 | I143: 773005.21
A144: 10108 | B144: 543972 | C144: 3023507 | D144: St Theresa's R.C. Primary School | E144: 1 | F144: A | G144: 4492.25 | H144: 0 | I144: 4492.25
A145: 10109 | B145: 543970 | C145: 3022054 | D145: Woodridge Primary School | E145: 0 | F145: A | G145: -10700.78 | H145: -10700.78 | I145: 0
A146: 10109 | B146: 543970 | C146: 3022054 | D146: Woodridge Primary School | E146: 1 | F146: A | G146: 760849.17 | H146: =IF(G146<0,G146,0) -> 0 | I146: =IF(G146>0,G146,0) -> 760849.17
A147: 10109 | B147: 543972 | C147: 3022054 | D147: Woodridge Primary School | E147: 1 | F147: A | G147: 27666.65 | H147: 0 | I147: 27666.65
A148: 10110 | B148: 543970 | C148: 3023510 | D148: Sacred Heart School | E148: 0 | F148: A | G148: -20760.68 | H148: -20760.68 | I148: 0
A149: 10110 | B149: 543970 | C149: 3023510 | D149: Sacred Heart School | E149: 1 | F149: A | G149: 1337934.27 | H149: 0 | I149: 1337934.27
A150: 10110 | B150: 543972 | C150: 3023510 | D150: Sacred Heart School | E150: 1 | F150: A | G150: 72306.95 | H150: 0 | I150: 72306.95
A151: 10114 | B151: 543970 | C151: 3023513 | D151: Menorah Primary School | E151: 0 | F151: A | G151: -19940.27 | H151: -19940.27 | I151: 0
A152: 10114 | B152: 543970 | C152: 3023513 | D152: Menorah Primary School | E152: 1 | F152: A | G152: 1494027.73 | H152: 0 | I152: 1494027.73
A153: 10114 | B153: 543972 | C153: 3023513 | D153: Menorah Primary School | E153: 1 | F153: A | G153: 95389.02 | H153: 0 | I153: 95389.02
A154: 10115 | B154: 543970 | C154: 3023511 | D154: Blessed Dominic School | E154: 0 | F154: A | G154: -21029.58 | H154: -21029.58 | I154: 0
A155: 10115 | B155: 543970 | C155: 3023511 | D155: Blessed Dominic School | E155: 1 | F155: A | G155: 1720966.19 | H155: 0 | I155: 1720966.19
A156: 10115 | B156: 543972 | C156: 3023511 | D156: Blessed Dominic School | E156: 1 | F156: A | G156: 58117.05 | H156: 0 | I156: 58117.05
A157: 10116 | B157: 543970 | C157: 3023309 | D157: St Johns CE N20 | E157: 0 | F157: C | G157: -10799.43 | H157: -10799.43 | I157: 0
A158: 10116 | B158: 543970 | C158: 3023309 | D158: St Johns CE N20 | E158: 1 | F158: C | G158: 830272.57 | H158: 0 | I158: 830272.57
A159: 10116 | B159: 543972 | C159: 3023309 | D159: St Johns CE N20 | E159: 1 | F159: C | G159: 6916.45 | H159: 0 | I159: 6916.45
A160: 10117 | B160: 543970 | C160: 3023514 | D160: Annunciation Catholic Junior School | E160: 0 | F160: A | G160: -11702.83 | H160: -11702.83 | I160: 0
A161: 10117 | B161: 543970 | C161: 3023514 | D161: Annunciation Catholic Junior School | E161: 1 | F161: A | G161: 832899.11 | H161: 0 | I161: 832899.11
A162: 10117 | B162: 543972 | C162: 3023514 | D162: Annunciation Catholic Junior School | E162: 1 | F162: A | G162: 16258.8 | H162: 0 | I162: 16258.8
A163: 10118 | B163: 543970 | C163: 3022067 | D163: Chalgrove Primary School | E163: 0 | F163: A | G163: -13010.01 | H163: -13010.01 | I163: 0
A164: 10118 | B164: 543970 | C164: 3022067 | D164: Chalgrove Primary School | E164: 1 | F164: A | G164: 1023485.64 | H164: 0 | I164: 1023485.64
A165: 10118 | B165: 543972 | C165: 3022067 | D165: Chalgrove Primary School | E165: 1 | F165: A | G165: 51883.15 | H165: 0 | I165: 51883.15
A166: 10119 | B166: 543970 | C166: 3022071 | D166: Queenswell Infant and Nursery School | E166: 0 | F166: C | G166: -10948.17 | H166: -10948.17 | I166: 0
A167: 10119 | B167: 543970 | C167: 3022071 | D167: Queenswell Infant and Nursery School | E167: 1 | F167: C | G167: 1048969.47 | H167: 0 | I167: 1048969.47
A168: 10119 | B168: 543972 | C168: 3022071 | D168: Queenswell Infant and Nursery School | E168: 1 | F168: C | G168: 51199.75 | H168: 0 | I168: 51199.75
A169: 10121 | B169: 543970 | C169: 3023516 | D169: Hasmonean Primary School | E169: 0 | F169: A | G169: -10769.87 | H169: -10769.87 | I169: 0
A170: 10121 | B170: 543970 | C170: 3023516 | D170: Hasmonean Primary School | E170: 1 | F170: A | G170: 960005.64 | H170: 0 | I170: 960005.64
A171: 10121 | B171: 543972 | C171: 3023516 | D171: Hasmonean Primary School | E171: 1 | F171: A | G171: 33630.95 | H171: 0 | I171: 33630.95
A172: 10123 | B172: 543970 | C172: 3023518 | D172: Woodcroft Primary School | E172: 0 | F172: A | G172: -22147.14 | H172: -22147.14 | I172: 0
A173: 10123 | B173: 543970 | C173: 3023518 | D173: Woodcroft Primary School | E173: 1 | F173: A | G173: 1860225.43 | H173: 0 | I173: 1860225.43
A174: 10123 | B174: 543972 | C174: 3023518 | D174: Woodcroft Primary School | E174: 1 | F174: A | G174: 30091.7 | H174: 0 | I174: 30091.7
A175: 10127 | B175: 543970 | C175: 3022077 | D175: Orion Primary School | E175: 0 | F175: A | G175: -46899.08 | H175: -46899.08 | I175: 0
A176: 10127 | B176: 543970 | C176: 3022077 | D176: Orion Primary School | E176: 1 | F176: A | G176: 4274389.08 | H176: 0 | I176: 4274389.08
A177: 10127 | B177: 543972 | C177: 3022077 | D177: Orion Primary School | E177: 1 | F177: A | G177: 465802.98 | H177: 0 | I177: 465802.98
A178: 10128 | B178: 543970 | C178: 3022079 | D178: Beis Yaakov | E178: 0 | F178: A | G178: -23390.37 | H178: -23390.37 | I178: 0
A179: 10128 | B179: 543970 | C179: 3022079 | D179: Beis Yaakov | E179: 1 | F179: A | G179: 1585988.87 | H179: 0 | I179: 1585988.87
A180: 10129 | B180: 543970 | C180: 3022078 | D180: Pardes House School | E180: 0 | F180: A | G180: -16847.16 | H180: -16847.16 | I180: 0
A181: 10129 | B181: 543970 | C181: 3022078 | D181: Pardes House School | E181: 1 | F181: A | G181: 1153744.37 | H181: 0 | I181: 1153744.37
A182: 10129 | B182: 543972 | C182: 3022078 | D182: Pardes House School | E182: 1 | F182: A | G182: 52006.45 | H182: 0 | I182: 52006.45
A183: 10130 | B183: 543970 | C183: 3021000 | D183: Brookhill Nursery | E183: 1 | F183: A | G183: 341754.77 | H183: 0 | I183: 341754.77
A184: 10130 | B184: 543972 | C184: 3021000 | D184: Brookhill Nursery | E184: 1 | F184: A | G184: 10222.95 | H184: 0 | I184: 10222.95
A185: 10131 | B185: 543970 | C185: 3021001 | D185: Hampden Way Nursery | E185: 1 | F185: A | G185: 255828.78 | H185: 0 | I185: 255828.78
A186: 10131 | B186: 543971 | C186: 3021001 | D186: Hampden Way Nursery | E186: 1 | F186: A | G186: 106257.13 | H186: 0 | I186: 106257.13
A187: 10132 | B187: 543970 | C187: 3021002 | D187: Moss Hall Nursery | E187: 1 | F187: A | G187: 377020.31 | H187: 0 | I187: 377020.31
A188: 10132 | B188: 543972 | C188: 3021002 | D188: Moss Hall Nursery | E188: 1 | F188: A | G188: 5111.48 | H188: 0 | I188: 5111.48
A189: 10133 | B189: 543970 | C189: 3021003 | D189: St Margaret's Nursery | E189: 1 | F189: A | G189: 236798.03 | H189: 0 | I189: 236798.03
A190: 10133 | B190: 543972 | C190: 3021003 | D190: St Margaret's Nursery | E190: 1 | F190: A | G190: 96597.39 | H190: 0 | I190: 96597.39
A191: 10157 | B191: 543970 | C191: 3027005 | D191: Northway | E191: 1 | F191: A | G191: 1017508.93 | H191: 0 | I191: 1017508.93
A192: 10157 | B192: 543972 | C192: 3027005 | D192: Northway | E192: 1 | F192: A | G192: 1158735.35 | H192: 0 | I192: 1158735.35
A193: 10185 | B193: 543970 | C193: 3021102 | D193: Northgate | E193: 1 | F193: A | G193: 349605.85 | H193: 0 | I193: 349605.85
A194: 10185 | B194: 543972 | C194: 3021102 | D194: Northgate | E194: 1 | F194: A | G194: 42216.1 | H194: 0 | I194: 42216.1
A195: 10188 | B195: 543970 | C195: 3021100 | D195: Pavilion | E195: 1 | F195: A | G195: 1268473.7 | H195: 0 | I195: 1268473.7
A196: 10188 | B196: 543972 | C196: 3021100 | D196: Pavilion | E196: 1 | F196: A | G196: 781424.27 | H196: 0 | I196: 781424.27
A197: 11094 | B197: 543970 | C197: 3023520 | D197: Akiva School | E197: 0 | F197: C | G197: -21174.05 | H197: -21174.05 | I197: 0
A198: 11094 | B198: 543970 | C198: 3023520 | D198: Akiva School | E198: 1 | F198: C | G198: 1477583.67 | H198: 0 | I198: 1477583.67
A199: 11094 | B199: 543972 | C199: 3023520 | D199: Akiva School | E199: 1 | F199: C | G199: 91254.15 | H199: 0 | I199: 91254.15
A200: 11278 | B200: 543970 | C200: 3023524 | D200: Beit Shvidler Primary School | E200: 0 | F200: C | G200: -9907.15 | H200: -9907.15 | I200: 0
A201: 11278 | B201: 543970 | C201: 3023524 | D201: Beit Shvidler Primary School | E201: 1 | F201: C | G201: 793726.53 | H201: 0 | I201: 793726.53
A202: 11278 | B202: 543972 | C202: 3023524 | D202: Beit Shvidler Primary School | E202: 1 | F202: C | G202: 50843.6
A203: Grand Total | G203: 83921197.32
... 314 more rows

Sheet JouSchedule (hidden)
B1: Integra Journal Template
B2: Journal Type | C2: JV01
B3: Source Code | C3: 00 | D3: Journal:
B4: Journal Date | C4: [system generated] | D4: Date:
B5: Reversal Period | C5: [system generated]
B6: VAT Code | C6: not applicable
B8: Narrative1 | C8: Option A&C 2019/20 Funding
B9: Narrative2 | D9: current period jounal
B10: Narrative3
B11: Document Date | C11: =TODAY() -> 2019-04-28 | D11: Total Debit | E11: =SUM(D22:D600) -> 85850590.34 | G11: =E11-F11 -> 85850590.34
B12: Posting Date | C12: =TODAY() -> 2019-04-28 | D12: Total Credit | E12: =SUM(E22:E600) -> 85006020.21
D13: Net Balance | E13: =E11-E12 -> 844570.13
D14: Prepared By
D15: Authorised By
B16: ANALYSIS TYPE
D17: Date of Signature
D18: Posted By
B20: Document Ref | D20: Amount | E20: Amount | F20: Analysis 1
B21: Integra G/L Account | C21: G/L Acct Description | D21: Debit | E21: Credit
B22: =JOUPivot!A17&JOUPivot!B17 -> 10040543970 | C22: =JOUPivot!C17&" Opt "& JOUPivot!F17&IF(JOUPivot!E17=0," 2019/20 Dedelegation "," 2019/20 Funding "&VLOOKUP(JOUPivot!B17,Rates!$AU$1:$AV$4,2,0))&" to Central A/C" -> 3023300 Opt A 2019/20 Dedelegation to Central A/C | D22: =IF(JOUPivot!G17>0,0,-JOUPivot!G17) -> 10281.28 | E22: =IF(JOUPivot!G17<0,0,JOUPivot!G17) -> 0
B23: =JOUPivot!A18&JOUPivot!B18 -> 10040543970 | C23: =JOUPivot!C18&" Opt "& JOUPivot!F18&IF(JOUPivot!E18=0," 2019/20 Dedelegation "," 2019/20 Funding "&VLOOKUP(JOUPivot!B18,Rates!$AU$1:$AV$4,2,0))&" to Central A/C" -> 3023300 Opt A 2019/20 Funding I01 to Central A/C | D23: =IF(JOUPivot!G18>0,0,-JOUPivot!G18) -> 0 | E23: =IF(JOUPivot!G18<0,0,JOUPivot!G18) -> 780253.37
B24: =JOUPivot!A19&JOUPivot!B19 -> 10040543972 | C24: =JOUPivot!C19&" Opt "& JOUPivot!F19&IF(JOUPivot!E19=0," 2019/20 Dedelegation "," 2019/20 Funding "&VLOOKUP(JOUPivot!B19,Rates!$AU$1:$AV$4,2,0))&" to Central A/C" -> 3023300 Opt A 2019/20 Funding I03 to Central A/C | D24: =IF(JOUPivot!G19>0,0,-JOUPivot!G19) -> 0 | E24: =IF(JOUPivot!G19<0,0,JOUPivot!G19) -> 18326
B25: =JOUPivot!A20&JOUPivot!B20 -> 10042543970 | C25: =JOUPivot!C20&" Opt "& JOUPivot!F20&IF(JOUPivot!E20=0," 2019/20 Dedelegation "," 2019/20 Funding "&VLOOKUP(JOUPivot!B20,Rates!$AU$1:$AV$4,2,0))&" to Central A/C" -> 3023317 Opt A 2019/20 Dedelegation to Central A/C | D25: =IF(JOUPivot!G20>0,0,-JOUPivot!G20) -> 12626.26 | E25: =IF(JOUPivot!G20<0,0,JOUPivot!G20) -> 0
B26: =JOUPivot!A21&JOUPivot!B21 -> 10042543970 | C26: =JOUPivot!C21&" Opt "& JOUPivot!F21&IF(JOUPivot!E21=0," 2019/20 Dedelegation "," 2019/20 Funding "&VLOOKUP(JOUPivot!B21,Rates!$AU$1:$AV$4,2,0))&" to Central A/C" -> 3023317 Opt A 2019/20 Funding I01 to Central A/C | D26: =IF(JOUPivot!G21>0,0,-JOUPivot!G21) -> 0 | E26: =IF(JOUPivot!G21<0,0,JOUPivot!G21) -> 998885.88
B27: =JOUPivot!A22&JOUPivot!B22 -> 10042543972 | C27: =JOUPivot!C22&" Opt "& JOUPivot!F22&IF(JOUPivot!E22=0," 2019/20 Dedelegation "," 2019/20 Funding "&VLOOKUP(JOUPivot!B22,Rates!$AU$1:$AV$4,2,0))&" to Central A/C" -> 3023317 Opt A 2019/20 Funding I03 to Central A/C | D27: =IF(JOUPivot!G22>0,0,-JOUPivot!G22) -> 0 | E27: =IF(JOUPivot!G22<0,0,JOUPivot!G22) -> 30092.55
B28: =JOUPivot!A23&JOUPivot!B23 -> 10043543970 | C28: =JOUPivot!C23&" Opt "& JOUPivot!F23&IF(JOUPivot!E23=0," 2019/20 Dedelegation "," 2019/20 Funding "&VLOOKUP(JOUPivot!B23,Rates!$AU$1:$AV$4,2,0))&" to Central A/C" -> 3023500 Opt A 2019/20 Dedelegation to Central A/C | D28: =IF(JOUPivot!G23>0,0,-JOUPivot!G23) -> 8005.1 | E28: =IF(JOUPivot!G23<0,0,JOUPivot!G23) -> 0
B29: =JOUPivot!A24&JOUPivot!B24 -> 10043543970 | C29: =JOUPivot!C24&" Opt "& JOUPivot!F24&IF(JOUPivot!E24=0," 2019/20 Dedelegation "," 2019/20 Funding "&VLOOKUP(JOUPivot!B24,Rates!$AU$1:$AV$4,2,0))&" to Central A/C" -> 3023500 Opt A 2019/20 Funding I01 to Central A/C | D29: =IF(JOUPivot!G24>0,0,-JOUPivot!G24) -> 0 | E29: =IF(JOUPivot!G24<0,0,JOUPivot!G24) -> 741266.24
B30: =JOUPivot!A25&JOUPivot!B25 -> 10043543972 | C30: =JOUPivot!C25&" Opt "& JOUPivot!F25&IF(JOUPivot!E25=0," 2019/20 Dedelegation "," 2019/20 Funding "&VLOOKUP(JOUPivot!B25,Rates!$AU$1:$AV$4,2,0))&" to Central A/C" -> 3023500 Opt A 2019/20 Funding I03 to Central A/C | D30: =IF(JOUPivot!G25>0,0,-JOUPivot!G25) -> 0 | E30: =IF(JOUPivot!G25<0,0,JOUPivot!G25) -> 9341.5
B31: =JOUPivot!A26&JOUPivot!B26 -> 10045543970 | C31: =JOUPivot!C26&" Opt "& JOUPivot!F26&IF(JOUPivot!E26=0," 2019/20 Dedelegation "," 2019/20 Funding "&VLOOKUP(JOUPivot!B26,Rates!$AU$1:$AV$4,2,0))&" to Central A/C" -> 3022003 Opt A 2019/20 Dedelegation to Central A/C | D31: =IF(JOUPivot!G26>0,0,-JOUPivot!G26) -> 20312.56 | E31: =IF(JOUPivot!G26<0,0,JOUPivot!G26) -> 0
B32: =JOUPivot!A27&JOUPivot!B27 -> 10045543970 | C32: =JOUPivot!C27&" Opt "& JOUPivot!F27&IF(JOUPivot!E27=0," 2019/20 Dedelegation "," 2019/20 Funding "&VLOOKUP(JOUPivot!B27,Rates!$AU$1:$AV$4,2,0))&" to Central A/C" -> 3022003 Opt A 2019/20 Funding I01 to Central A/C | D32: =IF(JOUPivot!G27>0,0,-JOUPivot!G27) -> 0 | E32: =IF(JOUPivot!G27<0,0,JOUPivot!G27) -> 1621525.33
B33: =JOUPivot!A28&JOUPivot!B28 -> 10045543972 | C33: =JOUPivot!C28&" Opt "& JOUPivot!F28&IF(JOUPivot!E28=0," 2019/20 Dedelegation "," 2019/20 Funding "&VLOOKUP(JOUPivot!B28,Rates!$AU$1:$AV$4,2,0))&" to Central A/C" -> 3022003 Opt A 2019/20 Funding I03 to Central A/C | D33: =IF(JOUPivot!G28>0,0,-JOUPivot!G28) -> 0 | E33: =IF(JOUPivot!G28<0,0,JOUPivot!G28) -> 69524.05
B34: =JOUPivot!A29&JOUPivot!B29 -> 10046543970 | C34: =JOUPivot!C29&" Opt "& JOUPivot!F29&IF(JOUPivot!E29=0," 2019/20 Dedelegation "," 2019/20 Funding "&VLOOKUP(JOUPivot!B29,Rates!$AU$1:$AV$4,2,0))&" to Central A/C" -> 3022007 Opt A 2019/20 Dedelegation to Central A/C | D34: =IF(JOUPivot!G29>0,0,-JOUPivot!G29) -> 18700.53 | E34: =IF(JOUPivot!G29<0,0,JOUPivot!G29) -> 0
B35: =JOUPivot!A30&JOUPivot!B30 -> 10046543970 | C35: =JOUPivot!C30&" Opt "& JOUPivot!F30&IF(JOUPivot!E30=0," 2019/20 Dedelegation "," 2019/20 Funding "&VLOOKUP(JOUPivot!B30,Rates!$AU$1:$AV$4,2,0))&" to Central A/C" -> 3022007 Opt A 2019/20 Funding I01 to Central A/C | D35: =IF(JOUPivot!G30>0,0,-JOUPivot!G30) -> 0 | E35: =IF(JOUPivot!G30<0,0,JOUPivot!G30) -> 1228520.11
B36: =JOUPivot!A31&JOUPivot!B31 -> 10046543972 | C36: =JOUPivot!C31&" Opt "& JOUPivot!F31&IF(JOUPivot!E31=0," 2019/20 Dedelegation "," 2019/20 Funding "&VLOOKUP(JOUPivot!B31,Rates!$AU$1:$AV$4,2,0))&" to Central A/C" -> 3022007 Opt A 2019/20 Funding I03 to Central A/C | D36: =IF(JOUPivot!G31>0,0,-JOUPivot!G31) -> 0 | E36: =IF(JOUPivot!G31<0,0,JOUPivot!G31) -> 72306.95
B37: =JOUPivot!A32&JOUPivot!B32 -> 10047543970 | C37: =JOUPivot!C32&" Opt "& JOUPivot!F32&IF(JOUPivot!E32=0," 2019/20 Dedelegation "," 2019/20 Funding "&VLOOKUP(JOUPivot!B32,Rates!$AU$1:$AV$4,2,0))&" to Central A/C" -> 3022008 Opt A 2019/20 Dedelegation to Central A/C | D37: =IF(JOUPivot!G32>0,0,-JOUPivot!G32) -> 14158.43 | E37: =IF(JOUPivot!G32<0,0,JOUPivot!G32) -> 0
B38: =JOUPivot!A33&JOUPivot!B33 -> 10047543970 | C38: =JOUPivot!C33&" Opt "& JOUPivot!F33&IF(JOUPivot!E33=0," 2019/20 Dedelegation "," 2019/20 Funding "&VLOOKUP(JOUPivot!B33,Rates!$AU$1:$AV$4,2,0))&" to Central A/C" -> 3022008 Opt A 2019/20 Funding I01 to Central A/C | D38: =IF(JOUPivot!G33>0,0,-JOUPivot!G33) -> 0 | E38: =IF(JOUPivot!G33<0,0,JOUPivot!G33) -> 1153816.84
B39: =JOUPivot!A34&JOUPivot!B34 -> 10047543972 | C39: =JOUPivot!C34&" Opt "& JOUPivot!F34&IF(JOUPivot!E34=0," 2019/20 Dedelegation "," 2019/20 Funding "&VLOOKUP(JOUPivot!B34,Rates!$AU$1:$AV$4,2,0))&" to Central A/C" -> 3022008 Opt A 2019/20 Funding I03 to Central A/C | D39: =IF(JOUPivot!G34>0,0,-JOUPivot!G34) -> 0 | E39: =IF(JOUPivot!G34<0,0,JOUPivot!G34) -> 67719.08
B40: =JOUPivot!A35&JOUPivot!B35 -> 10048543970 | C40: =JOUPivot!C35&" Opt "& JOUPivot!F35&IF(JOUPivot!E35=0," 2019/20 Dedelegation "," 2019/20 Funding "&VLOOKUP(JOUPivot!B35,Rates!$AU$1:$AV$4,2,0))&" to Central A/C" -> 3022009 Opt A 2019/20 Dedelegation to Central A/C | D40: =IF(JOUPivot!G35>0,0,-JOUPivot!G35) -> 21984.71 | E40: =IF(JOUPivot!G35<0,0,JOUPivot!G35) -> 0
B41: =JOUPivot!A36&JOUPivot!B36 -> 10048543970 | C41: =JOUPivot!C36&" Opt "& JOUPivot!F36&IF(JOUPivot!E36=0," 2019/20 Dedelegation "," 2019/20 Funding "&VLOOKUP(JOUPivot!B36,Rates!$AU$1:$AV$4,2,0))&" to Central A/C" -> 3022009 Opt A 2019/20 Funding I01 to Central A/C | D41: =IF(JOUPivot!G36>0,0,-JOUPivot!G36) -> 0 | E41: =IF(JOUPivot!G36<0,0,JOUPivot!G36) -> 1748540.95
B42: =JOUPivot!A37&JOUPivot!B37 -> 10048543972 | C42: =JOUPivot!C37&" Opt "& JOUPivot!F37&IF(JOUPivot!E37=0," 2019/20 Dedelegation "," 2019/20 Funding "&VLOOKUP(JOUPivot!B37,Rates!$AU$1:$AV$4,2,0))&" to Central A/C" -> 3022009 Opt A 2019/20 Funding I03 to Central A/C | D42: =IF(JOUPivot!G37>0,0,-JOUPivot!G37) -> 0 | E42: =IF(JOUPivot!G37<0,0,JOUPivot!G37) -> 58924.43
B43: =JOUPivot!A38&JOUPivot!B38 -> 10049543970 | C43: =JOUPivot!C38&" Opt "& JOUPivot!F38&IF(JOUPivot!E38=0," 2019/20 Dedelegation "," 2019/20 Funding "&VLOOKUP(JOUPivot!B38,Rates!$AU$1:$AV$4,2,0))&" to Central A/C" -> 3022010 Opt A 2019/20 Dedelegation to Central A/C | D43: =IF(JOUPivot!G38>0,0,-JOUPivot!G38) -> 19052 | E43: =IF(JOUPivot!G38<0,0,JOUPivot!G38) -> 0
B44: =JOUPivot!A39&JOUPivot!B39 -> 10049543970 | C44: =JOUPivot!C39&" Opt "& JOUPivot!F39&IF(JOUPivot!E39=0," 2019/20 Dedelegation "," 2019/20 Funding "&VLOOKUP(JOUPivot!B39,Rates!$AU$1:$AV$4,2,0))&" to Central A/C" -> 3022010 Opt A 2019/20 Funding I01 to Central A/C | D44: =IF(JOUPivot!G39>0,0,-JOUPivot!G39) -> 0 | E44: =IF(JOUPivot!G39<0,0,JOUPivot!G39) -> 1721414.38
B45: =JOUPivot!A40&JOUPivot!B40 -> 10049543972 | C45: =JOUPivot!C40&" Opt "& JOUPivot!F40&IF(JOUPivot!E40=0," 2019/20 Dedelegation "," 2019/20 Funding "&VLOOKUP(JOUPivot!B40,Rates!$AU$1:$AV$4,2,0))&" to Central A/C" -> 3022010 Opt A 2019/20 Funding I03 to Central A/C | D45: =IF(JOUPivot!G40>0,0,-JOUPivot!G40) -> 0 | E45: =IF(JOUPivot!G40<0,0,JOUPivot!G40) -> 291207.45
B46: =JOUPivot!A41&JOUPivot!B41 -> 10051543970 | C46: =JOUPivot!C41&" Opt "& JOUPivot!F41&IF(JOUPivot!E41=0," 2019/20 Dedelegation "," 2019/20 Funding "&VLOOKUP(JOUPivot!B41,Rates!$AU$1:$AV$4,2,0))&" to Central A/C" -> 3022011 Opt A 2019/20 Dedelegation to Central A/C | D46: =IF(JOUPivot!G41>0,0,-JOUPivot!G41) -> 10788.3 | E46: =IF(JOUPivot!G41<0,0,JOUPivot!G41) -> 0
B47: =JOUPivot!A42&JOUPivot!B42 -> 10051543970 | C47: =JOUPivot!C42&" Opt "& JOUPivot!F42&IF(JOUPivot!E42=0," 2019/20 Dedelegation "," 2019/20 Funding "&VLOOKUP(JOUPivot!B42,Rates!$AU$1:$AV$4,2,0))&" to Central A/C" -> 3022011 Opt A 2019/20 Funding I01 to Central A/C | D47: =IF(JOUPivot!G42>0,0,-JOUPivot!G42) -> 0 | E47: =IF(JOUPivot!G42<0,0,JOUPivot!G42) -> 777511.03
B48: =JOUPivot!A43&JOUPivot!B43 -> 10051543972 | C48: =JOUPivot!C43&" Opt "& JOUPivot!F43&IF(JOUPivot!E43=0," 2019/20 Dedelegation "," 2019/20 Funding "&VLOOKUP(JOUPivot!B43,Rates!$AU$1:$AV$4,2,0))&" to Central A/C" -> 3022011 Opt A 2019/20 Funding I03 to Central A/C | D48: =IF(JOUPivot!G43>0,0,-JOUPivot!G43) -> 0 | E48: =IF(JOUPivot!G43<0,0,JOUPivot!G43) -> 37366.85
B49: =JOUPivot!A44&JOUPivot!B44 -> 10054543970 | C49: =JOUPivot!C44&" Opt "& JOUPivot!F44&IF(JOUPivot!E44=0," 2019/20 Dedelegation "," 2019/20 Funding "&VLOOKUP(JOUPivot!B44,Rates!$AU$1:$AV$4,2,0))&" to Central A/C" -> 3022014 Opt A 2019/20 Dedelegation to Central A/C | D49: =IF(JOUPivot!G44>0,0,-JOUPivot!G44) -> 35474.89 | E49: =IF(JOUPivot!G44<0,0,JOUPivot!G44) -> 0
B50: =JOUPivot!A45&JOUPivot!B45 -> 10054543970 | C50: =JOUPivot!C45&" Opt "& JOUPivot!F45&IF(JOUPivot!E45=0," 2019/20 Dedelegation "," 2019/20 Funding "&VLOOKUP(JOUPivot!B45,Rates!$AU$1:$AV$4,2,0))&" to Central A/C" -> 3022014 Opt A 2019/20 Funding I01 to Central A/C | D50: =IF(JOUPivot!G45>0,0,-JOUPivot!G45) -> 0 | E50: =IF(JOUPivot!G45<0,0,JOUPivot!G45) -> 2746634.33
B51: =JOUPivot!A46&JOUPivot!B46 -> 10054543972 | C51: =JOUPivot!C46&" Opt "& JOUPivot!F46&IF(JOUPivot!E46=0," 2019/20 Dedelegation "," 2019/20 Funding "&VLOOKUP(JOUPivot!B46,Rates!$AU$1:$AV$4,2,0))&" to Central A/C" -> 3022014 Opt A 2019/20 Funding I03 to Central A/C | D51: =IF(JOUPivot!G46>0,0,-JOUPivot!G46) -> 0 | E51: =IF(JOUPivot!G46<0,0,JOUPivot!G46) -> 307343.85
B52: =JOUPivot!A47&JOUPivot!B47 -> 10055543970 | C52: =JOUPivot!C47&" Opt "& JOUPivot!F47&IF(JOUPivot!E47=0," 2019/20 Dedelegation "," 2019/20 Funding "&VLOOKUP(JOUPivot!B47,Rates!$AU$1:$AV$4,2,0))&" to Central A/C" -> 3022015 Opt A 2019/20 Dedelegation to Central A/C | D52: =IF(JOUPivot!G47>0,0,-JOUPivot!G47) -> 12031.03 | E52: =IF(JOUPivot!G47<0,0,JOUPivot!G47) -> 0
B53: =JOUPivot!A48&JOUPivot!B48 -> 10055543970 | C53: =JOUPivot!C48&" Opt "& JOUPivot!F48&IF(JOUPivot!E48=0," 2019/20 Dedelegation "," 2019/20 Funding "&VLOOKUP(JOUPivot!B48,Rates!$AU$1:$AV$4,2,0))&" to Central A/C" -> 3022015 Opt A 2019/20 Funding I01 to Central A/C | D53: =IF(JOUPivot!G48>0,0,-JOUPivot!G48) -> 0 | E53: =IF(JOUPivot!G48<0,0,JOUPivot!G48) -> 1184033.9
B54: =JOUPivot!A49&JOUPivot!B49 -> 10055543972 | C54: =JOUPivot!C49&" Opt "& JOUPivot!F49&IF(JOUPivot!E49=0," 2019/20 Dedelegation "," 2019/20 Funding "&VLOOKUP(JOUPivot!B49,Rates!$AU$1:$AV$4,2,0))&" to Central A/C" -> 3022015 Opt A 2019/20 Funding I03 to Central A/C | D54: =IF(JOUPivot!G49>0,0,-JOUPivot!G49) -> 0 | E54: =IF(JOUPivot!G49<0,0,JOUPivot!G49) -> 80822.25
B55: =JOUPivot!A50&JOUPivot!B50 -> 10056543970 | C55: =JOUPivot!C50&" Opt "& JOUPivot!F50&IF(JOUPivot!E50=0," 2019/20 Dedelegation "," 2019/20 Funding "&VLOOKUP(JOUPivot!B50,Rates!$AU$1:$AV$4,2,0))&" to Central A/C" -> 3022016 Opt A 2019/20 Dedelegation to Central A/C | D55: =IF(JOUPivot!G50>0,0,-JOUPivot!G50) -> 10821.87 | E55: =IF(JOUPivot!G50<0,0,JOUPivot!G50) -> 0
B56: =JOUPivot!A51&JOUPivot!B51 -> 10056543970 | C56: =JOUPivot!C51&" Opt "& JOUPivot!F51&IF(JOUPivot!E51=0," 2019/20 Dedelegation "," 2019/20 Funding "&VLOOKUP(JOUPivot!B51,Rates!$AU$1:$AV$4,2,0))&" to Central A/C" -> 3022016 Opt A 2019/20 Funding I01 to Central A/C | D56: =IF(JOUPivot!G51>0,0,-JOUPivot!G51) -> 0 | E56: =IF(JOUPivot!G51<0,0,JOUPivot!G51) -> 792326.6
B57: =JOUPivot!A52&JOUPivot!B52 -> 10056543972 | C57: =JOUPivot!C52&" Opt "& JOUPivot!F52&IF(JOUPivot!E52=0," 2019/20 Dedelegation "," 2019/20 Funding "&VLOOKUP(JOUPivot!B52,Rates!$AU$1:$AV$4,2,0))&" to Central A/C" -> 3022016 Opt A 2019/20 Funding I03 to Central A/C | D57: =IF(JOUPivot!G52>0,0,-JOUPivot!G52) -> 0 | E57: =IF(JOUPivot!G52<0,0,JOUPivot!G52) -> 29296.24
B58: =JOUPivot!A53&JOUPivot!B53 -> 10057543970 | C58: =JOUPivot!C53&" Opt "& JOUPivot!F53&IF(JOUPivot!E53=0," 2019/20 Dedelegation "," 2019/20 Funding "&VLOOKUP(JOUPivot!B53,Rates!$AU$1:$AV$4,2,0))&" to Central A/C" -> 3022017 Opt A 2019/20 Dedelegation to Central A/C | D58: =IF(JOUPivot!G53>0,0,-JOUPivot!G53) -> 21987.6 | E58: =IF(JOUPivot!G53<0,0,JOUPivot!G53) -> 0
B59: =JOUPivot!A54&JOUPivot!B54 -> 10057543970 | C59: =JOUPivot!C54&" Opt "& JOUPivot!F54&IF(JOUPivot!E54=0," 2019/20 Dedelegation "," 2019/20 Funding "&VLOOKUP(JOUPivot!B54,Rates!$AU$1:$AV$4,2,0))&" to Central A/C" -> 3022017 Opt A 2019/20 Funding I01 to Central A/C | D59: =IF(JOUPivot!G54>0,0,-JOUPivot!G54) -> 0 | E59: =IF(JOUPivot!G54<0,0,JOUPivot!G54) -> 1506120.92
B60: =JOUPivot!A55&JOUPivot!B55 -> 10057543972 | C60: =JOUPivot!C55&" Opt "& JOUPivot!F55&IF(JOUPivot!E55=0," 2019/20 Dedelegation "," 2019/20 Funding "&VLOOKUP(JOUPivot!B55,Rates!$AU$1:$AV$4,2,0))&" to Central A/C" -> 3022017 Opt A 2019/20 Funding I03 to Central A/C | D60: =IF(JOUPivot!G55>0,0,-JOUPivot!G55) -> 0 | E60: =IF(JOUPivot!G55<0,0,JOUPivot!G55) -> 15900.95
B61: =JOUPivot!A56&JOUPivot!B56 -> 10059543970 | C61: =JOUPivot!C56&" Opt "& JOUPivot!F56&IF(JOUPivot!E56=0," 2019/20 Dedelegation "," 2019/20 Funding "&VLOOKUP(JOUPivot!B56,Rates!$AU$1:$AV$4,2,0))&" to Central A/C" -> 3022019 Opt A 2019/20 Dedelegation to Central A/C | D61: =IF(JOUPivot!G56>0,0,-JOUPivot!G56) -> 13311.44 | E61: =IF(JOUPivot!G56<0,0,JOUPivot!G56) -> 0
B62: =JOUPivot!A57&JOUPivot!B57 -> 10059543970 | C62: =JOUPivot!C57&" Opt "& JOUPivot!F57&IF(JOUPivot!E57=0," 2019/20 Dedelegation "," 2019/20 Funding "&VLOOKUP(JOUPivot!B57,Rates!$AU$1:$AV$4,2,0))&" to Central A/C" -> 3022019 Opt A 2019/20 Funding I01 to Central A/C | D62: =IF(JOUPivot!G57>0,0,-JOUPivot!G57) -> 0 | E62: =IF(JOUPivot!G57<0,0,JOUPivot!G57) -> 1205892.05
B63: =JOUPivot!A58&JOUPivot!B58 -> 10059543972 | C63: =JOUPivot!C58&" Opt "& JOUPivot!F58&IF(JOUPivot!E58=0," 2019/20 Dedelegation "," 2019/20 Funding "&VLOOKUP(JOUPivot!B58,Rates!$AU$1:$AV$4,2,0))&" to Central A/C" -> 3022019 Opt A 2019/20 Funding I03 to Central A/C | D63: =IF(JOUPivot!G58>0,0,-JOUPivot!G58) -> 0 | E63: =IF(JOUPivot!G58<0,0,JOUPivot!G58) -> 30090.85
B64: =JOUPivot!A59&JOUPivot!B59 -> 10064543970 | C64: =JOUPivot!C59&" Opt "& JOUPivot!F59&IF(JOUPivot!E59=0," 2019/20 Dedelegation "," 2019/20 Funding "&VLOOKUP(JOUPivot!B59,Rates!$AU$1:$AV$4,2,0))&" to Central A/C" -> 3022024 Opt A 2019/20 Dedelegation to Central A/C | D64: =IF(JOUPivot!G59>0,0,-JOUPivot!G59) -> 11825.84 | E64: =IF(JOUPivot!G59<0,0,JOUPivot!G59) -> 0
B65: =JOUPivot!A60&JOUPivot!B60 -> 10064543970 | C65: =JOUPivot!C60&" Opt "& JOUPivot!F60&IF(JOUPivot!E60=0," 2019/20 Dedelegation "," 2019/20 Funding "&VLOOKUP(JOUPivot!B60,Rates!$AU$1:$AV$4,2,0))&" to Central A/C" -> 3022024 Opt A 2019/20 Funding I01 to Central A/C | D65: =IF(JOUPivot!G60>0,0,-JOUPivot!G60) -> 0 | E65: =IF(JOUPivot!G60<0,0,JOUPivot!G60) -> 1151565.51
B66: =JOUPivot!A61&JOUPivot!B61 -> 10064543972 | C66: =JOUPivot!C61&" Opt "& JOUPivot!F61&IF(JOUPivot!E61=0," 2019/20 Dedelegation "," 2019/20 Funding "&VLOOKUP(JOUPivot!B61,Rates!$AU$1:$AV$4,2,0))&" to Central A/C" -> 3022024 Opt A 2019/20 Funding I03 to Central A/C | D66: =IF(JOUPivot!G61>0,0,-JOUPivot!G61) -> 0 | E66: =IF(JOUPivot!G61<0,0,JOUPivot!G61) -> 51198.9
B67: =JOUPivot!A62&JOUPivot!B62 -> 10065543970 | C67: =JOUPivot!C62&" Opt "& JOUPivot!F62&IF(JOUPivot!E62=0," 2019/20 Dedelegation "," 2019/20 Funding "&VLOOKUP(JOUPivot!B62,Rates!$AU$1:$AV$4,2,0))&" to Central A/C" -> 3022025 Opt C 2019/20 Dedelegation to Central A/C | D67: =IF(JOUPivot!G62>0,0,-JOUPivot!G62) -> 16095.48 | E67: =IF(JOUPivot!G62<0,0,JOUPivot!G62) -> 0
B68: =JOUPivot!A63&JOUPivot!B63 -> 10065543970 | C68: =JOUPivot!C63&" Opt "& JOUPivot!F63&IF(JOUPivot!E63=0," 2019/20 Dedelegation "," 2019/20 Funding "&VLOOKUP(JOUPivot!B63,Rates!$AU$1:$AV$4,2,0))&" to Central A/C" -> 3022025 Opt C 2019/20 Funding I01 to Central A/C | D68: =IF(JOUPivot!G63>0,0,-JOUPivot!G63) -> 0 | E68: =IF(JOUPivot!G63<0,0,JOUPivot!G63) -> 1064336.3
B69: =JOUPivot!A64&JOUPivot!B64 -> 10065543972 | C69: =JOUPivot!C64&" Opt "& JOUPivot!F64&IF(JOUPivot!E64=0," 2019/20 Dedelegation "," 2019/20 Funding "&VLOOKUP(JOUPivot!B64,Rates!$AU$1:$AV$4,2,0))&" to Central A/C" -> 3022025 Opt C 2019/20 Funding I03 to Central A/C | D69: =IF(JOUPivot!G64>0,0,-JOUPivot!G64) -> 0 | E69: =IF(JOUPivot!G64<0,0,JOUPivot!G64) -> 48416.85
B70: =JOUPivot!A65&JOUPivot!B65 -> 10066543970 | C70: =JOUPivot!C65&" Opt "& JOUPivot!F65&IF(JOUPivot!E65=0," 2019/20 Dedelegation "," 2019/20 Funding "&VLOOKUP(JOUPivot!B65,Rates!$AU$1:$AV$4,2,0))&" to Central A/C" -> 3022026 Opt A 2019/20 Dedelegation to Central A/C | D70: =IF(JOUPivot!G65>0,0,-JOUPivot!G65) -> 29231.34 | E70: =IF(JOUPivot!G65<0,0,JOUPivot!G65) -> 0
B71: =JOUPivot!A66&JOUPivot!B66 -> 10066543970 | C71: =JOUPivot!C66&" Opt "& JOUPivot!F66&IF(JOUPivot!E66=0," 2019/20 Dedelegation "," 2019/20 Funding "&VLOOKUP(JOUPivot!B66,Rates!$AU$1:$AV$4,2,0))&" to Central A/C" -> 3022026 Opt A 2019/20 Funding I01 to Central A/C | D71: =IF(JOUPivot!G66>0,0,-JOUPivot!G66) -> 0 | E71: =IF(JOUPivot!G66<0,0,JOUPivot!G66) -> 2088478.79
B72: =JOUPivot!A67&JOUPivot!B67 -> 10066543972 | C72: =JOUPivot!C67&" Opt "& JOUPivot!F67&IF(JOUPivot!E67=0," 2019/20 Dedelegation "," 2019/20 Funding "&VLOOKUP(JOUPivot!B67,Rates!$AU$1:$AV$4,2,0))&" to Central A/C" -> 3022026 Opt A 2019/20 Funding I03 to Central A/C | D72: =IF(JOUPivot!G67>0,0,-JOUPivot!G67) -> 0 | E72: =IF(JOUPivot!G67<0,0,JOUPivot!G67) -> 42216.1
B73: =JOUPivot!A68&JOUPivot!B68 -> 10067543970 | C73: =JOUPivot!C68&" Opt "& JOUPivot!F68&IF(JOUPivot!E68=0," 2019/20 Dedelegation "," 2019/20 Funding "&VLOOKUP(JOUPivot!B68,Rates!$AU$1:$AV$4,2,0))&" to Central A/C" -> 3022027 Opt A 2019/20 Dedelegation to Central A/C | D73: =IF(JOUPivot!G68>0,0,-JOUPivot!G68) -> 18696.98 | E73: =IF(JOUPivot!G68<0,0,JOUPivot!G68) -> 0
B74: =JOUPivot!A69&JOUPivot!B69 -> 10067543970 | C74: =JOUPivot!C69&" Opt "& JOUPivot!F69&IF(JOUPivot!E69=0," 2019/20 Dedelegation "," 2019/20 Funding "&VLOOKUP(JOUPivot!B69,Rates!$AU$1:$AV$4,2,0))&" to Central A/C" -> 3022027 Opt A 2019/20 Funding I01 to Central A/C | D74: =IF(JOUPivot!G69>0,0,-JOUPivot!G69) -> 0 | E74: =IF(JOUPivot!G69<0,0,JOUPivot!G69) -> 1269532.92
B75: =JOUPivot!A70&JOUPivot!B70 -> 10067543972 | C75: =JOUPivot!C70&" Opt "& JOUPivot!F70&IF(JOUPivot!E70=0," 2019/20 Dedelegation "," 2019/20 Funding "&VLOOKUP(JOUPivot!B70,Rates!$AU$1:$AV$4,2,0))&" to Central A/C" -> 3022027 Opt A 2019/20 Funding I03 to Central A/C | D75: =IF(JOUPivot!G70>0,0,-JOUPivot!G70) -> 0 | E75: =IF(JOUPivot!G70<0,0,JOUPivot!G70) -> 32516.75
B76: =JOUPivot!A71&JOUPivot!B71 -> 10068543970 | C76: =JOUPivot!C71&" Opt "& JOUPivot!F71&IF(JOUPivot!E71=0," 2019/20 Dedelegation "," 2019/20 Funding "&VLOOKUP(JOUPivot!B71,Rates!$AU$1:$AV$4,2,0))&" to Central A/C" -> 3022028 Opt A 2019/20 Dedelegation to Central A/C | D76: =IF(JOUPivot!G71>0,0,-JOUPivot!G71) -> 13157.5 | E76: =IF(JOUPivot!G71<0,0,JOUPivot!G71) -> 0
B77: =JOUPivot!A72&JOUPivot!B72 -> 10068543970 | C77: =JOUPivot!C72&" Opt "& JOUPivot!F72&IF(JOUPivot!E72=0," 2019/20 Dedelegation "," 2019/20 Funding "&VLOOKUP(JOUPivot!B72,Rates!$AU$1:$AV$4,2,0))&" to Central A/C" -> 3022028 Opt A 2019/20 Funding I01 to Central A/C | D77: =IF(JOUPivot!G72>0,0,-JOUPivot!G72) -> 0 | E77: =IF(JOUPivot!G72<0,0,JOUPivot!G72) -> 948416.11
B78: =JOUPivot!A73&JOUPivot!B73 -> 10068543972 | C78: =JOUPivot!C73&" Opt "& JOUPivot!F73&IF(JOUPivot!E73=0," 2019/20 Dedelegation "," 2019/20 Funding "&VLOOKUP(JOUPivot!B73,Rates!$AU$1:$AV$4,2,0))&" to Central A/C" -> 3022028 Opt A 2019/20 Funding I03 to Central A/C | D78: =IF(JOUPivot!G73>0,0,-JOUPivot!G73) -> 0 | E78: =IF(JOUPivot!G73<0,0,JOUPivot!G73) -> 32515.9
B79: =JOUPivot!A74&JOUPivot!B74 -> 10069543970 | C79: =JOUPivot!C74&" Opt "& JOUPivot!F74&IF(JOUPivot!E74=0," 2019/20 Dedelegation "," 2019/20 Funding "&VLOOKUP(JOUPivot!B74,Rates!$AU$1:$AV$4,2,0))&" to Central A/C" -> 3022029 Opt A 2019/20 Dedelegation to Central A/C | D79: =IF(JOUPivot!G74>0,0,-JOUPivot!G74) -> 23298.43 | E79: =IF(JOUPivot!G74<0,0,JOUPivot!G74) -> 0
B80: =JOUPivot!A75&JOUPivot!B75 -> 10069543970 | C80: =JOUPivot!C75&" Opt "& JOUPivot!F75&IF(JOUPivot!E75=0," 2019/20 Dedelegation "," 2019/20 Funding "&VLOOKUP(JOUPivot!B75,Rates!$AU$1:$AV$4,2,0))&" to Central A/C" -> 3022029 Opt A 2019/20 Funding I01 to Central A/C | D80: =IF(JOUPivot!G75>0,0,-JOUPivot!G75) -> 0 | E80: =IF(JOUPivot!G75<0,0,JOUPivot!G75) -> 1975009.02
B81: =JOUPivot!A76&JOUPivot!B76 -> 10069543972 | C81: =JOUPivot!C76&" Opt "& JOUPivot!F76&IF(JOUPivot!E76=0," 2019/20 Dedelegation "," 2019/20 Funding "&VLOOKUP(JOUPivot!B76,Rates!$AU$1:$AV$4,2,0))&" to Central A/C" -> 3022029 Opt A 2019/20 Funding I03 to Central A/C | D81: =IF(JOUPivot!G76>0,0,-JOUPivot!G76) -> 0 | E81: =IF(JOUPivot!G76<0,0,JOUPivot!G76) -> 74373.3
B82: =JOUPivot!A77&JOUPivot!B77 -> 10071543970 | C82: =JOUPivot!C77&" Opt "& JOUPivot!F77&IF(JOUPivot!E77=0," 2019/20 Dedelegation "," 2019/20 Funding "&VLOOKUP(JOUPivot!B77,Rates!$AU$1:$AV$4,2,0))&" to Central A/C" -> 3022031 Opt A 2019/20 Dedelegation to Central A/C | D82: =IF(JOUPivot!G77>0,0,-JOUPivot!G77) -> 9902.16 | E82: =IF(JOUPivot!G77<0,0,JOUPivot!G77) -> 0
B83: =JOUPivot!A78&JOUPivot!B78 -> 10071543970 | C83: =JOUPivot!C78&" Opt "& JOUPivot!F78&IF(JOUPivot!E78=0," 2019/20 Dedelegation "," 2019/20 Funding "&VLOOKUP(JOUPivot!B78,Rates!$AU$1:$AV$4,2,0))&" to Central A/C" -> 3022031 Opt A 2019/20 Funding I01 to Central A/C | D83: =IF(JOUPivot!G78>0,0,-JOUPivot!G78) -> 0 | E83: =IF(JOUPivot!G78<0,0,JOUPivot!G78) -> 904404.44
B84: =JOUPivot!A79&JOUPivot!B79 -> 10071543972 | C84: =JOUPivot!C79&" Opt "& JOUPivot!F79&IF(JOUPivot!E79=0," 2019/20 Dedelegation "," 2019/20 Funding "&VLOOKUP(JOUPivot!B79,Rates!$AU$1:$AV$4,2,0))&" to Central A/C" -> 3022031 Opt A 2019/20 Funding I03 to Central A/C | D84: =IF(JOUPivot!G79>0,0,-JOUPivot!G79) -> 0 | E84: =IF(JOUPivot!G79<0,0,JOUPivot!G79) -> 41857.4
B85: =JOUPivot!A80&JOUPivot!B80 -> 10072543970 | C85: =JOUPivot!C80&" Opt "& JOUPivot!F80&IF(JOUPivot!E80=0," 2019/20 Dedelegation "," 2019/20 Funding "&VLOOKUP(JOUPivot!B80,Rates!$AU$1:$AV$4,2,0))&" to Central A/C" -> 3022032 Opt A 2019/20 Dedelegation to Central A/C | D85: =IF(JOUPivot!G80>0,0,-JOUPivot!G80) -> 24225.68 | E85: =IF(JOUPivot!G80<0,0,JOUPivot!G80) -> 0
B86: =JOUPivot!A81&JOUPivot!B81 -> 10072543970 | C86: =JOUPivot!C81&" Opt "& JOUPivot!F81&IF(JOUPivot!E81=0," 2019/20 Dedelegation "," 2019/20 Funding "&VLOOKUP(JOUPivot!B81,Rates!$AU$1:$AV$4,2,0))&" to Central A/C" -> 3022032 Opt A 2019/20 Funding I01 to Central A/C | D86: =IF(JOUPivot!G81>0,0,-JOUPivot!G81) -> 0 | E86: =IF(JOUPivot!G81<0,0,JOUPivot!G81) -> 1874124.68
B87: =JOUPivot!A82&JOUPivot!B82 -> 10072543972 | C87: =JOUPivot!C82&" Opt "& JOUPivot!F82&IF(JOUPivot!E82=0," 2019/20 Dedelegation "," 2019/20 Funding "&VLOOKUP(JOUPivot!B82,Rates!$AU$1:$AV$4,2,0))&" to Central A/C" -> 3022032 Opt A 2019/20 Funding I03 to Central A/C | D87: =IF(JOUPivot!G82>0,0,-JOUPivot!G82) -> 0 | E87: =IF(JOUPivot!G82<0,0,JOUPivot!G82) -> 76440.5
B88: =JOUPivot!A83&JOUPivot!B83 -> 10073543970 | C88: =JOUPivot!C83&" Opt "& JOUPivot!F83&IF(JOUPivot!E83=0," 2019/20 Dedelegation "," 2019/20 Funding "&VLOOKUP(JOUPivot!B83,Rates!$AU$1:$AV$4,2,0))&" to Central A/C" -> 3023304 Opt A 2019/20 Dedelegation to Central A/C | D88: =IF(JOUPivot!G83>0,0,-JOUPivot!G83) -> 12597.37 | E88: =IF(JOUPivot!G83<0,0,JOUPivot!G83) -> 0
B89: =JOUPivot!A84&JOUPivot!B84 -> 10073543970 | C89: =JOUPivot!C84&" Opt "& JOUPivot!F84&IF(JOUPivot!E84=0," 2019/20 Dedelegation "," 2019/20 Funding "&VLOOKUP(JOUPivot!B84,Rates!$AU$1:$AV$4,2,0))&" to Central A/C" -> 3023304 Opt A 2019/20 Funding I01 to Central A/C | D89: =IF(JOUPivot!G84>0,0,-JOUPivot!G84) -> 0 | E89: =IF(JOUPivot!G84<0,0,JOUPivot!G84) -> 983145.28
B90: =JOUPivot!A85&JOUPivot!B85 -> 10073543972 | C90: =JOUPivot!C85&" Opt "& JOUPivot!F85&IF(JOUPivot!E85=0," 2019/20 Dedelegation "," 2019/20 Funding "&VLOOKUP(JOUPivot!B85,Rates!$AU$1:$AV$4,2,0))&" to Central A/C" -> 3023304 Opt A 2019/20 Funding I03 to Central A/C | D90: =IF(JOUPivot!G85>0,0,-JOUPivot!G85) -> 0 | E90: =IF(JOUPivot!G85<0,0,JOUPivot!G85) -> 30091.7
B91: =JOUPivot!A86&JOUPivot!B86 -> 10074543970 | C91: =JOUPivot!C86&" Opt "& JOUPivot!F86&IF(JOUPivot!E86=0," 2019/20 Dedelegation "," 2019/20 Funding "&VLOOKUP(JOUPivot!B86,Rates!$AU$1:$AV$4,2,0))&" to Central A/C" -> 3022036 Opt A 2019/20 Dedelegation to Central A/C | D91: =IF(JOUPivot!G86>0,0,-JOUPivot!G86) -> 14461.7 | E91: =IF(JOUPivot!G86<0,0,JOUPivot!G86) -> 0
B92: =JOUPivot!A87&JOUPivot!B87 -> 10074543970 | C92: =JOUPivot!C87&" Opt "& JOUPivot!F87&IF(JOUPivot!E87=0," 2019/20 Dedelegation "," 2019/20 Funding "&VLOOKUP(JOUPivot!B87,Rates!$AU$1:$AV$4,2,0))&" to Central A/C" -> 3022036 Opt A 2019/20 Funding I01 to Central A/C | D92: =IF(JOUPivot!G87>0,0,-JOUPivot!G87) -> 0 | E92: =IF(JOUPivot!G87<0,0,JOUPivot!G87) -> 1483233.4
B93: =JOUPivot!A88&JOUPivot!B88 -> 10074543972 | C93: =JOUPivot!C88&" Opt "& JOUPivot!F88&IF(JOUPivot!E88=0," 2019/20 Dedelegation "," 2019/20 Funding "&VLOOKUP(JOUPivot!B88,Rates!$AU$1:$AV$4,2,0))&" to Central A/C" -> 3022036 Opt A 2019/20 Funding I03 to Central A/C | D93: =IF(JOUPivot!G88>0,0,-JOUPivot!G88) -> 0 | E93: =IF(JOUPivot!G88<0,0,JOUPivot!G88) -> 223256.75
B94: =JOUPivot!A89&JOUPivot!B89 -> 10075543970 | C94: =JOUPivot!C89&" Opt "& JOUPivot!F89&IF(JOUPivot!E89=0," 2019/20 Dedelegation "," 2019/20 Funding "&VLOOKUP(JOUPivot!B89,Rates!$AU$1:$AV$4,2,0))&" to Central A/C" -> 3022037 Opt A 2019/20 Dedelegation to Central A/C | D94: =IF(JOUPivot!G89>0,0,-JOUPivot!G89) -> 13861.25 | E94: =IF(JOUPivot!G89<0,0,JOUPivot!G89) -> 0
B95: =JOUPivot!A90&JOUPivot!B90 -> 10075543970 | C95: =JOUPivot!C90&" Opt "& JOUPivot!F90&IF(JOUPivot!E90=0," 2019/20 Dedelegation "," 2019/20 Funding "&VLOOKUP(JOUPivot!B90,Rates!$AU$1:$AV$4,2,0))&" to Central A/C" -> 3022037 Opt A 2019/20 Funding I01 to Central A/C | D95: =IF(JOUPivot!G90>0,0,-JOUPivot!G90) -> 0 | E95: =IF(JOUPivot!G90<0,0,JOUPivot!G90) -> 1134099.27
B96: =JOUPivot!A91&JOUPivot!B91 -> 10075543972 | C96: =JOUPivot!C91&" Opt "& JOUPivot!F91&IF(JOUPivot!E91=0," 2019/20 Dedelegation "," 2019/20 Funding "&VLOOKUP(JOUPivot!B91,Rates!$AU$1:$AV$4,2,0))&" to Central A/C" -> 3022037 Opt A 2019/20 Funding I03 to Central A/C | D96: =IF(JOUPivot!G91>0,0,-JOUPivot!G91) -> 0 | E96: =IF(JOUPivot!G91<0,0,JOUPivot!G91) -> 76798.35
B97: =JOUPivot!A92&JOUPivot!B92 -> 10078543970 | C97: =JOUPivot!C92&" Opt "& JOUPivot!F92&IF(JOUPivot!E92=0," 2019/20 Dedelegation "," 2019/20 Funding "&VLOOKUP(JOUPivot!B92,Rates!$AU$1:$AV$4,2,0))&" to Central A/C" -> 3023305 Opt A 2019/20 Dedelegation to Central A/C | D97: =IF(JOUPivot!G92>0,0,-JOUPivot!G92) -> 7217.02 | E97: =IF(JOUPivot!G92<0,0,JOUPivot!G92) -> 0
B98: =JOUPivot!A93&JOUPivot!B93 -> 10078543970 | C98: =JOUPivot!C93&" Opt "& JOUPivot!F93&IF(JOUPivot!E93=0," 2019/20 Dedelegation "," 2019/20 Funding "&VLOOKUP(JOUPivot!B93,Rates!$AU$1:$AV$4,2,0))&" to Central A/C" -> 3023305 Opt A 2019/20 Funding I01 to Central A/C | D98: =IF(JOUPivot!G93>0,0,-JOUPivot!G93) -> 0 | E98: =IF(JOUPivot!G93<0,0,JOUPivot!G93) -> 519427.55
B99: =JOUPivot!A94&JOUPivot!B94 -> 10078543972 | C99: =JOUPivot!C94&" Opt "& JOUPivot!F94&IF(JOUPivot!E94=0," 2019/20 Dedelegation "," 2019/20 Funding "&VLOOKUP(JOUPivot!B94,Rates!$AU$1:$AV$4,2,0))&" to Central A/C" -> 3023305 Opt A 2019/20 Funding I03 to Central A/C | D99: =IF(JOUPivot!G94>0,0,-JOUPivot!G94) -> 0 | E99: =IF(JOUPivot!G94<0,0,JOUPivot!G94) -> 9341.5
B100: =JOUPivot!A95&JOUPivot!B95 -> 10080543970 | C100: =JOUPivot!C95&" Opt "& JOUPivot!F95&IF(JOUPivot!E95=0," 2019/20 Dedelegation "," 2019/20 Funding "&VLOOKUP(JOUPivot!B95,Rates!$AU$1:$AV$4,2,0))&" to Central A/C" -> 3022043 Opt A 2019/20 Dedelegation to Central A/C | D100: =IF(JOUPivot!G95>0,0,-JOUPivot!G95) -> 24741.61 | E100: =IF(JOUPivot!G95<0,0,JOUPivot!G95) -> 0
B101: =JOUPivot!A96&JOUPivot!B96 -> 10080543970 | C101: =JOUPivot!C96&" Opt "& JOUPivot!F96&IF(JOUPivot!E96=0," 2019/20 Dedelegation "," 2019/20 Funding "&VLOOKUP(JOUPivot!B96,Rates!$AU$1:$AV$4,2,0))&" to Central A/C" -> 3022043 Opt A 2019/20 Funding I01 to Central A/C | D101: =IF(JOUPivot!G96>0,0,-JOUPivot!G96) -> 0 | E101: =IF(JOUPivot!G96<0,0,JOUPivot!G96) -> 1594469.42
B102: =JOUPivot!A97&JOUPivot!B97 -> 10080543972 | C102: =JOUPivot!C97&" Opt "& JOUPivot!F97&IF(JOUPivot!E97=0," 2019/20 Dedelegation "," 2019/20 Funding "&VLOOKUP(JOUPivot!B97,Rates!$AU$1:$AV$4,2,0))&" to Central A/C" -> 3022043 Opt A 2019/20 Funding I03 to Central A/C | D102: =IF(JOUPivot!G97>0,0,-JOUPivot!G97) -> 0 | E102: =IF(JOUPivot!G97<0,0,JOUPivot!G97) -> 172640.95
B103: =JOUPivot!A98&JOUPivot!B98 -> 10081543970 | C103: =JOUPivot!C98&" Opt "& JOUPivot!F98&IF(JOUPivot!E98=0," 2019/20 Dedelegation "," 2019/20 Funding "&VLOOKUP(JOUPivot!B98,Rates!$AU$1:$AV$4,2,0))&" to Central A/C" -> 3022044 Opt A 2019/20 Dedelegation to Central A/C | D103: =IF(JOUPivot!G98>0,0,-JOUPivot!G98) -> 18523.96 | E103: =IF(JOUPivot!G98<0,0,JOUPivot!G98) -> 0
B104: =JOUPivot!A99&JOUPivot!B99 -> 10081543970 | C104: =JOUPivot!C99&" Opt "& JOUPivot!F99&IF(JOUPivot!E99=0," 2019/20 Dedelegation "," 2019/20 Funding "&VLOOKUP(JOUPivot!B99,Rates!$AU$1:$AV$4,2,0))&" to Central A/C" -> 3022044 Opt A 2019/20 Funding I01 to Central A/C | D104: =IF(JOUPivot!G99>0,0,-JOUPivot!G99) -> 0 | E104: =IF(JOUPivot!G99<0,0,JOUPivot!G99) -> 1322463.21
B105: =JOUPivot!A100&JOUPivot!B100 -> 10081543972 | C105: =JOUPivot!C100&" Opt "& JOUPivot!F100&IF(JOUPivot!E100=0," 2019/20 Dedelegation "," 2019/20 Funding "&VLOOKUP(JOUPivot!B100,Rates!$AU$1:$AV$4,2,0))&" to Central A/C" -> 3022044 Opt A 2019/20 Funding I03 to Central A/C | D105: =IF(JOUPivot!G100>0,0,-JOUPivot!G100) -> 0 | E105: =IF(JOUPivot!G100<0,0,JOUPivot!G100) -> 44282.45
B106: =JOUPivot!A101&JOUPivot!B101 -> 10082543970 | C106: =JOUPivot!C101&" Opt "& JOUPivot!F101&IF(JOUPivot!E101=0," 2019/20 Dedelegation "," 2019/20 Funding "&VLOOKUP(JOUPivot!B101,Rates!$AU$1:$AV$4,2,0))&" to Central A/C" -> 3022045 Opt A 2019/20 Dedelegation to Central A/C | D106: =IF(JOUPivot!G101>0,0,-JOUPivot!G101) -> 12640 | E106: =IF(JOUPivot!G101<0,0,JOUPivot!G101) -> 0
B107: =JOUPivot!A102&JOUPivot!B102 -> 10082543970 | C107: =JOUPivot!C102&" Opt "& JOUPivot!F102&IF(JOUPivot!E102=0," 2019/20 Dedelegation "," 2019/20 Funding "&VLOOKUP(JOUPivot!B102,Rates!$AU$1:$AV$4,2,0))&" to Central A/C" -> 3022045 Opt A 2019/20 Funding I01 to Central A/C | D107: =IF(JOUPivot!G102>0,0,-JOUPivot!G102) -> 0 | E107: =IF(JOUPivot!G102<0,0,JOUPivot!G102) -> 1124604.14
B108: =JOUPivot!A103&JOUPivot!B103 -> 10082543972 | C108: =JOUPivot!C103&" Opt "& JOUPivot!F103&IF(JOUPivot!E103=0," 2019/20 Dedelegation "," 2019/20 Funding "&VLOOKUP(JOUPivot!B103,Rates!$AU$1:$AV$4,2,0))&" to Central A/C" -> 3022045 Opt A 2019/20 Funding I03 to Central A/C | D108: =IF(JOUPivot!G103>0,0,-JOUPivot!G103) -> 0 | E108: =IF(JOUPivot!G103<0,0,JOUPivot!G103) -> 44282.45
B109: =JOUPivot!A104&JOUPivot!B104 -> 10085543970 | C109: =JOUPivot!C104&" Opt "& JOUPivot!F104&IF(JOUPivot!E104=0," 2019/20 Dedelegation "," 2019/20 Funding "&VLOOKUP(JOUPivot!B104,Rates!$AU$1:$AV$4,2,0))&" to Central A/C" -> 3023501 Opt A 2019/20 Dedelegation to Central A/C | D109: =IF(JOUPivot!G104>0,0,-JOUPivot!G104) -> 10953.19 | E109: =IF(JOUPivot!G104<0,0,JOUPivot!G104) -> 0
B110: =JOUPivot!A105&JOUPivot!B105 -> 10085543970 | C110: =JOUPivot!C105&" Opt "& JOUPivot!F105&IF(JOUPivot!E105=0," 2019/20 Dedelegation "," 2019/20 Funding "&VLOOKUP(JOUPivot!B105,Rates!$AU$1:$AV$4,2,0))&" to Central A/C" -> 3023501 Opt A 2019/20 Funding I01 to Central A/C | D110: =IF(JOUPivot!G105>0,0,-JOUPivot!G105) -> 0 | E110: =IF(JOUPivot!G105<0,0,JOUPivot!G105) -> 906118
B111: =JOUPivot!A106&JOUPivot!B106 -> 10085543972 | C111: =JOUPivot!C106&" Opt "& JOUPivot!F106&IF(JOUPivot!E106=0," 2019/20 Dedelegation "," 2019/20 Funding "&VLOOKUP(JOUPivot!B106,Rates!$AU$1:$AV$4,2,0))&" to Central A/C" -> 3023501 Opt A 2019/20 Funding I03 to Central A/C | D111: =IF(JOUPivot!G106>0,0,-JOUPivot!G106) -> 0 | E111: =IF(JOUPivot!G106<0,0,JOUPivot!G106) -> 44284.15
B112: =JOUPivot!A107&JOUPivot!B107 -> 10087543970 | C112: =JOUPivot!C107&" Opt "& JOUPivot!F107&IF(JOUPivot!E107=0," 2019/20 Dedelegation "," 2019/20 Funding "&VLOOKUP(JOUPivot!B107,Rates!$AU$1:$AV$4,2,0))&" to Central A/C" -> 3023502 Opt A 2019/20 Dedelegation to Central A/C | D112: =IF(JOUPivot!G107>0,0,-JOUPivot!G107) -> 17222.3 | E112: =IF(JOUPivot!G107<0,0,JOUPivot!G107) -> 0
B113: =JOUPivot!A108&JOUPivot!B108 -> 10087543970 | C113: =JOUPivot!C108&" Opt "& JOUPivot!F108&IF(JOUPivot!E108=0," 2019/20 Dedelegation "," 2019/20 Funding "&VLOOKUP(JOUPivot!B108,Rates!$AU$1:$AV$4,2,0))&" to Central A/C" -> 3023502 Opt A 2019/20 Funding I01 to Central A/C | D113: =IF(JOUPivot!G108>0,0,-JOUPivot!G108) -> 0 | E113: =IF(JOUPivot!G108<0,0,JOUPivot!G108) -> 1384015.43
B114: =JOUPivot!A109&JOUPivot!B109 -> 10087543972 | C114: =JOUPivot!C109&" Opt "& JOUPivot!F109&IF(JOUPivot!E109=0," 2019/20 Dedelegation "," 2019/20 Funding "&VLOOKUP(JOUPivot!B109,Rates!$AU$1:$AV$4,2,0))&" to Central A/C" -> 3023502 Opt A 2019/20 Funding I03 to Central A/C | D114: =IF(JOUPivot!G109>0,0,-JOUPivot!G109) -> 0 | E114: =IF(JOUPivot!G109<0,0,JOUPivot!G109) -> 30449.55
B115: =JOUPivot!A110&JOUPivot!B110 -> 10088543970 | C115: =JOUPivot!C110&" Opt "& JOUPivot!F110&IF(JOUPivot!E110=0," 2019/20 Dedelegation "," 2019/20 Funding "&VLOOKUP(JOUPivot!B110,Rates!$AU$1:$AV$4,2,0))&" to Central A/C" -> 3023504 Opt A 2019/20 Dedelegation to Central A/C | D115: =IF(JOUPivot!G110>0,0,-JOUPivot!G110) -> 22459.39 | E115: =IF(JOUPivot!G110<0,0,JOUPivot!G110) -> 0
B116: =JOUPivot!A111&JOUPivot!B111 -> 10088543970 | C116: =JOUPivot!C111&" Opt "& JOUPivot!F111&IF(JOUPivot!E111=0," 2019/20 Dedelegation "," 2019/20 Funding "&VLOOKUP(JOUPivot!B111,Rates!$AU$1:$AV$4,2,0))&" to Central A/C" -> 3023504 Opt A 2019/20 Funding I01 to Central A/C | D116: =IF(JOUPivot!G111>0,0,-JOUPivot!G111) -> 0 | E116: =IF(JOUPivot!G111<0,0,JOUPivot!G111) -> 1631758.26
B117: =JOUPivot!A112&JOUPivot!B112 -> 10088543972 | C117: =JOUPivot!C112&" Opt "& JOUPivot!F112&IF(JOUPivot!E112=0," 2019/20 Dedelegation "," 2019/20 Funding "&VLOOKUP(JOUPivot!B112,Rates!$AU$1:$AV$4,2,0))&" to Central A/C" -> 3023504 Opt A 2019/20 Funding I03 to Central A/C | D117: =IF(JOUPivot!G112>0,0,-JOUPivot!G112) -> 0 | E117: =IF(JOUPivot!G112<0,0,JOUPivot!G112) -> 74374.15
B118: =JOUPivot!A113&JOUPivot!B113 -> 10089543970 | C118: =JOUPivot!C113&" Opt "& JOUPivot!F113&IF(JOUPivot!E113=0," 2019/20 Dedelegation "," 2019/20 Funding "&VLOOKUP(JOUPivot!B113,Rates!$AU$1:$AV$4,2,0))&" to Central A/C" -> 3023307 Opt A 2019/20 Dedelegation to Central A/C | D118: =IF(JOUPivot!G113>0,0,-JOUPivot!G113) -> 10826.13 | E118: =IF(JOUPivot!G113<0,0,JOUPivot!G113) -> 0
B119: =JOUPivot!A114&JOUPivot!B114 -> 10089543970 | C119: =JOUPivot!C114&" Opt "& JOUPivot!F114&IF(JOUPivot!E114=0," 2019/20 Dedelegation "," 2019/20 Funding "&VLOOKUP(JOUPivot!B114,Rates!$AU$1:$AV$4,2,0))&" to Central A/C" -> 3023307 Opt A 2019/20 Funding I01 to Central A/C | D119: =IF(JOUPivot!G114>0,0,-JOUPivot!G114) -> 0 | E119: =IF(JOUPivot!G114<0,0,JOUPivot!G114) -> 867523.24
B120: =JOUPivot!A115&JOUPivot!B115 -> 10092543970 | C120: =JOUPivot!C115&" Opt "& JOUPivot!F115&IF(JOUPivot!E115=0," 2019/20 Dedelegation "," 2019/20 Funding "&VLOOKUP(JOUPivot!B115,Rates!$AU$1:$AV$4,2,0))&" to Central A/C" -> 3023311 Opt A 2019/20 Dedelegation to Central A/C | D120: =IF(JOUPivot!G115>0,0,-JOUPivot!G115) -> 21337.6 | E120: =IF(JOUPivot!G115<0,0,JOUPivot!G115) -> 0
B121: =JOUPivot!A116&JOUPivot!B116 -> 10092543970 | C121: =JOUPivot!C116&" Opt "& JOUPivot!F116&IF(JOUPivot!E116=0," 2019/20 Dedelegation "," 2019/20 Funding "&VLOOKUP(JOUPivot!B116,Rates!$AU$1:$AV$4,2,0))&" to Central A/C" -> 3023311 Opt A 2019/20 Funding I01 to Central A/C | D121: =IF(JOUPivot!G116>0,0,-JOUPivot!G116) -> 0 | E121: =IF(JOUPivot!G116<0,0,JOUPivot!G116) -> 1597515.87
B122: =JOUPivot!A117&JOUPivot!B117 -> 10092543972 | C122: =JOUPivot!C117&" Opt "& JOUPivot!F117&IF(JOUPivot!E117=0," 2019/20 Dedelegation "," 2019/20 Funding "&VLOOKUP(JOUPivot!B117,Rates!$AU$1:$AV$4,2,0))&" to Central A/C" -> 3023311 Opt A 2019/20 Funding I03 to Central A/C | D122: =IF(JOUPivot!G117>0,0,-JOUPivot!G117) -> 0 | E122: =IF(JOUPivot!G117<0,0,JOUPivot!G117) -> 51199.75
B123: =JOUPivot!A118&JOUPivot!B118 -> 10093543970 | C123: =JOUPivot!C118&" Opt "& JOUPivot!F118&IF(JOUPivot!E118=0," 2019/20 Dedelegation "," 2019/20 Funding "&VLOOKUP(JOUPivot!B118,Rates!$AU$1:$AV$4,2,0))&" to Central A/C" -> 3023312 Opt A 2019/20 Dedelegation to Central A/C | D123: =IF(JOUPivot!G118>0,0,-JOUPivot!G118) -> 11080.76 | E123: =IF(JOUPivot!G118<0,0,JOUPivot!G118) -> 0
B124: =JOUPivot!A119&JOUPivot!B119 -> 10093543970 | C124: =JOUPivot!C119&" Opt "& JOUPivot!F119&IF(JOUPivot!E119=0," 2019/20 Dedelegation "," 2019/20 Funding "&VLOOKUP(JOUPivot!B119,Rates!$AU$1:$AV$4,2,0))&" to Central A/C" -> 3023312 Opt A 2019/20 Funding I01 to Central A/C | D124: =IF(JOUPivot!G119>0,0,-JOUPivot!G119) -> 0 | E124: =IF(JOUPivot!G119<0,0,JOUPivot!G119) -> 762413.12
B125: =JOUPivot!A120&JOUPivot!B120 -> 10093543972 | C125: =JOUPivot!C120&" Opt "& JOUPivot!F120&IF(JOUPivot!E120=0," 2019/20 Dedelegation "," 2019/20 Funding "&VLOOKUP(JOUPivot!B120,Rates!$AU$1:$AV$4,2,0))&" to Central A/C" -> 3023312 Opt A 2019/20 Funding I03 to Central A/C | D125: =IF(JOUPivot!G120>0,0,-JOUPivot!G120) -> 0 | E125: =IF(JOUPivot!G120<0,0,JOUPivot!G120) -> 23175.25
B126: =JOUPivot!A121&JOUPivot!B121 -> 10094543970 | C126: =JOUPivot!C121&" Opt "& JOUPivot!F121&IF(JOUPivot!E121=0," 2019/20 Dedelegation "," 2019/20 Funding "&VLOOKUP(JOUPivot!B121,Rates!$AU$1:$AV$4,2,0))&" to Central A/C" -> 3023313 Opt A 2019/20 Dedelegation to Central A/C | D126: =IF(JOUPivot!G121>0,0,-JOUPivot!G121) -> 10531.79 | E126: =IF(JOUPivot!G121<0,0,JOUPivot!G121) -> 0
B127: =JOUPivot!A122&JOUPivot!B122 -> 10094543970 | C127: =JOUPivot!C122&" Opt "& JOUPivot!F122&IF(JOUPivot!E122=0," 2019/20 Dedelegation "," 2019/20 Funding "&VLOOKUP(JOUPivot!B122,Rates!$AU$1:$AV$4,2,0))&" to Central A/C" -> 3023313 Opt A 2019/20 Funding I01 to Central A/C | D127: =IF(JOUPivot!G122>0,0,-JOUPivot!G122) -> 0 | E127: =IF(JOUPivot!G122<0,0,JOUPivot!G122) -> 849545.63
B128: =JOUPivot!A123&JOUPivot!B123 -> 10094543972 | C128: =JOUPivot!C123&" Opt "& JOUPivot!F123&IF(JOUPivot!E123=0," 2019/20 Dedelegation "," 2019/20 Funding "&VLOOKUP(JOUPivot!B123,Rates!$AU$1:$AV$4,2,0))&" to Central A/C" -> 3023313 Opt A 2019/20 Funding I03 to Central A/C | D128: =IF(JOUPivot!G123>0,0,-JOUPivot!G123) -> 0 | E128: =IF(JOUPivot!G123<0,0,JOUPivot!G123) -> 23533.1
B129: =JOUPivot!A124&JOUPivot!B124 -> 10095543970 | C129: =JOUPivot!C124&" Opt "& JOUPivot!F124&IF(JOUPivot!E124=0," 2019/20 Dedelegation "," 2019/20 Funding "&VLOOKUP(JOUPivot!B124,Rates!$AU$1:$AV$4,2,0))&" to Central A/C" -> 3023314 Opt C 2019/20 Dedelegation to Central A/C | D129: =IF(JOUPivot!G124>0,0,-JOUPivot!G124) -> 10713.6 | E129: =IF(JOUPivot!G124<0,0,JOUPivot!G124) -> 0
B130: =JOUPivot!A125&JOUPivot!B125 -> 10095543970 | C130: =JOUPivot!C125&" Opt "& JOUPivot!F125&IF(JOUPivot!E125=0," 2019/20 Dedelegation "," 2019/20 Funding "&VLOOKUP(JOUPivot!B125,Rates!$AU$1:$AV$4,2,0))&" to Central A/C" -> 3023314 Opt C 2019/20 Funding I01 to Central A/C | D130: =IF(JOUPivot!G125>0,0,-JOUPivot!G125) -> 0 | E130: =IF(JOUPivot!G125<0,0,JOUPivot!G125) -> 742509.04
B131: =JOUPivot!A126&JOUPivot!B126 -> 10095543972 | C131: =JOUPivot!C126&" Opt "& JOUPivot!F126&IF(JOUPivot!E126=0," 2019/20 Dedelegation "," 2019/20 Funding "&VLOOKUP(JOUPivot!B126,Rates!$AU$1:$AV$4,2,0))&" to Central A/C" -> 3023314 Opt C 2019/20 Funding I03 to Central A/C | D131: =IF(JOUPivot!G126>0,0,-JOUPivot!G126) -> 0 | E131: =IF(JOUPivot!G126<0,0,JOUPivot!G126) -> 28025.35
B132: =JOUPivot!A127&JOUPivot!B127 -> 10096543970 | C132: =JOUPivot!C127&" Opt "& JOUPivot!F127&IF(JOUPivot!E127=0," 2019/20 Dedelegation "," 2019/20 Funding "&VLOOKUP(JOUPivot!B127,Rates!$AU$1:$AV$4,2,0))&" to Central A/C" -> 3023506 Opt A 2019/20 Dedelegation to Central A/C | D132: =IF(JOUPivot!G127>0,0,-JOUPivot!G127) -> 16272.99 | E132: =IF(JOUPivot!G127<0,0,JOUPivot!G127) -> 0
B133: =JOUPivot!A128&JOUPivot!B128 -> 10096543970 | C133: =JOUPivot!C128&" Opt "& JOUPivot!F128&IF(JOUPivot!E128=0," 2019/20 Dedelegation "," 2019/20 Funding "&VLOOKUP(JOUPivot!B128,Rates!$AU$1:$AV$4,2,0))&" to Central A/C" -> 3023506 Opt A 2019/20 Funding I01 to Central A/C | D133: =IF(JOUPivot!G128>0,0,-JOUPivot!G128) -> 0 | E133: =IF(JOUPivot!G128<0,0,JOUPivot!G128) -> 1118174.65
B134: =JOUPivot!A129&JOUPivot!B129 -> 10096543972 | C134: =JOUPivot!C129&" Opt "& JOUPivot!F129&IF(JOUPivot!E129=0," 2019/20 Dedelegation "," 2019/20 Funding "&VLOOKUP(JOUPivot!B129,Rates!$AU$1:$AV$4,2,0))&" to Central A/C" -> 3023506 Opt A 2019/20 Funding I03 to Central A/C | D134: =IF(JOUPivot!G129>0,0,-JOUPivot!G129) -> 0 | E134: =IF(JOUPivot!G129<0,0,JOUPivot!G129) -> 23175.25
B135: =JOUPivot!A130&JOUPivot!B130 -> 10100543970 | C135: =JOUPivot!C130&" Opt "& JOUPivot!F130&IF(JOUPivot!E130=0," 2019/20 Dedelegation "," 2019/20 Funding "&VLOOKUP(JOUPivot!B130,Rates!$AU$1:$AV$4,2,0))&" to Central A/C" -> 3023316 Opt A 2019/20 Dedelegation to Central A/C | D135: =IF(JOUPivot!G130>0,0,-JOUPivot!G130) -> 10800.36 | E135: =IF(JOUPivot!G130<0,0,JOUPivot!G130) -> 0
B136: =JOUPivot!A131&JOUPivot!B131 -> 10100543970 | C136: =JOUPivot!C131&" Opt "& JOUPivot!F131&IF(JOUPivot!E131=0," 2019/20 Dedelegation "," 2019/20 Funding "&VLOOKUP(JOUPivot!B131,Rates!$AU$1:$AV$4,2,0))&" to Central A/C" -> 3023316 Opt A 2019/20 Funding I01 to Central A/C | D136: =IF(JOUPivot!G131>0,0,-JOUPivot!G131) -> 0 | E136: =IF(JOUPivot!G131<0,0,JOUPivot!G131) -> 738432.45
B137: =JOUPivot!A132&JOUPivot!B132 -> 10100543972 | C137: =JOUPivot!C132&" Opt "& JOUPivot!F132&IF(JOUPivot!E132=0," 2019/20 Dedelegation "," 2019/20 Funding "&VLOOKUP(JOUPivot!B132,Rates!$AU$1:$AV$4,2,0))&" to Central A/C" -> 3023316 Opt A 2019/20 Funding I03 to Central A/C | D137: =IF(JOUPivot!G132>0,0,-JOUPivot!G132) -> 0 | E137: =IF(JOUPivot!G132<0,0,JOUPivot!G132) -> 4492.25
B138: =JOUPivot!A133&JOUPivot!B133 -> 10101543970 | C138: =JOUPivot!C133&" Opt "& JOUPivot!F133&IF(JOUPivot!E133=0," 2019/20 Dedelegation "," 2019/20 Funding "&VLOOKUP(JOUPivot!B133,Rates!$AU$1:$AV$4,2,0))&" to Central A/C" -> 3022055 Opt A 2019/20 Dedelegation to Central A/C | D138: =IF(JOUPivot!G133>0,0,-JOUPivot!G133) -> 11825.3 | E138: =IF(JOUPivot!G133<0,0,JOUPivot!G133) -> 0
B139: =JOUPivot!A134&JOUPivot!B134 -> 10101543970 | C139: =JOUPivot!C134&" Opt "& JOUPivot!F134&IF(JOUPivot!E134=0," 2019/20 Dedelegation "," 2019/20 Funding "&VLOOKUP(JOUPivot!B134,Rates!$AU$1:$AV$4,2,0))&" to Central A/C" -> 3022055 Opt A 2019/20 Funding I01 to Central A/C | D139: =IF(JOUPivot!G134>0,0,-JOUPivot!G134) -> 0 | E139: =IF(JOUPivot!G134<0,0,JOUPivot!G134) -> 1048717.49
B140: =JOUPivot!A135&JOUPivot!B135 -> 10101543972 | C140: =JOUPivot!C135&" Opt "& JOUPivot!F135&IF(JOUPivot!E135=0," 2019/20 Dedelegation "," 2019/20 Funding "&VLOOKUP(JOUPivot!B135,Rates!$AU$1:$AV$4,2,0))&" to Central A/C" -> 3022055 Opt A 2019/20 Funding I03 to Central A/C | D140: =IF(JOUPivot!G135>0,0,-JOUPivot!G135) -> 0 | E140: =IF(JOUPivot!G135<0,0,JOUPivot!G135) -> 30449.55
B141: =JOUPivot!A136&JOUPivot!B136 -> 10105543970 | C141: =JOUPivot!C136&" Opt "& JOUPivot!F136&IF(JOUPivot!E136=0," 2019/20 Dedelegation "," 2019/20 Funding "&VLOOKUP(JOUPivot!B136,Rates!$AU$1:$AV$4,2,0))&" to Central A/C" -> 3022060 Opt A 2019/20 Dedelegation to Central A/C | D141: =IF(JOUPivot!G136>0,0,-JOUPivot!G136) -> 22648.31 | E141: =IF(JOUPivot!G136<0,0,JOUPivot!G136) -> 0
B142: =JOUPivot!A137&JOUPivot!B137 -> 10105543970 | C142: =JOUPivot!C137&" Opt "& JOUPivot!F137&IF(JOUPivot!E137=0," 2019/20 Dedelegation "," 2019/20 Funding "&VLOOKUP(JOUPivot!B137,Rates!$AU$1:$AV$4,2,0))&" to Central A/C" -> 3022060 Opt A 2019/20 Funding I01 to Central A/C | D142: =IF(JOUPivot!G137>0,0,-JOUPivot!G137) -> 0 | E142: =IF(JOUPivot!G137<0,0,JOUPivot!G137) -> 2034834.04
B143: =JOUPivot!A138&JOUPivot!B138 -> 10105543972 | C143: =JOUPivot!C138&" Opt "& JOUPivot!F138&IF(JOUPivot!E138=0," 2019/20 Dedelegation "," 2019/20 Funding "&VLOOKUP(JOUPivot!B138,Rates!$AU$1:$AV$4,2,0))&" to Central A/C" -> 3022060 Opt A 2019/20 Funding I03 to Central A/C | D143: =IF(JOUPivot!G138>0,0,-JOUPivot!G138) -> 0 | E143: =IF(JOUPivot!G138<0,0,JOUPivot!G138) -> 55334.15
B144: =JOUPivot!A139&JOUPivot!B139 -> 10107543970 | C144: =JOUPivot!C139&" Opt "& JOUPivot!F139&IF(JOUPivot!E139=0," 2019/20 Dedelegation "," 2019/20 Funding "&VLOOKUP(JOUPivot!B139,Rates!$AU$1:$AV$4,2,0))&" to Central A/C" -> 3023509 Opt A 2019/20 Dedelegation to Central A/C | D144: =IF(JOUPivot!G139>0,0,-JOUPivot!G139) -> 26948.58 | E144: =IF(JOUPivot!G139<0,0,JOUPivot!G139) -> 0
B145: =JOUPivot!A140&JOUPivot!B140 -> 10107543970 | C145: =JOUPivot!C140&" Opt "& JOUPivot!F140&IF(JOUPivot!E140=0," 2019/20 Dedelegation "," 2019/20 Funding "&VLOOKUP(JOUPivot!B140,Rates!$AU$1:$AV$4,2,0))&" to Central A/C" -> 3023509 Opt A 2019/20 Funding I01 to Central A/C | D145: =IF(JOUPivot!G140>0,0,-JOUPivot!G140) -> 0 | E145: =IF(JOUPivot!G140<0,0,JOUPivot!G140) -> 1946637
B146: =JOUPivot!A141&JOUPivot!B141 -> 10107543972 | C146: =JOUPivot!C141&" Opt "& JOUPivot!F141&IF(JOUPivot!E141=0," 2019/20 Dedelegation "," 2019/20 Funding "&VLOOKUP(JOUPivot!B141,Rates!$AU$1:$AV$4,2,0))&" to Central A/C" -> 3023509 Opt A 2019/20 Funding I03 to Central A/C | D146: =IF(JOUPivot!G141>0,0,-JOUPivot!G141) -> 0 | E146: =IF(JOUPivot!G141<0,0,JOUPivot!G141) -> 23174.4
B147: =JOUPivot!A142&JOUPivot!B142 -> 10108543970 | C147: =JOUPivot!C142&" Opt "& JOUPivot!F142&IF(JOUPivot!E142=0," 2019/20 Dedelegation "," 2019/20 Funding "&VLOOKUP(JOUPivot!B142,Rates!$AU$1:$AV$4,2,0))&" to Central A/C" -> 3023507 Opt A 2019/20 Dedelegation to Central A/C | D147: =IF(JOUPivot!G142>0,0,-JOUPivot!G142) -> 11037.32 | E147: =IF(JOUPivot!G142<0,0,JOUPivot!G142) -> 0
B148: =JOUPivot!A143&JOUPivot!B143 -> 10108543970 | C148: =JOUPivot!C143&" Opt "& JOUPivot!F143&IF(JOUPivot!E143=0," 2019/20 Dedelegation "," 2019/20 Funding "&VLOOKUP(JOUPivot!B143,Rates!$AU$1:$AV$4,2,0))&" to Central A/C" -> 3023507 Opt A 2019/20 Funding I01 to Central A/C | D148: =IF(JOUPivot!G143>0,0,-JOUPivot!G143) -> 0 | E148: =IF(JOUPivot!G143<0,0,JOUPivot!G143) -> 773005.21
B149: =JOUPivot!A144&JOUPivot!B144 -> 10108543972 | C149: =JOUPivot!C144&" Opt "& JOUPivot!F144&IF(JOUPivot!E144=0," 2019/20 Dedelegation "," 2019/20 Funding "&VLOOKUP(JOUPivot!B144,Rates!$AU$1:$AV$4,2,0))&" to Central A/C" -> 3023507 Opt A 2019/20 Funding I03 to Central A/C | D149: =IF(JOUPivot!G144>0,0,-JOUPivot!G144) -> 0 | E149: =IF(JOUPivot!G144<0,0,JOUPivot!G144) -> 4492.25
B150: =JOUPivot!A145&JOUPivot!B145 -> 10109543970 | C150: =JOUPivot!C145&" Opt "& JOUPivot!F145&IF(JOUPivot!E145=0," 2019/20 Dedelegation "," 2019/20 Funding "&VLOOKUP(JOUPivot!B145,Rates!$AU$1:$AV$4,2,0))&" to Central A/C" -> 3022054 Opt A 2019/20 Dedelegation to Central A/C | D150: =IF(JOUPivot!G145>0,0,-JOUPivot!G145) -> 10700.78 | E150: =IF(JOUPivot!G145<0,0,JOUPivot!G145) -> 0
B151: =JOUPivot!A146&JOUPivot!B146 -> 10109543970 | C151: =JOUPivot!C146&" Opt "& JOUPivot!F146&IF(JOUPivot!E146=0," 2019/20 Dedelegation "," 2019/20 Funding "&VLOOKUP(JOUPivot!B146,Rates!$AU$1:$AV$4,2,0))&" to Central A/C" -> 3022054 Opt A 2019/20 Funding I01 to Central A/C | D151: =IF(JOUPivot!G146>0,0,-JOUPivot!G146) -> 0 | E151: =IF(JOUPivot!G146<0,0,JOUPivot!G146) -> 760849.17
B152: =JOUPivot!A147&JOUPivot!B147 -> 10109543972 | C152: =JOUPivot!C147&" Opt "& JOUPivot!F147&IF(JOUPivot!E147=0," 2019/20 Dedelegation "," 2019/20 Funding "&VLOOKUP(JOUPivot!B147,Rates!$AU$1:$AV$4,2,0))&" to Central A/C" -> 3022054 Opt A 2019/20 Funding I03 to Central A/C | D152: =IF(JOUPivot!G147>0,0,-JOUPivot!G147) -> 0 | E152: =IF(JOUPivot!G147<0,0,JOUPivot!G147) -> 27666.65
B153: =JOUPivot!A148&JOUPivot!B148 -> 10110543970 | C153: =JOUPivot!C148&" Opt "& JOUPivot!F148&IF(JOUPivot!E148=0," 2019/20 Dedelegation "," 2019/20 Funding "&VLOOKUP(JOUPivot!B148,Rates!$AU$1:$AV$4,2,0))&" to Central A/C" -> 3023510 Opt A 2019/20 Dedelegation to Central A/C | D153: =IF(JOUPivot!G148>0,0,-JOUPivot!G148) -> 20760.68 | E153: =IF(JOUPivot!G148<0,0,JOUPivot!G148) -> 0
B154: =JOUPivot!A149&JOUPivot!B149 -> 10110543970 | C154: =JOUPivot!C149&" Opt "& JOUPivot!F149&IF(JOUPivot!E149=0," 2019/20 Dedelegation "," 2019/20 Funding "&VLOOKUP(JOUPivot!B149,Rates!$AU$1:$AV$4,2,0))&" to Central A/C" -> 3023510 Opt A 2019/20 Funding I01 to Central A/C | D154: =IF(JOUPivot!G149>0,0,-JOUPivot!G149) -> 0 | E154: =IF(JOUPivot!G149<0,0,JOUPivot!G149) -> 1337934.27
B155: =JOUPivot!A150&JOUPivot!B150 -> 10110543972 | C155: =JOUPivot!C150&" Opt "& JOUPivot!F150&IF(JOUPivot!E150=0," 2019/20 Dedelegation "," 2019/20 Funding "&VLOOKUP(JOUPivot!B150,Rates!$AU$1:$AV$4,2,0))&" to Central A/C" -> 3023510 Opt A 2019/20 Funding I03 to Central A/C | D155: =IF(JOUPivot!G150>0,0,-JOUPivot!G150) -> 0 | E155: =IF(JOUPivot!G150<0,0,JOUPivot!G150) -> 72306.95
B156: =JOUPivot!A151&JOUPivot!B151 -> 10114543970 | C156: =JOUPivot!C151&" Opt "& JOUPivot!F151&IF(JOUPivot!E151=0," 2019/20 Dedelegation "," 2019/20 Funding "&VLOOKUP(JOUPivot!B151,Rates!$AU$1:$AV$4,2,0))&" to Central A/C" -> 3023513 Opt A 2019/20 Dedelegation to Central A/C | D156: =IF(JOUPivot!G151>0,0,-JOUPivot!G151) -> 19940.27 | E156: =IF(JOUPivot!G151<0,0,JOUPivot!G151) -> 0
B157: =JOUPivot!A152&JOUPivot!B152 -> 10114543970 | C157: =JOUPivot!C152&" Opt "& JOUPivot!F152&IF(JOUPivot!E152=0," 2019/20 Dedelegation "," 2019/20 Funding "&VLOOKUP(JOUPivot!B152,Rates!$AU$1:$AV$4,2,0))&" to Central A/C" -> 3023513 Opt A 2019/20 Funding I01 to Central A/C | D157: =IF(JOUPivot!G152>0,0,-JOUPivot!G152) -> 0 | E157: =IF(JOUPivot!G152<0,0,JOUPivot!G152) -> 1494027.73
B158: =JOUPivot!A153&JOUPivot!B153 -> 10114543972 | C158: =JOUPivot!C153&" Opt "& JOUPivot!F153&IF(JOUPivot!E153=0," 2019/20 Dedelegation "," 2019/20 Funding "&VLOOKUP(JOUPivot!B153,Rates!$AU$1:$AV$4,2,0))&" to Central A/C" -> 3023513 Opt A 2019/20 Funding I03 to Central A/C | D158: =IF(JOUPivot!G153>0,0,-JOUPivot!G153) -> 0 | E158: =IF(JOUPivot!G153<0,0,JOUPivot!G153) -> 95389.02
B159: =JOUPivot!A154&JOUPivot!B154 -> 10115543970 | C159: =JOUPivot!C154&" Opt "& JOUPivot!F154&IF(JOUPivot!E154=0," 2019/20 Dedelegation "," 2019/20 Funding "&VLOOKUP(JOUPivot!B154,Rates!$AU$1:$AV$4,2,0))&" to Central A/C" -> 3023511 Opt A 2019/20 Dedelegation to Central A/C | D159: =IF(JOUPivot!G154>0,0,-JOUPivot!G154) -> 21029.58 | E159: =IF(JOUPivot!G154<0,0,JOUPivot!G154) -> 0
B160: =JOUPivot!A155&JOUPivot!B155 -> 10115543970 | C160: =JOUPivot!C155&" Opt "& JOUPivot!F155&IF(JOUPivot!E155=0," 2019/20 Dedelegation "," 2019/20 Funding "&VLOOKUP(JOUPivot!B155,Rates!$AU$1:$AV$4,2,0))&" to Central A/C" -> 3023511 Opt A 2019/20 Funding I01 to Central A/C | D160: =IF(JOUPivot!G155>0,0,-JOUPivot!G155) -> 0 | E160: =IF(JOUPivot!G155<0,0,JOUPivot!G155) -> 1720966.19
B161: =JOUPivot!A156&JOUPivot!B156 -> 10115543972 | C161: =JOUPivot!C156&" Opt "& JOUPivot!F156&IF(JOUPivot!E156=0," 2019/20 Dedelegation "," 2019/20 Funding "&VLOOKUP(JOUPivot!B156,Rates!$AU$1:$AV$4,2,0))&" to Central A/C" -> 3023511 Opt A 2019/20 Funding I03 to Central A/C | D161: =IF(JOUPivot!G156>0,0,-JOUPivot!G156) -> 0 | E161: =IF(JOUPivot!G156<0,0,JOUPivot!G156) -> 58117.05
B162: =JOUPivot!A157&JOUPivot!B157 -> 10116543970 | C162: =JOUPivot!C157&" Opt "& JOUPivot!F157&IF(JOUPivot!E157=0," 2019/20 Dedelegation "," 2019/20 Funding "&VLOOKUP(JOUPivot!B157,Rates!$AU$1:$AV$4,2,0))&" to Central A/C" -> 3023309 Opt C 2019/20 Dedelegation to Central A/C | D162: =IF(JOUPivot!G157>0,0,-JOUPivot!G157) -> 10799.43 | E162: =IF(JOUPivot!G157<0,0,JOUPivot!G157) -> 0
B163: =JOUPivot!A158&JOUPivot!B158 -> 10116543970 | C163: =JOUPivot!C158&" Opt "& JOUPivot!F158&IF(JOUPivot!E158=0," 2019/20 Dedelegation "," 2019/20 Funding "&VLOOKUP(JOUPivot!B158,Rates!$AU$1:$AV$4,2,0))&" to Central A/C" -> 3023309 Opt C 2019/20 Funding I01 to Central A/C | D163: =IF(JOUPivot!G158>0,0,-JOUPivot!G158) -> 0 | E163: =IF(JOUPivot!G158<0,0,JOUPivot!G158) -> 830272.57
B164: =JOUPivot!A159&JOUPivot!B159 -> 10116543972 | C164: =JOUPivot!C159&" Opt "& JOUPivot!F159&IF(JOUPivot!E159=0," 2019/20 Dedelegation "," 2019/20 Funding "&VLOOKUP(JOUPivot!B159,Rates!$AU$1:$AV$4,2,0))&" to Central A/C" -> 3023309 Opt C 2019/20 Funding I03 to Central A/C | D164: =IF(JOUPivot!G159>0,0,-JOUPivot!G159) -> 0 | E164: =IF(JOUPivot!G159<0,0,JOUPivot!G159) -> 6916.45
B165: =JOUPivot!A160&JOUPivot!B160 -> 10117543970 | C165: =JOUPivot!C160&" Opt "& JOUPivot!F160&IF(JOUPivot!E160=0," 2019/20 Dedelegation "," 2019/20 Funding "&VLOOKUP(JOUPivot!B160,Rates!$AU$1:$AV$4,2,0))&" to Central A/C" -> 3023514 Opt A 2019/20 Dedelegation to Central A/C | D165: =IF(JOUPivot!G160>0,0,-JOUPivot!G160) -> 11702.83 | E165: =IF(JOUPivot!G160<0,0,JOUPivot!G160) -> 0
B166: =JOUPivot!A161&JOUPivot!B161 -> 10117543970 | C166: =JOUPivot!C161&" Opt "& JOUPivot!F161&IF(JOUPivot!E161=0," 2019/20 Dedelegation "," 2019/20 Funding "&VLOOKUP(JOUPivot!B161,Rates!$AU$1:$AV$4,2,0))&" to Central A/C" -> 3023514 Opt A 2019/20 Funding I01 to Central A/C | D166: =IF(JOUPivot!G161>0,0,-JOUPivot!G161) -> 0 | E166: =IF(JOUPivot!G161<0,0,JOUPivot!G161) -> 832899.11
B167: =JOUPivot!A162&JOUPivot!B162 -> 10117543972 | C167: =JOUPivot!C162&" Opt "& JOUPivot!F162&IF(JOUPivot!E162=0," 2019/20 Dedelegation "," 2019/20 Funding "&VLOOKUP(JOUPivot!B162,Rates!$AU$1:$AV$4,2,0))&" to Central A/C" -> 3023514 Opt A 2019/20 Funding I03 to Central A/C | D167: =IF(JOUPivot!G162>0,0,-JOUPivot!G162) -> 0 | E167: =IF(JOUPivot!G162<0,0,JOUPivot!G162) -> 16258.8
B168: =JOUPivot!A163&JOUPivot!B163 -> 10118543970 | C168: =JOUPivot!C163&" Opt "& JOUPivot!F163&IF(JOUPivot!E163=0," 2019/20 Dedelegation "," 2019/20 Funding "&VLOOKUP(JOUPivot!B163,Rates!$AU$1:$AV$4,2,0))&" to Central A/C" -> 3022067 Opt A 2019/20 Dedelegation to Central A/C | D168: =IF(JOUPivot!G163>0,0,-JOUPivot!G163) -> 13010.01 | E168: =IF(JOUPivot!G163<0,0,JOUPivot!G163) -> 0
B169: =JOUPivot!A164&JOUPivot!B164 -> 10118543970 | C169: =JOUPivot!C164&" Opt "& JOUPivot!F164&IF(JOUPivot!E164=0," 2019/20 Dedelegation "," 2019/20 Funding "&VLOOKUP(JOUPivot!B164,Rates!$AU$1:$AV$4,2,0))&" to Central A/C" -> 3022067 Opt A 2019/20 Funding I01 to Central A/C | D169: =IF(JOUPivot!G164>0,0,-JOUPivot!G164) -> 0 | E169: =IF(JOUPivot!G164<0,0,JOUPivot!G164) -> 1023485.64
B170: =JOUPivot!A165&JOUPivot!B165 -> 10118543972 | C170: =JOUPivot!C165&" Opt "& JOUPivot!F165&IF(JOUPivot!E165=0," 2019/20 Dedelegation "," 2019/20 Funding "&VLOOKUP(JOUPivot!B165,Rates!$AU$1:$AV$4,2,0))&" to Central A/C" -> 3022067 Opt A 2019/20 Funding I03 to Central A/C | D170: =IF(JOUPivot!G165>0,0,-JOUPivot!G165) -> 0 | E170: =IF(JOUPivot!G165<0,0,JOUPivot!G165) -> 51883.15
B171: =JOUPivot!A166&JOUPivot!B166 -> 10119543970 | C171: =JOUPivot!C166&" Opt "& JOUPivot!F166&IF(JOUPivot!E166=0," 2019/20 Dedelegation "," 2019/20 Funding "&VLOOKUP(JOUPivot!B166,Rates!$AU$1:$AV$4,2,0))&" to Central A/C" -> 3022071 Opt C 2019/20 Dedelegation to Central A/C | D171: =IF(JOUPivot!G166>0,0,-JOUPivot!G166) -> 10948.17 | E171: =IF(JOUPivot!G166<0,0,JOUPivot!G166) -> 0
B172: =JOUPivot!A167&JOUPivot!B167 -> 10119543970 | C172: =JOUPivot!C167&" Opt "& JOUPivot!F167&IF(JOUPivot!E167=0," 2019/20 Dedelegation "," 2019/20 Funding "&VLOOKUP(JOUPivot!B167,Rates!$AU$1:$AV$4,2,0))&" to Central A/C" -> 3022071 Opt C 2019/20 Funding I01 to Central A/C | D172: =IF(JOUPivot!G167>0,0,-JOUPivot!G167) -> 0 | E172: =IF(JOUPivot!G167<0,0,JOUPivot!G167) -> 1048969.47
B173: =JOUPivot!A168&JOUPivot!B168 -> 10119543972 | C173: =JOUPivot!C168&" Opt "& JOUPivot!F168&IF(JOUPivot!E168=0," 2019/20 Dedelegation "," 2019/20 Funding "&VLOOKUP(JOUPivot!B168,Rates!$AU$1:$AV$4,2,0))&" to Central A/C" -> 3022071 Opt C 2019/20 Funding I03 to Central A/C | D173: =IF(JOUPivot!G168>0,0,-JOUPivot!G168) -> 0 | E173: =IF(JOUPivot!G168<0,0,JOUPivot!G168) -> 51199.75
B174: =JOUPivot!A169&JOUPivot!B169 -> 10121543970 | C174: =JOUPivot!C169&" Opt "& JOUPivot!F169&IF(JOUPivot!E169=0," 2019/20 Dedelegation "," 2019/20 Funding "&VLOOKUP(JOUPivot!B169,Rates!$AU$1:$AV$4,2,0))&" to Central A/C" -> 3023516 Opt A 2019/20 Dedelegation to Central A/C | D174: =IF(JOUPivot!G169>0,0,-JOUPivot!G169) -> 10769.87 | E174: =IF(JOUPivot!G169<0,0,JOUPivot!G169) -> 0
B175: =JOUPivot!A170&JOUPivot!B170 -> 10121543970 | C175: =JOUPivot!C170&" Opt "& JOUPivot!F170&IF(JOUPivot!E170=0," 2019/20 Dedelegation "," 2019/20 Funding "&VLOOKUP(JOUPivot!B170,Rates!$AU$1:$AV$4,2,0))&" to Central A/C" -> 3023516 Opt A 2019/20 Funding I01 to Central A/C | D175: =IF(JOUPivot!G170>0,0,-JOUPivot!G170) -> 0 | E175: =IF(JOUPivot!G170<0,0,JOUPivot!G170) -> 960005.64
B176: =JOUPivot!A171&JOUPivot!B171 -> 10121543972 | C176: =JOUPivot!C171&" Opt "& JOUPivot!F171&IF(JOUPivot!E171=0," 2019/20 Dedelegation "," 2019/20 Funding "&VLOOKUP(JOUPivot!B171,Rates!$AU$1:$AV$4,2,0))&" to Central A/C" -> 3023516 Opt A 2019/20 Funding I03 to Central A/C | D176: =IF(JOUPivot!G171>0,0,-JOUPivot!G171) -> 0 | E176: =IF(JOUPivot!G171<0,0,JOUPivot!G171) -> 33630.95
B177: =JOUPivot!A172&JOUPivot!B172 -> 10123543970 | C177: =JOUPivot!C172&" Opt "& JOUPivot!F172&IF(JOUPivot!E172=0," 2019/20 Dedelegation "," 2019/20 Funding "&VLOOKUP(JOUPivot!B172,Rates!$AU$1:$AV$4,2,0))&" to Central A/C" -> 3023518 Opt A 2019/20 Dedelegation to Central A/C | D177: =IF(JOUPivot!G172>0,0,-JOUPivot!G172) -> 22147.14 | E177: =IF(JOUPivot!G172<0,0,JOUPivot!G172) -> 0
B178: =JOUPivot!A173&JOUPivot!B173 -> 10123543970 | C178: =JOUPivot!C173&" Opt "& JOUPivot!F173&IF(JOUPivot!E173=0," 2019/20 Dedelegation "," 2019/20 Funding "&VLOOKUP(JOUPivot!B173,Rates!$AU$1:$AV$4,2,0))&" to Central A/C" -> 3023518 Opt A 2019/20 Funding I01 to Central A/C | D178: =IF(JOUPivot!G173>0,0,-JOUPivot!G173) -> 0 | E178: =IF(JOUPivot!G173<0,0,JOUPivot!G173) -> 1860225.43
B179: =JOUPivot!A174&JOUPivot!B174 -> 10123543972 | C179: =JOUPivot!C174&" Opt "& JOUPivot!F174&IF(JOUPivot!E174=0," 2019/20 Dedelegation "," 2019/20 Funding "&VLOOKUP(JOUPivot!B174,Rates!$AU$1:$AV$4,2,0))&" to Central A/C" -> 3023518 Opt A 2019/20 Funding I03 to Central A/C | D179: =IF(JOUPivot!G174>0,0,-JOUPivot!G174) -> 0 | E179: =IF(JOUPivot!G174<0,0,JOUPivot!G174) -> 30091.7
B180: =JOUPivot!A175&JOUPivot!B175 -> 10127543970 | C180: =JOUPivot!C175&" Opt "& JOUPivot!F175&IF(JOUPivot!E175=0," 2019/20 Dedelegation "," 2019/20 Funding "&VLOOKUP(JOUPivot!B175,Rates!$AU$1:$AV$4,2,0))&" to Central A/C" -> 3022077 Opt A 2019/20 Dedelegation to Central A/C | D180: =IF(JOUPivot!G175>0,0,-JOUPivot!G175) -> 46899.08 | E180: =IF(JOUPivot!G175<0,0,JOUPivot!G175) -> 0
B181: =JOUPivot!A176&JOUPivot!B176 -> 10127543970 | C181: =JOUPivot!C176&" Opt "& JOUPivot!F176&IF(JOUPivot!E176=0," 2019/20 Dedelegation "," 2019/20 Funding "&VLOOKUP(JOUPivot!B176,Rates!$AU$1:$AV$4,2,0))&" to Central A/C" -> 3022077 Opt A 2019/20 Funding I01 to Central A/C | D181: =IF(JOUPivot!G176>0,0,-JOUPivot!G176) -> 0 | E181: =IF(JOUPivot!G176<0,0,JOUPivot!G176) -> 4274389.08
B182: =JOUPivot!A177&JOUPivot!B177 -> 10127543972 | C182: =JOUPivot!C177&" Opt "& JOUPivot!F177&IF(JOUPivot!E177=0," 2019/20 Dedelegation "," 2019/20 Funding "&VLOOKUP(JOUPivot!B177,Rates!$AU$1:$AV$4,2,0))&" to Central A/C" -> 3022077 Opt A 2019/20 Funding I03 to Central A/C | D182: =IF(JOUPivot!G177>0,0,-JOUPivot!G177) -> 0 | E182: =IF(JOUPivot!G177<0,0,JOUPivot!G177) -> 465802.98
B183: =JOUPivot!A178&JOUPivot!B178 -> 10128543970 | C183: =JOUPivot!C178&" Opt "& JOUPivot!F178&IF(JOUPivot!E178=0," 2019/20 Dedelegation "," 2019/20 Funding "&VLOOKUP(JOUPivot!B178,Rates!$AU$1:$AV$4,2,0))&" to Central A/C" -> 3022079 Opt A 2019/20 Dedelegation to Central A/C | D183: =IF(JOUPivot!G178>0,0,-JOUPivot!G178) -> 23390.37 | E183: =IF(JOUPivot!G178<0,0,JOUPivot!G178) -> 0
B184: =JOUPivot!A179&JOUPivot!B179 -> 10128543970 | C184: =JOUPivot!C179&" Opt "& JOUPivot!F179&IF(JOUPivot!E179=0," 2019/20 Dedelegation "," 2019/20 Funding "&VLOOKUP(JOUPivot!B179,Rates!$AU$1:$AV$4,2,0))&" to Central A/C" -> 3022079 Opt A 2019/20 Funding I01 to Central A/C | D184: =IF(JOUPivot!G179>0,0,-JOUPivot!G179) -> 0 | E184: =IF(JOUPivot!G179<0,0,JOUPivot!G179) -> 1585988.87
B185: =JOUPivot!A180&JOUPivot!B180 -> 10129543970 | C185: =JOUPivot!C180&" Opt "& JOUPivot!F180&IF(JOUPivot!E180=0," 2019/20 Dedelegation "," 2019/20 Funding "&VLOOKUP(JOUPivot!B180,Rates!$AU$1:$AV$4,2,0))&" to Central A/C" -> 3022078 Opt A 2019/20 Dedelegation to Central A/C | D185: =IF(JOUPivot!G180>0,0,-JOUPivot!G180) -> 16847.16 | E185: =IF(JOUPivot!G180<0,0,JOUPivot!G180) -> 0
B186: =JOUPivot!A181&JOUPivot!B181 -> 10129543970 | C186: =JOUPivot!C181&" Opt "& JOUPivot!F181&IF(JOUPivot!E181=0," 2019/20 Dedelegation "," 2019/20 Funding "&VLOOKUP(JOUPivot!B181,Rates!$AU$1:$AV$4,2,0))&" to Central A/C" -> 3022078 Opt A 2019/20 Funding I01 to Central A/C | D186: =IF(JOUPivot!G181>0,0,-JOUPivot!G181) -> 0 | E186: =IF(JOUPivot!G181<0,0,JOUPivot!G181) -> 1153744.37
B187: =JOUPivot!A182&JOUPivot!B182 -> 10129543972 | C187: =JOUPivot!C182&" Opt "& JOUPivot!F182&IF(JOUPivot!E182=0," 2019/20 Dedelegation "," 2019/20 Funding "&VLOOKUP(JOUPivot!B182,Rates!$AU$1:$AV$4,2,0))&" to Central A/C" -> 3022078 Opt A 2019/20 Funding I03 to Central A/C | D187: =IF(JOUPivot!G182>0,0,-JOUPivot!G182) -> 0 | E187: =IF(JOUPivot!G182<0,0,JOUPivot!G182) -> 52006.45
B188: =JOUPivot!A183&JOUPivot!B183 -> 10130543970 | C188: =JOUPivot!C183&" Opt "& JOUPivot!F183&IF(JOUPivot!E183=0," 2019/20 Dedelegation "," 2019/20 Funding "&VLOOKUP(JOUPivot!B183,Rates!$AU$1:$AV$4,2,0))&" to Central A/C" -> 3021000 Opt A 2019/20 Funding I01 to Central A/C | D188: =IF(JOUPivot!G183>0,0,-JOUPivot!G183) -> 0 | E188: =IF(JOUPivot!G183<0,0,JOUPivot!G183) -> 341754.77
B189: =JOUPivot!A184&JOUPivot!B184 -> 10130543972 | C189: =JOUPivot!C184&" Opt "& JOUPivot!F184&IF(JOUPivot!E184=0," 2019/20 Dedelegation "," 2019/20 Funding "&VLOOKUP(JOUPivot!B184,Rates!$AU$1:$AV$4,2,0))&" to Central A/C" -> 3021000 Opt A 2019/20 Funding I03 to Central A/C | D189: =IF(JOUPivot!G184>0,0,-JOUPivot!G184) -> 0 | E189: =IF(JOUPivot!G184<0,0,JOUPivot!G184) -> 10222.95
B190: =JOUPivot!A185&JOUPivot!B185 -> 10131543970 | C190: =JOUPivot!C185&" Opt "& JOUPivot!F185&IF(JOUPivot!E185=0," 2019/20 Dedelegation "," 2019/20 Funding "&VLOOKUP(JOUPivot!B185,Rates!$AU$1:$AV$4,2,0))&" to Central A/C" -> 3021001 Opt A 2019/20 Funding I01 to Central A/C | D190: =IF(JOUPivot!G185>0,0,-JOUPivot!G185) -> 0 | E190: =IF(JOUPivot!G185<0,0,JOUPivot!G185) -> 255828.78
B191: =JOUPivot!A186&JOUPivot!B186 -> 10131543971 | C191: =JOUPivot!C186&" Opt "& JOUPivot!F186&IF(JOUPivot!E186=0," 2019/20 Dedelegation "," 2019/20 Funding "&VLOOKUP(JOUPivot!B186,Rates!$AU$1:$AV$4,2,0))&" to Central A/C" -> 3021001 Opt A 2019/20 Funding I02 to Central A/C | D191: =IF(JOUPivot!G186>0,0,-JOUPivot!G186) -> 0 | E191: =IF(JOUPivot!G186<0,0,JOUPivot!G186) -> 106257.13
B192: =JOUPivot!A187&JOUPivot!B187 -> 10132543970 | C192: =JOUPivot!C187&" Opt "& JOUPivot!F187&IF(JOUPivot!E187=0," 2019/20 Dedelegation "," 2019/20 Funding "&VLOOKUP(JOUPivot!B187,Rates!$AU$1:$AV$4,2,0))&" to Central A/C" -> 3021002 Opt A 2019/20 Funding I01 to Central A/C | D192: =IF(JOUPivot!G187>0,0,-JOUPivot!G187) -> 0 | E192: =IF(JOUPivot!G187<0,0,JOUPivot!G187) -> 377020.31
B193: =JOUPivot!A188&JOUPivot!B188 -> 10132543972 | C193: =JOUPivot!C188&" Opt "& JOUPivot!F188&IF(JOUPivot!E188=0," 2019/20 Dedelegation "," 2019/20 Funding "&VLOOKUP(JOUPivot!B188,Rates!$AU$1:$AV$4,2,0))&" to Central A/C" -> 3021002 Opt A 2019/20 Funding I03 to Central A/C | D193: =IF(JOUPivot!G188>0,0,-JOUPivot!G188) -> 0 | E193: =IF(JOUPivot!G188<0,0,JOUPivot!G188) -> 5111.48
B194: =JOUPivot!A189&JOUPivot!B189 -> 10133543970 | C194: =JOUPivot!C189&" Opt "& JOUPivot!F189&IF(JOUPivot!E189=0," 2019/20 Dedelegation "," 2019/20 Funding "&VLOOKUP(JOUPivot!B189,Rates!$AU$1:$AV$4,2,0))&" to Central A/C" -> 3021003 Opt A 2019/20 Funding I01 to Central A/C | D194: =IF(JOUPivot!G189>0,0,-JOUPivot!G189) -> 0 | E194: =IF(JOUPivot!G189<0,0,JOUPivot!G189) -> 236798.03
B195: =JOUPivot!A190&JOUPivot!B190 -> 10133543972 | C195: =JOUPivot!C190&" Opt "& JOUPivot!F190&IF(JOUPivot!E190=0," 2019/20 Dedelegation "," 2019/20 Funding "&VLOOKUP(JOUPivot!B190,Rates!$AU$1:$AV$4,2,0))&" to Central A/C" -> 3021003 Opt A 2019/20 Funding I03 to Central A/C | D195: =IF(JOUPivot!G190>0,0,-JOUPivot!G190) -> 0 | E195: =IF(JOUPivot!G190<0,0,JOUPivot!G190) -> 96597.39
B196: =JOUPivot!A191&JOUPivot!B191 -> 10157543970 | C196: =JOUPivot!C191&" Opt "& JOUPivot!F191&IF(JOUPivot!E191=0," 2019/20 Dedelegation "," 2019/20 Funding "&VLOOKUP(JOUPivot!B191,Rates!$AU$1:$AV$4,2,0))&" to Central A/C" -> 3027005 Opt A 2019/20 Funding I01 to Central A/C | D196: =IF(JOUPivot!G191>0,0,-JOUPivot!G191) -> 0 | E196: =IF(JOUPivot!G191<0,0,JOUPivot!G191) -> 1017508.93
B197: =JOUPivot!A192&JOUPivot!B192 -> 10157543972 | C197: =JOUPivot!C192&" Opt "& JOUPivot!F192&IF(JOUPivot!E192=0," 2019/20 Dedelegation "," 2019/20 Funding "&VLOOKUP(JOUPivot!B192,Rates!$AU$1:$AV$4,2,0))&" to Central A/C" -> 3027005 Opt A 2019/20 Funding I03 to Central A/C | D197: =IF(JOUPivot!G192>0,0,-JOUPivot!G192) -> 0 | E197: =IF(JOUPivot!G192<0,0,JOUPivot!G192) -> 1158735.35
B198: =JOUPivot!A193&JOUPivot!B193 -> 10185543970 | C198: =JOUPivot!C193&" Opt "& JOUPivot!F193&IF(JOUPivot!E193=0," 2019/20 Dedelegation "," 2019/20 Funding "&VLOOKUP(JOUPivot!B193,Rates!$AU$1:$AV$4,2,0))&" to Central A/C" -> 3021102 Opt A 2019/20 Funding I01 to Central A/C | D198: =IF(JOUPivot!G193>0,0,-JOUPivot!G193) -> 0 | E198: =IF(JOUPivot!G193<0,0,JOUPivot!G193) -> 349605.85
B199: =JOUPivot!A194&JOUPivot!B194 -> 10185543972 | C199: =JOUPivot!C194&" Opt "& JOUPivot!F194&IF(JOUPivot!E194=0," 2019/20 Dedelegation "," 2019/20 Funding "&VLOOKUP(JOUPivot!B194,Rates!$AU$1:$AV$4,2,0))&" to Central A/C" -> 3021102 Opt A 2019/20 Funding I03 to Central A/C | D199: =IF(JOUPivot!G194>0,0,-JOUPivot!G194) -> 0 | E199: =IF(JOUPivot!G194<0,0,JOUPivot!G194) -> 42216.1
B200: =JOUPivot!A195&JOUPivot!B195 -> 10188543970 | C200: =JOUPivot!C195&" Opt "& JOUPivot!F195&IF(JOUPivot!E195=0," 2019/20 Dedelegation "," 2019/20 Funding "&VLOOKUP(JOUPivot!B195,Rates!$AU$1:$AV$4,2,0))&" to Central A/C" -> 3021100 Opt A 2019/20 Funding I01 to Central A/C | D200: =IF(JOUPivot!G195>0,0,-JOUPivot!G195) -> 0 | E200: =IF(JOUPivot!G195<0,0,JOUPivot!G195) -> 1268473.7
B201: =JOUPivot!A196&JOUPivot!B196 -> 10188543972 | C201: =JOUPivot!C196&" Opt "& JOUPivot!F196&IF(JOUPivot!E196=0," 2019/20 Dedelegation "," 2019/20 Funding "&VLOOKUP(JOUPivot!B196,Rates!$AU$1:$AV$4,2,0))&" to Central A/C" -> 3021100 Opt A 2019/20 Funding I03 to Central A/C | D201: =IF(JOUPivot!G196>0,0,-JOUPivot!G196) -> 0 | E201: =IF(JOUPivot!G196<0,0,JOUPivot!G196) -> 781424.27
B202: =JOUPivot!A197&JOUPivot!B197 -> 11094543970 | C202: =JOUPivot!C197&" Opt "& JOUPivot!F197&IF(JOUPivot!E197=0," 2019/20 Dedelegation "," 2019/20 Funding "&VLOOKUP(JOUPivot!B197,Rates!$AU$1:$AV$4,2,0))&" to Central A/C" -> 3023520 Opt C 2019/20 Dedelegation to Central A/C | D202: =IF(JOUPivot!G197>0,0,-JOUPivot!G197) -> 21174.05 | E202: =IF(JOUPivot!G197<0,0,JOUPivot!G197) -> 0
... 311 more rows

Sheet Notes (hidden)
C2: =Choose!I13 -> Barnet School and Academy Funding 2019/20
C3: =Choose!J14 -> April Adjusted Funding - Version 2.0 -
F4: =Dated -> 2019-04-26
C5: =CELL("filename",A1) -> P:\Accountancy\School Funding\Cycle 11 - 2019-20\April adjustments\Gold\[April Adjusted Funding 2019-20 v2 26.4.19.xlsm]Notes
C6: =RIGHT(C5,LEN(C5)-FIND("]",C5)) -> Notes
B11: Note | C11: Description | L11: Subject
B12: 1 | C12: This system is designed to calculate the annual funding and payments for all Barnet schools and academies. It contains a number of reports that schools can download from the internet showing how their funding is calculated and how they will receive the money. | L12: SCOPE
B13: 2 | C13: It is a single EXCEL file and must not attempt to look at external files once ready for loading on the Barnet website. It does not use Macros. It can be named anything but the convention is for the name to contain the adjustment period, the financial year and the version. | L13: FILE
B14: 3 | C14: It is essentially a simple system of transactions which are then summarised into reports. The transactions are different combinations of the date of the transaction, the school, the type of funding, the data needed to calculate the amount of funding. They are all held in the TRANS worksheet and numbered sequentially in order of entry. | L14: TRANSACTIONS
B15: 4 | C15: Users simply add transactions at the bottom of the TRANS worksheet by entering, the adjustment period, (eg Original, SUMmer, EOY), today's date, their initials, the school DFE number, the type of funding, a percentage and data for calculating the funding. | L15: INPUT
B16: 5 | C16: All other columns on the TRANS sheet are calculated, either by looking up additional data from fixed worksheets (SCHOOLS, RATES, FEDERATIONS, COSTCENTRES, PAYDATA, PAYLOOKUP) or calculating from data in other columns. | L16: NON INPUT COLUMNS
B17: 6 | C17: Columns are referred to specifically in the reports and so columns must not be deleted in case they are not automatically renumbered in the reports. Columns no longer used have been headed 'Spare' and coloured grey. These can be reused but not deleted. | L17: STRUCTURE OF TRANS
B18: 7 | C18: Records of the TRANS sheet must not be changed or deleted. If changes need to be made they must be done by reversing the previous record and entering a new one. Failing to do this can result in the school not being paid the correct amount. The TRANS sheet should be protected to prevent accidental editing. | L18: EDITING
B19: 8 | C19: The full structure of the TRANS sheet is recorded in the sheet TRANSCOLS. This should be kept up to date if changes are made. The colour coding identifies different types of columns (data, lookup, calculation, concatenation, spare) | L19: TRANS COLUMNS
B20: 9 | C20: The full structure of the file is recorded in the STRUCTURE sheet. This is linked to the SHEETLIST sheet and both should be kept up to date. There is colour coding for identifying the use of each sheet - eg data, lookup, report, etc | L20: STRUCTURE OF FILE
B21: 10 | C21: There is a heirarchy of reports with the NEWS sheet and the CHOOSE sheets being the first place a school will look for information. The next level is the HOME sheet which shows all of a chosen school's funding by type of funding and for each adjustment period. It also shows the funding the school received in the previous year for comparison. | L21: REPORT HIERARCHY
B22: 11 | C22: More information about the different types of funding and how they are calculated are shown in the subreports - BudgetShare, CFR, MFG, Pupils, Sixth Form, Early Years, HighNeeds, Topups, Pupil Premium, Grants and grants. The HNRATES report lists the funding for pupils with an EHCP in mainstream schools, ARPs, PRUs and Special schools | L22: SUBREPORTS
B23: 12 | C23: The reports Payments and BankFunding provide the school with an indication of their expected annual cashflow and act as remittance advice for monthly payments issued to the school by Barnet. | L23: PAYMENTS
B24: 13 | C24: The system also records which Integra cost centre a payment should be charged to so that payment schedules can be created for uploading by the Payments team | L24: INTEGRA ACCOUNTS
B25: 14 | C25: Academies are treated in the same way as maintained schools but only shows the funding of which we at LBB are aware. If the information is received it is included on the reports but some grants such as Post 16 are not published by the DFES. | L25: ACADEMIES
B26: 15 | C26: The DFES funds academies on an academic year basis, but this system only shows funding for the financial year. For this reason, the figures for academies will not match their annual funding statement. | L26: FINANCIAL YEARS
B27: 16 | C27: Some of a school's funding varies during the year, particularly nursery and special schools where their funding is linked to the children they have on roll each term. Whilst the system is designed to provide as much information as possible at the beginning of the year, initially (in the ORIGINAL funding) most grants, SEN top ups and early years funding will be estimates. In 2019/20 five adjustment runs are planned after the Originals: April, Summer (July), Autumn (December), Spring (February) and EOY (March). | L27: ADJUSTMENT RUNS
B28: 17 | C28: If new sheets are added the system they should have a standard design. The templates for these are the sheets HEADREP and HEADDATA. These are prepopulated with the information needed for new reports (HEADREP) or data and information (HEADDATA). | L28: SHEET TEMPLATES
B29: 18 | C29: A value copy of the transaction sheet from the previous year is stored in TRANSPY. This is used to provide comparison information on some of the reports. | L29: PRIOR YEAR
B30: 19 | C30: At the beginning of the year, a proportion of the funding for CFR codes I01-I03 are retained centrally if the school is payment option A or C. This amount is journaled to the school's cost centre on Integra at the beginning of April | L30: OPTION A & C PAYROLL
B31: 20 | C31: Option A schools receive an advance of the remainder of the I01-I03 funding at the beginning of April. The amounts are calculated using the pivot table ADVPIVOT and a schedule for uploading via the Payments team is produced in the sheet ADVSCHEDULE. | L31: OPTION A APRIL ADVANCE
B32: 21 | C32: An agreed proportion of the funding for Option A and C schools is retained in their central accounts for payroll. The sheets JOUPIVOT and JOUSCHEDULE generate these journals for uploading to Integra. | L32: OPTION A APRIL TRANSFER TO CENTRAL ACCOUNT
B33: 22 | C33: All other payments by LBB to schools and academies are paid monthly. This is done using the pivot table in MONPIVOT from which the payment schedule in MONSCHEDULE is produced. | L33: MONTHLY PAYMENTS
B34: 23 | C34: Most of the raw funding data entered into the TRANS comes from a number of data sheets. The main source is the DFES APT which calculates each school's budget shares. The sheets from the APT which are transferred to the funding system are NEWISB, ADJUSTED FACTORS , APT PROFORMA, DEDELEGATION and EFUNCTIONS. The sheet ISBCOLS lists out the columns of the NEWISB and ADJUSTED FACTORS for easier reference. | L34: APT SHEETS
B35: 24 | C35: A few of the transactions are entered manually, especially for one off adjustments such as NNDRADJ, but some will be picked up from data sheets. The non-APT data sheets are shown below, although more may be added during the year. | L35: DATA SHEETS
B36: 25 | C36: Prior year data - the previous year's TRANS sheet: TRANSPY | L36: PRIOR YEAR
B37: 26 | C37: SEN places, topups and (anonymised) pupil lists - HNPLACES1920, TOPUPDATA and PUPILLIST | L37: SEN
B38: 27 | C38: Census data: OCT18CENSUS and OCT17CENSUS | L38: CENSUS
B39: 28 | C39: Early Years: EYDATA; Teachers Pay Grant: TPG Est; Growth funding: GROWTHDATA | L39: OTHER DATA
B40: 29 | C40: Most of the reports for schools are summaries of the TRANS sheet. Rather than use PIVOT tables which are difficult to format attractively, the reports are comprised of SUMIF functions. To simplify these SUMIFs there are a number of columns on the TRANS sheet which are concatenations of fields: eg CFR+FEDNUMor RUN+DFENUM+TYPE. | L40: CONCATENATED COLUMNS
B41: 30 | C41: The system is set up for schools to be grouped into federations. The Federation is given a arbitrary number like a DFE number and schools can be member schools or not federated. Member schools have a DFE number and FED number which are different but for all other schools the two are the same. For each concatenated column including the DFE number, there is a corresponding column using the FED number. Federation funding is the sum of the member schools so there are no transactions for federations themselves. | L41: FEDERATIONS

Sheet Federations (hidden)
N1: Federation Status
C2: =Choose!I13 -> Barnet School and Academy Funding 2019/20 | N2: F | O2: Federated School
C3: =Choose!J14 -> April Adjusted Funding - Version 2.0 - | N3: M | O3: Member School
F4: =Dated -> 2019-04-26 | N4: N | O4: Not Federated
C5: =CELL("filename",A1) -> P:\Accountancy\School Funding\Cycle 11 - 2019-20\April adjustments\Gold\[April Adjusted Funding 2019-20 v2 26.4.19.xlsm]Federations
C6: =RIGHT(C5,LEN(C5)-FIND("]",C5)) -> Federations
C9: NB Do not change any of these columns! Add any new columns on the end please. Do not delete any schools or change the LAEstab - add new schools at the bottom please.
A11: SFID | B11: Name | C11: Fed ID | D11: Fed Name | E11: Status | F11: Description
A12: 3020135 | B12: =VLOOKUP(A12,Schools!B:L,2,0) -> BEYA | C12: 3020135 | D12: =VLOOKUP(C12,Schools!B:C,2,0) -> BEYA | E12: =VLOOKUP(A12,Schools!B:X,23,0) -> F | F12: =VLOOKUP(E12,N:O,2,0) -> Federated School
A13: 3021000 | B13: =VLOOKUP(A13,Schools!B:L,2,0) -> Brookhill Nursery | C13: 3020135 | D13: =VLOOKUP(C13,Schools!B:C,2,0) -> BEYA | E13: =VLOOKUP(A13,Schools!B:X,23,0) -> M | F13: =VLOOKUP(E13,N:O,2,0) -> Member School
A14: 3021001 | B14: =VLOOKUP(A14,Schools!B:L,2,0) -> Hampden Way Nursery | C14: 3020135 | D14: =VLOOKUP(C14,Schools!B:C,2,0) -> BEYA | E14: =VLOOKUP(A14,Schools!B:X,23,0) -> M | F14: =VLOOKUP(E14,N:O,2,0) -> Member School
A15: 3021003 | B15: =VLOOKUP(A15,Schools!B:L,2,0) -> St Margaret's Nursery | C15: 3020135 | D15: =VLOOKUP(C15,Schools!B:C,2,0) -> BEYA | E15: =VLOOKUP(A15,Schools!B:X,23,0) -> M | F15: =VLOOKUP(E15,N:O,2,0) -> Member School

Sheet SheetList (hidden)
C2: =Choose!I13 -> Barnet School and Academy Funding 2019/20
C3: =Choose!J14 -> April Adjusted Funding - Version 2.0 -
E4: =Dated -> 2019-04-26
C5: =CELL("filename",A1) -> P:\Accountancy\School Funding\Cycle 11 - 2019-20\April adjustments\Gold\[April Adjusted Funding 2019-20 v2 26.4.19.xlsm]SheetList
C6: =RIGHT(C5,LEN(C5)-FIND("]",C5)) -> SheetList
A9: Drag down from A15 every time you add or reorganise sheets, then check that they are on the Structure sheet. If not, add the name to the appropriate section of Structure.
E10: What has happened?!
A14: Sheet | B14: Structure | C14: Number
A15: =INDEX(sheetnames,C15) -> ISBCOLS | B15: Data | C15: 1
A16: =INDEX(sheetnames,C16) -> TRANSCOLS | B16: =VLOOKUP(A16,Structure!A:B,2,0) -> Admin | C16: 2 | D16: =E16 -> Reports | E16: Reports | I16: How To Generate A List Of Sheet Names From A Workbook Without VBA
A17: Structure | B17: =VLOOKUP(A17,Structure!A:B,2,0) -> Admin | C17: 3 | D17: Admin | E17: Admin | I17: Go to the Formulas tab.
A18: JOUPivot | B18: =VLOOKUP(A18,Structure!A:B,2,0) -> PayScheds | C18: 4 | D18: Reference | E18: Reference | I18: Press the Define Name button.
A19: JouSchedule | B19: =VLOOKUP(A19,Structure!A:B,2,0) -> PayScheds | C19: 5 | D19: Lookups | E19: Lookups | I19: Enter SheetNames into the name field.
A20: Notes | B20: =VLOOKUP(A20,Structure!A:B,2,0) -> Admin | C20: 6 | D20: Data | E20: Data | I20: Enter the following formula into the Refers to field. =REPLACE(GET.WORKBOOK(1),1,FIND("]",GET.WORKBOOK(1)),"")
A21: Federations | B21: =VLOOKUP(A21,Structure!A:B,2,0) -> Lookups | C21: 7 | D21: TRANS | E21: TRANS | I21: Hit the OK button.
A22: SheetList | B22: =VLOOKUP(A22,Structure!A:B,2,0) -> Admin | C22: 8 | D22: Pivots | E22: Pivots | I22: 2016-12-07
A23: FinalDFC | B23: =VLOOKUP(A23,Structure!A:B,2,0) -> Data | C23: 9 | D23: Preparation | E23: Preparation
A24: NNDRAdj | B24: =VLOOKUP(A24,Structure!A:B,2,0) -> Data | C24: 10 | D24: PayScheds | E24: PayScheds
A25: TRANSPY | B25: =VLOOKUP(A25,Structure!A:B,2,0) -> TRANS | C25: 11
A26: Rates | B26: =VLOOKUP(A26,Structure!A:B,2,0) -> Lookups | C26: 12
A27: Paydates | B27: =VLOOKUP(A27,Structure!A:B,2,0) -> Lookups | C27: 13
A28: HNplaces1920 | B28: =VLOOKUP(A28,Structure!A:B,2,0) -> Data | C28: 14
A29: TopUpData | B29: =VLOOKUP(A29,Structure!A:B,2,0) -> Data | C29: 15
A30: Schools | B30: =VLOOKUP(A30,Structure!A:B,2,0) -> Lookups | C30: 16
A31: PayLookup | B31: =VLOOKUP(A31,Structure!A:B,2,0) -> Lookups | C31: 17
A32: PAYDATA | B32: =VLOOKUP(A32,Structure!A:B,2,0) -> Lookups | C32: 18
A33: GROWTHDATA | B33: =VLOOKUP(A33,Structure!A:B,2,0) -> Data | C33: 19
A34: MONPivotPAY | B34: =VLOOKUP(A34,Structure!A:B,2,0) -> PayScheds | C34: 20
A35: MONPivotClaim | B35: =VLOOKUP(A35,Structure!A:B,2,0) -> PayScheds | C35: 21
A36: MONSchedPay | B36: =VLOOKUP(A36,Structure!A:B,2,0) -> PayScheds | C36: 22
A37: ADVPivot | B37: =VLOOKUP(A37,Structure!A:B,2,0) -> PayScheds | C37: 23
A38: ADVSchedule | B38: =VLOOKUP(A38,Structure!A:B,2,0) -> PayScheds | C38: 24
A39: MONSchedClaim | B39: =VLOOKUP(A39,Structure!A:B,2,0) -> PayScheds | C39: 25
A40: MonPayRec | B40: =VLOOKUP(A40,Structure!A:B,2,0) -> PayScheds | C40: 26
A41: S251Analysis | B41: =VLOOKUP(A41,Structure!A:B,2,0) -> PayScheds | C41: 27
A42: CCAnalysis | B42: =VLOOKUP(A42,Structure!A:B,2,0) -> PayScheds | C42: 28
A43: S251Budget | B43: =VLOOKUP(A43,Structure!A:B,2,0) -> Data | C43: 29
A44: Costcentres | B44: =VLOOKUP(A44,Structure!A:B,2,0) -> Lookups | C44: 30
A45: Pupillist | B45: =VLOOKUP(A45,Structure!A:B,2,0) -> Data | C45: 31
A46: News | B46: =VLOOKUP(A46,Structure!A:B,2,0) -> Reports | C46: 32
A47: TRANS1.1 | B47: =VLOOKUP(A47,Structure!A:B,2,0) -> TRANS | C47: 33
A48: TRANS | B48: =VLOOKUP(A48,Structure!A:B,2,0) -> TRANS | C48: 34
A49: FinalTPG | B49: =VLOOKUP(A49,Structure!A:B,2,0) ->  | C49: 35
A50: Choose | B50: =VLOOKUP(A50,Structure!A:B,2,0) -> Reports | C50: 36
A51: TRANS1.0 | B51: =VLOOKUP(A51,Structure!A:B,2,0) -> TRANS | C51: 37
A52: CFRcomp | B52: =VLOOKUP(A52,Structure!A:B,2,0) -> Admin | C52: 38
A53: Comp | B53: =VLOOKUP(A53,Structure!A:B,2,0) -> Admin | C53: 39
A54: PayMethods | B54: =VLOOKUP(A54,Structure!A:B,2,0) -> Data | C54: 40
A55: Home | B55: =VLOOKUP(A55,Structure!A:B,2,0) -> Reports | C55: 41
A56: Payments | B56: =VLOOKUP(A56,Structure!A:B,2,0) -> Reports | C56: 42
A57: Bank Funding | B57: =VLOOKUP(A57,Structure!A:B,2,0) -> Reports | C57: 43
A58: CFR | B58: =VLOOKUP(A58,Structure!A:B,2,0) -> Reports | C58: 44
A59: BudgetShare | B59: =VLOOKUP(A59,Structure!A:B,2,0) -> Reports | C59: 45
A60: MFG | B60: =VLOOKUP(A60,Structure!A:B,2,0) -> Reports | C60: 46
A61: Post16Adj | B61: =VLOOKUP(A61,Structure!A:B,2,0) -> Data | C61: 47
A62: SixthForm | B62: =VLOOKUP(A62,Structure!A:B,2,0) -> Reports | C62: 48
A63: EarlyYears | B63: =VLOOKUP(A63,Structure!A:B,2,0) -> Reports | C63: 49
A64: APTProForma | B64: =VLOOKUP(A64,Structure!A:B,2,0) -> Data | C64: 50
A65: Dedelegation | B65: =VLOOKUP(A65,Structure!A:B,2,0) -> Data | C65: 51
A66: EFunctions | B66: =VLOOKUP(A66,Structure!A:B,2,0) -> Data | C66: 52
A67: Adjusted Factors | B67: =VLOOKUP(A67,Structure!A:B,2,0) -> Data | C67: 53
A68: NEWISB | B68: =VLOOKUP(A68,Structure!A:B,2,0) -> Data | C68: 54
A69: HighNeeds | B69: =VLOOKUP(A69,Structure!A:B,2,0) -> Reports | C69: 55
A70: TopUps | B70: =VLOOKUP(A70,Structure!A:B,2,0) -> Reports | C70: 56
A71: HNRates | B71: =VLOOKUP(A71,Structure!A:B,2,0) -> Reports | C71: 57
A72: Grants | B72: =VLOOKUP(A72,Structure!A:B,2,0) -> Reports | C72: 58
A73: PupilPremium | B73: =VLOOKUP(A73,Structure!A:B,2,0) -> Reports | C73: 59
A74: Pupils | B74: =VLOOKUP(A74,Structure!A:B,2,0) -> Reports | C74: 60
A75: Growth | B75: =VLOOKUP(A75,Structure!A:B,2,0) -> Reports | C75: 61
A76: Compare | B76: =VLOOKUP(A76,Structure!A:B,2,0) -> Reports | C76: 62
A77: EYData | B77: =VLOOKUP(A77,Structure!A:B,2,0) -> Data | C77: 63
A78: Oct17Census | B78: =VLOOKUP(A78,Structure!A:B,2,0) -> Data | C78: 64
A79: Oct18Census | B79: =VLOOKUP(A79,Structure!A:B,2,0) -> Data | C79: 65
A80: =INDEX(sheetnames,C80) -> HeadRep | B80: =VLOOKUP(A80,Structure!A:B,2,0) -> Reference | C80: 66
A81: =INDEX(sheetnames,C81) -> HeadData | B81: =VLOOKUP(A81,Structure!A:B,2,0) -> Reference | C81: 67
A82: =INDEX(sheetnames,C82) -> TPG Est | B82: =VLOOKUP(A82,Structure!A:B,2,0) -> Data | C82: 68
A83: =INDEX(sheetnames,C83) ->  | B83: =VLOOKUP(A83,Structure!A:B,2,0) ->  | C83: 69
C84: 70
C85: 71
C86: 72
C87: 73
C88: 74
C89: 75
C90: 76
C91: 77
C92: 78
C93: 79

Sheet FinalDFC (hidden)
A1: 2a. 2019-20 Maintained Local Authority (LA) & Voluntary Aided (VA) schools - DFC - School level
G2: Back to Contents Page
A3: These DFC allocations are based on the academy and voluntary aided status of eligible schools as at 1 January 2019.
B5: Per non-boarding Pupil rate 2019-20 | C5: Per boarding Pupil rate 2019-20 | D5: Lump sum per school 2019-20 | G5: DFC
A6: Nursery/Primary | B6: 11.25 | C6: 33.75 | D6: 4000 | F6: LA | G6: 80672015.74
A7: Secondary | B7: 16.875 | C7: 33.75 | D7: 4000 | F7: VA | G7: 24684167.34
A8: Post-16 | B8: 22.5 | C8: 33.75 | D8: 4000 | F8: Total | G8: 105356183.1
A9: Special/PRU | B9: 33.75 | C9: 33.75 | D9: 4000
A10: 1. The rates shown above are used for all schools except voluntary aided schools, whose lump sum and per pupil rates are 8% higher.
A11: 2. The data source for all school data and pupil numbers is the School Census (Spring 2018).
A12: 3. Pupil counts for all schools include both sole and dual main registrations.
A13: 4. Allocations are adjusted so that schools appearing on both the Schools Census and the ILR (post-16) are funded for all pupils but receive a single lump sum.
I14: =SUM(I693:I13292) -> 402962.14 | J14: =SUM(J693:J13292) -> 7949.26
A15: URN | B15: LA No. | C15: LA Name | D15: LAEstab | E15: School Name | F15: VA flag | G15: DFC | H15: Original | I15: Difference | J15: Apr | K15: Difference
A16: 100000 | B16: 201 | C16: City of London | D16: 2013614 | E16: Sir John Cass's Foundation Primary School | F16: VA | G16: 7564.05
A17: 100005 | B17: 202 | C17: Camden | D17: 2021048 | E17: Thomas Coram Centre | G17: 4729
A18: 100006 | B18: 202 | C18: Camden | D18: 2021100 | E18: CCfL Key Stage 4 PRU | G18: 5586.25
A19: 100007 | B19: 202 | C19: Camden | D19: 2021101 | E19: Camden Primary Pupil Referral Unit | G19: 4675
A20: 100008 | B20: 202 | C20: Camden | D20: 2022019 | E20: Argyle Primary School | G20: 7969
A21: 100009 | B21: 202 | C21: Camden | D21: 2022036 | E21: Beckford Primary School | G21: 8817.25
A22: 100010 | B22: 202 | C22: Camden | D22: 2022065 | E22: Brecknock Primary School | G22: 8230
A23: 100011 | B23: 202 | C23: Camden | D23: 2022078 | E23: Brookfield Primary School | G23: 8709.25
A24: 100012 | B24: 202 | C24: Camden | D24: 2022095 | E24: Carlton Primary School | G24: 7606.75
A25: 100013 | B25: 202 | C25: Camden | D25: 2022184 | E25: Edith Neville Primary School | G25: 6198.25
A26: 100014 | B26: 202 | C26: Camden | D26: 2022219 | E26: Fleet Primary School | G26: 6495.25
A27: 100015 | B27: 202 | C27: Camden | D27: 2022290 | E27: Hawley Primary School | G27: 5818
A28: 100018 | B28: 202 | C28: Camden | D28: 2022436 | E28: Netley Primary School & Centre for Autism | G28: 8756.5
A29: 100019 | B29: 202 | C29: Camden | D29: 2022438 | E29: New End Primary School | G29: 8590
A30: 100020 | B30: 202 | C30: Camden | D30: 2022475 | E30: Primrose Hill School | G30: 9076
A31: 100021 | B31: 202 | C31: Camden | D31: 2022502 | E31: Rhyl Primary School | G31: 8387.5
A32: 100022 | B32: 202 | C32: Camden | D32: 2022507 | E32: Richard Cobden Primary School | G32: 8585.5
A33: 100023 | B33: 202 | C33: Camden | D33: 2022603 | E33: Torriano Primary School | G33: 8878
A34: 100025 | B34: 202 | C34: Camden | D34: 2022775 | E34: Gospel Oak Primary School | G34: 9235.75
A35: 100026 | B35: 202 | C35: Camden | D35: 2022797 | E35: Fitzjohn's Primary School | G35: 6472.75
A36: 100027 | B36: 202 | C36: Camden | D36: 2022841 | E36: Eleanor Palmer Primary School | G36: 6625.75
A37: 100028 | B37: 202 | C37: Camden | D37: 2023323 | E37: Christ Church Primary School, Hampstead | F37: VA | G37: 6652.8
A38: 100029 | B38: 202 | C38: Camden | D38: 2023327 | E38: Christ Church School | F38: VA | G38: 6975.99
A39: 100030 | B39: 202 | C39: Camden | D39: 2023340 | E39: Emmanuel Church of England Primary School | F39: VA | G39: 7454.7
A40: 100031 | B40: 202 | C40: Camden | D40: 2023352 | E40: Hampstead Parochial Church of England Primary School | F40: VA | G40: 7102.35
A41: 100032 | B41: 202 | C41: Camden | D41: 2023359 | E41: Holy Trinity CofE Primary School, NW3 | F41: VA | G41: 6543.45
A42: 100033 | B42: 202 | C42: Camden | D42: 2023361 | E42: Holy Trinity and Saint Silas CofE Primary School, NW1 | F42: VA | G42: 6810.75
A43: 100034 | B43: 202 | C43: Camden | D43: 2023370 | E43: Kentish Town Church of England Primary School | F43: VA | G43: 7112.07
A44: 100035 | B44: 202 | C44: Camden | D44: 2023391 | E44: Rosary Roman Catholic Primary School | F44: VA | G44: 8344.08
A45: 100036 | B45: 202 | C45: Camden | D45: 2023398 | E45: St Alban's Church of England Primary School | F45: VA | G45: 6750
A46: 100037 | B46: 202 | C46: Camden | D46: 2023400 | E46: St Aloysius Catholic Primary School | F46: VA | G46: 8173.98
A47: 100039 | B47: 202 | C47: Camden | D47: 2023429 | E47: St Dominic's Catholic Primary School | F47: VA | G47: 7313.76
A48: 100040 | B48: 202 | C48: Camden | D48: 2023441 | E48: St George the Martyr Church of England Primary School | F48: VA | G48: 6963.84
A49: 100041 | B49: 202 | C49: Camden | D49: 2023482 | E49: St Josephs Catholic Primary School | F49: VA | G49: 6837.48
A50: 100042 | B50: 202 | C50: Camden | D50: 2023517 | E50: St Mary's Kilburn Church of England Primary School | F50: VA | G50: 6963.84
A51: 100043 | B51: 202 | C51: Camden | D51: 2023521 | E51: St Mary and St Pancras Church of England Primary School | F51: VA | G51: 7005.15
A52: 100044 | B52: 202 | C52: Camden | D52: 2023546 | E52: St Michael's Church of England Primary School | F52: VA | G52: 6421.95
A53: 100045 | B53: 202 | C53: Camden | D53: 2023560 | E53: St Patrick's Catholic Primary School | F53: VA | G53: 6983.28
A54: 100046 | B54: 202 | C54: Camden | D54: 2023568 | E54: St Paul's Church of England Primary School | F54: VA | G54: 6847.2
A55: 100047 | B55: 202 | C55: Camden | D55: 2023649 | E55: St Eugene de Mazenod Roman Catholic Primary School | F55: VA | G55: 6774.3
A56: 100048 | B56: 202 | C56: Camden | D56: 2023655 | E56: Our Lady Roman Catholic Primary School | F56: VA | G56: 6842.34
A57: 100049 | B57: 202 | C57: Camden | D57: 2024104 | E57: Haverstock School | G57: 22787.5
A58: 100050 | B58: 202 | C58: Camden | D58: 2024166 | E58: Parliament Hill School | G58: 24176.88
A59: 100051 | B59: 202 | C59: Camden | D59: 2024196 | E59: Regent High School | G59: 20329.38
A60: 100052 | B60: 202 | C60: Camden | D60: 2024275 | E60: Hampstead School | G60: 26370.63
A61: 100053 | B61: 202 | C61: Camden | D61: 2024285 | E61: Acland Burghley School | G61: 21150.63
A62: 100054 | B62: 202 | C62: Camden | D62: 2024611 | E62: The Camden School for Girls | F62: VA | G62: 25825.5
A63: 100055 | B63: 202 | C63: Camden | D63: 2024652 | E63: Maria Fidelis Catholic School FCJ | F63: VA | G63: 17320.5
A64: 100056 | B64: 202 | C64: Camden | D64: 2024688 | E64: William Ellis School | F64: VA | G64: 20704.28
A65: 100059 | B65: 202 | C65: Camden | D65: 2025401 | E65: La Sainte Union Catholic Secondary School | F65: VA | G65: 25412.4
A66: 100060 | B66: 202 | C66: Camden | D66: 2025950 | E66: Children's Hospital School at Gt Ormond Street and UCH | G66: 8387.5
A67: 100091 | B67: 202 | C67: Camden | D67: 2027008 | E67: Frank Barnes School for Deaf Children | G67: 5073.25
A68: 100092 | B68: 202 | C68: Camden | D68: 2027137 | E68: Camden Centre for Learning (CCfL) Special School | G68: 5080
A69: 100094 | B69: 202 | C69: Camden | D69: 2027201 | E69: Royal Free Hospital Children's School | G69: 9062.5
A70: 100096 | B70: 202 | C70: Camden | D70: 2027205 | E70: Swiss Cottage School - Development & Research Centre | G70: 12154
A71: 100097 | B71: 203 | C71: Greenwich | D71: 2031001 | E71: Rachel McMillan Nursery School and Children's Centre | G71: 5155.15
A72: 100098 | B72: 203 | C72: Greenwich | D72: 2031006 | E72: Pound Park Nursery School | G72: 5683.45
A73: 100099 | B73: 203 | C73: Greenwich | D73: 2031016 | E73: Abbey Wood Nursery School | G73: 5134
A74: 100102 | B74: 203 | C74: Greenwich | D74: 2031022 | E74: Robert Owen Nursery School | G74: 6126.25
A75: 100103 | B75: 203 | C75: Greenwich | D75: 2031101 | E75: Newhaven Pupil Referral Unit | G75: 8691.25
A76: 100113 | B76: 203 | C76: Greenwich | D76: 2032028 | E76: Bannockburn Primary School | G76: 13594
A77: 100114 | B77: 203 | C77: Greenwich | D77: 2032071 | E77: Morden Mount Primary School | G77: 8628.25
A78: 100115 | B78: 203 | C78: Greenwich | D78: 2032106 | E78: Cherry Orchard Primary School | G78: 6673
A79: 100120 | B79: 203 | C79: Greenwich | D79: 2032174 | E79: Ealdham Primary School | G79: 8947.75
A80: 100125 | B80: 203 | C80: Greenwich | D80: 2032228 | E80: Fossdene Primary School | G80: 8250.25
A81: 100126 | B81: 203 | C81: Greenwich | D81: 2032242 | E81: Gallions Mount Primary School | G81: 8455
A82: 100127 | B82: 203 | C82: Greenwich | D82: 2032258 | E82: Gordon Primary School | G82: 8943.25
A83: 100129 | B83: 203 | C83: Greenwich | D83: 2032271 | E83: Haimo Primary School | G83: 7741.75
A84: 100131 | B84: 203 | C84: Greenwich | D84: 2032299 | E84: Henwick Primary School | G84: 8756.5
A85: 100134 | B85: 203 | C85: Greenwich | D85: 2032325 | E85: Invicta Primary School | G85: 10853.5
A86: 100136 | B86: 203 | C86: Greenwich | D86: 2032353 | E86: Kidbrooke Park Primary School | G86: 8576.5
A87: 100137 | B87: 203 | C87: Greenwich | D87: 2032410 | E87: Meridian Primary School | G87: 6583
A88: 100140 | B88: 203 | C88: Greenwich | D88: 2032471 | E88: Plumcroft Primary School | G88: 12156.25
A89: 100141 | B89: 203 | C89: Greenwich | D89: 2032552 | E89: Sherington Primary School | G89: 9247
A90: 100142 | B90: 203 | C90: Greenwich | D90: 2032598 | E90: Thorntree Primary School | G90: 6502
A91: 100146 | B91: 203 | C91: Greenwich | D91: 2032662 | E91: Wyborne Primary School | G91: 8772.25
A92: 100149 | B92: 203 | C92: Greenwich | D92: 2032798 | E92: Montbelle Primary School | G92: 9013
A93: 100150 | B93: 203 | C93: Greenwich | D93: 2032801 | E93: Boxgrove Primary School | G93: 9008.5
A94: 100152 | B94: 203 | C94: Greenwich | D94: 2032813 | E94: De Lucy Primary School | G94: 10684.75
A95: 100154 | B95: 203 | C95: Greenwich | D95: 2032851 | E95: Wingfield Primary School | G95: 7726
A96: 100155 | B96: 203 | C96: Greenwich | D96: 2032877 | E96: Cardwell Primary School | G96: 9015.25
A97: 100158 | B97: 203 | C97: Greenwich | D97: 2032900 | E97: Heronsgate Primary School | G97: 13618.75
A98: 100159 | B98: 203 | C98: Greenwich | D98: 2032901 | E98: Linton Mead Primary School | G98: 8403.25
A99: 100162 | B99: 203 | C99: Greenwich | D99: 2032915 | E99: Greenslade Primary School | G99: 6594.25
A100: 100163 | B100: 203 | C100: Greenwich | D100: 2032916 | E100: Mulgrave Primary School | G100: 8837.5
A101: 100164 | B101: 203 | C101: Greenwich | D101: 2032917 | E101: Charlton Manor Primary School | G101: 8911.75
A102: 100165 | B102: 203 | C102: Greenwich | D102: 2033322 | E102: Christ Church Church of England Primary School | F102: VA | G102: 6579.9
A103: 100166 | B103: 203 | C103: Greenwich | D103: 2033331 | E103: Christ Church Church of England Primary School, Shooters Hill | F103: VA | G103: 6907.95
A104: 100167 | B104: 203 | C104: Greenwich | D104: 2033338 | E104: Eltham Church of England Primary School | F104: VA | G104: 9039.06
A105: 100168 | B105: 203 | C105: Greenwich | D105: 2033382 | E105: Our Lady of Grace Catholic Primary School | F105: VA | G105: 7600.5
A106: 100169 | B106: 203 | C106: Greenwich | D106: 2033481 | E106: St Joseph's Catholic Primary School | F106: VA | G106: 6774.3
A107: 100170 | B107: 203 | C107: Greenwich | D107: 2033500 | E107: St Margaret's Church of England Primary School | F107: VA | G107: 8203.14
A108: 100171 | B108: 203 | C108: Greenwich | D108: 2033526 | E108: Saint Mary Magdalene Church of England All Through School | F108: VA | G108: 17722.67
A109: 100173 | B109: 203 | C109: Greenwich | D109: 2033561 | E109: St Patrick's Catholic Primary School | F109: VA | G109: 8477.73
A110: 100174 | B110: 203 | C110: Greenwich | D110: 2033577 | E110: St Alfege with St Peter's Church of England Primary School | F110: VA | G110: 7163.1
A111: 100175 | B111: 203 | C111: Greenwich | D111: 2033585 | E111: St Peter's Catholic Primary School | F111: VA | G111: 6883.65
A112: 100176 | B112: 203 | C112: Greenwich | D112: 2033604 | E112: St Thomas More Catholic Primary School | F112: VA | G112: 6822.9
A113: 100177 | B113: 203 | C113: Greenwich | D113: 2033632 | E113: St Thomas A Becket Roman Catholic Primary School | F113: VA | G113: 8917.56
A114: 100178 | B114: 203 | C114: Greenwich | D114: 2033657 | E114: Holy Family Catholic Primary School | F114: VA | G114: 6776.73
A115: 100179 | B115: 203 | C115: Greenwich | D115: 2033662 | E115: Notre Dame Catholic Primary School | F115: VA | G115: 6786.45
A116: 100180 | B116: 203 | C116: Greenwich | D116: 2033666 | E116: St Margaret Clitherow Catholic Primary School | F116: VA | G116: 6895.8
A117: 100181 | B117: 203 | C117: Greenwich | D117: 2033668 | E117: Bishop John Robinson Church of England Primary School | F117: VA | G117: 6980.85
A118: 100182 | B118: 203 | C118: Greenwich | D118: 2034077 | E118: Eltham Hill School | G118: 24115
A119: 100183 | B119: 203 | C119: Greenwich | D119: 2034130 | E119: Plumstead Manor School | G119: 29042.5
A120: 100190 | B120: 203 | C120: Greenwich | D120: 2034294 | E120: Thomas Tallis School | G120: 39100
A121: 100192 | B121: 203 | C121: Greenwich | D121: 2034508 | E121: The John Roan School | G121: 25628.13
A122: 100193 | B122: 203 | C122: Greenwich | D122: 2034682 | E122: St Ursula's Convent School | F122: VA | G122: 15783.53
A123: 100197 | B123: 203 | C123: Greenwich | D123: 2035200 | E123: Hawksmoor School | G123: 11384.5
A124: 100204 | B124: 203 | C124: Greenwich | D124: 2037118 | E124: King's Oak School | G124: 5248.75
A125: 100212 | B125: 204 | C125: Hackney | D125: 2041008 | E125: Wentworth Nursery School and Children's Centre | G125: 4835.2
A126: 100213 | B126: 204 | C126: Hackney | D126: 2041051 | E126: Comet Nursery School and Children's Centre | G126: 4870.75
A127: 100218 | B127: 204 | C127: Hackney | D127: 2042048 | E127: Berger Primary School | G127: 9069.25
A128: 100221 | B128: 204 | C128: Hackney | D128: 2042120 | E128: Colvestone Primary School | G128: 6304
A129: 100223 | B129: 204 | C129: Hackney | D129: 2042150 | E129: Daubeney Primary School | G129: 10956.55
A130: 100224 | B130: 204 | C130: Hackney | D130: 2042155 | E130: De Beauvoir Primary School | G130: 7336.75
A131: 100225 | B131: 204 | C131: Hackney | D131: 2042238 | E131: Gainsborough Primary School | G131: 8054.05
A132: 100229 | B132: 204 | C132: Hackney | D132: 2042376 | E132: Lauriston School | G132: 9071.5
A133: 100230 | B133: 204 | C133: Hackney | D133: 2042388 | E133: London Fields Primary School | G133: 9125.5
A134: 100231 | B134: 204 | C134: Hackney | D134: 2042421 | E134: Millfields Community School | G134: 11449.75
A135: 100232 | B135: 204 | C135: Hackney | D135: 2042431 | E135: Morningside Primary School | G135: 9170.5
A136: 100234 | B136: 204 | C136: Hackney | D136: 2042450 | E136: Orchard Primary School | G136: 10666.75
A137: 100235 | B137: 204 | C137: Hackney | D137: 2042487 | E137: Queensbridge Primary School | G137: 9663.25
A138: 100236 | B138: 204 | C138: Hackney | D138: 2042489 | E138: Randal Cremer Primary School | G138: 8131
A139: 100239 | B139: 204 | C139: Hackney | D139: 2042532 | E139: Princess May Primary School | G139: 8245.75
A140: 100240 | B140: 204 | C140: Hackney | D140: 2042539 | E140: Sebright School | G140: 8709.25
A141: 100241 | B141: 204 | C141: Hackney | D141: 2042545 | E141: Shacklewell Primary School | G141: 9105.25
A142: 100242 | B142: 204 | C142: Hackney | D142: 2042564 | E142: Southwold Primary School | G142: 8342.5
A143: 100243 | B143: 204 | C143: Hackney | D143: 2042592 | E143: Thomas Fairchild Community School | G143: 8412.25
A144: 100244 | B144: 204 | C144: Hackney | D144: 2042615 | E144: Tyssen Community Primary School | G144: 8709.25
A145: 100245 | B145: 204 | C145: Hackney | D145: 2042636 | E145: Shoreditch Park Primary School | G145: 8497.75
A146: 100248 | B146: 204 | C146: Hackney | D146: 2042654 | E146: Woodberry Down Community Primary School | G146: 10774.75
A147: 100250 | B147: 204 | C147: Hackney | D147: 2042779 | E147: Kingsmead Primary School | G147: 6628
A148: 100251 | B148: 204 | C148: Hackney | D148: 2042795 | E148: Sir Thomas Abney School | G148: 8407.75
A149: 100252 | B149: 204 | C149: Hackney | D149: 2042856 | E149: Grasmere Primary School | G149: 6520
A150: 100253 | B150: 204 | C150: Hackney | D150: 2042859 | E150: Jubilee Primary School | G150: 8945.5
A151: 100254 | B151: 204 | C151: Hackney | D151: 2042860 | E151: Nightingale Primary School | G151: 6556
A152: 100255 | B152: 204 | C152: Hackney | D152: 2042861 | E152: Baden-Powell School | G152: 6497.5
A153: 100256 | B153: 204 | C153: Hackney | D153: 2042862 | E153: Harrington Hill Primary School | G153: 8331.25
A154: 100257 | B154: 204 | C154: Hackney | D154: 2042863 | E154: Holmleigh Primary School | G154: 6418.75
A155: 100258 | B155: 204 | C155: Hackney | D155: 2042864 | E155: Grazebrook Primary School | G155: 9123.25
A156: 100259 | B156: 204 | C156: Hackney | D156: 2042865 | E156: Parkwood Primary School | G156: 6562.75
A157: 100260 | B157: 204 | C157: Hackney | D157: 2042872 | E157: Benthal Primary School | G157: 8421.25
A158: 100261 | B158: 204 | C158: Hackney | D158: 2042896 | E158: Mandeville Primary School | G158: 8054.5
A159: 100263 | B159: 204 | C159: Hackney | D159: 2043358 | E159: Holy Trinity Church of England Primary School | F159: VA | G159: 7410.96
A160: 100264 | B160: 204 | C160: Hackney | D160: 2043371 | E160: Our Lady and St Joseph Catholic Primary School | F160: VA | G160: 7053.75
A161: 100266 | B161: 204 | C161: Hackney | D161: 2043458 | E161: St John the Baptist Voluntary Aided Church of England Primary School | F161: VA | G161: 8271.18
A162: 100267 | B162: 204 | C162: Hackney | D162: 2043543 | E162: St Matthias Church of England Primary School | F162: VA | G162: 7449.84
A163: 100268 | B163: 204 | C163: Hackney | D163: 2043553 | E163: St Monica's Roman Catholic Primary School | F163: VA | G163: 7090.2
A164: 100269 | B164: 204 | C164: Hackney | D164: 2043572 | E164: St. Paul's With St. Michael's CofE Primary School | F164: VA | G164: 6915.24
A165: 100270 | B165: 204 | C165: Hackney | D165: 2043616 | E165: St John of Jerusalem Church of England Primary School | F165: VA | G165: 6735.42
A166: 100271 | B166: 204 | C166: Hackney | D166: 2043618 | E166: St Mary's Church of England Primary School, Stoke Newington | F166: VA | G166: 6932.25
A167: 100274 | B167: 204 | C167: Hackney | D167: 2043659 | E167: St Scholastica's Catholic Primary School | F167: VA | G167: 6990.57
A168: 100275 | B168: 204 | C168: Hackney | D168: 2043663 | E168: Simon Marks Jewish Primary School | F168: VA | G168: 5787.72
A169: 100277 | B169: 204 | C169: Hackney | D169: 2044283 | E169: Haggerston School | G169: 19024.38
A170: 100279 | B170: 204 | C170: Hackney | D170: 2044310 | E170: Stoke Newington School and Sixth Form | G170: 33660.63
A171: 100282 | B171: 204 | C171: Hackney | D171: 2044641 | E171: Our Lady's Catholic High School | F171: VA | G171: 18158.85
A172: 100284 | B172: 204 | C172: Hackney | D172: 2044697 | E172: The Urswick School - A Church of England Secondary School | F172: VA | G172: 20157.53
A173: 100285 | B173: 204 | C173: Hackney | D173: 2044714 | E173: Cardinal Pole Catholic School | F173: VA | G173: 23808.6
A174: 100307 | B174: 204 | C174: Hackney | D174: 2047097 | E174: Stormont House School | G174: 8387.5
A175: 100311 | B175: 204 | C175: Hackney | D175: 2047161 | E175: The Garden School | G175: 8590
A176: 100312 | B176: 204 | C176: Hackney | D176: 2047171 | E176: Ickburgh School | G176: 7591
A177: 100315 | B177: 205 | C177: Hammersmith and Fulham | D177: 2051034 | E177: Randolph Beresford Early Years Centre | G177: 4823.5
A178: 100316 | B178: 205 | C178: Hammersmith and Fulham | D178: 2051039 | E178: Vanessa Nursery School | G178: 4747
A179: 100317 | B179: 205 | C179: Hammersmith and Fulham | D179: 2051056 | E179: James Lee Nursery School | G179: 4445.5
A180: 100318 | B180: 205 | C180: Hammersmith and Fulham | D180: 2051059 | E180: Bayonne Nursery School | G180: 4580.5
A181: 100321 | B181: 205 | C181: Hammersmith and Fulham | D181: 2052002 | E181: Addison Primary School | G181: 7861
A182: 100322 | B182: 205 | C182: Hammersmith and Fulham | D182: 2052026 | E182: Avonmore Primary School | G182: 6277
A183: 100324 | B183: 205 | C183: Hammersmith and Fulham | D183: 2052061 | E183: Brackenbury Primary School | G183: 8916.25
A184: 100326 | B184: 205 | C184: Hammersmith and Fulham | D184: 2052134 | E184: Miles Coverdale Primary School | G184: 6616.75
A185: 100328 | B185: 205 | C185: Hammersmith and Fulham | D185: 2052223 | E185: Flora Gardens Primary School | G185: 6175.75
A186: 100331 | B186: 205 | C186: Hammersmith and Fulham | D186: 2052350 | E186: Kenmont Primary School | G186: 6279.25
A187: 100334 | B187: 205 | C187: Hammersmith and Fulham | D187: 2052408 | E187: Melcombe Primary School | G187: 8180.5
A188: 100335 | B188: 205 | C188: Hammersmith and Fulham | D188: 2052444 | E188: Old Oak Primary School | G188: 7856.5
A189: 100338 | B189: 205 | C189: Hammersmith and Fulham | D189: 2052555 | E189: Sir John Lillie Primary School | G189: 7591
A190: 100340 | B190: 205 | C190: Hammersmith and Fulham | D190: 2052632 | E190: Wendell Park Primary School | G190: 8560.75
A191: 100341 | B191: 205 | C191: Hammersmith and Fulham | D191: 2052660 | E191: Wormholt Park Primary School | G191: 8941
A192: 100344 | B192: 205 | C192: Hammersmith and Fulham | D192: 2053300 | E192: All Saints CofE Primary School | F192: VA | G192: 7051.32
A193: 100345 | B193: 205 | C193: Hammersmith and Fulham | D193: 2053354 | E193: Holy Cross RC School | F193: VA | G193: 11359.71
A194: 100346 | B194: 205 | C194: Hammersmith and Fulham | D194: 2053368 | E194: John Betts Primary School | F194: VA | G194: 7187.4
A195: 100347 | B195: 205 | C195: Hammersmith and Fulham | D195: 2053378 | E195: St Augustine's RC Primary School | F195: VA | G195: 6871.5
A196: 100349 | B196: 205 | C196: Hammersmith and Fulham | D196: 2053463 | E196: St Johns Walham Green Church of England Primary School | F196: VA | G196: 8871.39
A197: 100350 | B197: 205 | C197: Hammersmith and Fulham | D197: 2053529 | E197: St Mary's Catholic Primary School | F197: VA | G197: 6920.1
A198: 100351 | B198: 205 | C198: Hammersmith and Fulham | D198: 2053566 | E198: St Paul's CofE Primary School | F198: VA | G198: 6985.71
A199: 100352 | B199: 205 | C199: Hammersmith and Fulham | D199: 2053578 | E199: St Peter's Primary School | F199: VA | G199: 6810.75
A200: 100353 | B200: 205 | C200: Hammersmith and Fulham | D200: 2053600 | E200: St Stephen's CofE Primary School | F200: VA | G200: 8888.4
A201: 100354 | B201: 205 | C201: Hammersmith and Fulham | D201: 2053602 | E201: Good Shepherd RC Primary School | F201: VA | G201: 7253.01
... 13101 more rows

Sheet NNDRAdj (hidden)
A1: NNDR Adjustments made in 2019/20
C2: TRANSPY | G2: TRANS1.1
E3: NNDRPY | I3: NNDRADJ
A4: DFENum | B4: School | C4: 18/19 funding | D4: 18/19 Actual | E4: Adjustment | F4: RUN | G4: 19/20 funding | H4: 19/20 Actual | I4: Adjustment | J4: RUN
A5: 3023520 | B5: Akiva School | C5: =SUMIF(TRANSPY!AF:AF,NNDRAdj!A5&"NNDR",TRANSPY!$S:$S) -> 11676.6 | E5: =IF(D5="",0,D5-C5) -> 0 | G5: =SUMIF(TRANS1.1!AF:AF,NNDRAdj!A5&"NNDR",TRANS1.1!$S:$S) -> 11937.13266 | I5: =IF(H5="",0,H5-G5) -> 0
A6: 3023300 | B6: All Saints' CE Primary School NW2 | C6: =SUMIF(TRANSPY!AF:AF,NNDRAdj!A6&"NNDR",TRANSPY!$S:$S) -> 2843.02 | E6: =IF(D6="",0,D6-C6) -> 0 | G6: =SUMIF(TRANS1.1!AF:AF,NNDRAdj!A6&"NNDR",TRANS1.1!$S:$S) -> 2906.454523 | I6: =IF(H6="",0,H6-G6) -> 0
A7: 3023317 | B7: All Saints' CE Primary School, N20 | C7: =SUMIF(TRANSPY!AF:AF,NNDRAdj!A7&"NNDR",TRANSPY!$S:$S) -> 3209.3 | E7: 0 | G7: =SUMIF(TRANS1.1!AF:AF,NNDRAdj!A7&"NNDR",TRANS1.1!$S:$S) -> 3280.907099 | I7: 0
A8: 3022020 | B8: Alma Primary | C8: =SUMIF(TRANSPY!AF:AF,NNDRAdj!A8&"NNDR",TRANSPY!$S:$S) -> 1074.74 | E8: 0 | G8: =SUMIF(TRANS1.1!AF:AF,NNDRAdj!A8&"NNDR",TRANS1.1!$S:$S) -> 1098.72 | I8: 0
A9: 3023500 | B9: Annunciation Catholic Infant School | C9: =SUMIF(TRANSPY!AF:AF,NNDRAdj!A9&"NNDR",TRANSPY!$S:$S) -> 2135.86 | E9: 0 | G9: =SUMIF(TRANS1.1!AF:AF,NNDRAdj!A9&"NNDR",TRANS1.1!$S:$S) -> 806.4 | I9: 0
A10: 3023514 | B10: Annunciation Catholic Junior School | C10: =SUMIF(TRANSPY!AF:AF,NNDRAdj!A10&"NNDR",TRANSPY!$S:$S) -> 3836.86 | E10: 0 | G10: =SUMIF(TRANS1.1!AF:AF,NNDRAdj!A10&"NNDR",TRANS1.1!$S:$S) -> 1612.8 | I10: 0
A11: 3022050 | B11: Ashmole Primary School | C11: =SUMIF(TRANSPY!AF:AF,NNDRAdj!A11&"NNDR",TRANSPY!$S:$S) -> 0 | E11: 0 | G11: =SUMIF(TRANS1.1!AF:AF,NNDRAdj!A11&"NNDR",TRANS1.1!$S:$S) -> 69552 | I11: 0
A12: 3022002 | B12: Barnfield School | C12: =SUMIF(TRANSPY!AF:AF,NNDRAdj!A12&"NNDR",TRANSPY!$S:$S) -> 29826.5 | E12: 0 | G12: =SUMIF(TRANS1.1!AF:AF,NNDRAdj!A12&"NNDR",TRANS1.1!$S:$S) -> 30492 | I12: 0
A13: 3022079 | B13: Beis Yaakov | C13: =SUMIF(TRANSPY!AF:AF,NNDRAdj!A13&"NNDR",TRANSPY!$S:$S) -> 27702 | E13: 0 | G13: =SUMIF(TRANS1.1!AF:AF,NNDRAdj!A13&"NNDR",TRANS1.1!$S:$S) -> 28320.09736 | I13: 0
A14: 3023524 | B14: Beit Shvidler Primary School | C14: =SUMIF(TRANSPY!AF:AF,NNDRAdj!A14&"NNDR",TRANSPY!$S:$S) -> 7235.5 | E14: 0 | G14: =SUMIF(TRANS1.1!AF:AF,NNDRAdj!A14&"NNDR",TRANS1.1!$S:$S) -> 7396.941176 | I14: 0
A15: 3022003 | B15: Bell Lane Primary School | C15: =SUMIF(TRANSPY!AF:AF,NNDRAdj!A15&"NNDR",TRANSPY!$S:$S) -> 20271 | E15: 0 | G15: =SUMIF(TRANS1.1!AF:AF,NNDRAdj!A15&"NNDR",TRANS1.1!$S:$S) -> 20723.29412 | I15: 0
A16: 3023511 | B16: Blessed Dominic School | C16: =SUMIF(TRANSPY!AF:AF,NNDRAdj!A16&"NNDR",TRANSPY!$S:$S) -> 2826.06 | E16: 0 | G16: =SUMIF(TRANS1.1!AF:AF,NNDRAdj!A16&"NNDR",TRANS1.1!$S:$S) -> 2889.116105 | I16: 0
A17: 3023519 | B17: Broadfields Primary School | C17: =SUMIF(TRANSPY!AF:AF,NNDRAdj!A17&"NNDR",TRANSPY!$S:$S) -> 17664.6 | E17: 0 | G17: =SUMIF(TRANS1.1!AF:AF,NNDRAdj!A17&"NNDR",TRANS1.1!$S:$S) -> 27856.56 | I17: 0
A18: 3022008 | B18: Brookland Infant & Nursery School | C18: =SUMIF(TRANSPY!AF:AF,NNDRAdj!A18&"NNDR",TRANSPY!$S:$S) -> 19365.75 | E18: 0 | G18: =SUMIF(TRANS1.1!AF:AF,NNDRAdj!A18&"NNDR",TRANS1.1!$S:$S) -> 17982.21907 | I18: 0
A19: 3022007 | B19: Brookland Junior School | C19: =SUMIF(TRANSPY!AF:AF,NNDRAdj!A19&"NNDR",TRANSPY!$S:$S) -> 19365.75 | E19: 0 | G19: =SUMIF(TRANS1.1!AF:AF,NNDRAdj!A19&"NNDR",TRANS1.1!$S:$S) -> 17982.21907 | I19: 0
A20: 3022009 | B20: Brunswick Park Primary & Nursery School | C20: =SUMIF(TRANSPY!AF:AF,NNDRAdj!A20&"NNDR",TRANSPY!$S:$S) -> 38475 | E20: 0 | G20: =SUMIF(TRANS1.1!AF:AF,NNDRAdj!A20&"NNDR",TRANS1.1!$S:$S) -> 39333.46856 | I20: 0
A21: 3022067 | B21: Chalgrove Primary School | C21: =SUMIF(TRANSPY!AF:AF,NNDRAdj!A21&"NNDR",TRANSPY!$S:$S) -> 23226.85 | E21: 0 | G21: =SUMIF(TRANS1.1!AF:AF,NNDRAdj!A21&"NNDR",TRANS1.1!$S:$S) -> 23745.09615 | I21: 0
A22: 3022010 | B22: Child's Hill School | C22: =SUMIF(TRANSPY!AF:AF,NNDRAdj!A22&"NNDR",TRANSPY!$S:$S) -> 26010.75 | E22: 0 | G22: =SUMIF(TRANS1.1!AF:AF,NNDRAdj!A22&"NNDR",TRANS1.1!$S:$S) -> 28618.72503 | I22: 0
A23: 3023302 | B23: Christ Church CE Primary School | C23: =SUMIF(TRANSPY!AF:AF,NNDRAdj!A23&"NNDR",TRANSPY!$S:$S) -> 3375.08 | E23: 0 | G23: =SUMIF(TRANS1.1!AF:AF,NNDRAdj!A23&"NNDR",TRANS1.1!$S:$S) -> 3450.386045 | I23: 0
A24: 3022011 | B24: Church Hill Primary School | C24: =SUMIF(TRANSPY!AF:AF,NNDRAdj!A24&"NNDR",TRANSPY!$S:$S) -> 19996.78 | E24: 0 | G24: =SUMIF(TRANS1.1!AF:AF,NNDRAdj!A24&"NNDR",TRANS1.1!$S:$S) -> 20442.95562 | I24: 0
A25: 3023522 | B25: Claremont Academy | C25: =SUMIF(TRANSPY!AF:AF,NNDRAdj!A25&"NNDR",TRANSPY!$S:$S) -> 4468.07 | E25: 0 | G25: =SUMIF(TRANS1.1!AF:AF,NNDRAdj!A25&"NNDR",TRANS1.1!$S:$S) -> 6278.03 | I25: 0
A26: 3022014 | B26: Colindale School | C26: =SUMIF(TRANSPY!AF:AF,NNDRAdj!A26&"NNDR",TRANSPY!$S:$S) -> 122823.58 | E26: 0 | G26: =SUMIF(TRANS1.1!AF:AF,NNDRAdj!A26&"NNDR",TRANS1.1!$S:$S) -> 104328 | I26: 0
A27: 3022015 | B27: Coppetts Wood | C27: =SUMIF(TRANSPY!AF:AF,NNDRAdj!A27&"NNDR",TRANSPY!$S:$S) -> 32333.62 | E27: 0 | G27: =SUMIF(TRANS1.1!AF:AF,NNDRAdj!A27&"NNDR",TRANS1.1!$S:$S) -> 33055.0598 | H27: 33541.71 | I27: 486.6502028 | J27: APR
A28: 3022016 | B28: Courtland School | C28: =SUMIF(TRANSPY!AF:AF,NNDRAdj!A28&"NNDR",TRANSPY!$S:$S) -> 20040 | E28: 0 | G28: =SUMIF(TRANS1.1!AF:AF,NNDRAdj!A28&"NNDR",TRANS1.1!$S:$S) -> 20487.13996 | I28: 0
A29: 3022017 | B29: Cromer Road Primary School | C29: =SUMIF(TRANSPY!AF:AF,NNDRAdj!A29&"NNDR",TRANSPY!$S:$S) -> 22080 | E29: 0 | G29: =SUMIF(TRANS1.1!AF:AF,NNDRAdj!A29&"NNDR",TRANS1.1!$S:$S) -> 22572.6572 | I29: 0
A30: 3022073 | B30: Danegrove JMI School | C30: =SUMIF(TRANSPY!AF:AF,NNDRAdj!A30&"NNDR",TRANSPY!$S:$S) -> 52142.6 | E30: 0 | G30: =SUMIF(TRANS1.1!AF:AF,NNDRAdj!A30&"NNDR",TRANS1.1!$S:$S) -> 51912 | I30: 0
A31: 3022019 | B31: Deansbrook Infant School | C31: =SUMIF(TRANSPY!AF:AF,NNDRAdj!A31&"NNDR",TRANSPY!$S:$S) -> 16426.5 | E31: 0 | G31: =SUMIF(TRANS1.1!AF:AF,NNDRAdj!A31&"NNDR",TRANS1.1!$S:$S) -> 16793.0142 | I31: 0
A32: 3022018 | B32: Deansbrook Junior School | C32: =SUMIF(TRANSPY!AF:AF,NNDRAdj!A32&"NNDR",TRANSPY!$S:$S) -> 937.44 | E32: 0 | G32: =SUMIF(TRANS1.1!AF:AF,NNDRAdj!A32&"NNDR",TRANS1.1!$S:$S) -> 10598.76 | I32: 0
A33: 3022021 | B33: Dollis Primary School | C33: =SUMIF(TRANSPY!AF:AF,NNDRAdj!A33&"NNDR",TRANSPY!$S:$S) -> 27875.81 | E33: 0 | G33: =SUMIF(TRANS1.1!AF:AF,NNDRAdj!A33&"NNDR",TRANS1.1!$S:$S) -> 28691.66 | H33: 5443.2 | I33: -23248.46 | J33: Awaiting Dollis Infants Bill and revised undiscounted bill for Dollis Juniors.
A34: 3022023 | B34: Edgware Primary School | C34: =SUMIF(TRANSPY!AF:AF,NNDRAdj!A34&"NNDR",TRANSPY!$S:$S) -> 20410.58 | E34: 0 | G34: =SUMIF(TRANS1.1!AF:AF,NNDRAdj!A34&"NNDR",TRANS1.1!$S:$S) -> 20865.98848 | I34: 0
A35: 3022001 | B35: Etz Chaim Jewish Primary School | C35: =SUMIF(TRANSPY!AF:AF,NNDRAdj!A35&"NNDR",TRANSPY!$S:$S) -> 17864.2 | E35: 0 | G35: =SUMIF(TRANS1.1!AF:AF,NNDRAdj!A35&"NNDR",TRANS1.1!$S:$S) -> 18866.6 | I35: 0
A36: 3022024 | B36: Fairway Primary School | C36: =SUMIF(TRANSPY!AF:AF,NNDRAdj!A36&"NNDR",TRANSPY!$S:$S) -> 45908 | E36: 0 | G36: =SUMIF(TRANS1.1!AF:AF,NNDRAdj!A36&"NNDR",TRANS1.1!$S:$S) -> 43092 | I36: 0
A37: 3022025 | B37: Foulds | C37: =SUMIF(TRANSPY!AF:AF,NNDRAdj!A37&"NNDR",TRANSPY!$S:$S) -> 23187.53 | D37: 24240 | E37: 1052.47 | G37: =SUMIF(TRANS1.1!AF:AF,NNDRAdj!A37&"NNDR",TRANS1.1!$S:$S) -> 23704.89882 | H37: 24795 | I37: 1090.101176
A38: 3022026 | B38: Frith Manor School | C38: =SUMIF(TRANSPY!AF:AF,NNDRAdj!A38&"NNDR",TRANSPY!$S:$S) -> 40014 | E38: 0 | G38: =SUMIF(TRANS1.1!AF:AF,NNDRAdj!A38&"NNDR",TRANS1.1!$S:$S) -> 36288 | I38: 0
A39: 3022028 | B39: Garden Suburb Infant School | C39: =SUMIF(TRANSPY!AF:AF,NNDRAdj!A39&"NNDR",TRANSPY!$S:$S) -> 20135.25 | E39: 0 | G39: =SUMIF(TRANS1.1!AF:AF,NNDRAdj!A39&"NNDR",TRANS1.1!$S:$S) -> 18396 | I39: 0
A40: 3022027 | B40: Garden Suburb Junior | C40: =SUMIF(TRANSPY!AF:AF,NNDRAdj!A40&"NNDR",TRANSPY!$S:$S) -> 20135.25 | E40: 0 | G40: =SUMIF(TRANS1.1!AF:AF,NNDRAdj!A40&"NNDR",TRANS1.1!$S:$S) -> 18396 | I40: 0
A41: 3022029 | B41: Goldbeaters Primary School | C41: =SUMIF(TRANSPY!AF:AF,NNDRAdj!A41&"NNDR",TRANSPY!$S:$S) -> 25143 | E41: 0 | G41: =SUMIF(TRANS1.1!AF:AF,NNDRAdj!A41&"NNDR",TRANS1.1!$S:$S) -> 22302 | I41: 0
A42: 3022030 | B42: Grasvenor Avenue Infants | C42: =SUMIF(TRANSPY!AF:AF,NNDRAdj!A42&"NNDR",TRANSPY!$S:$S) -> 1228.72 | E42: 0 | G42: =SUMIF(TRANS1.1!AF:AF,NNDRAdj!A42&"NNDR",TRANS1.1!$S:$S) -> 1478.9 | I42: 0
A43: 3023516 | B43: Hasmonean Primary School | C43: =SUMIF(TRANSPY!AF:AF,NNDRAdj!A43&"NNDR",TRANSPY!$S:$S) -> 16005.6 | E43: 0 | G43: =SUMIF(TRANS1.1!AF:AF,NNDRAdj!A43&"NNDR",TRANS1.1!$S:$S) -> 16362.72292 | I43: 0
A44: 3022031 | B44: Hollickwood JMI School | C44: =SUMIF(TRANSPY!AF:AF,NNDRAdj!A44&"NNDR",TRANSPY!$S:$S) -> 3372.92 | E44: 0 | G44: =SUMIF(TRANS1.1!AF:AF,NNDRAdj!A44&"NNDR",TRANS1.1!$S:$S) -> 3448.17785 | I44: 0
A45: 3022032 | B45: Holly Park School | C45: =SUMIF(TRANSPY!AF:AF,NNDRAdj!A45&"NNDR",TRANSPY!$S:$S) -> 22620.41 | E45: 0 | G45: =SUMIF(TRANS1.1!AF:AF,NNDRAdj!A45&"NNDR",TRANS1.1!$S:$S) -> 23125.12503 | I45: 0
A46: 3023304 | B46: Holy Trinity School | C46: =SUMIF(TRANSPY!AF:AF,NNDRAdj!A46&"NNDR",TRANSPY!$S:$S) -> 3032.48 | E46: 0 | G46: =SUMIF(TRANS1.1!AF:AF,NNDRAdj!A46&"NNDR",TRANS1.1!$S:$S) -> 3167.450872 | I46: 0
A47: 3022047 | B47: Hyde School | C47: =SUMIF(TRANSPY!AF:AF,NNDRAdj!A47&"NNDR",TRANSPY!$S:$S) -> 5518.11 | E47: 0 | G47: =SUMIF(TRANS1.1!AF:AF,NNDRAdj!A47&"NNDR",TRANS1.1!$S:$S) -> 6511.09 | I47: 0
A48: 3023515 | B48: Independent Jewish Day School | C48: =SUMIF(TRANSPY!AF:AF,NNDRAdj!A48&"NNDR",TRANSPY!$S:$S) -> 0 | E48: 0 | G48: =SUMIF(TRANS1.1!AF:AF,NNDRAdj!A48&"NNDR",TRANS1.1!$S:$S) -> 16430.4 | I48: 0
A49: 3022036 | B49: Livingstone School | C49: =SUMIF(TRANSPY!AF:AF,NNDRAdj!A49&"NNDR",TRANSPY!$S:$S) -> 18652.46 | E49: 0 | G49: =SUMIF(TRANS1.1!AF:AF,NNDRAdj!A49&"NNDR",TRANS1.1!$S:$S) -> 15755.94986 | I49: 0
A50: 3022037 | B50: Manorside Primary School | C50: =SUMIF(TRANSPY!AF:AF,NNDRAdj!A50&"NNDR",TRANSPY!$S:$S) -> 21370.94 | E50: 0 | G50: =SUMIF(TRANS1.1!AF:AF,NNDRAdj!A50&"NNDR",TRANS1.1!$S:$S) -> 21847.77639 | I50: 0
A51: 3023523 | B51: Martin Primary School | C51: =SUMIF(TRANSPY!AF:AF,NNDRAdj!A51&"NNDR",TRANSPY!$S:$S) -> 54891 | E51: 0 | G51: =SUMIF(TRANS1.1!AF:AF,NNDRAdj!A51&"NNDR",TRANS1.1!$S:$S) -> 56115.74848 | I51: 0
A52: 3025948 | B52: Mathilda Marks-Kennedy School | C52: =SUMIF(TRANSPY!AF:AF,NNDRAdj!A52&"NNDR",TRANSPY!$S:$S) -> 13953.6 | E52: 0 | G52: =SUMIF(TRANS1.1!AF:AF,NNDRAdj!A52&"NNDR",TRANS1.1!$S:$S) -> 14264.93793 | I52: 0
A53: 3025949 | B53: Menorah Foundation School | C53: =SUMIF(TRANSPY!AF:AF,NNDRAdj!A53&"NNDR",TRANSPY!$S:$S) -> 30070.52 | E53: 0 | G53: =SUMIF(TRANS1.1!AF:AF,NNDRAdj!A53&"NNDR",TRANS1.1!$S:$S) -> 30741.46467 | I53: 0
A54: 3023513 | B54: Menorah Primary School | C54: =SUMIF(TRANSPY!AF:AF,NNDRAdj!A54&"NNDR",TRANSPY!$S:$S) -> 4429.71 | E54: 0 | G54: =SUMIF(TRANS1.1!AF:AF,NNDRAdj!A54&"NNDR",TRANS1.1!$S:$S) -> 4528.547343 | I54: 0
A55: 3022048 | B55: Millbrook Park CE Primary School | C55: =SUMIF(TRANSPY!AF:AF,NNDRAdj!A55&"NNDR",TRANSPY!$S:$S) -> 0 | E55: 0 | G55: =SUMIF(TRANS1.1!AF:AF,NNDRAdj!A55&"NNDR",TRANS1.1!$S:$S) -> 39808.8 | I55: 0
A56: 3023305 | B56: Monken Hadley C E Primary School | C56: =SUMIF(TRANSPY!AF:AF,NNDRAdj!A56&"NNDR",TRANSPY!$S:$S) -> 1310.29 | E56: 0 | G56: =SUMIF(TRANS1.1!AF:AF,NNDRAdj!A56&"NNDR",TRANS1.1!$S:$S) -> 1339.52568 | I56: 0
A57: 3022042 | B57: Monkfrith School | C57: =SUMIF(TRANSPY!AF:AF,NNDRAdj!A57&"NNDR",TRANSPY!$S:$S) -> 16351.25 | D57: 20160 | E57: 3808.75 | F57: APR | G57: =SUMIF(TRANS1.1!AF:AF,NNDRAdj!A57&"NNDR",TRANS1.1!$S:$S) -> 16716.08519 | I57: 0
A58: 3022044 | B58: Moss Hall Infant School | C58: =SUMIF(TRANSPY!AF:AF,NNDRAdj!A58&"NNDR",TRANSPY!$S:$S) -> 14968.75 | D58: =26995.46/2 -> 13497.73 | E58: -1471.02 | F58: APR | G58: =SUMIF(TRANS1.1!AF:AF,NNDRAdj!A58&"NNDR",TRANS1.1!$S:$S) -> 15302.73834 | I58: 0
A59: 3022043 | B59: Moss Hall Junior School | C59: =SUMIF(TRANSPY!AF:AF,NNDRAdj!A59&"NNDR",TRANSPY!$S:$S) -> 14968.75 | D59: =D58 -> 13497.73 | E59: -1471.02 | F59: APR | G59: =SUMIF(TRANS1.1!AF:AF,NNDRAdj!A59&"NNDR",TRANS1.1!$S:$S) -> 7308 | I59: 0
A60: 3022053 | B60: Noam Primary School | C60: =SUMIF(TRANSPY!AF:AF,NNDRAdj!A60&"NNDR",TRANSPY!$S:$S) -> 0 | E60: 0 | G60: =SUMIF(TRANS1.1!AF:AF,NNDRAdj!A60&"NNDR",TRANS1.1!$S:$S) -> 4460.4 | I60: 0
A61: 3022045 | B61: Northside School | C61: =SUMIF(TRANSPY!AF:AF,NNDRAdj!A61&"NNDR",TRANSPY!$S:$S) -> 23290.89 | E61: 0 | G61: =SUMIF(TRANS1.1!AF:AF,NNDRAdj!A61&"NNDR",TRANS1.1!$S:$S) -> 23810.56503 | I61: 0
A62: 3022077 | B62: Orion Primary School | C62: =SUMIF(TRANSPY!AF:AF,NNDRAdj!A62&"NNDR",TRANSPY!$S:$S) -> 7680 | E62: 0 | G62: =SUMIF(TRANS1.1!AF:AF,NNDRAdj!A62&"NNDR",TRANS1.1!$S:$S) -> 7851.359026 | I62: 0
A63: 3025201 | B63: Osidge Primary School | C63: =SUMIF(TRANSPY!AF:AF,NNDRAdj!A63&"NNDR",TRANSPY!$S:$S) -> 6754.1 | E63: 0 | G63: =SUMIF(TRANS1.1!AF:AF,NNDRAdj!A63&"NNDR",TRANS1.1!$S:$S) -> 6397.058337 | I63: 0
A64: 3023501 | B64: Our Lady of Lourdes School | C64: =SUMIF(TRANSPY!AF:AF,NNDRAdj!A64&"NNDR",TRANSPY!$S:$S) -> 3496.7 | E64: 0 | G64: =SUMIF(TRANS1.1!AF:AF,NNDRAdj!A64&"NNDR",TRANS1.1!$S:$S) -> 3574.719675 | I64: 0
A65: 3022078 | B65: Pardes House School | C65: =SUMIF(TRANSPY!AF:AF,NNDRAdj!A65&"NNDR",TRANSPY!$S:$S) -> 18468 | E65: 0 | G65: =SUMIF(TRANS1.1!AF:AF,NNDRAdj!A65&"NNDR",TRANS1.1!$S:$S) -> 18144 | I65: 0
A66: 3022038 | B66: Parkfield Primary School | C66: =SUMIF(TRANSPY!AF:AF,NNDRAdj!A66&"NNDR",TRANSPY!$S:$S) -> 12874.2 | E66: 0 | G66: =SUMIF(TRANS1.1!AF:AF,NNDRAdj!A66&"NNDR",TRANS1.1!$S:$S) -> 12564.6 | I66: 0
A67: 3022071 | B67: Queenswell Infant and Nursery School | C67: =SUMIF(TRANSPY!AF:AF,NNDRAdj!A67&"NNDR",TRANSPY!$S:$S) -> 28519.63 | E67: 0 | G67: =SUMIF(TRANS1.1!AF:AF,NNDRAdj!A67&"NNDR",TRANS1.1!$S:$S) -> 29155.97063 | I67: 0
A68: 3022072 | B68: Queenswell Junior School | C68: =SUMIF(TRANSPY!AF:AF,NNDRAdj!A68&"NNDR",TRANSPY!$S:$S) -> 14283.42 | E68: 0 | G68: =SUMIF(TRANS1.1!AF:AF,NNDRAdj!A68&"NNDR",TRANS1.1!$S:$S) -> 14602.117 | I68: 0
A69: 3022004 | B69: Rimon Jewish Primary School | C69: =SUMIF(TRANSPY!AF:AF,NNDRAdj!A69&"NNDR",TRANSPY!$S:$S) -> 7568.2 | E69: 0 | G69: =SUMIF(TRANS1.1!AF:AF,NNDRAdj!A69&"NNDR",TRANS1.1!$S:$S) -> 8642.6 | I69: 0
A70: 3023512 | B70: Rosh Pinah | C70: =SUMIF(TRANSPY!AF:AF,NNDRAdj!A70&"NNDR",TRANSPY!$S:$S) -> 12475 | E70: =IF(D70="",0,D70-C70) -> 0 | G70: =SUMIF(TRANS1.1!AF:AF,NNDRAdj!A70&"NNDR",TRANS1.1!$S:$S) -> 12753.34686 | I70: =IF(H70="",0,H70-G70) -> 0
A71: 3022041 | B71: Sacks Morasha Jewish Primary School | C71: =SUMIF(TRANSPY!AF:AF,NNDRAdj!A71&"NNDR",TRANSPY!$S:$S) -> 2028.283333 | E71: 0 | G71: =SUMIF(TRANS1.1!AF:AF,NNDRAdj!A71&"NNDR",TRANS1.1!$S:$S) -> 2073.53574 | I71: 0
A72: 3023510 | B72: Sacred Heart School | C72: =SUMIF(TRANSPY!AF:AF,NNDRAdj!A72&"NNDR",TRANSPY!$S:$S) -> 4478.65 | E72: 0 | G72: =SUMIF(TRANS1.1!AF:AF,NNDRAdj!A72&"NNDR",TRANS1.1!$S:$S) -> 4578.57931 | I72: 0
A73: 3023502 | B73: St Agnes RC Primary School | C73: =SUMIF(TRANSPY!AF:AF,NNDRAdj!A73&"NNDR",TRANSPY!$S:$S) -> 5016.13 | E73: 0 | G73: =SUMIF(TRANS1.1!AF:AF,NNDRAdj!A73&"NNDR",TRANS1.1!$S:$S) -> 5128.051765 | I73: 0
A74: 3023315 | B74: St Andrew's C E | C74: =SUMIF(TRANSPY!AF:AF,NNDRAdj!A74&"NNDR",TRANSPY!$S:$S) -> 3209.3 | E74: 0 | G74: =SUMIF(TRANS1.1!AF:AF,NNDRAdj!A74&"NNDR",TRANS1.1!$S:$S) -> 3280.907099 | I74: 0
A75: 3023504 | B75: St Catherines R C Primary | C75: =SUMIF(TRANSPY!AF:AF,NNDRAdj!A75&"NNDR",TRANSPY!$S:$S) -> 6215 | E75: 0 | G75: =SUMIF(TRANS1.1!AF:AF,NNDRAdj!A75&"NNDR",TRANS1.1!$S:$S) -> 5851.920487 | I75: 0
A76: 3023309 | B76: St Johns CE N20 | C76: =SUMIF(TRANSPY!AF:AF,NNDRAdj!A76&"NNDR",TRANSPY!$S:$S) -> 4082.1 | E76: 0 | G76: =SUMIF(TRANS1.1!AF:AF,NNDRAdj!A76&"NNDR",TRANS1.1!$S:$S) -> 4173.181339 | I76: 0
A77: 3023307 | B77: St John's CE School N11 | C77: =SUMIF(TRANSPY!AF:AF,NNDRAdj!A77&"NNDR",TRANSPY!$S:$S) -> 3570.6 | E77: 0 | G77: =SUMIF(TRANS1.1!AF:AF,NNDRAdj!A77&"NNDR",TRANS1.1!$S:$S) -> 3650.26856 | I77: 0
A78: 3023509 | B78: St Joseph's Primary School | C78: =SUMIF(TRANSPY!AF:AF,NNDRAdj!A78&"NNDR",TRANSPY!$S:$S) -> 12317.52 | E78: 0 | G78: =SUMIF(TRANS1.1!AF:AF,NNDRAdj!A78&"NNDR",TRANS1.1!$S:$S) -> 11692.8 | I78: 0
A79: 3023311 | B79: St Mary's C E Primary School N3 | C79: =SUMIF(TRANSPY!AF:AF,NNDRAdj!A79&"NNDR",TRANSPY!$S:$S) -> 23392.8 | E79: 0 | G79: =SUMIF(TRANS1.1!AF:AF,NNDRAdj!A79&"NNDR",TRANS1.1!$S:$S) -> 23914.74888 | I79: 0
A80: 3023312 | B80: St Mary's School EN4 | C80: =SUMIF(TRANSPY!AF:AF,NNDRAdj!A80&"NNDR",TRANSPY!$S:$S) -> 3061.69 | E80: 0 | G80: =SUMIF(TRANS1.1!AF:AF,NNDRAdj!A80&"NNDR",TRANS1.1!$S:$S) -> 3130.00357 | I80: 0
A81: 3023314 | B81: St Pauls CE Primary, NW7 | C81: =SUMIF(TRANSPY!AF:AF,NNDRAdj!A81&"NNDR",TRANSPY!$S:$S) -> 2492.65 | E81: 0 | G81: =SUMIF(TRANS1.1!AF:AF,NNDRAdj!A81&"NNDR",TRANS1.1!$S:$S) -> 2548.266937 | I81: 0
A82: 3023313 | B82: St Paul's School, N11 | C82: =SUMIF(TRANSPY!AF:AF,NNDRAdj!A82&"NNDR",TRANSPY!$S:$S) -> 3133.66 | E82: 0 | G82: =SUMIF(TRANS1.1!AF:AF,NNDRAdj!A82&"NNDR",TRANS1.1!$S:$S) -> 2970.481947 | I82: 0
A83: 3023507 | B83: St Theresa's R.C. Primary School | C83: =SUMIF(TRANSPY!AF:AF,NNDRAdj!A83&"NNDR",TRANSPY!$S:$S) -> 2928.69 | E83: 0 | G83: =SUMIF(TRANS1.1!AF:AF,NNDRAdj!A83&"NNDR",TRANS1.1!$S:$S) -> 2994.036024 | I83: 0
A84: 3023506 | B84: St Vincent's Catholic Primary School | C84: =SUMIF(TRANSPY!AF:AF,NNDRAdj!A84&"NNDR",TRANSPY!$S:$S) -> 3096.55 | E84: 0 | G84: =SUMIF(TRANS1.1!AF:AF,NNDRAdj!A84&"NNDR",TRANS1.1!$S:$S) -> 3165.641379 | I84: 0
A85: 3022051 | B85: Summerside Primary Academy | C85: =SUMIF(TRANSPY!AF:AF,NNDRAdj!A85&"NNDR",TRANSPY!$S:$S) -> 5658.76 | E85: 0 | G85: =SUMIF(TRANS1.1!AF:AF,NNDRAdj!A85&"NNDR",TRANS1.1!$S:$S) -> 7819.02 | I85: 0
A86: 3022070 | B86: Sunnyfields Primary School | C86: =SUMIF(TRANSPY!AF:AF,NNDRAdj!A86&"NNDR",TRANSPY!$S:$S) -> 16804.02 | E86: 0 | G86: =SUMIF(TRANS1.1!AF:AF,NNDRAdj!A86&"NNDR",TRANS1.1!$S:$S) -> 17178.95757 | I86: 0
A87: 3023316 | B87: Trent C of E Primary School | C87: =SUMIF(TRANSPY!AF:AF,NNDRAdj!A87&"NNDR",TRANSPY!$S:$S) -> 2936.49 | E87: 0 | G87: =SUMIF(TRANS1.1!AF:AF,NNDRAdj!A87&"NNDR",TRANS1.1!$S:$S) -> 3002.010061 | I87: 0
A88: 3022055 | B88: Tudor School | C88: =SUMIF(TRANSPY!AF:AF,NNDRAdj!A88&"NNDR",TRANSPY!$S:$S) -> 22004.1 | E88: 0 | G88: =SUMIF(TRANS1.1!AF:AF,NNDRAdj!A88&"NNDR",TRANS1.1!$S:$S) -> 39755.7858 | I88: 0
A89: 3022057 | B89: Underhill School | C89: =SUMIF(TRANSPY!AF:AF,NNDRAdj!A89&"NNDR",TRANSPY!$S:$S) -> 52326 | E89: 0 | G89: =SUMIF(TRANS1.1!AF:AF,NNDRAdj!A89&"NNDR",TRANS1.1!$S:$S) -> 53493.51724 | I89: 0
A90: 3022049 | B90: Watling Park Free School | C90: =SUMIF(TRANSPY!AF:AF,NNDRAdj!A90&"NNDR",TRANSPY!$S:$S) -> 0 | E90: 0 | G90: =SUMIF(TRANS1.1!AF:AF,NNDRAdj!A90&"NNDR",TRANS1.1!$S:$S) -> 14313.6 | I90: 0
A91: 3022076 | B91: Wessex Gardens Primary School | C91: =SUMIF(TRANSPY!AF:AF,NNDRAdj!A91&"NNDR",TRANSPY!$S:$S) -> 30812.5 | E91: 0 | G91: =SUMIF(TRANS1.1!AF:AF,NNDRAdj!A91&"NNDR",TRANS1.1!$S:$S) -> 31500 | I91: 0
A92: 3022060 | B92: Whitings Hill Primary School | C92: =SUMIF(TRANSPY!AF:AF,NNDRAdj!A92&"NNDR",TRANSPY!$S:$S) -> 87325 | E92: 0 | G92: =SUMIF(TRANS1.1!AF:AF,NNDRAdj!A92&"NNDR",TRANS1.1!$S:$S) -> 89273.42799 | I92: 0
A93: 3023518 | B93: Woodcroft Primary School | C93: =SUMIF(TRANSPY!AF:AF,NNDRAdj!A93&"NNDR",TRANSPY!$S:$S) -> 34017 | E93: 0 | G93: =SUMIF(TRANS1.1!AF:AF,NNDRAdj!A93&"NNDR",TRANS1.1!$S:$S) -> 34776 | I93: 0
A94: 3022054 | B94: Woodridge Primary School | C94: =SUMIF(TRANSPY!AF:AF,NNDRAdj!A94&"NNDR",TRANSPY!$S:$S) -> 17476.18 | E94: 0 | G94: =SUMIF(TRANS1.1!AF:AF,NNDRAdj!A94&"NNDR",TRANS1.1!$S:$S) -> 17866.11505 | H94: 18780.75 | I94: 914.6349493
A95: 3024001 | B95: Archer Academy | C95: =SUMIF(TRANSPY!AF:AF,NNDRAdj!A95&"NNDR",TRANSPY!$S:$S) -> 56535.8 | E95: 0 | G95: =SUMIF(TRANS1.1!AF:AF,NNDRAdj!A95&"NNDR",TRANS1.1!$S:$S) -> 57713.96 | I95: 0
A96: 3029999 | B96: ARK Pioneer Academy | C96: =SUMIF(TRANSPY!AF:AF,NNDRAdj!A96&"NNDR",TRANSPY!$S:$S) -> 0 | E96: 0 | G96: =SUMIF(TRANS1.1!AF:AF,NNDRAdj!A96&"NNDR",TRANS1.1!$S:$S) -> 376.32 | I96: 0
A97: 3025406 | B97: Ashmole Academy | C97: =SUMIF(TRANSPY!AF:AF,NNDRAdj!A97&"NNDR",TRANSPY!$S:$S) -> 87879.29 | E97: 0 | G97: =SUMIF(TRANS1.1!AF:AF,NNDRAdj!A97&"NNDR",TRANS1.1!$S:$S) -> 84982.89 | I97: 0
A98: 3025408 | B98: Bishop Douglass Academy | C98: =SUMIF(TRANSPY!AF:AF,NNDRAdj!A98&"NNDR",TRANSPY!$S:$S) -> 19830.6 | E98: 0 | G98: =SUMIF(TRANS1.1!AF:AF,NNDRAdj!A98&"NNDR",TRANS1.1!$S:$S) -> 22645.8 | I98: 0
A99: 3024211 | B99: Christ's College Finchley | C99: =SUMIF(TRANSPY!AF:AF,NNDRAdj!A99&"NNDR",TRANSPY!$S:$S) -> 35762.4 | E99: 0 | G99: =SUMIF(TRANS1.1!AF:AF,NNDRAdj!A99&"NNDR",TRANS1.1!$S:$S) -> 36784.78 | I99: 0
A100: 3024215 | B100: Compton School | C100: =SUMIF(TRANSPY!AF:AF,NNDRAdj!A100&"NNDR",TRANSPY!$S:$S) -> 18202 | E100: 0 | G100: =SUMIF(TRANS1.1!AF:AF,NNDRAdj!A100&"NNDR",TRANS1.1!$S:$S) -> 19266 | I100: 0
A101: 3024210 | B101: Copthall School | C101: =SUMIF(TRANSPY!AF:AF,NNDRAdj!A101&"NNDR",TRANSPY!$S:$S) -> 17205.73 | E101: 0 | G101: =SUMIF(TRANS1.1!AF:AF,NNDRAdj!A101&"NNDR",TRANS1.1!$S:$S) -> 17267.87 | I101: 0
A102: 3024212 | B102: East Barnet School | C102: =SUMIF(TRANSPY!AF:AF,NNDRAdj!A102&"NNDR",TRANSPY!$S:$S) -> 70528.36 | E102: 0 | G102: =SUMIF(TRANS1.1!AF:AF,NNDRAdj!A102&"NNDR",TRANS1.1!$S:$S) -> 68191.5 | I102: 0
A103: 3025405 | B103: Finchley Catholic High School | C103: =SUMIF(TRANSPY!AF:AF,NNDRAdj!A103&"NNDR",TRANSPY!$S:$S) -> 25587.8 | E103: 0 | G103: =SUMIF(TRANS1.1!AF:AF,NNDRAdj!A103&"NNDR",TRANS1.1!$S:$S) -> 23688 | H103: 24628 | I103: 940
A104: 3024003 | B104: Friern Barnet School | C104: =SUMIF(TRANSPY!AF:AF,NNDRAdj!A104&"NNDR",TRANSPY!$S:$S) -> 58482 | E104: 0 | G104: =SUMIF(TRANS1.1!AF:AF,NNDRAdj!A104&"NNDR",TRANS1.1!$S:$S) -> 59786.87221 | I104: 0
A105: 3025409 | B105: Hasmonean High School | C105: =SUMIF(TRANSPY!AF:AF,NNDRAdj!A105&"NNDR",TRANSPY!$S:$S) -> 39448.4 | E105: 0 | G105: =SUMIF(TRANS1.1!AF:AF,NNDRAdj!A105&"NNDR",TRANS1.1!$S:$S) -> 41677.2 | I105: 0
A106: 3025400 | B106: Hendon School | C106: =SUMIF(TRANSPY!AF:AF,NNDRAdj!A106&"NNDR",TRANSPY!$S:$S) -> 31014.01 | E106: 0 | G106: =SUMIF(TRANS1.1!AF:AF,NNDRAdj!A106&"NNDR",TRANS1.1!$S:$S) -> 30001.91 | I106: 0
A107: 3024752 | B107: Henrietta Barnett School | C107: =SUMIF(TRANSPY!AF:AF,NNDRAdj!A107&"NNDR",TRANSPY!$S:$S) -> 0 | E107: 0 | G107: =SUMIF(TRANS1.1!AF:AF,NNDRAdj!A107&"NNDR",TRANS1.1!$S:$S) -> 30574.8 | I107: 0
A108: 3025427 | B108: JCoSS | C108: =SUMIF(TRANSPY!AF:AF,NNDRAdj!A108&"NNDR",TRANSPY!$S:$S) -> 69680.48 | E108: 0 | G108: =SUMIF(TRANS1.1!AF:AF,NNDRAdj!A108&"NNDR",TRANS1.1!$S:$S) -> 51912 | I108: 0
A109: 3024004 | B109: Menorah High School (Girls) | C109: =SUMIF(TRANSPY!AF:AF,NNDRAdj!A109&"NNDR",TRANSPY!$S:$S) -> 6902 | E109: 0 | G109: =SUMIF(TRANS1.1!AF:AF,NNDRAdj!A109&"NNDR",TRANS1.1!$S:$S) -> 7056 | H109: 7056 | I109: 0
A110: 3025402 | B110: Mill Hill County High School | C110: =SUMIF(TRANSPY!AF:AF,NNDRAdj!A110&"NNDR",TRANSPY!$S:$S) -> 24908 | E110: 0 | G110: =SUMIF(TRANS1.1!AF:AF,NNDRAdj!A110&"NNDR",TRANS1.1!$S:$S) -> 26364 | I110: 0
A111: 3024208 | B111: Queen Elizabeth's Girls' School | C111: =SUMIF(TRANSPY!AF:AF,NNDRAdj!A111&"NNDR",TRANSPY!$S:$S) -> 26447 | E111: 0 | G111: =SUMIF(TRANS1.1!AF:AF,NNDRAdj!A111&"NNDR",TRANS1.1!$S:$S) -> 27931 | I111: 0
A112: 3025401 | B112: Queen Elizabeth's School (Boys) | C112: =SUMIF(TRANSPY!AF:AF,NNDRAdj!A112&"NNDR",TRANSPY!$S:$S) -> 30439 | E112: 0 | G112: =SUMIF(TRANS1.1!AF:AF,NNDRAdj!A112&"NNDR",TRANS1.1!$S:$S) -> 32147 | I112: 0
A113: 3024011 | B113: Saracens High School | C113: =SUMIF(TRANSPY!AF:AF,NNDRAdj!A113&"NNDR",TRANSPY!$S:$S) -> 0 | E113: 0 | G113: =SUMIF(TRANS1.1!AF:AF,NNDRAdj!A113&"NNDR",TRANS1.1!$S:$S) -> 12683.06 | I113: 0
A114: 3024000 | B114: St Andrew the Apostle Greek Orthodox School | C114: =SUMIF(TRANSPY!AF:AF,NNDRAdj!A114&"NNDR",TRANSPY!$S:$S) -> 10567.8 | E114: 0 | G114: =SUMIF(TRANS1.1!AF:AF,NNDRAdj!A114&"NNDR",TRANS1.1!$S:$S) -> 54583.2 | I114: 0
A115: 3025404 | B115: St Michaels Catholic Grammar School | C115: =SUMIF(TRANSPY!AF:AF,NNDRAdj!A115&"NNDR",TRANSPY!$S:$S) -> 16591.4 | E115: 0 | G115: =SUMIF(TRANS1.1!AF:AF,NNDRAdj!A115&"NNDR",TRANS1.1!$S:$S) -> 16961.59351 | I115: 0
A116: 3025407 | B116: St. James' Catholic High School | C116: =SUMIF(TRANSPY!AF:AF,NNDRAdj!A116&"NNDR",TRANSPY!$S:$S) -> 37768.43 | E116: 0 | G116: =SUMIF(TRANS1.1!AF:AF,NNDRAdj!A116&"NNDR",TRANS1.1!$S:$S) -> 34524 | I116: 0
A117: 3024010 | B117: Totteridge Academy | C117: =SUMIF(TRANSPY!AF:AF,NNDRAdj!A117&"NNDR",TRANSPY!$S:$S) -> 23279.4 | E117: 0 | G117: =SUMIF(TRANS1.1!AF:AF,NNDRAdj!A117&"NNDR",TRANS1.1!$S:$S) -> 25029 | I117: 0
A118: 3024012 | B118: Whitefield School | C118: =SUMIF(TRANSPY!AF:AF,NNDRAdj!A118&"NNDR",TRANSPY!$S:$S) -> 6098.4 | E118: 0 | G118: =SUMIF(TRANS1.1!AF:AF,NNDRAdj!A118&"NNDR",TRANS1.1!$S:$S) -> 6234.469777 | I118: 0
A119: 3026905 | B119: London Academy | C119: =SUMIF(TRANSPY!AF:AF,NNDRAdj!A119&"NNDR",TRANSPY!$S:$S) -> 72310.43 | E119: 0 | G119: =SUMIF(TRANS1.1!AF:AF,NNDRAdj!A119&"NNDR",TRANS1.1!$S:$S) -> 106985.85 | I119: 0
A120: 3023521 | B120: St Mary's & St John's CE School | C120: =SUMIF(TRANSPY!AF:AF,NNDRAdj!A120&"NNDR",TRANSPY!$S:$S) -> 10808.81 | E120: 0 | G120: =SUMIF(TRANS1.1!AF:AF,NNDRAdj!A120&"NNDR",TRANS1.1!$S:$S) -> 8517.6 | I120: 0
A121: 3026906 | B121: Wren Academy | C121: =SUMIF(TRANSPY!AF:AF,NNDRAdj!A121&"NNDR",TRANSPY!$S:$S) -> 21353.92 | E121: 0 | G121: =SUMIF(TRANS1.1!AF:AF,NNDRAdj!A121&"NNDR",TRANS1.1!$S:$S) -> 33572.22 | I121: 0
A122: 3022041 | B122: Sacks Morasha Jewish Primary School | C122: =SUMIF(TRANSPY!AF:AF,NNDRAdj!A122&"NNDR",TRANSPY!$S:$S) -> 2028.283333 | E122: 0 | G122: =SUMIF(TRANS1.1!AF:AF,NNDRAdj!A122&"NNDR",TRANS1.1!$S:$S) -> 2073.53574 | I122: 0

Sheet TRANSPY (hidden)
C2: =Choose!I13 -> Barnet School and Academy Funding 2019/20
C3: =Choose!J14 -> April Adjusted Funding - Version 2.0 -
E4: =Dated -> 2019-04-26
C5: =CELL("filename",A1) -> P:\Accountancy\School Funding\Cycle 11 - 2019-20\April adjustments\Gold\[April Adjusted Funding 2019-20 v2 26.4.19.xlsm]TRANSPY
C6: =RIGHT(C5,LEN(C5)-FIND("]",C5)) -> TRANSPY
A9: Record# | B9: Recorddate | C9: Enteredby | D9: RUN | E9: DfE Number | F9: School | G9: Phase | H9: Academy | I9: Vendor | J9: SchoolCC | K9: Recoup Code | L9: Subtype | M9: VA | N9: Fundingtype | O9: FundingArea | P9: Percent | Q9: Rate | R9: Data | S9: Funding | T9: INTCC | U9: GLCode | V9: CFR | W9: Autocode | X9: Qtr1 | Y9: Qtr2 | Z9: Qtr3 | AA9: Qtr4 | AB9: Recoupment | AC9: Terms | AD9: DFE+TYPE2+OPTION | AE9: RUN+DFE+TYPE | AF9: DFE+TYPE | AG9: RUN+TYPE | AH9: RUN+DFE | AI9: ACADEMY+SECTOR+TYPE | AJ9: CFR+DFE | AK9: DFE+AREA | AL9: INTCC+PHASE | AM9: run+dfe+area | AN9: JunAuto% | AO9: SepAuto% | AP9: DecAuto% | AQ9: MarAuto% | AR9: INTCCName | AS9: S251 | AT9: Internal Order | AU9: Option | AV9: MonthlyPaid Academies | AW9: Academy AprPay | AX9: Academy MayPay | AY9: Academy JunPay | AZ9: Academy JulPay | BA9: Academy AugPay | BB9: Academy SepPay | BC9: Academy OctPay | BD9: Academy NovPay | BE9: Academy DecPay | BF9: Academy JanPay | BG9: Academy FebPay | BH9: Academy MarPay | BI9: Type of funding | BJ9: Xtraautopay | BK9: dfe+type2 | BL9: EFA payment | BM9: LBB Option A | BN9: Check - should be zero! | BO9: INTCC+TYPE+Academy+Phase | BP9: LBB Cost | BQ9: Run+Dfe+Type2 | BR9: Status | BS9: Monthly Paid Divisor | BT9: EFA/Recoupment Check - Should be zero | BU9: Academy&Term | BV9: AprPay 36ths | BW9: EY Acad Aut pay adj | BX9: EY Acad Spr pay adj | BY9: Marker | BZ9: Pay at next available opportunity | CA9: MonthlyPaidMA | CB9: Maintained AprPay | CC9: Maintained MayPay | CD9: Maintained JunPay | CE9: Maintained JulPay | CF9: Maintained AugPay | CG9: Maintained SepPay | CH9: Maintained OctPay | CI9: Maintained NovPay | CJ9: Maintained DecPay | CK9: Maintained JanPay | CL9: Maintained FebPay | CM9: Maintained MarPay | CN9: Federation | CO9: FedID | CP9: FedName | CQ9: RUN+FEDNO+TYPE | CR9: RUN+FEDNO | CS9: FEDNO+TYPE | CT9: RUN+DFE+CFR | CU9: FEDNO+type2 | CV9: RUN+FEDNO+type2 | CW9: RUN+FEDNO+AREA | CX9: fedno+area
A10: 20181001 | B10: 2017-12-13 | C10: CK | D10: Original | E10: 3022002 | F10: Barnfield School | G10: Primary | H10: MA | I10: 400005 | J10: 10044 | K10: 0 | L10: 0 | M10: COM | N10: blank | O10: REPORT | P10: 1 | Q10: 0 | R10: 0 | S10: 0 | T10: 0 | U10: 543965 | V10: 0 | W10: 0 | X10: 0 | Y10: 0 | Z10: 0 | AA10: 0 | AB10: 0 | AC10: 0 | AD10: 3022002blankD | AE10: Original3022002blank | AF10: 3022002blank | AG10: Originalblank | AH10: Original3022002 | AI10: MAPriblank | AJ10: 03022002 | AK10: 3022002REPORT | AL10: 0Primary | AM10: Original3022002REPORT | AN10: 0.25 | AO10: 0.5 | AP10: 0.75 | AQ10: 1 | AR10: None | AS10: None | AT10: 0 | AU10: D | AV10: 0 | AW10: 0 | AX10: 0 | AY10: 0 | AZ10: 0 | BA10: 0 | BB10: 0 | BC10: 0 | BD10: 0 | BE10: 0 | BF10: 0 | BG10: 0 | BH10: 0 | BI10: - | BJ10: 0 | BK10: 3022002blank | BL10: 0 | BM10: 0 | BN10: 0 | BO10: 0blankMAPrimary | BP10: 0 | BQ10: Original3022002blank | BS10: 36 | BT10: 0 | BU10: MA0 | BV10: 4 | BW10: 0 | BX10: 0 | BY10: 0 | BZ10: 0 | CA10: 0 | CB10: 0 | CC10: 0 | CD10: 0 | CE10: 0 | CF10: 0 | CG10: 0 | CH10: 0 | CI10: 0 | CJ10: 0 | CK10: 0 | CL10: 0 | CM10: 0 | CN10: N | CO10: 3022002 | CP10: Barnfield School | CQ10: Original3022002blank | CR10: Original3022002 | CS10: 3022002blank | CT10: Original30220020 | CU10: =CO10&IF(O10="EARLYYEARS",VLOOKUP(N10,Rates!A:AT,24,0),N10) -> 3022002blank | CV10: =D10&CU10 -> Original3022002blank | CW10: =CR10&O10 -> Original3022002REPORT | CX10: =CO10&O10 -> 3022002REPORT
A11: 20181002 | B11: 2017-12-13 | C11: CK | D11: Original | E11: 3026905 | F11: London Academy | G11: All through | H11: RA | I11: 400116 | J11: Academy | K11: 0 | L11: 5/12ths of 2017/18 academic year (Apr18 to Aug18) | M11: ACAD | N11: PEGRANT | O11: ADDGRANT | P11: 1 | Q11: various | R11: 6791.666667 | S11: 6791.67 | T11: EFA | U11: 516500 | V11: I18 | W11: 0 | X11: 0 | Y11: 0 | Z11: 0 | AA11: 0 | AB11: 0 | AC11: 0 | AD11: 3026905PEGRANTAcademy | AE11: Original3026905PEGRANT | AF11: 3026905PEGRANT | AG11: OriginalPEGRANT | AH11: Original3026905 | AI11: RAAllPEGRANT | AJ11: I183026905 | AK11: 3026905ADDGRANT | AL11: EFAAll through | AM11: Original3026905ADDGRANT | AN11: 0.25 | AO11: 0.5 | AP11: 0.75 | AQ11: 1 | AR11: Education Funding Agency | AS11: None | AT11: 0 | AU11: Academy | AV11: 0 | AW11: 0 | AX11: 0 | AY11: 0 | AZ11: 0 | BA11: 0 | BB11: 0 | BC11: 0 | BD11: 0 | BE11: 0 | BF11: 0 | BG11: 0 | BH11: 0 | BI11: PE Grant | BJ11: 0 | BK11: 3026905PEGRANT | BL11: 6791.67 | BM11: 0 | BN11: 0 | BO11: EFAPEGRANTRAAll through | BP11: 0 | BQ11: Original3026905PEGRANT | BR11: Estimate | BS11: 36 | BT11: 0 | BU11: RA0 | BV11: 3 | BW11: 0 | BX11: 0 | BY11: 0 | BZ11: 0 | CA11: 0 | CB11: 0 | CC11: 0 | CD11: 0 | CE11: 0 | CF11: 0 | CG11: 0 | CH11: 0 | CI11: 0 | CJ11: 0 | CK11: 0 | CL11: 0 | CM11: 0 | CN11: N | CO11: 3026905 | CP11: London Academy | CQ11: Original3026905PEGRANT | CR11: Original3026905 | CS11: 3026905PEGRANT | CT11: Original3026905I18 | CU11: =CO11&IF(O11="EARLYYEARS",VLOOKUP(N11,Rates!A:AT,24,0),N11) -> 3026905PEGRANT | CV11: Original3026905PEGRANT | CW11: =CR11&O11 -> Original3026905ADDGRANT | CX11: =CO11&O11 -> 3026905ADDGRANT
A12: 20181003 | B12: 2017-12-13 | C12: CK | D12: Original | E12: 3026906 | F12: Wren Academy | G12: All through | H12: RA | I12: 128957 | J12: Academy | K12: 0 | L12: 5/12ths of 2017/18 academic year (Apr18 to Aug18) | M12: ACAD | N12: PEGRANT | O12: ADDGRANT | P12: 1 | Q12: various | R12: 6916.666667 | S12: 6916.67 | T12: EFA | U12: 516500 | V12: I18 | W12: 0 | X12: 0 | Y12: 0 | Z12: 0 | AA12: 0 | AB12: 0 | AC12: 0 | AD12: 3026906PEGRANTAcademy | AE12: Original3026906PEGRANT | AF12: 3026906PEGRANT | AG12: OriginalPEGRANT | AH12: Original3026906 | AI12: RAAllPEGRANT | AJ12: I183026906 | AK12: 3026906ADDGRANT | AL12: EFAAll through | AM12: Original3026906ADDGRANT | AN12: 0.25 | AO12: 0.5 | AP12: 0.75 | AQ12: 1 | AR12: Education Funding Agency | AS12: None | AT12: 0 | AU12: Academy | AV12: 0 | AW12: 0 | AX12: 0 | AY12: 0 | AZ12: 0 | BA12: 0 | BB12: 0 | BC12: 0 | BD12: 0 | BE12: 0 | BF12: 0 | BG12: 0 | BH12: 0 | BI12: PE Grant | BJ12: 0 | BK12: 3026906PEGRANT | BL12: 6916.67 | BM12: 0 | BN12: 0 | BO12: EFAPEGRANTRAAll through | BP12: 0 | BQ12: Original3026906PEGRANT | BR12: Estimate | BS12: 36 | BT12: 0 | BU12: RA0 | BV12: 3 | BW12: 0 | BX12: 0 | BY12: 0 | BZ12: 0 | CA12: 0 | CB12: 0 | CC12: 0 | CD12: 0 | CE12: 0 | CF12: 0 | CG12: 0 | CH12: 0 | CI12: 0 | CJ12: 0 | CK12: 0 | CL12: 0 | CM12: 0 | CN12: N | CO12: 3026906 | CP12: Wren Academy | CQ12: Original3026906PEGRANT | CR12: Original3026906 | CS12: 3026906PEGRANT | CT12: Original3026906I18 | CU12: =CO12&IF(O12="EARLYYEARS",VLOOKUP(N12,Rates!A:AT,24,0),N12) -> 3026906PEGRANT | CV12: Original3026906PEGRANT | CW12: Original3026906ADDGRANT | CX12: 3026906ADDGRANT
A13: 20181004 | B13: 2017-12-13 | C13: CK | D13: Original | E13: 3022001 | F13: Etz Chaim Jewish Primary School | G13: Primary | H13: RA | I13: 143691 | J13: Academy | K13: 0 | L13: 5/12ths of 2017/18 academic year (Apr18 to Aug18) | M13: FREE | N13: PEGRANT | O13: ADDGRANT | P13: 1 | Q13: various | R13: 7233.333333 | S13: 7233.33 | T13: EFA | U13: 516500 | V13: I18 | W13: 0 | X13: 0 | Y13: 0 | Z13: 0 | AA13: 0 | AB13: 0 | AC13: 0 | AD13: 3022001PEGRANTAcademy | AE13: Original3022001PEGRANT | AF13: 3022001PEGRANT | AG13: OriginalPEGRANT | AH13: Original3022001 | AI13: RAPriPEGRANT | AJ13: I183022001 | AK13: 3022001ADDGRANT | AL13: EFAPrimary | AM13: Original3022001ADDGRANT | AN13: 0.25 | AO13: 0.5 | AP13: 0.75 | AQ13: 1 | AR13: Education Funding Agency | AS13: None | AT13: 0 | AU13: Academy | AV13: 0 | AW13: 0 | AX13: 0 | AY13: 0 | AZ13: 0 | BA13: 0 | BB13: 0 | BC13: 0 | BD13: 0 | BE13: 0 | BF13: 0 | BG13: 0 | BH13: 0 | BI13: PE Grant | BJ13: 0 | BK13: 3022001PEGRANT | BL13: 7233.33 | BM13: 0 | BN13: 0 | BO13: EFAPEGRANTRAPrimary | BP13: 0 | BQ13: Original3022001PEGRANT | BR13: Estimate | BS13: 36 | BT13: 0 | BU13: RA0 | BV13: 3 | BW13: 0 | BX13: 0 | BY13: 0 | BZ13: 0 | CA13: 0 | CB13: 0 | CC13: 0 | CD13: 0 | CE13: 0 | CF13: 0 | CG13: 0 | CH13: 0 | CI13: 0 | CJ13: 0 | CK13: 0 | CL13: 0 | CM13: 0 | CN13: N | CO13: 3022001 | CP13: Etz Chaim Jewish Primary School | CQ13: Original3022001PEGRANT | CR13: Original3022001 | CS13: 3022001PEGRANT | CT13: Original3022001I18 | CU13: =CO13&IF(O13="EARLYYEARS",VLOOKUP(N13,Rates!A:AT,24,0),N13) -> 3022001PEGRANT | CV13: Original3022001PEGRANT | CW13: Original3022001ADDGRANT | CX13: 3022001ADDGRANT
A14: 20181005 | B14: 2017-12-13 | C14: CK | D14: Original | E14: 3023515 | F14: Independent Jewish Day School | G14: Primary | H14: RA | I14: 143982 | J14: Academy | K14: 0 | L14: 5/12ths of 2017/18 academic year (Apr18 to Aug18) | M14: ACAD | N14: PEGRANT | O14: ADDGRANT | P14: 1 | Q14: various | R14: 7391.666667 | S14: 7391.67 | T14: EFA | U14: 516500 | V14: I18 | W14: 0 | X14: 0 | Y14: 0 | Z14: 0 | AA14: 0 | AB14: 0 | AC14: 0 | AD14: 3023515PEGRANTAcademy | AE14: Original3023515PEGRANT | AF14: 3023515PEGRANT | AG14: OriginalPEGRANT | AH14: Original3023515 | AI14: RAPriPEGRANT | AJ14: I183023515 | AK14: 3023515ADDGRANT | AL14: EFAPrimary | AM14: Original3023515ADDGRANT | AN14: 0.25 | AO14: 0.5 | AP14: 0.75 | AQ14: 1 | AR14: Education Funding Agency | AS14: None | AT14: 0 | AU14: Academy | AV14: 0 | AW14: 0 | AX14: 0 | AY14: 0 | AZ14: 0 | BA14: 0 | BB14: 0 | BC14: 0 | BD14: 0 | BE14: 0 | BF14: 0 | BG14: 0 | BH14: 0 | BI14: PE Grant | BJ14: 0 | BK14: 3023515PEGRANT | BL14: 7391.67 | BM14: 0 | BN14: 0 | BO14: EFAPEGRANTRAPrimary | BP14: 0 | BQ14: Original3023515PEGRANT | BR14: Estimate | BS14: 36 | BT14: 0 | BU14: RA0 | BV14: 3 | BW14: 0 | BX14: 0 | BY14: 0 | BZ14: 0 | CA14: 0 | CB14: 0 | CC14: 0 | CD14: 0 | CE14: 0 | CF14: 0 | CG14: 0 | CH14: 0 | CI14: 0 | CJ14: 0 | CK14: 0 | CL14: 0 | CM14: 0 | CN14: N | CO14: 3023515 | CP14: Independent Jewish Day School | CQ14: Original3023515PEGRANT | CR14: Original3023515 | CS14: 3023515PEGRANT | CT14: Original3023515I18 | CU14: =CO14&IF(O14="EARLYYEARS",VLOOKUP(N14,Rates!A:AT,24,0),N14) -> 3023515PEGRANT | CV14: Original3023515PEGRANT | CW14: Original3023515ADDGRANT | CX14: 3023515ADDGRANT
A15: 20181006 | B15: 2017-12-13 | C15: CK | D15: Original | E15: 3022004 | F15: Rimon Jewish Primary School | G15: Primary | H15: RA | I15: 155029 | J15: Academy | K15: 0 | L15: 5/12ths of 2017/18 academic year (Apr18 to Aug18) | M15: FREE | N15: PEGRANT | O15: ADDGRANT | P15: 1 | Q15: various | R15: 7104.166667 | S15: 7104.17 | T15: EFA | U15: 516500 | V15: I18 | W15: 0 | X15: 0 | Y15: 0 | Z15: 0 | AA15: 0 | AB15: 0 | AC15: 0 | AD15: 3022004PEGRANTAcademy | AE15: Original3022004PEGRANT | AF15: 3022004PEGRANT | AG15: OriginalPEGRANT | AH15: Original3022004 | AI15: RAPriPEGRANT | AJ15: I183022004 | AK15: 3022004ADDGRANT | AL15: EFAPrimary | AM15: Original3022004ADDGRANT | AN15: 0.25 | AO15: 0.5 | AP15: 0.75 | AQ15: 1 | AR15: Education Funding Agency | AS15: None | AT15: 0 | AU15: Academy | AV15: 0 | AW15: 0 | AX15: 0 | AY15: 0 | AZ15: 0 | BA15: 0 | BB15: 0 | BC15: 0 | BD15: 0 | BE15: 0 | BF15: 0 | BG15: 0 | BH15: 0 | BI15: PE Grant | BJ15: 0 | BK15: 3022004PEGRANT | BL15: 7104.17 | BM15: 0 | BN15: 0 | BO15: EFAPEGRANTRAPrimary | BP15: 0 | BQ15: Original3022004PEGRANT | BR15: Estimate | BS15: 36 | BT15: 0 | BU15: RA0 | BV15: 3 | BW15: 0 | BX15: 0 | BY15: 0 | BZ15: 0 | CA15: 0 | CB15: 0 | CC15: 0 | CD15: 0 | CE15: 0 | CF15: 0 | CG15: 0 | CH15: 0 | CI15: 0 | CJ15: 0 | CK15: 0 | CL15: 0 | CM15: 0 | CN15: N | CO15: 3022004 | CP15: Rimon Jewish Primary School | CQ15: Original3022004PEGRANT | CR15: Original3022004 | CS15: 3022004PEGRANT | CT15: Original3022004I18 | CU15: =CO15&IF(O15="EARLYYEARS",VLOOKUP(N15,Rates!A:AT,24,0),N15) -> 3022004PEGRANT | CV15: Original3022004PEGRANT | CW15: Original3022004ADDGRANT | CX15: 3022004ADDGRANT
A16: 20181007 | B16: 2017-12-13 | C16: CK | D16: Original | E16: 3022030 | F16: Grasvenor Avenue Infants | G16: Primary | H16: RA | I16: 148347 | J16: Academy | K16: 0 | L16: 5/12ths of 2017/18 academic year (Apr18 to Aug18) | M16: ACAD | N16: PEGRANT | O16: ADDGRANT | P16: 1 | Q16: various | R16: 6891.666667 | S16: 6891.67 | T16: EFA | U16: 516500 | V16: I18 | W16: 0 | X16: 0 | Y16: 0 | Z16: 0 | AA16: 0 | AB16: 0 | AC16: 0 | AD16: 3022030PEGRANTAcademy | AE16: Original3022030PEGRANT | AF16: 3022030PEGRANT | AG16: OriginalPEGRANT | AH16: Original3022030 | AI16: RAPriPEGRANT | AJ16: I183022030 | AK16: 3022030ADDGRANT | AL16: EFAPrimary | AM16: Original3022030ADDGRANT | AN16: 0.25 | AO16: 0.5 | AP16: 0.75 | AQ16: 1 | AR16: Education Funding Agency | AS16: None | AT16: 0 | AU16: Academy | AV16: 0 | AW16: 0 | AX16: 0 | AY16: 0 | AZ16: 0 | BA16: 0 | BB16: 0 | BC16: 0 | BD16: 0 | BE16: 0 | BF16: 0 | BG16: 0 | BH16: 0 | BI16: PE Grant | BJ16: 0 | BK16: 3022030PEGRANT | BL16: 6891.67 | BM16: 0 | BN16: 0 | BO16: EFAPEGRANTRAPrimary | BP16: 0 | BQ16: Original3022030PEGRANT | BR16: Estimate | BS16: 36 | BT16: 0 | BU16: RA0 | BV16: 3 | BW16: 0 | BX16: 0 | BY16: 0 | BZ16: 0 | CA16: 0 | CB16: 0 | CC16: 0 | CD16: 0 | CE16: 0 | CF16: 0 | CG16: 0 | CH16: 0 | CI16: 0 | CJ16: 0 | CK16: 0 | CL16: 0 | CM16: 0 | CN16: N | CO16: 3022030 | CP16: Grasvenor Avenue Infants | CQ16: Original3022030PEGRANT | CR16: Original3022030 | CS16: 3022030PEGRANT | CT16: Original3022030I18 | CU16: =CO16&IF(O16="EARLYYEARS",VLOOKUP(N16,Rates!A:AT,24,0),N16) -> 3022030PEGRANT | CV16: Original3022030PEGRANT | CW16: Original3022030ADDGRANT | CX16: 3022030ADDGRANT
A17: 20181008 | B17: 2017-12-13 | C17: CK | D17: Original | E17: 3022018 | F17: Deansbrook Junior School | G17: Primary | H17: RA | I17: 151094 | J17: Academy | K17: 0 | L17: 5/12ths of 2017/18 academic year (Apr18 to Aug18) | M17: ACAD | N17: PEGRANT | O17: ADDGRANT | P17: 1 | Q17: various | R17: 8270.833333 | S17: 8270.83 | T17: EFA | U17: 516500 | V17: I18 | W17: 0 | X17: 0 | Y17: 0 | Z17: 0 | AA17: 0 | AB17: 0 | AC17: 0 | AD17: 3022018PEGRANTAcademy | AE17: Original3022018PEGRANT | AF17: 3022018PEGRANT | AG17: OriginalPEGRANT | AH17: Original3022018 | AI17: RAPriPEGRANT | AJ17: I183022018 | AK17: 3022018ADDGRANT | AL17: EFAPrimary | AM17: Original3022018ADDGRANT | AN17: 0.25 | AO17: 0.5 | AP17: 0.75 | AQ17: 1 | AR17: Education Funding Agency | AS17: None | AT17: 0 | AU17: Academy | AV17: 0 | AW17: 0 | AX17: 0 | AY17: 0 | AZ17: 0 | BA17: 0 | BB17: 0 | BC17: 0 | BD17: 0 | BE17: 0 | BF17: 0 | BG17: 0 | BH17: 0 | BI17: PE Grant | BJ17: 0 | BK17: 3022018PEGRANT | BL17: 8270.83 | BM17: 0 | BN17: 0 | BO17: EFAPEGRANTRAPrimary | BP17: 0 | BQ17: Original3022018PEGRANT | BR17: Estimate | BS17: 36 | BT17: 0 | BU17: RA0 | BV17: 3 | BW17: 0 | BX17: 0 | BY17: 0 | BZ17: 0 | CA17: 0 | CB17: 0 | CC17: 0 | CD17: 0 | CE17: 0 | CF17: 0 | CG17: 0 | CH17: 0 | CI17: 0 | CJ17: 0 | CK17: 0 | CL17: 0 | CM17: 0 | CN17: N | CO17: 3022018 | CP17: Deansbrook Junior School | CQ17: Original3022018PEGRANT | CR17: Original3022018 | CS17: 3022018PEGRANT | CT17: Original3022018I18 | CU17: =CO17&IF(O17="EARLYYEARS",VLOOKUP(N17,Rates!A:AT,24,0),N17) -> 3022018PEGRANT | CV17: Original3022018PEGRANT | CW17: Original3022018ADDGRANT | CX17: 3022018ADDGRANT
A18: 20181009 | B18: 2017-12-13 | C18: CK | D18: Original | E18: 3022020 | F18: Alma Primary | G18: Primary | H18: RA | I18: 156270 | J18: Academy | K18: 0 | L18: 5/12ths of 2017/18 academic year (Apr18 to Aug18) | M18: FREE | N18: PEGRANT | O18: ADDGRANT | P18: 1 | Q18: various | R18: 7041.666667 | S18: 7041.67 | T18: EFA | U18: 516500 | V18: I18 | W18: 0 | X18: 0 | Y18: 0 | Z18: 0 | AA18: 0 | AB18: 0 | AC18: 0 | AD18: 3022020PEGRANTAcademy | AE18: Original3022020PEGRANT | AF18: 3022020PEGRANT | AG18: OriginalPEGRANT | AH18: Original3022020 | AI18: RAPriPEGRANT | AJ18: I183022020 | AK18: 3022020ADDGRANT | AL18: EFAPrimary | AM18: Original3022020ADDGRANT | AN18: 0.25 | AO18: 0.5 | AP18: 0.75 | AQ18: 1 | AR18: Education Funding Agency | AS18: None | AT18: 0 | AU18: Academy | AV18: 0 | AW18: 0 | AX18: 0 | AY18: 0 | AZ18: 0 | BA18: 0 | BB18: 0 | BC18: 0 | BD18: 0 | BE18: 0 | BF18: 0 | BG18: 0 | BH18: 0 | BI18: PE Grant | BJ18: 0 | BK18: 3022020PEGRANT | BL18: 7041.67 | BM18: 0 | BN18: 0 | BO18: EFAPEGRANTRAPrimary | BP18: 0 | BQ18: Original3022020PEGRANT | BR18: Estimate | BS18: 36 | BT18: 0 | BU18: RA0 | BV18: 3 | BW18: 0 | BX18: 0 | BY18: 0 | BZ18: 0 | CA18: 0 | CB18: 0 | CC18: 0 | CD18: 0 | CE18: 0 | CF18: 0 | CG18: 0 | CH18: 0 | CI18: 0 | CJ18: 0 | CK18: 0 | CL18: 0 | CM18: 0 | CN18: N | CO18: 3022020 | CP18: Alma Primary | CQ18: Original3022020PEGRANT | CR18: Original3022020 | CS18: 3022020PEGRANT | CT18: Original3022020I18 | CU18: =CO18&IF(O18="EARLYYEARS",VLOOKUP(N18,Rates!A:AT,24,0),N18) -> 3022020PEGRANT | CV18: Original3022020PEGRANT | CW18: Original3022020ADDGRANT | CX18: 3022020ADDGRANT
A19: 20181010 | B19: 2017-12-13 | C19: CK | D19: Original | E19: 3022038 | F19: Parkfield Primary School | G19: Primary | H19: RA | I19: 152217 | J19: Academy | K19: 0 | L19: 5/12ths of 2017/18 academic year (Apr18 to Aug18) | M19: ACAD | N19: PEGRANT | O19: ADDGRANT | P19: 1 | Q19: various | R19: 8100 | S19: 8100 | T19: EFA | U19: 516500 | V19: I18 | W19: 0 | X19: 0 | Y19: 0 | Z19: 0 | AA19: 0 | AB19: 0 | AC19: 0 | AD19: 3022038PEGRANTAcademy | AE19: Original3022038PEGRANT | AF19: 3022038PEGRANT | AG19: OriginalPEGRANT | AH19: Original3022038 | AI19: RAPriPEGRANT | AJ19: I183022038 | AK19: 3022038ADDGRANT | AL19: EFAPrimary | AM19: Original3022038ADDGRANT | AN19: 0.25 | AO19: 0.5 | AP19: 0.75 | AQ19: 1 | AR19: Education Funding Agency | AS19: None | AT19: 0 | AU19: Academy | AV19: 0 | AW19: 0 | AX19: 0 | AY19: 0 | AZ19: 0 | BA19: 0 | BB19: 0 | BC19: 0 | BD19: 0 | BE19: 0 | BF19: 0 | BG19: 0 | BH19: 0 | BI19: PE Grant | BJ19: 0 | BK19: 3022038PEGRANT | BL19: 8100 | BM19: 0 | BN19: 0 | BO19: EFAPEGRANTRAPrimary | BP19: 0 | BQ19: Original3022038PEGRANT | BR19: Estimate | BS19: 36 | BT19: 0 | BU19: RA0 | BV19: 3 | BW19: 0 | BX19: 0 | BY19: 0 | BZ19: 0 | CA19: 0 | CB19: 0 | CC19: 0 | CD19: 0 | CE19: 0 | CF19: 0 | CG19: 0 | CH19: 0 | CI19: 0 | CJ19: 0 | CK19: 0 | CL19: 0 | CM19: 0 | CN19: N | CO19: 3022038 | CP19: Parkfield Primary School | CQ19: Original3022038PEGRANT | CR19: Original3022038 | CS19: 3022038PEGRANT | CT19: Original3022038I18 | CU19: =CO19&IF(O19="EARLYYEARS",VLOOKUP(N19,Rates!A:AT,24,0),N19) -> 3022038PEGRANT | CV19: Original3022038PEGRANT | CW19: Original3022038ADDGRANT | CX19: 3022038ADDGRANT
A20: 20181011 | B20: 2017-12-13 | C20: CK | D20: Original | E20: 3022047 | F20: Hyde School | G20: Primary | H20: RA | I20: 151702 | J20: Academy | K20: 0 | L20: 5/12ths of 2017/18 academic year (Apr18 to Aug18) | M20: ACAD | N20: PEGRANT | O20: ADDGRANT | P20: 1 | Q20: various | R20: 8158.333333 | S20: 8158.33 | T20: EFA | U20: 516500 | V20: I18 | W20: 0 | X20: 0 | Y20: 0 | Z20: 0 | AA20: 0 | AB20: 0 | AC20: 0 | AD20: 3022047PEGRANTAcademy | AE20: Original3022047PEGRANT | AF20: 3022047PEGRANT | AG20: OriginalPEGRANT | AH20: Original3022047 | AI20: RAPriPEGRANT | AJ20: I183022047 | AK20: 3022047ADDGRANT | AL20: EFAPrimary | AM20: Original3022047ADDGRANT | AN20: 0.25 | AO20: 0.5 | AP20: 0.75 | AQ20: 1 | AR20: Education Funding Agency | AS20: None | AT20: 0 | AU20: Academy | AV20: 0 | AW20: 0 | AX20: 0 | AY20: 0 | AZ20: 0 | BA20: 0 | BB20: 0 | BC20: 0 | BD20: 0 | BE20: 0 | BF20: 0 | BG20: 0 | BH20: 0 | BI20: PE Grant | BJ20: 0 | BK20: 3022047PEGRANT | BL20: 8158.33 | BM20: 0 | BN20: 0 | BO20: EFAPEGRANTRAPrimary | BP20: 0 | BQ20: Original3022047PEGRANT | BR20: Estimate | BS20: 36 | BT20: 0 | BU20: RA0 | BV20: 3 | BW20: 0 | BX20: 0 | BY20: 0 | BZ20: 0 | CA20: 0 | CB20: 0 | CC20: 0 | CD20: 0 | CE20: 0 | CF20: 0 | CG20: 0 | CH20: 0 | CI20: 0 | CJ20: 0 | CK20: 0 | CL20: 0 | CM20: 0 | CN20: N | CO20: 3022047 | CP20: Hyde School | CQ20: Original3022047PEGRANT | CR20: Original3022047 | CS20: 3022047PEGRANT | CT20: Original3022047I18 | CU20: =CO20&IF(O20="EARLYYEARS",VLOOKUP(N20,Rates!A:AT,24,0),N20) -> 3022047PEGRANT | CV20: Original3022047PEGRANT | CW20: Original3022047ADDGRANT | CX20: 3022047ADDGRANT
A21: 20181012 | B21: 2017-12-13 | C21: CK | D21: Original | E21: 3023519 | F21: Broadfields Primary School | G21: Primary | H21: RA | I21: 152128 | J21: Academy | K21: 0 | L21: 5/12ths of 2017/18 academic year (Apr18 to Aug18) | M21: ACAD | N21: PEGRANT | O21: ADDGRANT | P21: 1 | Q21: various | R21: 8995.833333 | S21: 8995.83 | T21: EFA | U21: 516500 | V21: I18 | W21: 0 | X21: 0 | Y21: 0 | Z21: 0 | AA21: 0 | AB21: 0 | AC21: 0 | AD21: 3023519PEGRANTAcademy | AE21: Original3023519PEGRANT | AF21: 3023519PEGRANT | AG21: OriginalPEGRANT | AH21: Original3023519 | AI21: RAPriPEGRANT | AJ21: I183023519 | AK21: 3023519ADDGRANT | AL21: EFAPrimary | AM21: Original3023519ADDGRANT | AN21: 0.25 | AO21: 0.5 | AP21: 0.75 | AQ21: 1 | AR21: Education Funding Agency | AS21: None | AT21: 0 | AU21: Academy | AV21: 0 | AW21: 0 | AX21: 0 | AY21: 0 | AZ21: 0 | BA21: 0 | BB21: 0 | BC21: 0 | BD21: 0 | BE21: 0 | BF21: 0 | BG21: 0 | BH21: 0 | BI21: PE Grant | BJ21: 0 | BK21: 3023519PEGRANT | BL21: 8995.83 | BM21: 0 | BN21: 0 | BO21: EFAPEGRANTRAPrimary | BP21: 0 | BQ21: Original3023519PEGRANT | BR21: Estimate | BS21: 36 | BT21: 0 | BU21: RA0 | BV21: 3 | BW21: 0 | BX21: 0 | BY21: 0 | BZ21: 0 | CA21: 0 | CB21: 0 | CC21: 0 | CD21: 0 | CE21: 0 | CF21: 0 | CG21: 0 | CH21: 0 | CI21: 0 | CJ21: 0 | CK21: 0 | CL21: 0 | CM21: 0 | CN21: N | CO21: 3023519 | CP21: Broadfields Primary School | CQ21: Original3023519PEGRANT | CR21: Original3023519 | CS21: 3023519PEGRANT | CT21: Original3023519I18 | CU21: =CO21&IF(O21="EARLYYEARS",VLOOKUP(N21,Rates!A:AT,24,0),N21) -> 3023519PEGRANT | CV21: Original3023519PEGRANT | CW21: Original3023519ADDGRANT | CX21: 3023519ADDGRANT
A22: 20181013 | B22: 2017-12-13 | C22: CK | D22: Original | E22: 3022048 | F22: Millbrook Park CE Primary School | G22: Primary | H22: RA | I22: 155126 | J22: Academy | K22: 0 | L22: 5/12ths of 2017/18 academic year (Apr18 to Aug18) | M22: ACAD | N22: PEGRANT | O22: ADDGRANT | P22: 1 | Q22: various | R22: 7108.333333 | S22: 7108.33 | T22: EFA | U22: 516500 | V22: I18 | W22: 0 | X22: 0 | Y22: 0 | Z22: 0 | AA22: 0 | AB22: 0 | AC22: 0 | AD22: 3022048PEGRANTAcademy | AE22: Original3022048PEGRANT | AF22: 3022048PEGRANT | AG22: OriginalPEGRANT | AH22: Original3022048 | AI22: RAPriPEGRANT | AJ22: I183022048 | AK22: 3022048ADDGRANT | AL22: EFAPrimary | AM22: Original3022048ADDGRANT | AN22: 0.25 | AO22: 0.5 | AP22: 0.75 | AQ22: 1 | AR22: Education Funding Agency | AS22: None | AT22: 0 | AU22: Academy | AV22: 0 | AW22: 0 | AX22: 0 | AY22: 0 | AZ22: 0 | BA22: 0 | BB22: 0 | BC22: 0 | BD22: 0 | BE22: 0 | BF22: 0 | BG22: 0 | BH22: 0 | BI22: PE Grant | BJ22: 0 | BK22: 3022048PEGRANT | BL22: 7108.33 | BM22: 0 | BN22: 0 | BO22: EFAPEGRANTRAPrimary | BP22: 0 | BQ22: Original3022048PEGRANT | BR22: Estimate | BS22: 36 | BT22: 0 | BU22: RA0 | BV22: 3 | BW22: 0 | BX22: 0 | BY22: 0 | BZ22: 0 | CA22: 0 | CB22: 0 | CC22: 0 | CD22: 0 | CE22: 0 | CF22: 0 | CG22: 0 | CH22: 0 | CI22: 0 | CJ22: 0 | CK22: 0 | CL22: 0 | CM22: 0 | CN22: N | CO22: 3022048 | CP22: Millbrook Park CE Primary School | CQ22: Original3022048PEGRANT | CR22: Original3022048 | CS22: 3022048PEGRANT | CT22: Original3022048I18 | CU22: =CO22&IF(O22="EARLYYEARS",VLOOKUP(N22,Rates!A:AT,24,0),N22) -> 3022048PEGRANT | CV22: Original3022048PEGRANT | CW22: Original3022048ADDGRANT | CX22: 3022048ADDGRANT
A23: 20181014 | B23: 2017-12-13 | C23: CK | D23: Original | E23: 3022049 | F23: Watling Park Free School | G23: Primary | H23: RA | I23: 157055 | J23: Academy | K23: 0 | L23: 5/12ths of 2017/18 academic year (Apr18 to Aug18) | M23: ACAD | N23: PEGRANT | O23: ADDGRANT | P23: 1 | Q23: various | R23: 6908.333333 | S23: 6908.33 | T23: EFA | U23: 516500 | V23: I18 | W23: 0 | X23: 0 | Y23: 0 | Z23: 0 | AA23: 0 | AB23: 0 | AC23: 0 | AD23: 3022049PEGRANTAcademy | AE23: Original3022049PEGRANT | AF23: 3022049PEGRANT | AG23: OriginalPEGRANT | AH23: Original3022049 | AI23: RAPriPEGRANT | AJ23: I183022049 | AK23: 3022049ADDGRANT | AL23: EFAPrimary | AM23: Original3022049ADDGRANT | AN23: 0.25 | AO23: 0.5 | AP23: 0.75 | AQ23: 1 | AR23: Education Funding Agency | AS23: None | AT23: 0 | AU23: Academy | AV23: 0 | AW23: 0 | AX23: 0 | AY23: 0 | AZ23: 0 | BA23: 0 | BB23: 0 | BC23: 0 | BD23: 0 | BE23: 0 | BF23: 0 | BG23: 0 | BH23: 0 | BI23: PE Grant | BJ23: 0 | BK23: 3022049PEGRANT | BL23: 6908.33 | BM23: 0 | BN23: 0 | BO23: EFAPEGRANTRAPrimary | BP23: 0 | BQ23: Original3022049PEGRANT | BR23: Estimate | BS23: 36 | BT23: 0 | BU23: RA0 | BV23: 3 | BW23: 0 | BX23: 0 | BY23: 0 | BZ23: 0 | CA23: 0 | CB23: 0 | CC23: 0 | CD23: 0 | CE23: 0 | CF23: 0 | CG23: 0 | CH23: 0 | CI23: 0 | CJ23: 0 | CK23: 0 | CL23: 0 | CM23: 0 | CN23: N | CO23: 3022049 | CP23: Watling Park Free School | CQ23: Original3022049PEGRANT | CR23: Original3022049 | CS23: 3022049PEGRANT | CT23: Original3022049I18 | CU23: =CO23&IF(O23="EARLYYEARS",VLOOKUP(N23,Rates!A:AT,24,0),N23) -> 3022049PEGRANT | CV23: Original3022049PEGRANT | CW23: Original3022049ADDGRANT | CX23: 3022049ADDGRANT
A24: 20181015 | B24: 2017-12-13 | C24: CK | D24: Original | E24: 3023522 | F24: Claremont Academy | G24: Primary | H24: RA | I24: 156151 | J24: Academy | K24: 0 | L24: 5/12ths of 2017/18 academic year (Apr18 to Aug18) | M24: ACAD | N24: PEGRANT | O24: ADDGRANT | P24: 1 | Q24: various | R24: 8004.166667 | S24: 8004.17 | T24: EFA | U24: 516500 | V24: I18 | W24: 0 | X24: 0 | Y24: 0 | Z24: 0 | AA24: 0 | AB24: 0 | AC24: 0 | AD24: 3023522PEGRANTAcademy | AE24: Original3023522PEGRANT | AF24: 3023522PEGRANT | AG24: OriginalPEGRANT | AH24: Original3023522 | AI24: RAPriPEGRANT | AJ24: I183023522 | AK24: 3023522ADDGRANT | AL24: EFAPrimary | AM24: Original3023522ADDGRANT | AN24: 0.25 | AO24: 0.5 | AP24: 0.75 | AQ24: 1 | AR24: Education Funding Agency | AS24: None | AT24: 0 | AU24: Academy | AV24: 0 | AW24: 0 | AX24: 0 | AY24: 0 | AZ24: 0 | BA24: 0 | BB24: 0 | BC24: 0 | BD24: 0 | BE24: 0 | BF24: 0 | BG24: 0 | BH24: 0 | BI24: PE Grant | BJ24: 0 | BK24: 3023522PEGRANT | BL24: 8004.17 | BM24: 0 | BN24: 0 | BO24: EFAPEGRANTRAPrimary | BP24: 0 | BQ24: Original3023522PEGRANT | BR24: Estimate | BS24: 36 | BT24: 0 | BU24: RA0 | BV24: 3 | BW24: 0 | BX24: 0 | BY24: 0 | BZ24: 0 | CA24: 0 | CB24: 0 | CC24: 0 | CD24: 0 | CE24: 0 | CF24: 0 | CG24: 0 | CH24: 0 | CI24: 0 | CJ24: 0 | CK24: 0 | CL24: 0 | CM24: 0 | CN24: N | CO24: 3023522 | CP24: Claremont Academy | CQ24: Original3023522PEGRANT | CR24: Original3023522 | CS24: 3023522PEGRANT | CT24: Original3023522I18 | CU24: =CO24&IF(O24="EARLYYEARS",VLOOKUP(N24,Rates!A:AT,24,0),N24) -> 3023522PEGRANT | CV24: Original3023522PEGRANT | CW24: Original3023522ADDGRANT | CX24: 3023522ADDGRANT
A25: 20181016 | B25: 2017-12-13 | C25: CK | D25: Original | E25: 3022051 | F25: Summerside Primary Academy | G25: Primary | H25: RA | I25: 157542 | J25: Academy | K25: 0 | L25: 5/12ths of 2017/18 academic year (Apr18 to Aug18) | M25: ACAD | N25: PEGRANT | O25: ADDGRANT | P25: 1 | Q25: various | R25: 8416.666667 | S25: 8416.67 | T25: EFA | U25: 516500 | V25: I18 | W25: 0 | X25: 0 | Y25: 0 | Z25: 0 | AA25: 0 | AB25: 0 | AC25: 0 | AD25: 3022051PEGRANTAcademy | AE25: Original3022051PEGRANT | AF25: 3022051PEGRANT | AG25: OriginalPEGRANT | AH25: Original3022051 | AI25: RAPriPEGRANT | AJ25: I183022051 | AK25: 3022051ADDGRANT | AL25: EFAPrimary | AM25: Original3022051ADDGRANT | AN25: 0.25 | AO25: 0.5 | AP25: 0.75 | AQ25: 1 | AR25: Education Funding Agency | AS25: None | AT25: 0 | AU25: Academy | AV25: 0 | AW25: 0 | AX25: 0 | AY25: 0 | AZ25: 0 | BA25: 0 | BB25: 0 | BC25: 0 | BD25: 0 | BE25: 0 | BF25: 0 | BG25: 0 | BH25: 0 | BI25: PE Grant | BJ25: 0 | BK25: 3022051PEGRANT | BL25: 8416.67 | BM25: 0 | BN25: 0 | BO25: EFAPEGRANTRAPrimary | BP25: 0 | BQ25: Original3022051PEGRANT | BR25: Estimate | BS25: 36 | BT25: 0 | BU25: RA0 | BV25: 3 | BW25: 0 | BX25: 0 | BY25: 0 | BZ25: 0 | CA25: 0 | CB25: 0 | CC25: 0 | CD25: 0 | CE25: 0 | CF25: 0 | CG25: 0 | CH25: 0 | CI25: 0 | CJ25: 0 | CK25: 0 | CL25: 0 | CM25: 0 | CN25: N | CO25: 3022051 | CP25: Summerside Primary Academy | CQ25: Original3022051PEGRANT | CR25: Original3022051 | CS25: 3022051PEGRANT | CT25: Original3022051I18 | CU25: =CO25&IF(O25="EARLYYEARS",VLOOKUP(N25,Rates!A:AT,24,0),N25) -> 3022051PEGRANT | CV25: Original3022051PEGRANT | CW25: Original3022051ADDGRANT | CX25: 3022051ADDGRANT
A26: 20181017 | B26: 2017-12-13 | C26: CK | D26: Original | E26: 3021100 | F26: Pavilion | G26: PRU | H26: MA | I26: 400156 | J26: 10188 | K26: 0 | L26: 5/12ths of 2017/18 academic year (Apr18 to Aug18) | M26: COM | N26: PEGRANT | O26: ADDGRANT | P26: 1 | Q26: various | R26: 833.3333333 | S26: 833.33 | T26: 10168 | U26: 543965 | V26: I18 | W26: 1 | X26: 208.33 | Y26: 208.34 | Z26: 208.33 | AA26: 208.33 | AB26: 0 | AC26: 0 | AD26: 3021100PEGRANTA | AE26: Original3021100PEGRANT | AF26: 3021100PEGRANT | AG26: OriginalPEGRANT | AH26: Original3021100 | AI26: MAPRUPEGRANT | AJ26: I183021100 | AK26: 3021100ADDGRANT | AL26: 10168PRU | AM26: Original3021100ADDGRANT | AN26: 0.25 | AO26: 0.5 | AP26: 0.75 | AQ26: 1 | AR26: SF Grants Paid To Special Schools | AS26: AddGrants | AT26: 0 | AU26: A | AV26: 0 | AW26: 0 | AX26: 0 | AY26: 0 | AZ26: 0 | BA26: 0 | BB26: 0 | BC26: 0 | BD26: 0 | BE26: 0 | BF26: 0 | BG26: 0 | BH26: 0 | BI26: PE Grant | BJ26: 0 | BK26: 3021100PEGRANT | BL26: 0 | BM26: 0 | BN26: 0 | BO26: 10168PEGRANTMAPRU | BP26: 833.33 | BQ26: Original3021100PEGRANT | BR26: Estimate | BS26: 36 | BT26: 0 | BU26: MA0 | BV26: 4 | BW26: 0 | BX26: 0 | BY26: 0 | BZ26: 0 | CA26: 0 | CB26: 0 | CC26: 0 | CD26: 0 | CE26: 0 | CF26: 0 | CG26: 0 | CH26: 0 | CI26: 0 | CJ26: 0 | CK26: 0 | CL26: 0 | CM26: 0 | CN26: N | CO26: 3021100 | CP26: Pavilion | CQ26: Original3021100PEGRANT | CR26: Original3021100 | CS26: 3021100PEGRANT | CT26: Original3021100I18 | CU26: =CO26&IF(O26="EARLYYEARS",VLOOKUP(N26,Rates!A:AT,24,0),N26) -> 3021100PEGRANT | CV26: Original3021100PEGRANT | CW26: Original3021100ADDGRANT | CX26: 3021100ADDGRANT
A27: 20181018 | B27: 2017-12-13 | C27: CK | D27: Original | E27: 3022002 | F27: Barnfield School | G27: Primary | H27: MA | I27: 400005 | J27: 10044 | K27: 0 | L27: 5/12ths of 2017/18 academic year (Apr18 to Aug18) | M27: COM | N27: PEGRANT | O27: ADDGRANT | P27: 1 | Q27: various | R27: 8387.5 | S27: 8387.5 | T27: 10166 | U27: 543965 | V27: I18 | W27: 1 | X27: 2096.88 | Y27: 2096.87 | Z27: 2096.88 | AA27: 2096.87 | AB27: 0 | AC27: 0 | AD27: 3022002PEGRANTD | AE27: Original3022002PEGRANT | AF27: 3022002PEGRANT | AG27: OriginalPEGRANT | AH27: Original3022002 | AI27: MAPriPEGRANT | AJ27: I183022002 | AK27: 3022002ADDGRANT | AL27: 10166Primary | AM27: Original3022002ADDGRANT | AN27: 0.25 | AO27: 0.5 | AP27: 0.75 | AQ27: 1 | AR27: SF Grants Paid To Primary Schools | AS27: AddGrants | AT27: 0 | AU27: D | AV27: 0 | AW27: 0 | AX27: 0 | AY27: 0 | AZ27: 0 | BA27: 0 | BB27: 0 | BC27: 0 | BD27: 0 | BE27: 0 | BF27: 0 | BG27: 0 | BH27: 0 | BI27: PE Grant | BJ27: 0 | BK27: 3022002PEGRANT | BL27: 0 | BM27: 0 | BN27: 0 | BO27: 10166PEGRANTMAPrimary | BP27: 8387.5 | BQ27: Original3022002PEGRANT | BR27: Estimate | BS27: 36 | BT27: 0 | BU27: MA0 | BV27: 4 | BW27: 0 | BX27: 0 | BY27: 0 | BZ27: 0 | CA27: 0 | CB27: 0 | CC27: 0 | CD27: 0 | CE27: 0 | CF27: 0 | CG27: 0 | CH27: 0 | CI27: 0 | CJ27: 0 | CK27: 0 | CL27: 0 | CM27: 0 | CN27: N | CO27: 3022002 | CP27: Barnfield School | CQ27: Original3022002PEGRANT | CR27: Original3022002 | CS27: 3022002PEGRANT | CT27: Original3022002I18 | CU27: =CO27&IF(O27="EARLYYEARS",VLOOKUP(N27,Rates!A:AT,24,0),N27) -> 3022002PEGRANT | CV27: Original3022002PEGRANT | CW27: Original3022002ADDGRANT | CX27: 3022002ADDGRANT
A28: 20181019 | B28: 2017-12-13 | C28: CK | D28: Original | E28: 3022003 | F28: Bell Lane Primary School | G28: Primary | H28: MA | I28: 400051 | J28: 10045 | K28: 0 | L28: 5/12ths of 2017/18 academic year (Apr18 to Aug18) | M28: COM | N28: PEGRANT | O28: ADDGRANT | P28: 1 | Q28: various | R28: 8062.5 | S28: 8062.5 | T28: 10166 | U28: 543965 | V28: I18 | W28: 1 | X28: 2015.63 | Y28: 2015.62 | Z28: 2015.63 | AA28: 2015.62 | AB28: 0 | AC28: 0 | AD28: 3022003PEGRANTA | AE28: Original3022003PEGRANT | AF28: 3022003PEGRANT | AG28: OriginalPEGRANT | AH28: Original3022003 | AI28: MAPriPEGRANT | AJ28: I183022003 | AK28: 3022003ADDGRANT | AL28: 10166Primary | AM28: Original3022003ADDGRANT | AN28: 0.25 | AO28: 0.5 | AP28: 0.75 | AQ28: 1 | AR28: SF Grants Paid To Primary Schools | AS28: AddGrants | AT28: 0 | AU28: A | AV28: 0 | AW28: 0 | AX28: 0 | AY28: 0 | AZ28: 0 | BA28: 0 | BB28: 0 | BC28: 0 | BD28: 0 | BE28: 0 | BF28: 0 | BG28: 0 | BH28: 0 | BI28: PE Grant | BJ28: 0 | BK28: 3022003PEGRANT | BL28: 0 | BM28: 0 | BN28: 0 | BO28: 10166PEGRANTMAPrimary | BP28: 8062.5 | BQ28: Original3022003PEGRANT | BR28: Estimate | BS28: 36 | BT28: 0 | BU28: MA0 | BV28: 4 | BW28: 0 | BX28: 0 | BY28: 0 | BZ28: 0 | CA28: 0 | CB28: 0 | CC28: 0 | CD28: 0 | CE28: 0 | CF28: 0 | CG28: 0 | CH28: 0 | CI28: 0 | CJ28: 0 | CK28: 0 | CL28: 0 | CM28: 0 | CN28: N | CO28: 3022003 | CP28: Bell Lane Primary School | CQ28: Original3022003PEGRANT | CR28: Original3022003 | CS28: 3022003PEGRANT | CT28: Original3022003I18 | CU28: =CO28&IF(O28="EARLYYEARS",VLOOKUP(N28,Rates!A:AT,24,0),N28) -> 3022003PEGRANT | CV28: Original3022003PEGRANT | CW28: Original3022003ADDGRANT | CX28: 3022003ADDGRANT
A29: 20181020 | B29: 2017-12-13 | C29: CK | D29: Original | E29: 3022007 | F29: Brookland Junior School | G29: Primary | H29: MA | I29: 400040 | J29: 10046 | K29: 0 | L29: 5/12ths of 2017/18 academic year (Apr18 to Aug18) | M29: COM | N29: PEGRANT | O29: ADDGRANT | P29: 1 | Q29: various | R29: 8145.833333 | S29: 8145.83 | T29: 10166 | U29: 543965 | V29: I18 | W29: 1 | X29: 2036.46 | Y29: 2036.46 | Z29: 2036.45 | AA29: 2036.46 | AB29: 0 | AC29: 0 | AD29: 3022007PEGRANTA | AE29: Original3022007PEGRANT | AF29: 3022007PEGRANT | AG29: OriginalPEGRANT | AH29: Original3022007 | AI29: MAPriPEGRANT | AJ29: I183022007 | AK29: 3022007ADDGRANT | AL29: 10166Primary | AM29: Original3022007ADDGRANT | AN29: 0.25 | AO29: 0.5 | AP29: 0.75 | AQ29: 1 | AR29: SF Grants Paid To Primary Schools | AS29: AddGrants | AT29: 0 | AU29: A | AV29: 0 | AW29: 0 | AX29: 0 | AY29: 0 | AZ29: 0 | BA29: 0 | BB29: 0 | BC29: 0 | BD29: 0 | BE29: 0 | BF29: 0 | BG29: 0 | BH29: 0 | BI29: PE Grant | BJ29: 0 | BK29: 3022007PEGRANT | BL29: 0 | BM29: 0 | BN29: 0 | BO29: 10166PEGRANTMAPrimary | BP29: 8145.83 | BQ29: Original3022007PEGRANT | BR29: Estimate | BS29: 36 | BT29: 0 | BU29: MA0 | BV29: 4 | BW29: 0 | BX29: 0 | BY29: 0 | BZ29: 0 | CA29: 0 | CB29: 0 | CC29: 0 | CD29: 0 | CE29: 0 | CF29: 0 | CG29: 0 | CH29: 0 | CI29: 0 | CJ29: 0 | CK29: 0 | CL29: 0 | CM29: 0 | CN29: N | CO29: 3022007 | CP29: Brookland Junior School | CQ29: Original3022007PEGRANT | CR29: Original3022007 | CS29: 3022007PEGRANT | CT29: Original3022007I18 | CU29: =CO29&IF(O29="EARLYYEARS",VLOOKUP(N29,Rates!A:AT,24,0),N29) -> 3022007PEGRANT | CV29: Original3022007PEGRANT | CW29: Original3022007ADDGRANT | CX29: 3022007ADDGRANT
A30: 20181021 | B30: 2017-12-13 | C30: CK | D30: Original | E30: 3022008 | F30: Brookland Infant & Nursery School | G30: Primary | H30: MA | I30: 400057 | J30: 10047 | K30: 0 | L30: 5/12ths of 2017/18 academic year (Apr18 to Aug18) | M30: COM | N30: PEGRANT | O30: ADDGRANT | P30: 1 | Q30: various | R30: 7412.5 | S30: 7412.5 | T30: 10166 | U30: 543965 | V30: I18 | W30: 1 | X30: 1853.13 | Y30: 1853.12 | Z30: 1853.13 | AA30: 1853.12 | AB30: 0 | AC30: 0 | AD30: 3022008PEGRANTA | AE30: Original3022008PEGRANT | AF30: 3022008PEGRANT | AG30: OriginalPEGRANT | AH30: Original3022008 | AI30: MAPriPEGRANT | AJ30: I183022008 | AK30: 3022008ADDGRANT | AL30: 10166Primary | AM30: Original3022008ADDGRANT | AN30: 0.25 | AO30: 0.5 | AP30: 0.75 | AQ30: 1 | AR30: SF Grants Paid To Primary Schools | AS30: AddGrants | AT30: 0 | AU30: A | AV30: 0 | AW30: 0 | AX30: 0 | AY30: 0 | AZ30: 0 | BA30: 0 | BB30: 0 | BC30: 0 | BD30: 0 | BE30: 0 | BF30: 0 | BG30: 0 | BH30: 0 | BI30: PE Grant | BJ30: 0 | BK30: 3022008PEGRANT | BL30: 0 | BM30: 0 | BN30: 0 | BO30: 10166PEGRANTMAPrimary | BP30: 7412.5 | BQ30: Original3022008PEGRANT | BR30: Estimate | BS30: 36 | BT30: 0 | BU30: MA0 | BV30: 4 | BW30: 0 | BX30: 0 | BY30: 0 | BZ30: 0 | CA30: 0 | CB30: 0 | CC30: 0 | CD30: 0 | CE30: 0 | CF30: 0 | CG30: 0 | CH30: 0 | CI30: 0 | CJ30: 0 | CK30: 0 | CL30: 0 | CM30: 0 | CN30: N | CO30: 3022008 | CP30: Brookland Infant & Nursery School | CQ30: Original3022008PEGRANT | CR30: Original3022008 | CS30: 3022008PEGRANT | CT30: Original3022008I18 | CU30: =CO30&IF(O30="EARLYYEARS",VLOOKUP(N30,Rates!A:AT,24,0),N30) -> 3022008PEGRANT | CV30: Original3022008PEGRANT | CW30: Original3022008ADDGRANT | CX30: 3022008ADDGRANT
A31: 20181022 | B31: 2017-12-13 | C31: CK | D31: Original | E31: 3022009 | F31: Brunswick Park Primary & Nursery School | G31: Primary | H31: MA | I31: 400061 | J31: 10048 | K31: 0 | L31: 5/12ths of 2017/18 academic year (Apr18 to Aug18) | M31: COM | N31: PEGRANT | O31: ADDGRANT | P31: 1 | Q31: various | R31: 8050 | S31: 8050 | T31: 10166 | U31: 543965 | V31: I18 | W31: 1 | X31: 2012.5 | Y31: 2012.5 | Z31: 2012.5 | AA31: 2012.5 | AB31: 0 | AC31: 0 | AD31: 3022009PEGRANTA | AE31: Original3022009PEGRANT | AF31: 3022009PEGRANT | AG31: OriginalPEGRANT | AH31: Original3022009 | AI31: MAPriPEGRANT | AJ31: I183022009 | AK31: 3022009ADDGRANT | AL31: 10166Primary | AM31: Original3022009ADDGRANT | AN31: 0.25 | AO31: 0.5 | AP31: 0.75 | AQ31: 1 | AR31: SF Grants Paid To Primary Schools | AS31: AddGrants | AT31: 0 | AU31: A | AV31: 0 | AW31: 0 | AX31: 0 | AY31: 0 | AZ31: 0 | BA31: 0 | BB31: 0 | BC31: 0 | BD31: 0 | BE31: 0 | BF31: 0 | BG31: 0 | BH31: 0 | BI31: PE Grant | BJ31: 0 | BK31: 3022009PEGRANT | BL31: 0 | BM31: 0 | BN31: 0 | BO31: 10166PEGRANTMAPrimary | BP31: 8050 | BQ31: Original3022009PEGRANT | BR31: Estimate | BS31: 36 | BT31: 0 | BU31: MA0 | BV31: 4 | BW31: 0 | BX31: 0 | BY31: 0 | BZ31: 0 | CA31: 0 | CB31: 0 | CC31: 0 | CD31: 0 | CE31: 0 | CF31: 0 | CG31: 0 | CH31: 0 | CI31: 0 | CJ31: 0 | CK31: 0 | CL31: 0 | CM31: 0 | CN31: M | CO31: 3020136 | CP31: CHBP | CQ31: Original3020136PEGRANT | CR31: Original3020136 | CS31: 3020136PEGRANT | CT31: Original3022009I18 | CU31: =CO31&IF(O31="EARLYYEARS",VLOOKUP(N31,Rates!A:AT,24,0),N31) -> 3020136PEGRANT | CV31: Original3020136PEGRANT | CW31: Original3020136ADDGRANT | CX31: 3020136ADDGRANT
A32: 20181023 | B32: 2017-12-13 | C32: CK | D32: Original | E32: 3022010 | F32: Child's Hill School | G32: Primary | H32: MA | I32: 400043 | J32: 10049 | K32: 0 | L32: 5/12ths of 2017/18 academic year (Apr18 to Aug18) | M32: COM | N32: PEGRANT | O32: ADDGRANT | P32: 1 | Q32: various | R32: 7783.333333 | S32: 7783.33 | T32: 10166 | U32: 543965 | V32: I18 | W32: 1 | X32: 1945.83 | Y32: 1945.84 | Z32: 1945.83 | AA32: 1945.83 | AB32: 0 | AC32: 0 | AD32: 3022010PEGRANTA | AE32: Original3022010PEGRANT | AF32: 3022010PEGRANT | AG32: OriginalPEGRANT | AH32: Original3022010 | AI32: MAPriPEGRANT | AJ32: I183022010 | AK32: 3022010ADDGRANT | AL32: 10166Primary | AM32: Original3022010ADDGRANT | AN32: 0.25 | AO32: 0.5 | AP32: 0.75 | AQ32: 1 | AR32: SF Grants Paid To Primary Schools | AS32: AddGrants | AT32: 0 | AU32: A | AV32: 0 | AW32: 0 | AX32: 0 | AY32: 0 | AZ32: 0 | BA32: 0 | BB32: 0 | BC32: 0 | BD32: 0 | BE32: 0 | BF32: 0 | BG32: 0 | BH32: 0 | BI32: PE Grant | BJ32: 0 | BK32: 3022010PEGRANT | BL32: 0 | BM32: 0 | BN32: 0 | BO32: 10166PEGRANTMAPrimary | BP32: 7783.33 | BQ32: Original3022010PEGRANT | BR32: Estimate | BS32: 36 | BT32: 0 | BU32: MA0 | BV32: 4 | BW32: 0 | BX32: 0 | BY32: 0 | BZ32: 0 | CA32: 0 | CB32: 0 | CC32: 0 | CD32: 0 | CE32: 0 | CF32: 0 | CG32: 0 | CH32: 0 | CI32: 0 | CJ32: 0 | CK32: 0 | CL32: 0 | CM32: 0 | CN32: N | CO32: 3022010 | CP32: Child's Hill School | CQ32: Original3022010PEGRANT | CR32: Original3022010 | CS32: 3022010PEGRANT | CT32: Original3022010I18 | CU32: =CO32&IF(O32="EARLYYEARS",VLOOKUP(N32,Rates!A:AT,24,0),N32) -> 3022010PEGRANT | CV32: Original3022010PEGRANT | CW32: Original3022010ADDGRANT | CX32: 3022010ADDGRANT
A33: 20181024 | B33: 2017-12-13 | C33: CK | D33: Original | E33: 3022011 | F33: Church Hill Primary School | G33: Primary | H33: MA | I33: 400020 | J33: 10051 | K33: 0 | L33: 5/12ths of 2017/18 academic year (Apr18 to Aug18) | M33: COM | N33: PEGRANT | O33: ADDGRANT | P33: 1 | Q33: various | R33: 7491.666667 | S33: 7491.67 | T33: 10166 | U33: 543965 | V33: I18 | W33: 1 | X33: 1872.92 | Y33: 1872.92 | Z33: 1872.91 | AA33: 1872.92 | AB33: 0 | AC33: 0 | AD33: 3022011PEGRANTA | AE33: Original3022011PEGRANT | AF33: 3022011PEGRANT | AG33: OriginalPEGRANT | AH33: Original3022011 | AI33: MAPriPEGRANT | AJ33: I183022011 | AK33: 3022011ADDGRANT | AL33: 10166Primary | AM33: Original3022011ADDGRANT | AN33: 0.25 | AO33: 0.5 | AP33: 0.75 | AQ33: 1 | AR33: SF Grants Paid To Primary Schools | AS33: AddGrants | AT33: 0 | AU33: A | AV33: 0 | AW33: 0 | AX33: 0 | AY33: 0 | AZ33: 0 | BA33: 0 | BB33: 0 | BC33: 0 | BD33: 0 | BE33: 0 | BF33: 0 | BG33: 0 | BH33: 0 | BI33: PE Grant | BJ33: 0 | BK33: 3022011PEGRANT | BL33: 0 | BM33: 0 | BN33: 0 | BO33: 10166PEGRANTMAPrimary | BP33: 7491.67 | BQ33: Original3022011PEGRANT | BR33: Estimate | BS33: 36 | BT33: 0 | BU33: MA0 | BV33: 4 | BW33: 0 | BX33: 0 | BY33: 0 | BZ33: 0 | CA33: 0 | CB33: 0 | CC33: 0 | CD33: 0 | CE33: 0 | CF33: 0 | CG33: 0 | CH33: 0 | CI33: 0 | CJ33: 0 | CK33: 0 | CL33: 0 | CM33: 0 | CN33: M | CO33: 3020136 | CP33: CHBP | CQ33: Original3020136PEGRANT | CR33: Original3020136 | CS33: 3020136PEGRANT | CT33: Original3022011I18 | CU33: =CO33&IF(O33="EARLYYEARS",VLOOKUP(N33,Rates!A:AT,24,0),N33) -> 3020136PEGRANT | CV33: Original3020136PEGRANT | CW33: Original3020136ADDGRANT | CX33: 3020136ADDGRANT
A34: 20181025 | B34: 2017-12-13 | C34: CK | D34: Original | E34: 3022014 | F34: Colindale School | G34: Primary | H34: MA | I34: 400050 | J34: 10054 | K34: 0 | L34: 5/12ths of 2017/18 academic year (Apr18 to Aug18) | M34: COM | N34: PEGRANT | O34: ADDGRANT | P34: 1 | Q34: various | R34: 9033.333333 | S34: 9033.33 | T34: 10166 | U34: 543965 | V34: I18 | W34: 1 | X34: 2258.33 | Y34: 2258.34 | Z34: 2258.33 | AA34: 2258.33 | AB34: 0 | AC34: 0 | AD34: 3022014PEGRANTA | AE34: Original3022014PEGRANT | AF34: 3022014PEGRANT | AG34: OriginalPEGRANT | AH34: Original3022014 | AI34: MAPriPEGRANT | AJ34: I183022014 | AK34: 3022014ADDGRANT | AL34: 10166Primary | AM34: Original3022014ADDGRANT | AN34: 0.25 | AO34: 0.5 | AP34: 0.75 | AQ34: 1 | AR34: SF Grants Paid To Primary Schools | AS34: AddGrants | AT34: 0 | AU34: A | AV34: 0 | AW34: 0 | AX34: 0 | AY34: 0 | AZ34: 0 | BA34: 0 | BB34: 0 | BC34: 0 | BD34: 0 | BE34: 0 | BF34: 0 | BG34: 0 | BH34: 0 | BI34: PE Grant | BJ34: 0 | BK34: 3022014PEGRANT | BL34: 0 | BM34: 0 | BN34: 0 | BO34: 10166PEGRANTMAPrimary | BP34: 9033.33 | BQ34: Original3022014PEGRANT | BR34: Estimate | BS34: 36 | BT34: 0 | BU34: MA0 | BV34: 4 | BW34: 0 | BX34: 0 | BY34: 0 | BZ34: 0 | CA34: 0 | CB34: 0 | CC34: 0 | CD34: 0 | CE34: 0 | CF34: 0 | CG34: 0 | CH34: 0 | CI34: 0 | CJ34: 0 | CK34: 0 | CL34: 0 | CM34: 0 | CN34: N | CO34: 3022014 | CP34: Colindale School | CQ34: Original3022014PEGRANT | CR34: Original3022014 | CS34: 3022014PEGRANT | CT34: Original3022014I18 | CU34: =CO34&IF(O34="EARLYYEARS",VLOOKUP(N34,Rates!A:AT,24,0),N34) -> 3022014PEGRANT | CV34: Original3022014PEGRANT | CW34: Original3022014ADDGRANT | CX34: 3022014ADDGRANT
A35: 20181026 | B35: 2017-12-13 | C35: CK | D35: Original | E35: 3022015 | F35: Coppetts Wood | G35: Primary | H35: MA | I35: 400059 | J35: 10055 | K35: 0 | L35: 5/12ths of 2017/18 academic year (Apr18 to Aug18) | M35: COM | N35: PEGRANT | O35: ADDGRANT | P35: 1 | Q35: various | R35: 7541.666667 | S35: 7541.67 | T35: 10166 | U35: 543965 | V35: I18 | W35: 1 | X35: 1885.42 | Y35: 1885.42 | Z35: 1885.41 | AA35: 1885.42 | AB35: 0 | AC35: 0 | AD35: 3022015PEGRANTA | AE35: Original3022015PEGRANT | AF35: 3022015PEGRANT | AG35: OriginalPEGRANT | AH35: Original3022015 | AI35: MAPriPEGRANT | AJ35: I183022015 | AK35: 3022015ADDGRANT | AL35: 10166Primary | AM35: Original3022015ADDGRANT | AN35: 0.25 | AO35: 0.5 | AP35: 0.75 | AQ35: 1 | AR35: SF Grants Paid To Primary Schools | AS35: AddGrants | AT35: 0 | AU35: A | AV35: 0 | AW35: 0 | AX35: 0 | AY35: 0 | AZ35: 0 | BA35: 0 | BB35: 0 | BC35: 0 | BD35: 0 | BE35: 0 | BF35: 0 | BG35: 0 | BH35: 0 | BI35: PE Grant | BJ35: 0 | BK35: 3022015PEGRANT | BL35: 0 | BM35: 0 | BN35: 0 | BO35: 10166PEGRANTMAPrimary | BP35: 7541.67 | BQ35: Original3022015PEGRANT | BR35: Estimate | BS35: 36 | BT35: 0 | BU35: MA0 | BV35: 4 | BW35: 0 | BX35: 0 | BY35: 0 | BZ35: 0 | CA35: 0 | CB35: 0 | CC35: 0 | CD35: 0 | CE35: 0 | CF35: 0 | CG35: 0 | CH35: 0 | CI35: 0 | CJ35: 0 | CK35: 0 | CL35: 0 | CM35: 0 | CN35: N | CO35: 3022015 | CP35: Coppetts Wood | CQ35: Original3022015PEGRANT | CR35: Original3022015 | CS35: 3022015PEGRANT | CT35: Original3022015I18 | CU35: =CO35&IF(O35="EARLYYEARS",VLOOKUP(N35,Rates!A:AT,24,0),N35) -> 3022015PEGRANT | CV35: Original3022015PEGRANT | CW35: Original3022015ADDGRANT | CX35: 3022015ADDGRANT
A36: 20181027 | B36: 2017-12-13 | C36: CK | D36: Original | E36: 3022016 | F36: Courtland School | G36: Primary | H36: MA | I36: 400049 | J36: 10056 | K36: 0 | L36: 5/12ths of 2017/18 academic year (Apr18 to Aug18) | M36: COM | N36: PEGRANT | O36: ADDGRANT | P36: 1 | Q36: various | R36: 7425 | S36: 7425 | T36: 10166 | U36: 543965 | V36: I18 | W36: 1 | X36: 1856.25 | Y36: 1856.25 | Z36: 1856.25 | AA36: 1856.25 | AB36: 0 | AC36: 0 | AD36: 3022016PEGRANTA | AE36: Original3022016PEGRANT | AF36: 3022016PEGRANT | AG36: OriginalPEGRANT | AH36: Original3022016 | AI36: MAPriPEGRANT | AJ36: I183022016 | AK36: 3022016ADDGRANT | AL36: 10166Primary | AM36: Original3022016ADDGRANT | AN36: 0.25 | AO36: 0.5 | AP36: 0.75 | AQ36: 1 | AR36: SF Grants Paid To Primary Schools | AS36: AddGrants | AT36: 0 | AU36: A | AV36: 0 | AW36: 0 | AX36: 0 | AY36: 0 | AZ36: 0 | BA36: 0 | BB36: 0 | BC36: 0 | BD36: 0 | BE36: 0 | BF36: 0 | BG36: 0 | BH36: 0 | BI36: PE Grant | BJ36: 0 | BK36: 3022016PEGRANT | BL36: 0 | BM36: 0 | BN36: 0 | BO36: 10166PEGRANTMAPrimary | BP36: 7425 | BQ36: Original3022016PEGRANT | BR36: Estimate | BS36: 36 | BT36: 0 | BU36: MA0 | BV36: 4 | BW36: 0 | BX36: 0 | BY36: 0 | BZ36: 0 | CA36: 0 | CB36: 0 | CC36: 0 | CD36: 0 | CE36: 0 | CF36: 0 | CG36: 0 | CH36: 0 | CI36: 0 | CJ36: 0 | CK36: 0 | CL36: 0 | CM36: 0 | CN36: N | CO36: 3022016 | CP36: Courtland School | CQ36: Original3022016PEGRANT | CR36: Original3022016 | CS36: 3022016PEGRANT | CT36: Original3022016I18 | CU36: =CO36&IF(O36="EARLYYEARS",VLOOKUP(N36,Rates!A:AT,24,0),N36) -> 3022016PEGRANT | CV36: Original3022016PEGRANT | CW36: Original3022016ADDGRANT | CX36: 3022016ADDGRANT
A37: 20181028 | B37: 2017-12-13 | C37: CK | D37: Original | E37: 3022017 | F37: Cromer Road Primary School | G37: Primary | H37: MA | I37: 400080 | J37: 10057 | K37: 0 | L37: 5/12ths of 2017/18 academic year (Apr18 to Aug18) | M37: COM | N37: PEGRANT | O37: ADDGRANT | P37: 1 | Q37: various | R37: 8120.833333 | S37: 8120.83 | T37: 10166 | U37: 543965 | V37: I18 | W37: 1 | X37: 2030.21 | Y37: 2030.21 | Z37: 2030.2 | AA37: 2030.21 | AB37: 0 | AC37: 0 | AD37: 3022017PEGRANTA | AE37: Original3022017PEGRANT | AF37: 3022017PEGRANT | AG37: OriginalPEGRANT | AH37: Original3022017 | AI37: MAPriPEGRANT | AJ37: I183022017 | AK37: 3022017ADDGRANT | AL37: 10166Primary | AM37: Original3022017ADDGRANT | AN37: 0.25 | AO37: 0.5 | AP37: 0.75 | AQ37: 1 | AR37: SF Grants Paid To Primary Schools | AS37: AddGrants | AT37: 0 | AU37: A | AV37: 0 | AW37: 0 | AX37: 0 | AY37: 0 | AZ37: 0 | BA37: 0 | BB37: 0 | BC37: 0 | BD37: 0 | BE37: 0 | BF37: 0 | BG37: 0 | BH37: 0 | BI37: PE Grant | BJ37: 0 | BK37: 3022017PEGRANT | BL37: 0 | BM37: 0 | BN37: 0 | BO37: 10166PEGRANTMAPrimary | BP37: 8120.83 | BQ37: Original3022017PEGRANT | BR37: Estimate | BS37: 36 | BT37: 0 | BU37: MA0 | BV37: 4 | BW37: 0 | BX37: 0 | BY37: 0 | BZ37: 0 | CA37: 0 | CB37: 0 | CC37: 0 | CD37: 0 | CE37: 0 | CF37: 0 | CG37: 0 | CH37: 0 | CI37: 0 | CJ37: 0 | CK37: 0 | CL37: 0 | CM37: 0 | CN37: N | CO37: 3022017 | CP37: Cromer Road Primary School | CQ37: Original3022017PEGRANT | CR37: Original3022017 | CS37: 3022017PEGRANT | CT37: Original3022017I18 | CU37: =CO37&IF(O37="EARLYYEARS",VLOOKUP(N37,Rates!A:AT,24,0),N37) -> 3022017PEGRANT | CV37: Original3022017PEGRANT | CW37: Original3022017ADDGRANT | CX37: 3022017ADDGRANT
A38: 20181029 | B38: 2017-12-13 | C38: CK | D38: Original | E38: 3022019 | F38: Deansbrook Infant School | G38: Primary | H38: MA | I38: 400036 | J38: 10059 | K38: 0 | L38: 5/12ths of 2017/18 academic year (Apr18 to Aug18) | M38: COM | N38: PEGRANT | O38: ADDGRANT | P38: 1 | Q38: various | R38: 7395.833333 | S38: 7395.83 | T38: 10166 | U38: 543965 | V38: I18 | W38: 1 | X38: 1848.96 | Y38: 1848.96 | Z38: 1848.95 | AA38: 1848.96 | AB38: 0 | AC38: 0 | AD38: 3022019PEGRANTA | AE38: Original3022019PEGRANT | AF38: 3022019PEGRANT | AG38: OriginalPEGRANT | AH38: Original3022019 | AI38: MAPriPEGRANT | AJ38: I183022019 | AK38: 3022019ADDGRANT | AL38: 10166Primary | AM38: Original3022019ADDGRANT | AN38: 0.25 | AO38: 0.5 | AP38: 0.75 | AQ38: 1 | AR38: SF Grants Paid To Primary Schools | AS38: AddGrants | AT38: 0 | AU38: A | AV38: 0 | AW38: 0 | AX38: 0 | AY38: 0 | AZ38: 0 | BA38: 0 | BB38: 0 | BC38: 0 | BD38: 0 | BE38: 0 | BF38: 0 | BG38: 0 | BH38: 0 | BI38: PE Grant | BJ38: 0 | BK38: 3022019PEGRANT | BL38: 0 | BM38: 0 | BN38: 0 | BO38: 10166PEGRANTMAPrimary | BP38: 7395.83 | BQ38: Original3022019PEGRANT | BR38: Estimate | BS38: 36 | BT38: 0 | BU38: MA0 | BV38: 4 | BW38: 0 | BX38: 0 | BY38: 0 | BZ38: 0 | CA38: 0 | CB38: 0 | CC38: 0 | CD38: 0 | CE38: 0 | CF38: 0 | CG38: 0 | CH38: 0 | CI38: 0 | CJ38: 0 | CK38: 0 | CL38: 0 | CM38: 0 | CN38: N | CO38: 3022019 | CP38: Deansbrook Infant School | CQ38: Original3022019PEGRANT | CR38: Original3022019 | CS38: 3022019PEGRANT | CT38: Original3022019I18 | CU38: =CO38&IF(O38="EARLYYEARS",VLOOKUP(N38,Rates!A:AT,24,0),N38) -> 3022019PEGRANT | CV38: Original3022019PEGRANT | CW38: Original3022019ADDGRANT | CX38: 3022019ADDGRANT
A39: 20181030 | B39: 2017-12-13 | C39: CK | D39: Original | E39: 3022021 | F39: Dollis Infant School | G39: Primary | H39: MA | I39: 400042 | J39: 10061 | K39: 0 | L39: 5/12ths of 2017/18 academic year (Apr18 to Aug18) | M39: COM | N39: PEGRANT | O39: ADDGRANT | P39: 1 | Q39: various | R39: 7366.666667 | S39: 7366.67 | T39: 10166 | U39: 543965 | V39: I18 | W39: 1 | X39: 1841.67 | Y39: 1841.67 | Z39: 1841.66 | AA39: 1841.67 | AB39: 0 | AC39: 0 | AD39: 3022021PEGRANTA | AE39: Original3022021PEGRANT | AF39: 3022021PEGRANT | AG39: OriginalPEGRANT | AH39: Original3022021 | AI39: MAPriPEGRANT | AJ39: I183022021 | AK39: 3022021ADDGRANT | AL39: 10166Primary | AM39: Original3022021ADDGRANT | AN39: 0.25 | AO39: 0.5 | AP39: 0.75 | AQ39: 1 | AR39: SF Grants Paid To Primary Schools | AS39: AddGrants | AT39: 0 | AU39: A | AV39: 0 | AW39: 0 | AX39: 0 | AY39: 0 | AZ39: 0 | BA39: 0 | BB39: 0 | BC39: 0 | BD39: 0 | BE39: 0 | BF39: 0 | BG39: 0 | BH39: 0 | BI39: PE Grant | BJ39: 0 | BK39: 3022021PEGRANT | BL39: 0 | BM39: 0 | BN39: 0 | BO39: 10166PEGRANTMAPrimary | BP39: 7366.67 | BQ39: Original3022021PEGRANT | BR39: Estimate | BS39: 36 | BT39: 0 | BU39: MA0 | BV39: 4 | BW39: 0 | BX39: 0 | BY39: 0 | BZ39: 0 | CA39: 0 | CB39: 0 | CC39: 0 | CD39: 0 | CE39: 0 | CF39: 0 | CG39: 0 | CH39: 0 | CI39: 0 | CJ39: 0 | CK39: 0 | CL39: 0 | CM39: 0 | CN39: N | CO39: 3022021 | CP39: Dollis Infant School | CQ39: Original3022021PEGRANT | CR39: Original3022021 | CS39: 3022021PEGRANT | CT39: Original3022021I18 | CU39: =CO39&IF(O39="EARLYYEARS",VLOOKUP(N39,Rates!A:AT,24,0),N39) -> 3022021PEGRANT | CV39: Original3022021PEGRANT | CW39: Original3022021ADDGRANT | CX39: 3022021ADDGRANT
A40: 20181031 | B40: 2017-12-13 | C40: CK | D40: Original | E40: 3022023 | F40: Edgware Primary School | G40: Primary | H40: MA | I40: 400159 | J40: 10063 | K40: 0 | L40: 5/12ths of 2017/18 academic year (Apr18 to Aug18) | M40: COM | N40: PEGRANT | O40: ADDGRANT | P40: 1 | Q40: various | R40: 8737.5 | S40: 8737.5 | T40: 10166 | U40: 543965 | V40: I18 | W40: 1 | X40: 2184.38 | Y40: 2184.37 | Z40: 2184.38 | AA40: 2184.37 | AB40: 0 | AC40: 0 | AD40: 3022023PEGRANTC | AE40: Original3022023PEGRANT | AF40: 3022023PEGRANT | AG40: OriginalPEGRANT | AH40: Original3022023 | AI40: MAPriPEGRANT | AJ40: I183022023 | AK40: 3022023ADDGRANT | AL40: 10166Primary | AM40: Original3022023ADDGRANT | AN40: 0.25 | AO40: 0.5 | AP40: 0.75 | AQ40: 1 | AR40: SF Grants Paid To Primary Schools | AS40: AddGrants | AT40: 0 | AU40: C | AV40: 0 | AW40: 0 | AX40: 0 | AY40: 0 | AZ40: 0 | BA40: 0 | BB40: 0 | BC40: 0 | BD40: 0 | BE40: 0 | BF40: 0 | BG40: 0 | BH40: 0 | BI40: PE Grant | BJ40: 0 | BK40: 3022023PEGRANT | BL40: 0 | BM40: 0 | BN40: 0 | BO40: 10166PEGRANTMAPrimary | BP40: 8737.5 | BQ40: Original3022023PEGRANT | BR40: Estimate | BS40: 36 | BT40: 0 | BU40: MA0 | BV40: 4 | BW40: 0 | BX40: 0 | BY40: 0 | BZ40: 0 | CA40: 0 | CB40: 0 | CC40: 0 | CD40: 0 | CE40: 0 | CF40: 0 | CG40: 0 | CH40: 0 | CI40: 0 | CJ40: 0 | CK40: 0 | CL40: 0 | CM40: 0 | CN40: N | CO40: 3022023 | CP40: Edgware Primary School | CQ40: Original3022023PEGRANT | CR40: Original3022023 | CS40: 3022023PEGRANT | CT40: Original3022023I18 | CU40: =CO40&IF(O40="EARLYYEARS",VLOOKUP(N40,Rates!A:AT,24,0),N40) -> 3022023PEGRANT | CV40: Original3022023PEGRANT | CW40: Original3022023ADDGRANT | CX40: 3022023ADDGRANT
A41: 20181032 | B41: 2017-12-13 | C41: CK | D41: Original | E41: 3022024 | F41: Fairway Primary School | G41: Primary | H41: MA | I41: 400047 | J41: 10064 | K41: 0 | L41: 5/12ths of 2017/18 academic year (Apr18 to Aug18) | M41: COM | N41: PEGRANT | O41: ADDGRANT | P41: 1 | Q41: various | R41: 7537.5 | S41: 7537.5 | T41: 10166 | U41: 543965 | V41: I18 | W41: 1 | X41: 1884.38 | Y41: 1884.37 | Z41: 1884.38 | AA41: 1884.37 | AB41: 0 | AC41: 0 | AD41: 3022024PEGRANTA | AE41: Original3022024PEGRANT | AF41: 3022024PEGRANT | AG41: OriginalPEGRANT | AH41: Original3022024 | AI41: MAPriPEGRANT | AJ41: I183022024 | AK41: 3022024ADDGRANT | AL41: 10166Primary | AM41: Original3022024ADDGRANT | AN41: 0.25 | AO41: 0.5 | AP41: 0.75 | AQ41: 1 | AR41: SF Grants Paid To Primary Schools | AS41: AddGrants | AT41: 0 | AU41: A | AV41: 0 | AW41: 0 | AX41: 0 | AY41: 0 | AZ41: 0 | BA41: 0 | BB41: 0 | BC41: 0 | BD41: 0 | BE41: 0 | BF41: 0 | BG41: 0 | BH41: 0 | BI41: PE Grant | BJ41: 0 | BK41: 3022024PEGRANT | BL41: 0 | BM41: 0 | BN41: 0 | BO41: 10166PEGRANTMAPrimary | BP41: 7537.5 | BQ41: Original3022024PEGRANT | BR41: Estimate | BS41: 36 | BT41: 0 | BU41: MA0 | BV41: 4 | BW41: 0 | BX41: 0 | BY41: 0 | BZ41: 0 | CA41: 0 | CB41: 0 | CC41: 0 | CD41: 0 | CE41: 0 | CF41: 0 | CG41: 0 | CH41: 0 | CI41: 0 | CJ41: 0 | CK41: 0 | CL41: 0 | CM41: 0 | CN41: N | CO41: 3022024 | CP41: Fairway Primary School | CQ41: Original3022024PEGRANT | CR41: Original3022024 | CS41: 3022024PEGRANT | CT41: Original3022024I18 | CU41: =CO41&IF(O41="EARLYYEARS",VLOOKUP(N41,Rates!A:AT,24,0),N41) -> 3022024PEGRANT | CV41: Original3022024PEGRANT | CW41: Original3022024ADDGRANT | CX41: 3022024ADDGRANT
A42: 20181033 | B42: 2017-12-13 | C42: CK | D42: Original | E42: 3022025 | F42: Foulds | G42: Primary | H42: MA | I42: 400001 | J42: 10065 | K42: 0 | L42: 5/12ths of 2017/18 academic year (Apr18 to Aug18) | M42: COM | N42: PEGRANT | O42: ADDGRANT | P42: 1 | Q42: various | R42: 7779.166667 | S42: 7779.17 | T42: 10166 | U42: 543965 | V42: I18 | W42: 1 | X42: 1944.79 | Y42: 1944.8 | Z42: 1944.79 | AA42: 1944.79 | AB42: 0 | AC42: 0 | AD42: 3022025PEGRANTC | AE42: Original3022025PEGRANT | AF42: 3022025PEGRANT | AG42: OriginalPEGRANT | AH42: Original3022025 | AI42: MAPriPEGRANT | AJ42: I183022025 | AK42: 3022025ADDGRANT | AL42: 10166Primary | AM42: Original3022025ADDGRANT | AN42: 0.25 | AO42: 0.5 | AP42: 0.75 | AQ42: 1 | AR42: SF Grants Paid To Primary Schools | AS42: AddGrants | AT42: 0 | AU42: C | AV42: 0 | AW42: 0 | AX42: 0 | AY42: 0 | AZ42: 0 | BA42: 0 | BB42: 0 | BC42: 0 | BD42: 0 | BE42: 0 | BF42: 0 | BG42: 0 | BH42: 0 | BI42: PE Grant | BJ42: 0 | BK42: 3022025PEGRANT | BL42: 0 | BM42: 0 | BN42: 0 | BO42: 10166PEGRANTMAPrimary | BP42: 7779.17 | BQ42: Original3022025PEGRANT | BR42: Estimate | BS42: 36 | BT42: 0 | BU42: MA0 | BV42: 4 | BW42: 0 | BX42: 0 | BY42: 0 | BZ42: 0 | CA42: 0 | CB42: 0 | CC42: 0 | CD42: 0 | CE42: 0 | CF42: 0 | CG42: 0 | CH42: 0 | CI42: 0 | CJ42: 0 | CK42: 0 | CL42: 0 | CM42: 0 | CN42: N | CO42: 3022025 | CP42: Foulds | CQ42: Original3022025PEGRANT | CR42: Original3022025 | CS42: 3022025PEGRANT | CT42: Original3022025I18 | CU42: =CO42&IF(O42="EARLYYEARS",VLOOKUP(N42,Rates!A:AT,24,0),N42) -> 3022025PEGRANT | CV42: Original3022025PEGRANT | CW42: Original3022025ADDGRANT | CX42: 3022025ADDGRANT
A43: 20181034 | B43: 2017-12-13 | C43: CK | D43: Original | E43: 3022026 | F43: Frith Manor School | G43: Primary | H43: MA | I43: 400082 | J43: 10066 | K43: 0 | L43: 5/12ths of 2017/18 academic year (Apr18 to Aug18) | M43: COM | N43: PEGRANT | O43: ADDGRANT | P43: 1 | Q43: various | R43: 8825 | S43: 8825 | T43: 10166 | U43: 543965 | V43: I18 | W43: 1 | X43: 2206.25 | Y43: 2206.25 | Z43: 2206.25 | AA43: 2206.25 | AB43: 0 | AC43: 0 | AD43: 3022026PEGRANTA | AE43: Original3022026PEGRANT | AF43: 3022026PEGRANT | AG43: OriginalPEGRANT | AH43: Original3022026 | AI43: MAPriPEGRANT | AJ43: I183022026 | AK43: 3022026ADDGRANT | AL43: 10166Primary | AM43: Original3022026ADDGRANT | AN43: 0.25 | AO43: 0.5 | AP43: 0.75 | AQ43: 1 | AR43: SF Grants Paid To Primary Schools | AS43: AddGrants | AT43: 0 | AU43: A | AV43: 0 | AW43: 0 | AX43: 0 | AY43: 0 | AZ43: 0 | BA43: 0 | BB43: 0 | BC43: 0 | BD43: 0 | BE43: 0 | BF43: 0 | BG43: 0 | BH43: 0 | BI43: PE Grant | BJ43: 0 | BK43: 3022026PEGRANT | BL43: 0 | BM43: 0 | BN43: 0 | BO43: 10166PEGRANTMAPrimary | BP43: 8825 | BQ43: Original3022026PEGRANT | BR43: Estimate | BS43: 36 | BT43: 0 | BU43: MA0 | BV43: 4 | BW43: 0 | BX43: 0 | BY43: 0 | BZ43: 0 | CA43: 0 | CB43: 0 | CC43: 0 | CD43: 0 | CE43: 0 | CF43: 0 | CG43: 0 | CH43: 0 | CI43: 0 | CJ43: 0 | CK43: 0 | CL43: 0 | CM43: 0 | CN43: N | CO43: 3022026 | CP43: Frith Manor School | CQ43: Original3022026PEGRANT | CR43: Original3022026 | CS43: 3022026PEGRANT | CT43: Original3022026I18 | CU43: =CO43&IF(O43="EARLYYEARS",VLOOKUP(N43,Rates!A:AT,24,0),N43) -> 3022026PEGRANT | CV43: Original3022026PEGRANT | CW43: Original3022026ADDGRANT | CX43: 3022026ADDGRANT
A44: 20181035 | B44: 2017-12-13 | C44: CK | D44: Original | E44: 3022027 | F44: Garden Suburb Junior | G44: Primary | H44: MA | I44: 400002 | J44: 10067 | K44: 0 | L44: 5/12ths of 2017/18 academic year (Apr18 to Aug18) | M44: COM | N44: PEGRANT | O44: ADDGRANT | P44: 1 | Q44: various | R44: 8158.333333 | S44: 8158.33 | T44: 10166 | U44: 543965 | V44: I18 | W44: 1 | X44: 2039.58 | Y44: 2039.59 | Z44: 2039.58 | AA44: 2039.58 | AB44: 0 | AC44: 0 | AD44: 3022027PEGRANTA | AE44: Original3022027PEGRANT | AF44: 3022027PEGRANT | AG44: OriginalPEGRANT | AH44: Original3022027 | AI44: MAPriPEGRANT | AJ44: I183022027 | AK44: 3022027ADDGRANT | AL44: 10166Primary | AM44: Original3022027ADDGRANT | AN44: 0.25 | AO44: 0.5 | AP44: 0.75 | AQ44: 1 | AR44: SF Grants Paid To Primary Schools | AS44: AddGrants | AT44: 0 | AU44: A | AV44: 0 | AW44: 0 | AX44: 0 | AY44: 0 | AZ44: 0 | BA44: 0 | BB44: 0 | BC44: 0 | BD44: 0 | BE44: 0 | BF44: 0 | BG44: 0 | BH44: 0 | BI44: PE Grant | BJ44: 0 | BK44: 3022027PEGRANT | BL44: 0 | BM44: 0 | BN44: 0 | BO44: 10166PEGRANTMAPrimary | BP44: 8158.33 | BQ44: Original3022027PEGRANT | BR44: Estimate | BS44: 36 | BT44: 0 | BU44: MA0 | BV44: 4 | BW44: 0 | BX44: 0 | BY44: 0 | BZ44: 0 | CA44: 0 | CB44: 0 | CC44: 0 | CD44: 0 | CE44: 0 | CF44: 0 | CG44: 0 | CH44: 0 | CI44: 0 | CJ44: 0 | CK44: 0 | CL44: 0 | CM44: 0 | CN44: N | CO44: 3022027 | CP44: Garden Suburb Junior | CQ44: Original3022027PEGRANT | CR44: Original3022027 | CS44: 3022027PEGRANT | CT44: Original3022027I18 | CU44: =CO44&IF(O44="EARLYYEARS",VLOOKUP(N44,Rates!A:AT,24,0),N44) -> 3022027PEGRANT | CV44: Original3022027PEGRANT | CW44: Original3022027ADDGRANT | CX44: 3022027ADDGRANT
A45: 20181036 | B45: 2017-12-13 | C45: CK | D45: Original | E45: 3022028 | F45: Garden Suburb Infant School | G45: Primary | H45: MA | I45: 400067 | J45: 10068 | K45: 0 | L45: 5/12ths of 2017/18 academic year (Apr18 to Aug18) | M45: COM | N45: PEGRANT | O45: ADDGRANT | P45: 1 | Q45: various | R45: 7412.5 | S45: 7412.5 | T45: 10166 | U45: 543965 | V45: I18 | W45: 1 | X45: 1853.13 | Y45: 1853.12 | Z45: 1853.13 | AA45: 1853.12 | AB45: 0 | AC45: 0 | AD45: 3022028PEGRANTA | AE45: Original3022028PEGRANT | AF45: 3022028PEGRANT | AG45: OriginalPEGRANT | AH45: Original3022028 | AI45: MAPriPEGRANT | AJ45: I183022028 | AK45: 3022028ADDGRANT | AL45: 10166Primary | AM45: Original3022028ADDGRANT | AN45: 0.25 | AO45: 0.5 | AP45: 0.75 | AQ45: 1 | AR45: SF Grants Paid To Primary Schools | AS45: AddGrants | AT45: 0 | AU45: A | AV45: 0 | AW45: 0 | AX45: 0 | AY45: 0 | AZ45: 0 | BA45: 0 | BB45: 0 | BC45: 0 | BD45: 0 | BE45: 0 | BF45: 0 | BG45: 0 | BH45: 0 | BI45: PE Grant | BJ45: 0 | BK45: 3022028PEGRANT | BL45: 0 | BM45: 0 | BN45: 0 | BO45: 10166PEGRANTMAPrimary | BP45: 7412.5 | BQ45: Original3022028PEGRANT | BR45: Estimate | BS45: 36 | BT45: 0 | BU45: MA0 | BV45: 4 | BW45: 0 | BX45: 0 | BY45: 0 | BZ45: 0 | CA45: 0 | CB45: 0 | CC45: 0 | CD45: 0 | CE45: 0 | CF45: 0 | CG45: 0 | CH45: 0 | CI45: 0 | CJ45: 0 | CK45: 0 | CL45: 0 | CM45: 0 | CN45: N | CO45: 3022028 | CP45: Garden Suburb Infant School | CQ45: Original3022028PEGRANT | CR45: Original3022028 | CS45: 3022028PEGRANT | CT45: Original3022028I18 | CU45: =CO45&IF(O45="EARLYYEARS",VLOOKUP(N45,Rates!A:AT,24,0),N45) -> 3022028PEGRANT | CV45: Original3022028PEGRANT | CW45: Original3022028ADDGRANT | CX45: 3022028ADDGRANT
A46: 20181037 | B46: 2017-12-13 | C46: CK | D46: Original | E46: 3022029 | F46: Goldbeaters Primary School | G46: Primary | H46: MA | I46: 400035 | J46: 10069 | K46: 0 | L46: 5/12ths of 2017/18 academic year (Apr18 to Aug18) | M46: COM | N46: PEGRANT | O46: ADDGRANT | P46: 1 | Q46: various | R46: 8162.5 | S46: 8162.5 | T46: 10166 | U46: 543965 | V46: I18 | W46: 1 | X46: 2040.63 | Y46: 2040.62 | Z46: 2040.63 | AA46: 2040.62 | AB46: 0 | AC46: 0 | AD46: 3022029PEGRANTA | AE46: Original3022029PEGRANT | AF46: 3022029PEGRANT | AG46: OriginalPEGRANT | AH46: Original3022029 | AI46: MAPriPEGRANT | AJ46: I183022029 | AK46: 3022029ADDGRANT | AL46: 10166Primary | AM46: Original3022029ADDGRANT | AN46: 0.25 | AO46: 0.5 | AP46: 0.75 | AQ46: 1 | AR46: SF Grants Paid To Primary Schools | AS46: AddGrants | AT46: 0 | AU46: A | AV46: 0 | AW46: 0 | AX46: 0 | AY46: 0 | AZ46: 0 | BA46: 0 | BB46: 0 | BC46: 0 | BD46: 0 | BE46: 0 | BF46: 0 | BG46: 0 | BH46: 0 | BI46: PE Grant | BJ46: 0 | BK46: 3022029PEGRANT | BL46: 0 | BM46: 0 | BN46: 0 | BO46: 10166PEGRANTMAPrimary | BP46: 8162.5 | BQ46: Original3022029PEGRANT | BR46: Estimate | BS46: 36 | BT46: 0 | BU46: MA0 | BV46: 4 | BW46: 0 | BX46: 0 | BY46: 0 | BZ46: 0 | CA46: 0 | CB46: 0 | CC46: 0 | CD46: 0 | CE46: 0 | CF46: 0 | CG46: 0 | CH46: 0 | CI46: 0 | CJ46: 0 | CK46: 0 | CL46: 0 | CM46: 0 | CN46: N | CO46: 3022029 | CP46: Goldbeaters Primary School | CQ46: Original3022029PEGRANT | CR46: Original3022029 | CS46: 3022029PEGRANT | CT46: Original3022029I18 | CU46: =CO46&IF(O46="EARLYYEARS",VLOOKUP(N46,Rates!A:AT,24,0),N46) -> 3022029PEGRANT | CV46: Original3022029PEGRANT | CW46: Original3022029ADDGRANT | CX46: 3022029ADDGRANT
A47: 20181038 | B47: 2017-12-13 | C47: CK | D47: Original | E47: 3022031 | F47: Hollickwood JMI School | G47: Primary | H47: MA | I47: 400026 | J47: 10071 | K47: 0 | L47: 5/12ths of 2017/18 academic year (Apr18 to Aug18) | M47: FOU | N47: PEGRANT | O47: ADDGRANT | P47: 1 | Q47: various | R47: 7362.5 | S47: 7362.5 | T47: 10166 | U47: 543965 | V47: I18 | W47: 1 | X47: 1840.63 | Y47: 1840.62 | Z47: 1840.63 | AA47: 1840.62 | AB47: 0 | AC47: 0 | AD47: 3022031PEGRANTA | AE47: Original3022031PEGRANT | AF47: 3022031PEGRANT | AG47: OriginalPEGRANT | AH47: Original3022031 | AI47: MAPriPEGRANT | AJ47: I183022031 | AK47: 3022031ADDGRANT | AL47: 10166Primary | AM47: Original3022031ADDGRANT | AN47: 0.25 | AO47: 0.5 | AP47: 0.75 | AQ47: 1 | AR47: SF Grants Paid To Primary Schools | AS47: AddGrants | AT47: 0 | AU47: A | AV47: 0 | AW47: 0 | AX47: 0 | AY47: 0 | AZ47: 0 | BA47: 0 | BB47: 0 | BC47: 0 | BD47: 0 | BE47: 0 | BF47: 0 | BG47: 0 | BH47: 0 | BI47: PE Grant | BJ47: 0 | BK47: 3022031PEGRANT | BL47: 0 | BM47: 0 | BN47: 0 | BO47: 10166PEGRANTMAPrimary | BP47: 7362.5 | BQ47: Original3022031PEGRANT | BR47: Estimate | BS47: 36 | BT47: 0 | BU47: MA0 | BV47: 4 | BW47: 0 | BX47: 0 | BY47: 0 | BZ47: 0 | CA47: 0 | CB47: 0 | CC47: 0 | CD47: 0 | CE47: 0 | CF47: 0 | CG47: 0 | CH47: 0 | CI47: 0 | CJ47: 0 | CK47: 0 | CL47: 0 | CM47: 0 | CN47: N | CO47: 3022031 | CP47: Hollickwood JMI School | CQ47: Original3022031PEGRANT | CR47: Original3022031 | CS47: 3022031PEGRANT | CT47: Original3022031I18 | CU47: =CO47&IF(O47="EARLYYEARS",VLOOKUP(N47,Rates!A:AT,24,0),N47) -> 3022031PEGRANT | CV47: Original3022031PEGRANT | CW47: Original3022031ADDGRANT | CX47: 3022031ADDGRANT
A48: 20181039 | B48: 2017-12-13 | C48: CK | D48: Original | E48: 3022032 | F48: Holly Park School | G48: Primary | H48: MA | I48: 400084 | J48: 10072 | K48: 0 | L48: 5/12ths of 2017/18 academic year (Apr18 to Aug18) | M48: COM | N48: PEGRANT | O48: ADDGRANT | P48: 1 | Q48: various | R48: 8395.833333 | S48: 8395.83 | T48: 10166 | U48: 543965 | V48: I18 | W48: 1 | X48: 2098.96 | Y48: 2098.96 | Z48: 2098.95 | AA48: 2098.96 | AB48: 0 | AC48: 0 | AD48: 3022032PEGRANTA | AE48: Original3022032PEGRANT | AF48: 3022032PEGRANT | AG48: OriginalPEGRANT | AH48: Original3022032 | AI48: MAPriPEGRANT | AJ48: I183022032 | AK48: 3022032ADDGRANT | AL48: 10166Primary | AM48: Original3022032ADDGRANT | AN48: 0.25 | AO48: 0.5 | AP48: 0.75 | AQ48: 1 | AR48: SF Grants Paid To Primary Schools | AS48: AddGrants | AT48: 0 | AU48: A | AV48: 0 | AW48: 0 | AX48: 0 | AY48: 0 | AZ48: 0 | BA48: 0 | BB48: 0 | BC48: 0 | BD48: 0 | BE48: 0 | BF48: 0 | BG48: 0 | BH48: 0 | BI48: PE Grant | BJ48: 0 | BK48: 3022032PEGRANT | BL48: 0 | BM48: 0 | BN48: 0 | BO48: 10166PEGRANTMAPrimary | BP48: 8395.83 | BQ48: Original3022032PEGRANT | BR48: Estimate | BS48: 36 | BT48: 0 | BU48: MA0 | BV48: 4 | BW48: 0 | BX48: 0 | BY48: 0 | BZ48: 0 | CA48: 0 | CB48: 0 | CC48: 0 | CD48: 0 | CE48: 0 | CF48: 0 | CG48: 0 | CH48: 0 | CI48: 0 | CJ48: 0 | CK48: 0 | CL48: 0 | CM48: 0 | CN48: N | CO48: 3022032 | CP48: Holly Park School | CQ48: Original3022032PEGRANT | CR48: Original3022032 | CS48: 3022032PEGRANT | CT48: Original3022032I18 | CU48: =CO48&IF(O48="EARLYYEARS",VLOOKUP(N48,Rates!A:AT,24,0),N48) -> 3022032PEGRANT | CV48: Original3022032PEGRANT | CW48: Original3022032ADDGRANT | CX48: 3022032ADDGRANT
A49: 20181040 | B49: 2017-12-13 | C49: CK | D49: Original | E49: 3022036 | F49: Livingstone School | G49: Primary | H49: MA | I49: 400046 | J49: 10074 | K49: 0 | L49: 5/12ths of 2017/18 academic year (Apr18 to Aug18) | M49: COM | N49: PEGRANT | O49: ADDGRANT | P49: 1 | Q49: various | R49: 7645.833333 | S49: 7645.83 | T49: 10166 | U49: 543965 | V49: I18 | W49: 1 | X49: 1911.46 | Y49: 1911.46 | Z49: 1911.45 | AA49: 1911.46 | AB49: 0 | AC49: 0 | AD49: 3022036PEGRANTA | AE49: Original3022036PEGRANT | AF49: 3022036PEGRANT | AG49: OriginalPEGRANT | AH49: Original3022036 | AI49: MAPriPEGRANT | AJ49: I183022036 | AK49: 3022036ADDGRANT | AL49: 10166Primary | AM49: Original3022036ADDGRANT | AN49: 0.25 | AO49: 0.5 | AP49: 0.75 | AQ49: 1 | AR49: SF Grants Paid To Primary Schools | AS49: AddGrants | AT49: 0 | AU49: A | AV49: 0 | AW49: 0 | AX49: 0 | AY49: 0 | AZ49: 0 | BA49: 0 | BB49: 0 | BC49: 0 | BD49: 0 | BE49: 0 | BF49: 0 | BG49: 0 | BH49: 0 | BI49: PE Grant | BJ49: 0 | BK49: 3022036PEGRANT | BL49: 0 | BM49: 0 | BN49: 0 | BO49: 10166PEGRANTMAPrimary | BP49: 7645.83 | BQ49: Original3022036PEGRANT | BR49: Estimate | BS49: 36 | BT49: 0 | BU49: MA0 | BV49: 4 | BW49: 0 | BX49: 0 | BY49: 0 | BZ49: 0 | CA49: 0 | CB49: 0 | CC49: 0 | CD49: 0 | CE49: 0 | CF49: 0 | CG49: 0 | CH49: 0 | CI49: 0 | CJ49: 0 | CK49: 0 | CL49: 0 | CM49: 0 | CN49: N | CO49: 3022036 | CP49: Livingstone School | CQ49: Original3022036PEGRANT | CR49: Original3022036 | CS49: 3022036PEGRANT | CT49: Original3022036I18 | CU49: =CO49&IF(O49="EARLYYEARS",VLOOKUP(N49,Rates!A:AT,24,0),N49) -> 3022036PEGRANT | CV49: Original3022036PEGRANT | CW49: Original3022036ADDGRANT | CX49: 3022036ADDGRANT
A50: 20181041 | B50: 2017-12-13 | C50: CK | D50: Original | E50: 3022037 | F50: Manorside Primary School | G50: Primary | H50: MA | I50: 400030 | J50: 10075 | K50: 0 | L50: 5/12ths of 2017/18 academic year (Apr18 to Aug18) | M50: COM | N50: PEGRANT | O50: ADDGRANT | P50: 1 | Q50: various | R50: 7795.833333 | S50: 7795.83 | T50: 10166 | U50: 543965 | V50: I18 | W50: 1 | X50: 1948.96 | Y50: 1948.96 | Z50: 1948.95 | AA50: 1948.96 | AB50: 0 | AC50: 0 | AD50: 3022037PEGRANTA | AE50: Original3022037PEGRANT | AF50: 3022037PEGRANT | AG50: OriginalPEGRANT | AH50: Original3022037 | AI50: MAPriPEGRANT | AJ50: I183022037 | AK50: 3022037ADDGRANT | AL50: 10166Primary | AM50: Original3022037ADDGRANT | AN50: 0.25 | AO50: 0.5 | AP50: 0.75 | AQ50: 1 | AR50: SF Grants Paid To Primary Schools | AS50: AddGrants | AT50: 0 | AU50: A | AV50: 0 | AW50: 0 | AX50: 0 | AY50: 0 | AZ50: 0 | BA50: 0 | BB50: 0 | BC50: 0 | BD50: 0 | BE50: 0 | BF50: 0 | BG50: 0 | BH50: 0 | BI50: PE Grant | BJ50: 0 | BK50: 3022037PEGRANT | BL50: 0 | BM50: 0 | BN50: 0 | BO50: 10166PEGRANTMAPrimary | BP50: 7795.83 | BQ50: Original3022037PEGRANT | BR50: Estimate | BS50: 36 | BT50: 0 | BU50: MA0 | BV50: 4 | BW50: 0 | BX50: 0 | BY50: 0 | BZ50: 0 | CA50: 0 | CB50: 0 | CC50: 0 | CD50: 0 | CE50: 0 | CF50: 0 | CG50: 0 | CH50: 0 | CI50: 0 | CJ50: 0 | CK50: 0 | CL50: 0 | CM50: 0 | CN50: N | CO50: 3022037 | CP50: Manorside Primary School | CQ50: Original3022037PEGRANT | CR50: Original3022037 | CS50: 3022037PEGRANT | CT50: Original3022037I18 | CU50: =CO50&IF(O50="EARLYYEARS",VLOOKUP(N50,Rates!A:AT,24,0),N50) -> 3022037PEGRANT | CV50: Original3022037PEGRANT | CW50: Original3022037ADDGRANT | CX50: 3022037ADDGRANT
A51: 20181042 | B51: 2017-12-13 | C51: CK | D51: Original | E51: 3022042 | F51: Monkfrith School | G51: Primary | H51: MA | I51: 400048 | J51: 10079 | K51: 0 | L51: 5/12ths of 2017/18 academic year (Apr18 to Aug18) | M51: COM | N51: PEGRANT | O51: ADDGRANT | P51: 1 | Q51: various | R51: 7795.833333 | S51: 7795.83 | T51: 10166 | U51: 543965 | V51: I18 | W51: 1 | X51: 1948.96 | Y51: 1948.96 | Z51: 1948.95 | AA51: 1948.96 | AB51: 0 | AC51: 0 | AD51: 3022042PEGRANTD | AE51: Original3022042PEGRANT | AF51: 3022042PEGRANT | AG51: OriginalPEGRANT | AH51: Original3022042 | AI51: MAPriPEGRANT | AJ51: I183022042 | AK51: 3022042ADDGRANT | AL51: 10166Primary | AM51: Original3022042ADDGRANT | AN51: 0.25 | AO51: 0.5 | AP51: 0.75 | AQ51: 1 | AR51: SF Grants Paid To Primary Schools | AS51: AddGrants | AT51: 0 | AU51: D | AV51: 0 | AW51: 0 | AX51: 0 | AY51: 0 | AZ51: 0 | BA51: 0 | BB51: 0 | BC51: 0 | BD51: 0 | BE51: 0 | BF51: 0 | BG51: 0 | BH51: 0 | BI51: PE Grant | BJ51: 0 | BK51: 3022042PEGRANT | BL51: 0 | BM51: 0 | BN51: 0 | BO51: 10166PEGRANTMAPrimary | BP51: 7795.83 | BQ51: Original3022042PEGRANT | BR51: Estimate | BS51: 36 | BT51: 0 | BU51: MA0 | BV51: 4 | BW51: 0 | BX51: 0 | BY51: 0 | BZ51: 0 | CA51: 0 | CB51: 0 | CC51: 0 | CD51: 0 | CE51: 0 | CF51: 0 | CG51: 0 | CH51: 0 | CI51: 0 | CJ51: 0 | CK51: 0 | CL51: 0 | CM51: 0 | CN51: N | CO51: 3022042 | CP51: Monkfrith School | CQ51: Original3022042PEGRANT | CR51: Original3022042 | CS51: 3022042PEGRANT | CT51: Original3022042I18 | CU51: =CO51&IF(O51="EARLYYEARS",VLOOKUP(N51,Rates!A:AT,24,0),N51) -> 3022042PEGRANT | CV51: Original3022042PEGRANT | CW51: Original3022042ADDGRANT | CX51: 3022042ADDGRANT
A52: 20181043 | B52: 2017-12-13 | C52: CK | D52: Original | E52: 3022043 | F52: Moss Hall Junior School | G52: Primary | H52: MA | I52: 400088 | J52: 10080 | K52: 0 | L52: 5/12ths of 2017/18 academic year (Apr18 to Aug18) | M52: COM | N52: PEGRANT | O52: ADDGRANT | P52: 1 | Q52: various | R52: 8391.666667 | S52: 8391.67 | T52: 10166 | U52: 543965 | V52: I18 | W52: 1 | X52: 2097.92 | Y52: 2097.92 | Z52: 2097.91 | AA52: 2097.92 | AB52: 0 | AC52: 0 | AD52: 3022043PEGRANTA | AE52: Original3022043PEGRANT | AF52: 3022043PEGRANT | AG52: OriginalPEGRANT | AH52: Original3022043 | AI52: MAPriPEGRANT | AJ52: I183022043 | AK52: 3022043ADDGRANT | AL52: 10166Primary | AM52: Original3022043ADDGRANT | AN52: 0.25 | AO52: 0.5 | AP52: 0.75 | AQ52: 1 | AR52: SF Grants Paid To Primary Schools | AS52: AddGrants | AT52: 0 | AU52: A | AV52: 0 | AW52: 0 | AX52: 0 | AY52: 0 | AZ52: 0 | BA52: 0 | BB52: 0 | BC52: 0 | BD52: 0 | BE52: 0 | BF52: 0 | BG52: 0 | BH52: 0 | BI52: PE Grant | BJ52: 0 | BK52: 3022043PEGRANT | BL52: 0 | BM52: 0 | BN52: 0 | BO52: 10166PEGRANTMAPrimary | BP52: 8391.67 | BQ52: Original3022043PEGRANT | BR52: Estimate | BS52: 36 | BT52: 0 | BU52: MA0 | BV52: 4 | BW52: 0 | BX52: 0 | BY52: 0 | BZ52: 0 | CA52: 0 | CB52: 0 | CC52: 0 | CD52: 0 | CE52: 0 | CF52: 0 | CG52: 0 | CH52: 0 | CI52: 0 | CJ52: 0 | CK52: 0 | CL52: 0 | CM52: 0 | CN52: N | CO52: 3022043 | CP52: Moss Hall Junior School | CQ52: Original3022043PEGRANT | CR52: Original3022043 | CS52: 3022043PEGRANT | CT52: Original3022043I18 | CU52: =CO52&IF(O52="EARLYYEARS",VLOOKUP(N52,Rates!A:AT,24,0),N52) -> 3022043PEGRANT | CV52: Original3022043PEGRANT | CW52: Original3022043ADDGRANT | CX52: 3022043ADDGRANT
A53: 20181044 | B53: 2017-12-13 | C53: CK | D53: Original | E53: 3022044 | F53: Moss Hall Infant School | G53: Primary | H53: MA | I53: 400087 | J53: 10081 | K53: 0 | L53: 5/12ths of 2017/18 academic year (Apr18 to Aug18) | M53: COM | N53: PEGRANT | O53: ADDGRANT | P53: 1 | Q53: various | R53: 7662.5 | S53: 7662.5 | T53: 10166 | U53: 543965 | V53: I18 | W53: 1 | X53: 1915.63 | Y53: 1915.62 | Z53: 1915.63 | AA53: 1915.62 | AB53: 0 | AC53: 0 | AD53: 3022044PEGRANTA | AE53: Original3022044PEGRANT | AF53: 3022044PEGRANT | AG53: OriginalPEGRANT | AH53: Original3022044 | AI53: MAPriPEGRANT | AJ53: I183022044 | AK53: 3022044ADDGRANT | AL53: 10166Primary | AM53: Original3022044ADDGRANT | AN53: 0.25 | AO53: 0.5 | AP53: 0.75 | AQ53: 1 | AR53: SF Grants Paid To Primary Schools | AS53: AddGrants | AT53: 0 | AU53: A | AV53: 0 | AW53: 0 | AX53: 0 | AY53: 0 | AZ53: 0 | BA53: 0 | BB53: 0 | BC53: 0 | BD53: 0 | BE53: 0 | BF53: 0 | BG53: 0 | BH53: 0 | BI53: PE Grant | BJ53: 0 | BK53: 3022044PEGRANT | BL53: 0 | BM53: 0 | BN53: 0 | BO53: 10166PEGRANTMAPrimary | BP53: 7662.5 | BQ53: Original3022044PEGRANT | BR53: Estimate | BS53: 36 | BT53: 0 | BU53: MA0 | BV53: 4 | BW53: 0 | BX53: 0 | BY53: 0 | BZ53: 0 | CA53: 0 | CB53: 0 | CC53: 0 | CD53: 0 | CE53: 0 | CF53: 0 | CG53: 0 | CH53: 0 | CI53: 0 | CJ53: 0 | CK53: 0 | CL53: 0 | CM53: 0 | CN53: N | CO53: 3022044 | CP53: Moss Hall Infant School | CQ53: Original3022044PEGRANT | CR53: Original3022044 | CS53: 3022044PEGRANT | CT53: Original3022044I18 | CU53: =CO53&IF(O53="EARLYYEARS",VLOOKUP(N53,Rates!A:AT,24,0),N53) -> 3022044PEGRANT | CV53: Original3022044PEGRANT | CW53: Original3022044ADDGRANT | CX53: 3022044ADDGRANT
A54: 20181045 | B54: 2017-12-13 | C54: CK | D54: Original | E54: 3022045 | F54: Northside School | G54: Primary | H54: MA | I54: 400089 | J54: 10082 | K54: 0 | L54: 5/12ths of 2017/18 academic year (Apr18 to Aug18) | M54: COM | N54: PEGRANT | O54: ADDGRANT | P54: 1 | Q54: various | R54: 7558.333333 | S54: 7558.33 | T54: 10166 | U54: 543965 | V54: I18 | W54: 1 | X54: 1889.58 | Y54: 1889.59 | Z54: 1889.58 | AA54: 1889.58 | AB54: 0 | AC54: 0 | AD54: 3022045PEGRANTA | AE54: Original3022045PEGRANT | AF54: 3022045PEGRANT | AG54: OriginalPEGRANT | AH54: Original3022045 | AI54: MAPriPEGRANT | AJ54: I183022045 | AK54: 3022045ADDGRANT | AL54: 10166Primary | AM54: Original3022045ADDGRANT | AN54: 0.25 | AO54: 0.5 | AP54: 0.75 | AQ54: 1 | AR54: SF Grants Paid To Primary Schools | AS54: AddGrants | AT54: 0 | AU54: A | AV54: 0 | AW54: 0 | AX54: 0 | AY54: 0 | AZ54: 0 | BA54: 0 | BB54: 0 | BC54: 0 | BD54: 0 | BE54: 0 | BF54: 0 | BG54: 0 | BH54: 0 | BI54: PE Grant | BJ54: 0 | BK54: 3022045PEGRANT | BL54: 0 | BM54: 0 | BN54: 0 | BO54: 10166PEGRANTMAPrimary | BP54: 7558.33 | BQ54: Original3022045PEGRANT | BR54: Estimate | BS54: 36 | BT54: 0 | BU54: MA0 | BV54: 4 | BW54: 0 | BX54: 0 | BY54: 0 | BZ54: 0 | CA54: 0 | CB54: 0 | CC54: 0 | CD54: 0 | CE54: 0 | CF54: 0 | CG54: 0 | CH54: 0 | CI54: 0 | CJ54: 0 | CK54: 0 | CL54: 0 | CM54: 0 | CN54: N | CO54: 3022045 | CP54: Northside School | CQ54: Original3022045PEGRANT | CR54: Original3022045 | CS54: 3022045PEGRANT | CT54: Original3022045I18 | CU54: =CO54&IF(O54="EARLYYEARS",VLOOKUP(N54,Rates!A:AT,24,0),N54) -> 3022045PEGRANT | CV54: Original3022045PEGRANT | CW54: Original3022045ADDGRANT | CX54: 3022045ADDGRANT
A55: 20181046 | B55: 2017-12-13 | C55: CK | D55: Original | E55: 3022054 | F55: Woodridge Primary School | G55: Primary | H55: MA | I55: 400004 | J55: 10109 | K55: 0 | L55: 5/12ths of 2017/18 academic year (Apr18 to Aug18) | M55: COM | N55: PEGRANT | O55: ADDGRANT | P55: 1 | Q55: various | R55: 7533.333333 | S55: 7533.33 | T55: 10166 | U55: 543965 | V55: I18 | W55: 1 | X55: 1883.33 | Y55: 1883.34 | Z55: 1883.33 | AA55: 1883.33 | AB55: 0 | AC55: 0 | AD55: 3022054PEGRANTA | AE55: Original3022054PEGRANT | AF55: 3022054PEGRANT | AG55: OriginalPEGRANT | AH55: Original3022054 | AI55: MAPriPEGRANT | AJ55: I183022054 | AK55: 3022054ADDGRANT | AL55: 10166Primary | AM55: Original3022054ADDGRANT | AN55: 0.25 | AO55: 0.5 | AP55: 0.75 | AQ55: 1 | AR55: SF Grants Paid To Primary Schools | AS55: AddGrants | AT55: 0 | AU55: A | AV55: 0 | AW55: 0 | AX55: 0 | AY55: 0 | AZ55: 0 | BA55: 0 | BB55: 0 | BC55: 0 | BD55: 0 | BE55: 0 | BF55: 0 | BG55: 0 | BH55: 0 | BI55: PE Grant | BJ55: 0 | BK55: 3022054PEGRANT | BL55: 0 | BM55: 0 | BN55: 0 | BO55: 10166PEGRANTMAPrimary | BP55: 7533.33 | BQ55: Original3022054PEGRANT | BR55: Estimate | BS55: 36 | BT55: 0 | BU55: MA0 | BV55: 4 | BW55: 0 | BX55: 0 | BY55: 0 | BZ55: 0 | CA55: 0 | CB55: 0 | CC55: 0 | CD55: 0 | CE55: 0 | CF55: 0 | CG55: 0 | CH55: 0 | CI55: 0 | CJ55: 0 | CK55: 0 | CL55: 0 | CM55: 0 | CN55: N | CO55: 3022054 | CP55: Woodridge Primary School | CQ55: Original3022054PEGRANT | CR55: Original3022054 | CS55: 3022054PEGRANT | CT55: Original3022054I18 | CU55: =CO55&IF(O55="EARLYYEARS",VLOOKUP(N55,Rates!A:AT,24,0),N55) -> 3022054PEGRANT | CV55: Original3022054PEGRANT | CW55: Original3022054ADDGRANT | CX55: 3022054ADDGRANT
